Workbook

Sheet 2023 NIST (for reference) (hidden)
E1: $/MMBtu | F1: $/MMBtu | G1: $/MMBtu | H1: $/MMBtu | I1: $/MMBtu | J1: FPI | K1: FPI | L1: FPI | M1: FPI | N1: FPI | O1: UPV | P1: UPV | Q1: UPV | R1: UPV | S1: UPV
A2: Lookup Reference | C2: Year | D2: Fuel Type | E2: Region 1 - Northeast | F2: Region 2 - Midwest | G2: Region 3 - South | H2: Region 4 - West | I2: Region 5 - US | J2: =E2 -> Region 1 - Northeast | K2: =F2 -> Region 2 - Midwest | L2: Region 3 - South | M2: Region 4 - West | N2: Region 5 - US | O2: =J2 -> Region 1 - Northeast | P2: =K2 -> Region 2 - Midwest | Q2: Region 3 - South | R2: Region 4 - West | S2: Region 5 - US
A3: =C3&D3 -> 0Natural Gas | B3: 2023 | C3: 0 | D3: Natural Gas | J3: 1 | K3: 1 | L3: 1 | M3: 1 | N3: 1
A4: 1Natural Gas | B4: =B3+1 -> 2024 | C4: 1 | D4: Natural Gas | J4: 0.9132920407 | K4: 0.8921948754 | L4: 0.954173769 | M4: 0.9803129063 | N4: 0.9291411082
A5: 2Natural Gas | B5: =B4+1 -> 2025 | C5: 2 | D5: Natural Gas | J5: 0.8566307233 | K5: 0.8188333371 | L5: 0.9238842568 | M5: 0.9112727449 | N5: 0.8691537914
A6: 3Natural Gas | B6: 2026 | C6: 3 | D6: Natural Gas | J6: 0.8214055045 | K6: 0.7732775593 | L6: 0.9009155271 | M6: 0.834841404 | N6: 0.8242058197
A7: 4Natural Gas | B7: 2027 | C7: 4 | D7: Natural Gas | J7: 0.7950080127 | K7: 0.7445652067 | L7: 0.8895900098 | M7: 0.7710907938 | N7: 0.7920186104
A8: 5Natural Gas | B8: 2028 | C8: 5 | D8: Natural Gas | J8: 0.7770423817 | K8: 0.7307061375 | L8: 0.8883977242 | M8: 0.7179328976 | N8: 0.7709790422
A9: 6Natural Gas | B9: 2029 | C9: 6 | D9: Natural Gas | J9: 0.776249529 | K9: 0.7314186842 | L9: 0.8933152883 | M9: 0.704641452 | N9: 0.7690788974
A10: 7Natural Gas | B10: 2030 | C10: 7 | D10: Natural Gas | J10: 0.7722680307 | K10: 0.737776961 | L10: 0.9013475057 | M10: 0.7059171396 | N10: 0.7722508008
A11: 8Natural Gas | B11: 2031 | C11: 8 | D11: Natural Gas | J11: 0.7707392787 | K11: 0.7472174175 | L11: 0.9119005613 | M11: 0.7111930308 | N11: 0.778437432
A12: 9Natural Gas | B12: 2032 | C12: 9 | D12: Natural Gas | J12: 0.7713009267 | K12: 0.7556489999 | L12: 0.9231257405 | M12: 0.7169683715 | N12: 0.7850950131
A13: 10Natural Gas | B13: 2033 | C13: 10 | D13: Natural Gas | J13: 0.775139747 | K13: 0.7667060879 | L13: 0.9363056733 | M13: 0.7257628184 | N13: 0.7944934324
A14: 11Natural Gas | B14: 2034 | C14: 11 | D14: Natural Gas | J14: 0.7771792907 | K14: 0.778054773 | L14: 0.9482607449 | M14: 0.7354838262 | N14: 0.8034935116
A15: 12Natural Gas | B15: 2035 | C15: 12 | D15: Natural Gas | J15: 0.7782442335 | K15: 0.7880917889 | L15: 0.9587642194 | M15: 0.7443205349 | N15: 0.8113325946
A16: 13Natural Gas | B16: 2036 | C16: 13 | D16: Natural Gas | J16: 0.7793508339 | K16: 0.79363579 | L16: 0.965833755 | M16: 0.7485146444 | N16: 0.8159652749
A17: 14Natural Gas | B17: 2037 | C17: 14 | D17: Natural Gas | J17: 0.7830207394 | K17: 0.7997586943 | L17: 0.97269004 | M17: 0.7525858338 | N17: 0.8213140794
A18: 15Natural Gas | B18: 2038 | C18: 15 | D18: Natural Gas | J18: 0.7914148542 | K18: 0.8088616218 | L18: 0.9822040851 | M18: 0.7605068231 | N18: 0.8302123494
A19: 16Natural Gas | B19: 2039 | C19: 16 | D19: Natural Gas | J19: 0.7948303762 | K19: 0.8114958448 | L19: 0.9864145882 | M19: 0.7611453093 | N19: 0.8330502803
A20: 17Natural Gas | B20: 2040 | C20: 17 | D20: Natural Gas | J20: 0.7976407005 | K20: 0.8169286048 | L20: 0.9940276933 | M20: 0.7650098362 | N20: 0.8380780726
A21: 18Natural Gas | B21: 2041 | C21: 18 | D21: Natural Gas | J21: 0.8027999909 | K21: 0.8241988847 | L21: 1.002402811 | M21: 0.7707709074 | N21: 0.8448448515
A22: 19Natural Gas | B22: 2042 | C22: 19 | D22: Natural Gas | J22: 0.8047117792 | K22: 0.8265317001 | L22: 1.007195621 | M22: 0.7736558516 | N22: 0.8478898604
A23: 20Natural Gas | B23: 2043 | C23: 20 | D23: Natural Gas | J23: 0.8037916583 | K23: 0.8248696424 | L23: 1.009028776 | M23: 0.7733799482 | N23: 0.8476462866
A24: 21Natural Gas | B24: 2044 | C24: 21 | D24: Natural Gas | J24: 0.7987205386 | K24: 0.8216724869 | L24: 1.010346242 | M24: 0.7704535909 | N24: 0.8451592328
A25: 22Natural Gas | B25: 2045 | C25: 22 | D25: Natural Gas | J25: 0.8029048195 | K25: 0.8206522971 | L25: 1.013314051 | M25: 0.7740631387 | N25: 0.8475686387
A26: 23Natural Gas | B26: 2046 | C26: 23 | D26: Natural Gas | J26: 0.8026463225 | K26: 0.8196574434 | L26: 1.016317444 | M26: 0.8413191943 | N26: 0.8650676962
A27: 24Natural Gas | B27: 2047 | C27: 24 | D27: Natural Gas | J27: 0.797355466 | K27: 0.817706328 | L27: 1.018210617 | M27: 0.8660605619 | N27: 0.8697913943
A28: 25Natural Gas | B28: 2048 | C28: 25 | D28: Natural Gas | J28: 0.7911752708 | K28: 0.8149748426 | L28: 1.019887519 | M28: 0.8651148899 | N28: 0.8677773598
A29: 26Natural Gas | B29: 2049 | C29: 26 | D29: Natural Gas | J29: 0.7900433441 | K29: 0.8131013753 | L29: 1.021498688 | M29: 0.8648219644 | N29: 0.8674447494
A30: 27Natural Gas | B30: 2050 | C30: 27 | D30: Natural Gas | J30: 0.7948185623 | K30: 0.81245939 | L30: 1.024048707 | M30: 0.865422304 | N30: 0.8693587584
A31: 28Natural Gas | B31: 2051 | C31: 28 | D31: Natural Gas | J31: 0.7951188753 | K31: 0.8111461097 | L31: 1.026364183 | M31: 0.880610342 | N31: 0.8732541416
A32: 29Natural Gas | B32: 2052 | C32: 29 | D32: Natural Gas | J32: 0.7934537591 | K32: 0.8095136379 | L32: 1.028496128 | M32: 0.9010295449 | N32: 0.8776519181
A33: 30Natural Gas | B33: 2053 | C33: 30 | D33: Natural Gas | J33: 0.7917921299 | K33: 0.8078844516 | L33: 1.030632501 | M33: 0.9219222191 | N33: 0.8820718421
A34: 0Oil | B34: =B3 -> 2023 | C34: 0 | D34: Oil | J34: 1 | K34: 1 | L34: 1 | M34: 1 | N34: 1
A35: 1Oil | B35: =B4 -> 2024 | C35: 1 | D35: Oil | J35: 0.956419326 | K35: 0.9353292595 | L35: 0.9580644219 | M35: 0.959682826 | N35: 0.9550666171
A36: 2Oil | B36: 2025 | C36: 2 | D36: Oil | J36: 0.9115626573 | K36: 0.868466715 | L36: 0.9138847258 | M36: 0.9133089517 | N36: 0.909010725
A37: 3Oil | B37: 2026 | C37: 3 | D37: Oil | J37: 0.8898956561 | K37: 0.8318400556 | L37: 0.8916872548 | M37: 0.8896472382 | N37: 0.8865216533
A38: 4Oil | B38: 2027 | C38: 4 | D38: Oil | J38: 0.8770602284 | K38: 0.8076350684 | L38: 0.8783872299 | M38: 0.8752658539 | N38: 0.8729966331
A39: 5Oil | B39: 2028 | C39: 5 | D39: Oil | J39: 0.8683309093 | K39: 0.7863970891 | L39: 0.8673726231 | M39: 0.8623267979 | N39: 0.8633034166
A40: 6Oil | B40: 2029 | C40: 6 | D40: Oil | J40: 0.8686065544 | K40: 0.7843446197 | L40: 0.8665001854 | M40: 0.8609786136 | N40: 0.8631615386
A41: 7Oil | B41: 2030 | C41: 7 | D41: Oil | J41: 0.8696785762 | K41: 0.7847591857 | L41: 0.8672963703 | M41: 0.8620555986 | N41: 0.8640003986
A42: 8Oil | B42: 2031 | C42: 8 | D42: Oil | J42: 0.873879232 | K42: 0.7899945626 | L42: 0.8714103159 | M42: 0.8654772643 | N42: 0.8680161009
A43: 9Oil | B43: 2032 | C43: 9 | D43: Oil | J43: 0.8773461307 | K43: 0.7940101186 | L43: 0.8744488634 | M43: 0.8693300232 | N43: 0.8712906316
A44: 10Oil | B44: 2033 | C44: 10 | D44: Oil | J44: 0.8809582829 | K44: 0.7969534575 | L44: 0.8767685108 | M44: 0.8713583474 | N44: 0.8745454499
A45: 11Oil | B45: 2034 | C45: 11 | D45: Oil | J45: 0.8829135611 | K45: 0.8006442298 | L45: 0.8794487911 | M45: 0.8739676312 | N45: 0.8764432391
A46: 12Oil | B46: 2035 | C46: 12 | D46: Oil | J46: 0.8875803378 | K46: 0.80406647 | L46: 0.8821982358 | M46: 0.8769384108 | N46: 0.880672958
A47: 13Oil | B47: 2036 | C47: 13 | D47: Oil | J47: 0.8893212389 | K47: 0.8074263639 | L47: 0.8846322605 | M47: 0.8794293298 | N47: 0.8823421287
A48: 14Oil | B48: 2037 | C48: 14 | D48: Oil | J48: 0.8923821624 | K48: 0.8112867118 | L48: 0.8875180559 | M48: 0.8818304268 | N48: 0.8851945468
A49: 15Oil | B49: 2038 | C49: 15 | D49: Oil | J49: 0.8955133107 | K49: 0.8149032475 | L49: 0.8902574456 | M49: 0.8845873963 | N49: 0.8880993943
A50: 16Oil | B50: 2039 | C50: 16 | D50: Oil | J50: 0.8972795975 | K50: 0.8173959682 | L50: 0.8921252094 | M50: 0.8866746989 | N50: 0.8897036877
A51: 17Oil | B51: 2040 | C51: 17 | D51: Oil | J51: 0.8987635625 | K51: 0.8199419103 | L51: 0.8939948562 | M51: 0.8889455339 | N51: 0.8910735606
A52: 18Oil | B52: 2041 | C52: 18 | D52: Oil | J52: 0.9027340828 | K52: 0.825729699 | L52: 0.8982811331 | M52: 0.8932955339 | N52: 0.8949358342
A53: 19Oil | B53: 2042 | C53: 19 | D53: Oil | J53: 0.9038730421 | K53: 0.8280134709 | L53: 0.8999350215 | M53: 0.8948652169 | N53: 0.8959555596
A54: 20Oil | B54: 2043 | C54: 20 | D54: Oil | J54: 0.9065098302 | K54: 0.8319285869 | L54: 0.9028303785 | M54: 0.8977533564 | N54: 0.8984489364
A55: 21Oil | B55: 2044 | C55: 21 | D55: Oil | J55: 0.9054319219 | K55: 0.8307660892 | L55: 0.9019635825 | M55: 0.8971009776 | N55: 0.8971830928
A56: 22Oil | B56: 2045 | C56: 22 | D56: Oil | J56: 0.9056812283 | K56: 0.8335018628 | L56: 0.9038405913 | M56: 0.8988804625 | N56: 0.8974616965
A57: 23Oil | B57: 2046 | C57: 23 | D57: Oil | J57: 0.9106420673 | K57: 0.8415821259 | L57: 0.9097645341 | M57: 0.9076485462 | N57: 0.9025020446
A58: 24Oil | B58: 2047 | C58: 24 | D58: Oil | J58: 0.9130151575 | K58: 0.8443788147 | L58: 0.9117980264 | M58: 0.9108789428 | N58: 0.904672816
A59: 25Oil | B59: 2048 | C59: 25 | D59: Oil | J59: 0.9141554346 | K59: 0.8459296626 | L59: 0.9128080796 | M59: 0.9118963061 | N59: 0.9055887002
A60: 26Oil | B60: 2049 | C60: 26 | D60: Oil | J60: 0.9160663477 | K60: 0.8487274385 | L60: 0.9148958229 | M60: 0.9137187986 | N60: 0.9073030484
A61: 27Oil | B61: 2050 | C61: 27 | D61: Oil | J61: 0.9167828488 | K61: 0.8498380743 | L61: 0.9157299048 | M61: 0.9143002515 | N61: 0.9077974497
A62: 28Oil | B62: 2051 | C62: 28 | D62: Oil | J62: 0.9184832085 | K62: 0.8522668147 | L62: 0.9174946975 | M62: 0.9165501031 | N62: 0.9093111768
A63: 29Oil | B63: 2052 | C63: 29 | D63: Oil | J63: 0.9206769366 | K63: 0.8553677631 | L63: 0.9197469889 | M63: 0.9195289522 | N63: 0.9113324252
A64: 30Oil | B64: 2053 | C64: 30 | D64: Oil | J64: 0.9228759042 | K64: 0.8584799942 | L64: 0.9220048094 | M64: 0.9225174828 | N64: 0.9133581664
A65: 0Electricity | B65: 2023 | C65: 0 | D65: Electricity | J65: 1 | K65: 1 | L65: 1 | M65: 1 | N65: 1
A66: 1Electricity | B66: 2024 | C66: 1 | D66: Electricity | J66: 1.007379075 | K66: 0.9863356465 | L66: 0.980641803 | M66: 0.934859723 | N66: 0.9768348036
A67: =C67&D67 -> 2Electricity | B67: 2025 | C67: 2 | D67: Electricity | J67: 1.003665943 | K67: 0.968397988 | L67: 0.9609477811 | M67: 0.8672203062 | N67: 0.9497436967
A68: 3Electricity | B68: 2026 | C68: 3 | D68: Electricity | J68: 0.993436199 | K68: 0.9532351267 | L68: 0.9384356526 | M68: 0.8448304852 | N68: 0.9298589125
A69: 4Electricity | B69: 2027 | C69: 4 | D69: Electricity | J69: 0.9917103689 | K69: 0.935288204 | L69: 0.9184809838 | M69: 0.8399119326 | N69: 0.9159877604
A70: 5Electricity | B70: 2028 | C70: 5 | D70: Electricity | J70: 0.9942863408 | K70: 0.9275415718 | L70: 0.9023043552 | M70: 0.8378340953 | N70: 0.9062715312
A71: 6Electricity | B71: 2029 | C71: 6 | D71: Electricity | J71: 0.999792239 | K71: 0.9238341902 | L71: 0.8945394358 | M71: 0.8383374359 | N71: 0.9023417346
A72: 7Electricity | B72: 2030 | C72: 7 | D72: Electricity | J72: 1.003889598 | K72: 0.9214378506 | L72: 0.8955008829 | M72: 0.8436218384 | N72: 0.9035381562
A73: 8Electricity | B73: 2031 | C73: 8 | D73: Electricity | J73: 1.011011065 | K73: 0.9212092909 | L73: 0.8994444248 | M73: 0.8523773014 | N73: 0.9076627217
A74: 9Electricity | B74: 2032 | C74: 9 | D74: Electricity | J74: 1.02446904 | K74: 0.9223433623 | L74: 0.9004475834 | M74: 0.8630705929 | N74: 0.9120737586
A75: 10Electricity | B75: 2033 | C75: 10 | D75: Electricity | J75: 1.037317066 | K75: 0.9244593661 | L75: 0.9158434543 | M75: 0.8743015768 | N75: 0.9234073649
A76: 11Electricity | B76: 2034 | C76: 11 | D76: Electricity | J76: 1.054497733 | K76: 0.9276346789 | L76: 0.9295179817 | M76: 0.88463585 | N76: 0.9347389514
A77: 12Electricity | B77: 2035 | C77: 12 | D77: Electricity | J77: 1.059065411 | K77: 0.9239968708 | L77: 0.9324161465 | M77: 0.8939065993 | N77: 0.9381367135
A78: 13Electricity | B78: 2036 | C78: 13 | D78: Electricity | J78: 1.068470134 | K78: 0.922338866 | L78: 0.9371430062 | M78: 0.9014841386 | N78: 0.9427189569
A79: 14Electricity | B79: 2037 | C79: 14 | D79: Electricity | J79: 1.07622013 | K79: 0.9253303012 | L79: 0.9448566196 | M79: 0.9108216565 | N79: 0.9495482682
A80: 15Electricity | B80: 2038 | C80: 15 | D80: Electricity | J80: 1.087936583 | K80: 0.9300665374 | L80: 0.9548101169 | M80: 0.9220333192 | N80: 0.9588561127
A81: 16Electricity | B81: 2039 | C81: 16 | D81: Electricity | J81: 1.101024314 | K81: 0.9391840841 | L81: 0.9601843457 | M81: 0.9318276423 | N81: 0.9666723286
A82: 17Electricity | B82: 2040 | C82: 17 | D82: Electricity | J82: 1.109665194 | K82: 0.9508539813 | L82: 0.9649334587 | M82: 0.9398949639 | N82: 0.9737447415
A83: 18Electricity | B83: 2041 | C83: 18 | D83: Electricity | J83: 1.118226349 | K83: 0.9574449072 | L83: 0.9682523978 | M83: 0.9490738073 | N83: 0.9797447074
A84: 19Electricity | B84: 2042 | C84: 19 | D84: Electricity | J84: 1.124702059 | K84: 0.957886519 | L84: 0.9703993242 | M84: 0.9569904547 | N84: 0.9835369946
A85: 20Electricity | B85: 2043 | C85: 20 | D85: Electricity | J85: 1.129660336 | K85: 0.955726437 | L85: 0.9716619831 | M85: 0.9645589342 | N85: 0.9859439188
A86: 21Electricity | B86: 2044 | C86: 21 | D86: Electricity | J86: 1.128019243 | K86: 0.9549182847 | L86: 0.9732776876 | M86: 0.9734056904 | N86: 0.9878132296
A87: 22Electricity | B87: 2045 | C87: 22 | D87: Electricity | J87: 1.127417093 | K87: 0.9556273509 | L87: 0.9742017243 | M87: 0.982599609 | N87: 0.9898809065
A88: 23Electricity | B88: 2046 | C88: 23 | D88: Electricity | J88: 1.127142726 | K88: 0.9517078133 | L88: 0.9708052449 | M88: 0.9908364038 | N88: 0.9891947041
A89: 24Electricity | B89: 2047 | C89: 24 | D89: Electricity | J89: 1.124998179 | K89: 0.9446641354 | L89: 0.9670213472 | M89: 0.9954742477 | N89: 0.9866710686
A90: 25Electricity | B90: 2048 | C90: 25 | D90: Electricity | J90: 1.124375255 | K90: 0.9419185772 | L90: 0.9633148227 | M90: 1.000108828 | N90: 0.9848693051
A91: 26Electricity | B91: 2049 | C91: 26 | D91: Electricity | J91: 1.113841934 | K91: 0.9358532811 | L91: 0.959897767 | M91: 1.003056852 | N91: 0.9811417904
A92: 27Electricity | B92: 2050 | C92: 27 | D92: Electricity | J92: 1.104892795 | K92: 0.9272050689 | L92: 0.9511827882 | M92: 1.005108414 | N92: 0.9745240092
A93: 28Electricity | B93: 2051 | C93: 28 | D93: Electricity | J93: 1.099468238 | K93: 0.921625278 | L93: 0.9447598551 | M93: 1.008748748 | N93: 0.9700681929
A94: 29Electricity | B94: 2052 | C94: 29 | D94: Electricity | J94: 1.094670264 | K94: 0.9160790655 | L94: 0.939708142 | M94: 1.012956792 | N94: 0.9665733247
A95: 30Electricity | B95: 2053 | C95: 30 | D95: Electricity | J95: 1.089893228 | K95: 0.9105662293 | L95: 0.9346834409 | M95: 1.01718239 | N95: 0.9630910474
A96: 0Propane | B96: 2023 | C96: 0 | D96: Propane | J96: 1 | K96: 1 | L96: 1 | M96: 1 | N96: 1
A97: 1Propane | B97: 2024 | C97: 1 | D97: Propane | J97: 1.024138422 | K97: 1.024138422 | L97: 1.024115647 | M97: 1.023024409 | N97: 1.022591426
A98: 2Propane | B98: 2025 | C98: 2 | D98: Propane | J98: 0.9999207982 | K98: 0.9999207982 | L98: 0.9998392758 | M98: 0.9984701686 | N98: 0.9977519223
A99: 3Propane | B99: =B68 -> 2026 | C99: 3 | D99: Propane | J99: 0.9642230429 | K99: 0.9642230429 | L99: 0.9642023382 | M99: 0.9630483558 | N99: 0.9622317728
A100: 4Propane | B100: 2027 | C100: 4 | D100: Propane | J100: 0.9335505079 | K100: 0.9335505079 | L100: 0.9335961961 | M100: 0.9326200316 | N100: 0.9317748812
A101: 5Propane | B101: 2028 | C101: 5 | D101: Propane | J101: 0.9139214509 | K101: 0.9139214509 | L101: 0.9140305881 | M101: 0.9131031704 | N101: 0.9123192801
A102: 6Propane | B102: 2029 | C102: 6 | D102: Propane | J102: 0.9050800442 | K102: 0.9050800442 | L102: 0.9052547026 | M102: 0.9042516755 | N102: 0.9035921103
A103: 7Propane | B103: 2030 | C103: 7 | D103: Propane | J103: 0.9056652259 | K103: 0.9056652259 | L103: 0.905902485 | M103: 0.9047246716 | N103: 0.9042345334
A104: 8Propane | B104: 2031 | C104: 8 | D104: Propane | J104: 0.9134145667 | K104: 0.9134145667 | L104: 0.9137234507 | M104: 0.9122609254 | N104: 0.9119839214
A105: 9Propane | B105: 2032 | C105: 9 | D105: Propane | J105: 0.9270806987 | K105: 0.9270806987 | L105: 0.9274652997 | M105: 0.925620419 | N105: 0.9255994103
A106: 10Propane | B106: 2033 | C106: 10 | D106: Propane | J106: 0.9452512232 | K106: 0.9452512232 | L106: 0.945720026 | M106: 0.9434256121 | N106: 0.9437106204
A107: 11Propane | B107: 2034 | C107: 11 | D107: Propane | J107: 0.9644658223 | K107: 0.9644658223 | L107: 0.9650212018 | M107: 0.9622612611 | N107: 0.962861704
A108: 12Propane | B108: 2035 | C108: 12 | D108: Propane | J108: 0.9808321058 | K108: 0.9808321058 | L108: 0.9814761602 | M108: 0.9782850635 | N108: 0.979179207
A109: 13Propane | B109: 2036 | C109: 13 | D109: Propane | J109: 0.9933443014 | K109: 0.9933443014 | L109: 0.9940776787 | M109: 0.9905125804 | N109: 0.9916787273
A110: 14Propane | B110: 2037 | C110: 14 | D110: Propane | J110: 1.003940006 | K110: 1.003940006 | L110: 1.004765467 | M110: 1.000871244 | N110: 1.002299863
A111: 15Propane | B111: 2038 | C111: 15 | D111: Propane | J111: 1.016441269 | K111: 1.016441269 | L111: 1.017364595 | M111: 1.013117476 | N111: 1.014829051
A112: 16Propane | B112: 2039 | C112: 16 | D112: Propane | J112: 1.024596887 | K112: 1.024596887 | L112: 1.025621601 | M112: 1.021084378 | N112: 1.023040783
A113: 17Propane | B113: 2040 | C113: 17 | D113: Propane | J113: 1.034066865 | K113: 1.034066865 | L113: 1.035192717 | M113: 1.030353738 | N113: 1.032575671
A114: 18Propane | B114: 2041 | C114: 18 | D114: Propane | J114: 1.044394564 | K114: 1.044394564 | L114: 1.045623601 | M114: 1.040474277 | N114: 1.042978723
A115: 19Propane | B115: 2042 | C115: 19 | D115: Propane | J115: 1.05244457 | K115: 1.05244457 | L115: 1.05377516 | M115: 1.048351647 | N115: 1.05111976
A116: 20Propane | B116: 2043 | C116: 20 | D116: Propane | J116: 1.057060237 | K116: 1.057060237 | L116: 1.058488642 | M116: 1.052849134 | N116: 1.055855544
A117: 21Propane | B117: 2044 | C117: 21 | D117: Propane | J117: 1.058647273 | K117: 1.058647273 | L117: 1.060173277 | M117: 1.054370683 | N117: 1.057598544
A118: 22Propane | B118: 2045 | C118: 22 | D118: Propane | J118: 1.060297133 | K118: 1.060297133 | L118: 1.061919421 | M118: 1.057336185 | N118: 1.05966173
A119: 23Propane | B119: 2046 | C119: 23 | D119: Propane | J119: 1.061297362 | K119: 1.061297362 | L119: 1.063013363 | M119: 1.084908419 | N119: 1.065543566
A120: 24Propane | B120: 2047 | C120: 24 | D120: Propane | J120: 1.062340368 | K120: 1.062340368 | L120: 1.064152789 | M120: 1.094593514 | N120: 1.068294391
A121: 25Propane | B121: 2048 | C121: 25 | D121: Propane | J121: 1.064571771 | K121: 1.064571771 | L121: 1.066479496 | M121: 1.09663891 | N121: 1.070706166
A122: 26Propane | B122: 2049 | C122: 26 | D122: Propane | J122: 1.065789618 | K122: 1.065789618 | L122: 1.067788203 | M122: 1.097800732 | N122: 1.072142803
A123: 27Propane | B123: 2050 | C123: 27 | D123: Propane | J123: 1.065530994 | K123: 1.065530994 | L123: 1.06761738 | M123: 1.097543792 | N123: 1.072122023
A124: 28Propane | B124: 2051 | C124: 28 | D124: Propane | J124: 1.066074633 | K124: 1.066074633 | L124: 1.068252453 | M124: 1.103461429 | N124: 1.073811655
A125: 29Propane | B125: 2052 | C125: 29 | D125: Propane | J125: 1.066999525 | K125: 1.066999525 | L125: 1.069270352 | M125: 1.111599718 | N125: 1.076188183
A126: 30Propane | B126: 2053 | C126: 30 | D126: Propane | J126: 1.06792522 | K126: 1.06792522 | L126: 1.070289222 | M126: 1.119798029 | N126: 1.078569969
A127: 0Wood | B127: 2023 | C127: 0 | D127: Wood | J127: 1 | K127: 1 | L127: 1 | M127: 1 | N127: 1
A128: 1Wood | B128: 2024 | C128: 1 | D128: Wood | J128: 1 | K128: 1 | L128: 1 | M128: 1 | N128: 1
A129: 2Wood | B129: 2025 | C129: 2 | D129: Wood | J129: 1 | K129: 1 | L129: 1 | M129: 1 | N129: 1
A130: 3Wood | B130: 2026 | C130: 3 | D130: Wood | J130: 1 | K130: 1 | L130: 1 | M130: 1 | N130: 1
A131: =C131&D131 -> 4Wood | B131: 2027 | C131: 4 | D131: Wood | J131: 1 | K131: 1 | L131: 1 | M131: 1 | N131: 1
A132: 5Wood | B132: 2028 | C132: 5 | D132: Wood | J132: 1 | K132: 1 | L132: 1 | M132: 1 | N132: 1
A133: 6Wood | B133: 2029 | C133: 6 | D133: Wood | J133: 1 | K133: 1 | L133: 1 | M133: 1 | N133: 1
A134: 7Wood | B134: 2030 | C134: 7 | D134: Wood | J134: 1 | K134: 1 | L134: 1 | M134: 1 | N134: 1
A135: 8Wood | B135: 2031 | C135: 8 | D135: Wood | J135: 1 | K135: 1 | L135: 1 | M135: 1 | N135: 1
A136: 9Wood | B136: 2032 | C136: 9 | D136: Wood | J136: 1 | K136: 1 | L136: 1 | M136: 1 | N136: 1
A137: 10Wood | B137: 2033 | C137: 10 | D137: Wood | J137: 1 | K137: 1 | L137: 1 | M137: 1 | N137: 1
A138: 11Wood | B138: 2034 | C138: 11 | D138: Wood | J138: 1 | K138: 1 | L138: 1 | M138: 1 | N138: 1
A139: 12Wood | B139: 2035 | C139: 12 | D139: Wood | J139: 1 | K139: 1 | L139: 1 | M139: 1 | N139: 1
A140: 13Wood | B140: 2036 | C140: 13 | D140: Wood | J140: 1 | K140: 1 | L140: 1 | M140: 1 | N140: 1
A141: 14Wood | B141: 2037 | C141: 14 | D141: Wood | J141: 1 | K141: 1 | L141: 1 | M141: 1 | N141: 1
A142: 15Wood | B142: 2038 | C142: 15 | D142: Wood | J142: 1 | K142: 1 | L142: 1 | M142: 1 | N142: 1
A143: 16Wood | B143: 2039 | C143: 16 | D143: Wood | J143: 1 | K143: 1 | L143: 1 | M143: 1 | N143: 1
A144: 17Wood | B144: 2040 | C144: 17 | D144: Wood | J144: 1 | K144: 1 | L144: 1 | M144: 1 | N144: 1
A145: 18Wood | B145: 2041 | C145: 18 | D145: Wood | J145: 1 | K145: 1 | L145: 1 | M145: 1 | N145: 1
A146: 19Wood | B146: 2042 | C146: 19 | D146: Wood | J146: 1 | K146: 1 | L146: 1 | M146: 1 | N146: 1
A147: 20Wood | B147: 2043 | C147: 20 | D147: Wood | J147: 1 | K147: 1 | L147: 1 | M147: 1 | N147: 1
A148: 21Wood | B148: 2044 | C148: 21 | D148: Wood | J148: 1 | K148: 1 | L148: 1 | M148: 1 | N148: 1
A149: 22Wood | B149: 2045 | C149: 22 | D149: Wood | J149: 1 | K149: 1 | L149: 1 | M149: 1 | N149: 1
A150: 23Wood | B150: 2046 | C150: 23 | D150: Wood | J150: 1 | K150: 1 | L150: 1 | M150: 1 | N150: 1
A151: 24Wood | B151: 2047 | C151: 24 | D151: Wood | J151: 1 | K151: 1 | L151: 1 | M151: 1 | N151: 1
A152: 25Wood | B152: 2048 | C152: 25 | D152: Wood | J152: 1 | K152: 1 | L152: 1 | M152: 1 | N152: 1
A153: 26Wood | B153: 2049 | C153: 26 | D153: Wood | J153: 1 | K153: 1 | L153: 1 | M153: 1 | N153: 1
A154: 27Wood | B154: 2050 | C154: 27 | D154: Wood | J154: 1 | K154: 1 | L154: 1 | M154: 1 | N154: 1
A155: 28Wood | B155: 2051 | C155: 28 | D155: Wood | J155: 1 | K155: 1 | L155: 1 | M155: 1 | N155: 1
A156: 29Wood | B156: 2052 | C156: 29 | D156: Wood | J156: 1 | K156: 1 | L156: 1 | M156: 1 | N156: 1
A157: 30Wood | B157: 2053 | C157: 30 | D157: Wood | J157: 1 | K157: 1 | L157: 1 | M157: 1 | N157: 1
A158: 0Coal | B158: 2023 | C158: 0 | D158: Coal | J158: 1 | K158: 1 | L158: 1 | M158: 1 | N158: 1
A159: 1Coal | B159: 2024 | C159: 1 | D159: Coal | J159: 1.01568585 | K159: 1.003653613 | L159: 1.047585008 | M159: 0.9995803754 | N159: 1.015325149
A160: 2Coal | B160: 2025 | C160: 2 | D160: Coal | J160: 1.040152814 | K160: 1.027751122 | L160: 1.07848272 | M160: 1.01543246 | N160: 1.039367162
A161: 3Coal | B161: 2026 | C161: 3 | D161: Coal | J161: 1.03488632 | K161: 1.030739382 | L161: 1.080471258 | M161: 1.02309176 | N161: 1.043036229
A162: 4Coal | B162: 2027 | C162: 4 | D162: Coal | J162: 1.047714091 | K162: 1.021503587 | L162: 1.079966545 | M162: 1.019969329 | N162: 1.037828562
A163: 5Coal | B163: =B132 -> 2028 | C163: 5 | D163: Coal | J163: 1.050835607 | K163: 1.011863452 | L163: 1.080467826 | M163: 1.012576658 | N163: 1.031325118
A164: 6Coal | B164: 2029 | C164: 6 | D164: Coal | J164: 1.050241136 | K164: 1.006723842 | L164: 1.082615107 | M164: 1.007275633 | N164: 1.026983575
A165: 7Coal | B165: 2030 | C165: 7 | D165: Coal | J165: 1.051744083 | K165: 1.004528533 | L165: 1.085793089 | M165: 1.003150888 | N165: 1.024406329
A166: 8Coal | B166: 2031 | C166: 8 | D166: Coal | J166: 1.054641945 | K166: 1.00309154 | L166: 1.090112199 | M166: 0.9988647226 | N166: 1.022532134
A167: 9Coal | B167: 2032 | C167: 9 | D167: Coal | J167: 1.057976686 | K167: 1.001576572 | L167: 1.093702874 | M167: 0.9939538207 | N167: 1.02033243
A168: 10Coal | B168: 2033 | C168: 10 | D168: Coal | J168: 1.062514753 | K168: 1.000728654 | L168: 1.100575544 | M168: 0.9899925963 | N168: 1.019612753
A169: 11Coal | B169: 2034 | C169: 11 | D169: Coal | J169: 1.068893272 | K169: 1.001653973 | L169: 1.106191697 | M169: 0.9875437749 | N169: 1.019845906
A170: 12Coal | B170: 2035 | C170: 12 | D170: Coal | J170: 1.07574244 | K170: 1.003399236 | L170: 1.110690581 | M170: 0.9855026357 | N170: 1.020411317
A171: 13Coal | B171: 2036 | C171: 13 | D171: Coal | J171: 1.082994805 | K171: 1.006813391 | L171: 1.115221942 | M171: 0.9838263551 | N171: 1.021617647
A172: 14Coal | B172: 2037 | C172: 14 | D172: Coal | J172: 1.091971977 | K172: 1.013971215 | L172: 1.120226989 | M172: 0.9829397656 | N172: 1.024879448
A173: 15Coal | B173: 2038 | C173: 15 | D173: Coal | J173: 1.100286935 | K173: 1.024417253 | L173: 1.123934465 | M173: 0.9828057392 | N173: 1.029442876
A174: 16Coal | B174: 2039 | C174: 16 | D174: Coal | J174: 1.10716936 | K174: 1.032531373 | L174: 1.128339303 | M174: 0.9824234529 | N174: 1.032859292
A175: 17Coal | B175: 2040 | C175: 17 | D175: Coal | J175: 1.111822223 | K175: 1.036864657 | L175: 1.131901186 | M175: 0.9806983037 | N175: 1.0342589
A176: 18Coal | B176: 2041 | C176: 18 | D176: Coal | J176: 1.036676743 | K176: 1.040088582 | L176: 1.135190834 | M176: 0.9789899013 | N176: 1.035094174
A177: 19Coal | B177: 2042 | C177: 19 | D177: Coal | J177: 1.010544294 | K177: 1.042628861 | L177: 1.137777413 | M177: 0.9773424782 | N177: 1.035282198
A178: 20Coal | B178: 2043 | C178: 20 | D178: Coal | J178: 1.010121676 | K178: 1.04563942 | L178: 1.141136892 | M178: 0.9772597966 | N178: 1.0359797
A179: 21Coal | B179: 2044 | C179: 21 | D179: Coal | J179: 1.010272211 | K179: 1.048644398 | L179: 1.142195268 | M179: 0.9779675359 | N179: 1.036090051
A180: 22Coal | B180: 2045 | C180: 22 | D180: Coal | J180: 1.010525594 | K180: 1.051473828 | L180: 1.14516149 | M180: 0.9798598803 | N180: 1.037017288
A181: 23Coal | B181: 2046 | C181: 23 | D181: Coal | J181: 1.010570306 | K181: 1.057423307 | L181: 1.148622805 | M181: 0.9801098274 | N181: 1.038272238
A182: 24Coal | B182: 2047 | C182: 24 | D182: Coal | J182: 1.010447498 | K182: 1.062153743 | L182: 1.150692828 | M182: 0.9805649164 | N182: 1.039732131
A183: 25Coal | B183: 2048 | C183: 25 | D183: Coal | J183: 1.010322452 | K183: 1.059587286 | L183: 1.149204035 | M183: 0.9814807512 | N183: 1.041505393
A184: 26Coal | B184: 2049 | C184: 26 | D184: Coal | J184: 1.010283291 | K184: 1.054094206 | L184: 1.14968843 | M184: 0.9819934622 | N184: 1.041082998
A185: 27Coal | B185: 2050 | C185: 27 | D185: Coal | J185: 1.010158947 | K185: 1.053228633 | L185: 1.152402461 | M185: 0.9815598648 | N185: 1.040892073
A186: 28Coal | B186: 2051 | C186: 28 | D186: Coal | J186: 1.010046211 | K186: 1.05361291 | L186: 1.154246092 | M186: 0.9815297332 | N186: 1.04146632
A187: 29Coal | B187: 2052 | C187: 29 | D187: Coal | J187: 1.009949685 | K187: 1.053873292 | L187: 1.155663859 | M187: 0.9817221624 | N187: 1.042186067
A188: 30Coal | B188: 2053 | C188: 30 | D188: Coal | J188: 1.009853169 | K188: 1.054133738 | L188: 1.157083367 | M188: 0.9819146293 | N188: 1.042906312
A189: 0Kerosene | B189: 2023 | C189: 0 | D189: Kerosene | J189: =J34 -> 1 | K189: 1 | L189: 1 | M189: 1 | N189: 1
A190: 1Kerosene | B190: 2024 | C190: 1 | D190: Kerosene | J190: 0.956419326 | K190: 0.9353292595 | L190: 0.9580644219 | M190: 0.959682826 | N190: 0.9550666171
A191: 2Kerosene | B191: 2025 | C191: 2 | D191: Kerosene | J191: 0.9115626573 | K191: 0.868466715 | L191: 0.9138847258 | M191: 0.9133089517 | N191: 0.909010725
A192: 3Kerosene | B192: 2026 | C192: 3 | D192: Kerosene | J192: =J37 -> 0.8898956561 | K192: 0.8318400556 | L192: 0.8916872548 | M192: 0.8896472382 | N192: 0.8865216533
A193: 4Kerosene | B193: 2027 | C193: 4 | D193: Kerosene | J193: 0.8770602284 | K193: 0.8076350684 | L193: 0.8783872299 | M193: 0.8752658539 | N193: 0.8729966331
A194: 5Kerosene | B194: 2028 | C194: 5 | D194: Kerosene | J194: 0.8683309093 | K194: 0.7863970891 | L194: 0.8673726231 | M194: 0.8623267979 | N194: 0.8633034166
A195: =C195&D195 -> 6Kerosene | B195: 2029 | C195: 6 | D195: Kerosene | J195: 0.8686065544 | K195: 0.7843446197 | L195: 0.8665001854 | M195: 0.8609786136 | N195: 0.8631615386
A196: 7Kerosene | B196: 2030 | C196: 7 | D196: Kerosene | J196: 0.8696785762 | K196: 0.7847591857 | L196: 0.8672963703 | M196: 0.8620555986 | N196: 0.8640003986
A197: 8Kerosene | B197: 2031 | C197: 8 | D197: Kerosene | J197: 0.873879232 | K197: 0.7899945626 | L197: 0.8714103159 | M197: 0.8654772643 | N197: 0.8680161009
A198: 9Kerosene | B198: 2032 | C198: 9 | D198: Kerosene | J198: 0.8773461307 | K198: 0.7940101186 | L198: 0.8744488634 | M198: 0.8693300232 | N198: 0.8712906316
A199: 10Kerosene | B199: 2033 | C199: 10 | D199: Kerosene | J199: 0.8809582829 | K199: 0.7969534575 | L199: 0.8767685108 | M199: 0.8713583474 | N199: 0.8745454499
A200: 11Kerosene | B200: 2034 | C200: 11 | D200: Kerosene | J200: 0.8829135611 | K200: 0.8006442298 | L200: 0.8794487911 | M200: 0.8739676312 | N200: 0.8764432391
... 50 more rows

Sheet User Inputs_FPI_Calculator
B1: FPI Calculator SCC-Inclusive Fuel Price Index Calculator: Enhancing WA with Non-Energy Benefits | P1: FPI for v8.9 (adjusted for 30 yr UPV) | Q1: FPI_SCC for v8.9 (adjusted for 30 year UPV) | U1: FPI for v10 | V1: FPI_SCC for v10 | Y1: =H9 -> Modified fuel price | AB1: =INDEX(P1:V1,MATCH(E3, P1:V1,0)) -> FPI_SCC for v8.9 (adjusted for 30 year UPV) | AF1: =AB1&" : " & AD2 -> FPI_SCC for v8.9 (adjusted for 30 year UPV) : Region 4 - West
N2: Year | O2: Fuel Type | P2: ='User Inputs_FPI_Calculator'!$I$5 -> Region 4 - West | Q2: ='User Inputs_FPI_Calculator'!$I$5 -> Region 4 - West | S2: Year | T2: Fuel Type | U2: ='User Inputs_FPI_Calculator'!$I$5 -> Region 4 - West | V2: ='User Inputs_FPI_Calculator'!$I$5 -> Region 4 - West | Y2: =H10 -> $/fuel unit | AB2: =S2 -> Year | AC2: =T2 -> Fuel Type | AD2: =V2 -> Region 4 - West | AF2: =AC2 -> Fuel Type | AG2: =AB2 -> Year | AH2: =AD2 -> Region 4 - West
B3: Step 1 | C3: Select Calculator Output | E3: FPI_SCC for v8.9 (adjusted for 30 year UPV) | N3: 0 | O3: Natural Gas | P3: =INDEX(Calculator!$D$6:$CM$36,MATCH($N3&P$2,Calculator!$A$6:$A$36,0),MATCH(P$1&$O3,Calculator!$D$2:$CM$2,0)) -> 1 | Q3: =INDEX(Calculator!$D$6:$CM$36,MATCH($N3&Q$2,Calculator!$A$6:$A$36,0),MATCH(Q$1&$O3,Calculator!$D$2:$CM$2,0)) -> 1 | S3: 0 | T3: Electricity | U3: =INDEX(Calculator!$D$6:$CM$36,MATCH($S3&U$2,Calculator!$A$6:$A$36,0),MATCH(U$1&$T3,Calculator!$D$2:$CM$2,0)) -> 1 | V3: =INDEX(Calculator!$D$6:$CM$36,MATCH($S3&V$2,Calculator!$A$6:$A$36,0),MATCH(V$1&$T3,Calculator!$D$2:$CM$2,0)) -> 1 | Y3: =C11 -> Natural Gas | Z3: =H11 -> 18.27798651 | AB3: =IF(OR($AB$1="FPI for v10", $AB$1="FPI_SCC for v10"), $S3, $N3) -> 0 | AC3: =IF(OR($AB$1="FPI for v10", $AB$1="FPI_SCC for v10"), $T3, $O3) -> Natural Gas | AD3: =INDEX(P3:V3,0, MATCH($AB$1,$P$1:$V$1,0)) -> 1 | AF3: =AC3 -> Natural Gas | AG3: =AB3 -> 0 | AH3: =AD3 -> 1
N4: 1 | O4: Natural Gas | P4: =INDEX(Calculator!$D$6:$CM$36,MATCH($N4&P$2,Calculator!$A$6:$A$36,0),MATCH(P$1&$O4,Calculator!$D$2:$CM$2,0)) -> 0.9803129063 | Q4: =INDEX(Calculator!$D$6:$CM$36,MATCH($N4&Q$2,Calculator!$A$6:$A$36,0),MATCH(Q$1&$O4,Calculator!$D$2:$CM$2,0)) -> 0.9864469229 | S4: 1 | T4: Electricity | U4: =INDEX(Calculator!$D$6:$CM$36,MATCH($S4&U$2,Calculator!$A$6:$A$36,0),MATCH(U$1&$T4,Calculator!$D$2:$CM$2,0)) -> 0.934859723 | V4: =INDEX(Calculator!$D$6:$CM$36,MATCH($S4&V$2,Calculator!$A$6:$A$36,0),MATCH(V$1&$T4,Calculator!$D$2:$CM$2,0)) -> 0.9401351292 | Y4: Oil | Z4: =H12 -> 4.12007 | AB4: 1 | AC4: Natural Gas | AD4: =INDEX(P4:V4,0, MATCH($AB$1,$P$1:$V$1,0)) -> 0.9864469229 | AF4: =AC4 -> Natural Gas | AG4: =AB4 -> 1 | AH4: =AD4 -> 0.9864469229
B5: Step 2 | C5: Select State | E5: Alaska | I5: =VLOOKUP(E5,States!A2:B53,2,FALSE) -> Region 4 - West | N5: 2 | O5: Natural Gas | P5: =INDEX(Calculator!$D$6:$CM$36,MATCH($N5&P$2,Calculator!$A$6:$A$36,0),MATCH(P$1&$O5,Calculator!$D$2:$CM$2,0)) -> 0.9112727449 | Q5: =INDEX(Calculator!$D$6:$CM$36,MATCH($N5&Q$2,Calculator!$A$6:$A$36,0),MATCH(Q$1&$O5,Calculator!$D$2:$CM$2,0)) -> 0.9313927401 | S5: 2 | T5: Electricity | U5: =INDEX(Calculator!$D$6:$CM$36,MATCH($S5&U$2,Calculator!$A$6:$A$36,0),MATCH(U$1&$T5,Calculator!$D$2:$CM$2,0)) -> 0.8672203062 | V5: =INDEX(Calculator!$D$6:$CM$36,MATCH($S5&V$2,Calculator!$A$6:$A$36,0),MATCH(V$1&$T5,Calculator!$D$2:$CM$2,0)) -> 0.8715894404 | Y5: Electricity | Z5: 0.1699 | AB5: 2 | AC5: Natural Gas | AD5: =INDEX(P5:V5,0, MATCH($AB$1,$P$1:$V$1,0)) -> 0.9313927401 | AF5: Natural Gas | AG5: 2 | AH5: 0.9313927401
C6: Skip step 3 & 4 for FPI without SCC and go to step 5 | N6: 3 | O6: Natural Gas | P6: =INDEX(Calculator!$D$6:$CM$36,MATCH($N6&P$2,Calculator!$A$6:$A$36,0),MATCH(P$1&$O6,Calculator!$D$2:$CM$2,0)) -> 0.834841404 | Q6: =INDEX(Calculator!$D$6:$CM$36,MATCH($N6&Q$2,Calculator!$A$6:$A$36,0),MATCH(Q$1&$O6,Calculator!$D$2:$CM$2,0)) -> 0.8701232978 | S6: 3 | T6: Electricity | U6: =INDEX(Calculator!$D$6:$CM$36,MATCH($S6&U$2,Calculator!$A$6:$A$36,0),MATCH(U$1&$T6,Calculator!$D$2:$CM$2,0)) -> 0.8448304852 | V6: =INDEX(Calculator!$D$6:$CM$36,MATCH($S6&V$2,Calculator!$A$6:$A$36,0),MATCH(V$1&$T6,Calculator!$D$2:$CM$2,0)) -> 0.8494677621 | Y6: Propane | Z6: 2.69475 | AB6: 3 | AC6: Natural Gas | AD6: =INDEX(P6:V6,0, MATCH($AB$1,$P$1:$V$1,0)) -> 0.8701232978 | AF6: Natural Gas | AG6: 3 | AH6: 0.8701232978
B7: Step 3 | C7: Enter heat content and fuel price only if FPI_SCC are sought. Else go directly to step 5 | N7: 4 | O7: Natural Gas | P7: =INDEX(Calculator!$D$6:$CM$36,MATCH($N7&P$2,Calculator!$A$6:$A$36,0),MATCH(P$1&$O7,Calculator!$D$2:$CM$2,0)) -> 0.7710907938 | Q7: =INDEX(Calculator!$D$6:$CM$36,MATCH($N7&Q$2,Calculator!$A$6:$A$36,0),MATCH(Q$1&$O7,Calculator!$D$2:$CM$2,0)) -> 0.8195171105 | S7: 4 | T7: Electricity | U7: =INDEX(Calculator!$D$6:$CM$36,MATCH($S7&U$2,Calculator!$A$6:$A$36,0),MATCH(U$1&$T7,Calculator!$D$2:$CM$2,0)) -> 0.8399119326 | V7: =INDEX(Calculator!$D$6:$CM$36,MATCH($S7&V$2,Calculator!$A$6:$A$36,0),MATCH(V$1&$T7,Calculator!$D$2:$CM$2,0)) -> 0.8451253084 | Y7: Wood | Z7: 380.42228 | AB7: 4 | AC7: Natural Gas | AD7: =INDEX(P7:V7,0, MATCH($AB$1,$P$1:$V$1,0)) -> 0.8195171105 | AF7: Natural Gas | AG7: 4 | AH7: 0.8195171105
N8: 5 | O8: Natural Gas | P8: =INDEX(Calculator!$D$6:$CM$36,MATCH($N8&P$2,Calculator!$A$6:$A$36,0),MATCH(P$1&$O8,Calculator!$D$2:$CM$2,0)) -> 0.7179328976 | Q8: =INDEX(Calculator!$D$6:$CM$36,MATCH($N8&Q$2,Calculator!$A$6:$A$36,0),MATCH(Q$1&$O8,Calculator!$D$2:$CM$2,0)) -> 0.7808202046 | S8: 5 | T8: Electricity | U8: =INDEX(Calculator!$D$6:$CM$36,MATCH($S8&U$2,Calculator!$A$6:$A$36,0),MATCH(U$1&$T8,Calculator!$D$2:$CM$2,0)) -> 0.8378340953 | V8: =INDEX(Calculator!$D$6:$CM$36,MATCH($S8&V$2,Calculator!$A$6:$A$36,0),MATCH(V$1&$T8,Calculator!$D$2:$CM$2,0)) -> 0.8456451695 | Y8: Coal | Z8: 56.32 | AB8: 5 | AC8: Natural Gas | AD8: =INDEX(P8:V8,0, MATCH($AB$1,$P$1:$V$1,0)) -> 0.7808202046 | AF8: Natural Gas | AG8: 5 | AH8: 0.7808202046
C9: Fuel | D9: Fuel Unit | E9: Fuel Price | F9: Heat Content | H9: Modified fuel price | N9: 6 | O9: Natural Gas | P9: =INDEX(Calculator!$D$6:$CM$36,MATCH($N9&P$2,Calculator!$A$6:$A$36,0),MATCH(P$1&$O9,Calculator!$D$2:$CM$2,0)) -> 0.704641452 | Q9: =INDEX(Calculator!$D$6:$CM$36,MATCH($N9&Q$2,Calculator!$A$6:$A$36,0),MATCH(Q$1&$O9,Calculator!$D$2:$CM$2,0)) -> 0.7726452424 | S9: 6 | T9: Electricity | U9: =INDEX(Calculator!$D$6:$CM$36,MATCH($S9&U$2,Calculator!$A$6:$A$36,0),MATCH(U$1&$T9,Calculator!$D$2:$CM$2,0)) -> 0.8383374359 | V9: =INDEX(Calculator!$D$6:$CM$36,MATCH($S9&V$2,Calculator!$A$6:$A$36,0),MATCH(V$1&$T9,Calculator!$D$2:$CM$2,0)) -> 0.847266718 | Y9: Kerosene | Z9: 3.98007 | AB9: 6 | AC9: Natural Gas | AD9: =INDEX(P9:V9,0, MATCH($AB$1,$P$1:$V$1,0)) -> 0.7726452424 | AF9: Natural Gas | AG9: 6 | AH9: 0.7726452424
E10: $/fuel unit | F10: MMBtu/fuel unit | H10: $/fuel unit | N10: 7 | O10: Natural Gas | P10: =INDEX(Calculator!$D$6:$CM$36,MATCH($N10&P$2,Calculator!$A$6:$A$36,0),MATCH(P$1&$O10,Calculator!$D$2:$CM$2,0)) -> 0.7059171396 | Q10: =INDEX(Calculator!$D$6:$CM$36,MATCH($N10&Q$2,Calculator!$A$6:$A$36,0),MATCH(Q$1&$O10,Calculator!$D$2:$CM$2,0)) -> 0.7767198153 | S10: 7 | T10: Electricity | U10: =INDEX(Calculator!$D$6:$CM$36,MATCH($S10&U$2,Calculator!$A$6:$A$36,0),MATCH(U$1&$T10,Calculator!$D$2:$CM$2,0)) -> 0.8436218384 | V10: =INDEX(Calculator!$D$6:$CM$36,MATCH($S10&V$2,Calculator!$A$6:$A$36,0),MATCH(V$1&$T10,Calculator!$D$2:$CM$2,0)) -> 0.8507550074 | Y10: Other | Z10: 0 | AB10: 7 | AC10: Natural Gas | AD10: =INDEX(P10:V10,0, MATCH($AB$1,$P$1:$V$1,0)) -> 0.7767198153 | AF10: Natural Gas | AG10: 7 | AH10: 0.7767198153
C11: Natural Gas | D11: Mcf | E11: 15.37 | F11: 1.037 | H11: =INDEX(Calculator!$AZ$5:$BG$5,1,MATCH('User Inputs_FPI_Calculator'!$C11,Calculator!$AZ$4:$BG$4,0)) -> 18.27798651 | N11: 8 | O11: Natural Gas | P11: =INDEX(Calculator!$D$6:$CM$36,MATCH($N11&P$2,Calculator!$A$6:$A$36,0),MATCH(P$1&$O11,Calculator!$D$2:$CM$2,0)) -> 0.7111930308 | Q11: =INDEX(Calculator!$D$6:$CM$36,MATCH($N11&Q$2,Calculator!$A$6:$A$36,0),MATCH(Q$1&$O11,Calculator!$D$2:$CM$2,0)) -> 0.7841581684 | S11: 8 | T11: Electricity | U11: =INDEX(Calculator!$D$6:$CM$36,MATCH($S11&U$2,Calculator!$A$6:$A$36,0),MATCH(U$1&$T11,Calculator!$D$2:$CM$2,0)) -> 0.8523773014 | V11: =INDEX(Calculator!$D$6:$CM$36,MATCH($S11&V$2,Calculator!$A$6:$A$36,0),MATCH(V$1&$T11,Calculator!$D$2:$CM$2,0)) -> 0.8578963815 | AB11: 8 | AC11: Natural Gas | AD11: =INDEX(P11:V11,0, MATCH($AB$1,$P$1:$V$1,0)) -> 0.7841581684 | AF11: Natural Gas | AG11: 8 | AH11: =AD11 -> 0.7841581684
C12: Oil | D12: Gallon | E12: 3.58 | F12: 0.1385 | H12: =INDEX(Calculator!$AZ$5:$BG$5,1,MATCH('User Inputs_FPI_Calculator'!$C12,Calculator!$AZ$4:$BG$4,0)) -> 4.12007 | N12: 9 | O12: Natural Gas | P12: =INDEX(Calculator!$D$6:$CM$36,MATCH($N12&P$2,Calculator!$A$6:$A$36,0),MATCH(P$1&$O12,Calculator!$D$2:$CM$2,0)) -> 0.7169683715 | Q12: =INDEX(Calculator!$D$6:$CM$36,MATCH($N12&Q$2,Calculator!$A$6:$A$36,0),MATCH(Q$1&$O12,Calculator!$D$2:$CM$2,0)) -> 0.7920165097 | S12: 9 | T12: Electricity | U12: =INDEX(Calculator!$D$6:$CM$36,MATCH($S12&U$2,Calculator!$A$6:$A$36,0),MATCH(U$1&$T12,Calculator!$D$2:$CM$2,0)) -> 0.8630705929 | V12: =INDEX(Calculator!$D$6:$CM$36,MATCH($S12&V$2,Calculator!$A$6:$A$36,0),MATCH(V$1&$T12,Calculator!$D$2:$CM$2,0)) -> 0.8673371921 | AB12: 9 | AC12: Natural Gas | AD12: =INDEX(P12:V12,0, MATCH($AB$1,$P$1:$V$1,0)) -> 0.7920165097 | AF12: Natural Gas | AG12: 9 | AH12: 0.7920165097
C13: Electricity | D13: kWh | E13: 0.15 | F13: 0.003413 | H13: =INDEX(Calculator!$AZ$5:$BG$5,1,MATCH('User Inputs_FPI_Calculator'!$C13,Calculator!$AZ$4:$BG$4,0)) -> 0.1699 | N13: 10 | O13: Natural Gas | P13: =INDEX(Calculator!$D$6:$CM$36,MATCH($N13&P$2,Calculator!$A$6:$A$36,0),MATCH(P$1&$O13,Calculator!$D$2:$CM$2,0)) -> 0.7257628184 | Q13: =INDEX(Calculator!$D$6:$CM$36,MATCH($N13&Q$2,Calculator!$A$6:$A$36,0),MATCH(Q$1&$O13,Calculator!$D$2:$CM$2,0)) -> 0.8024136242 | S13: 10 | T13: Electricity | U13: =INDEX(Calculator!$D$6:$CM$36,MATCH($S13&U$2,Calculator!$A$6:$A$36,0),MATCH(U$1&$T13,Calculator!$D$2:$CM$2,0)) -> 0.8743015768 | V13: =INDEX(Calculator!$D$6:$CM$36,MATCH($S13&V$2,Calculator!$A$6:$A$36,0),MATCH(V$1&$T13,Calculator!$D$2:$CM$2,0)) -> 0.8772527164 | AB13: 10 | AC13: Natural Gas | AD13: =INDEX(P13:V13,0, MATCH($AB$1,$P$1:$V$1,0)) -> 0.8024136242 | AF13: Natural Gas | AG13: 10 | AH13: 0.8024136242
C14: Propane | D14: Gallon | E14: 2.39 | F14: 0.0915 | H14: =INDEX(Calculator!$AZ$5:$BG$5,1,MATCH('User Inputs_FPI_Calculator'!$C14,Calculator!$AZ$4:$BG$4,0)) -> 2.69475 | N14: 11 | O14: Natural Gas | P14: =INDEX(Calculator!$D$6:$CM$36,MATCH($N14&P$2,Calculator!$A$6:$A$36,0),MATCH(P$1&$O14,Calculator!$D$2:$CM$2,0)) -> 0.7354838262 | Q14: =INDEX(Calculator!$D$6:$CM$36,MATCH($N14&Q$2,Calculator!$A$6:$A$36,0),MATCH(Q$1&$O14,Calculator!$D$2:$CM$2,0)) -> 0.8135898859 | S14: 11 | T14: Electricity | U14: =INDEX(Calculator!$D$6:$CM$36,MATCH($S14&U$2,Calculator!$A$6:$A$36,0),MATCH(U$1&$T14,Calculator!$D$2:$CM$2,0)) -> 0.88463585 | V14: =INDEX(Calculator!$D$6:$CM$36,MATCH($S14&V$2,Calculator!$A$6:$A$36,0),MATCH(V$1&$T14,Calculator!$D$2:$CM$2,0)) -> 0.8881423043 | AB14: 11 | AC14: Natural Gas | AD14: =INDEX(P14:V14,0, MATCH($AB$1,$P$1:$V$1,0)) -> 0.8135898859 | AF14: Natural Gas | AG14: 11 | AH14: 0.8135898859
C15: Wood | D15: Cord | E15: 280 | F15: 20.2 | H15: =INDEX(Calculator!$AZ$5:$BG$5,1,MATCH('User Inputs_FPI_Calculator'!$C15,Calculator!$AZ$4:$BG$4,0)) -> 380.42228 | N15: 12 | O15: Natural Gas | P15: =INDEX(Calculator!$D$6:$CM$36,MATCH($N15&P$2,Calculator!$A$6:$A$36,0),MATCH(P$1&$O15,Calculator!$D$2:$CM$2,0)) -> 0.7443205349 | Q15: =INDEX(Calculator!$D$6:$CM$36,MATCH($N15&Q$2,Calculator!$A$6:$A$36,0),MATCH(Q$1&$O15,Calculator!$D$2:$CM$2,0)) -> 0.8240225384 | S15: 12 | T15: Electricity | U15: =INDEX(Calculator!$D$6:$CM$36,MATCH($S15&U$2,Calculator!$A$6:$A$36,0),MATCH(U$1&$T15,Calculator!$D$2:$CM$2,0)) -> 0.8939065993 | V15: =INDEX(Calculator!$D$6:$CM$36,MATCH($S15&V$2,Calculator!$A$6:$A$36,0),MATCH(V$1&$T15,Calculator!$D$2:$CM$2,0)) -> 0.8939728657 | AB15: 12 | AC15: Natural Gas | AD15: =INDEX(P15:V15,0, MATCH($AB$1,$P$1:$V$1,0)) -> 0.8240225384 | AF15: Natural Gas | AG15: 12 | AH15: 0.8240225384
C16: Coal | D16: Short ton | E16: 56.32 | F16: 21 | H16: =INDEX(Calculator!$AZ$5:$BG$5,1,MATCH('User Inputs_FPI_Calculator'!$C16,Calculator!$AZ$4:$BG$4,0)) -> 56.32 | N16: 13 | O16: Natural Gas | P16: =INDEX(Calculator!$D$6:$CM$36,MATCH($N16&P$2,Calculator!$A$6:$A$36,0),MATCH(P$1&$O16,Calculator!$D$2:$CM$2,0)) -> 0.7485146444 | Q16: =INDEX(Calculator!$D$6:$CM$36,MATCH($N16&Q$2,Calculator!$A$6:$A$36,0),MATCH(Q$1&$O16,Calculator!$D$2:$CM$2,0)) -> 0.8305512189 | S16: 13 | T16: Electricity | U16: =INDEX(Calculator!$D$6:$CM$36,MATCH($S16&U$2,Calculator!$A$6:$A$36,0),MATCH(U$1&$T16,Calculator!$D$2:$CM$2,0)) -> 0.9014841386 | V16: =INDEX(Calculator!$D$6:$CM$36,MATCH($S16&V$2,Calculator!$A$6:$A$36,0),MATCH(V$1&$T16,Calculator!$D$2:$CM$2,0)) -> 0.8994857021 | AB16: 13 | AC16: Natural Gas | AD16: =INDEX(P16:V16,0, MATCH($AB$1,$P$1:$V$1,0)) -> 0.8305512189 | AF16: Natural Gas | AG16: 13 | AH16: 0.8305512189
C17: Kerosene | D17: Gallon | E17: 3.44 | F17: 0.1319 | H17: =INDEX(Calculator!$AZ$5:$BG$5,1,MATCH('User Inputs_FPI_Calculator'!$C17,Calculator!$AZ$4:$BG$4,0)) -> 3.98007 | N17: 14 | O17: Natural Gas | P17: =INDEX(Calculator!$D$6:$CM$36,MATCH($N17&P$2,Calculator!$A$6:$A$36,0),MATCH(P$1&$O17,Calculator!$D$2:$CM$2,0)) -> 0.7525858338 | Q17: =INDEX(Calculator!$D$6:$CM$36,MATCH($N17&Q$2,Calculator!$A$6:$A$36,0),MATCH(Q$1&$O17,Calculator!$D$2:$CM$2,0)) -> 0.8399783798 | S17: 14 | T17: Electricity | U17: =INDEX(Calculator!$D$6:$CM$36,MATCH($S17&U$2,Calculator!$A$6:$A$36,0),MATCH(U$1&$T17,Calculator!$D$2:$CM$2,0)) -> 0.9108216565 | V17: =INDEX(Calculator!$D$6:$CM$36,MATCH($S17&V$2,Calculator!$A$6:$A$36,0),MATCH(V$1&$T17,Calculator!$D$2:$CM$2,0)) -> 0.9077295378 | AB17: 14 | AC17: Natural Gas | AD17: =INDEX(P17:V17,0, MATCH($AB$1,$P$1:$V$1,0)) -> 0.8399783798 | AF17: Natural Gas | AG17: 14 | AH17: 0.8399783798
C18: Other | D18: MMBtu | F18: 1 | H18: =INDEX(Calculator!$AZ$5:$BG$5,1,MATCH('User Inputs_FPI_Calculator'!$C18,Calculator!$AZ$4:$BG$4,0)) -> 0 | N18: 15 | O18: Natural Gas | P18: =INDEX(Calculator!$D$6:$CM$36,MATCH($N18&P$2,Calculator!$A$6:$A$36,0),MATCH(P$1&$O18,Calculator!$D$2:$CM$2,0)) -> 0.7605068231 | Q18: =INDEX(Calculator!$D$6:$CM$36,MATCH($N18&Q$2,Calculator!$A$6:$A$36,0),MATCH(Q$1&$O18,Calculator!$D$2:$CM$2,0)) -> 0.8496410019 | S18: 15 | T18: Electricity | U18: =INDEX(Calculator!$D$6:$CM$36,MATCH($S18&U$2,Calculator!$A$6:$A$36,0),MATCH(U$1&$T18,Calculator!$D$2:$CM$2,0)) -> 0.9220333192 | V18: =INDEX(Calculator!$D$6:$CM$36,MATCH($S18&V$2,Calculator!$A$6:$A$36,0),MATCH(V$1&$T18,Calculator!$D$2:$CM$2,0)) -> 0.9182165855 | AB18: 15 | AC18: Natural Gas | AD18: =INDEX(P18:V18,0, MATCH($AB$1,$P$1:$V$1,0)) -> 0.8496410019 | AF18: Natural Gas | AG18: 15 | AH18: 0.8496410019
N19: 16 | O19: Natural Gas | P19: =INDEX(Calculator!$D$6:$CM$36,MATCH($N19&P$2,Calculator!$A$6:$A$36,0),MATCH(P$1&$O19,Calculator!$D$2:$CM$2,0)) -> 0.7611453093 | Q19: =INDEX(Calculator!$D$6:$CM$36,MATCH($N19&Q$2,Calculator!$A$6:$A$36,0),MATCH(Q$1&$O19,Calculator!$D$2:$CM$2,0)) -> 0.8531797507 | S19: 16 | T19: Electricity | U19: =INDEX(Calculator!$D$6:$CM$36,MATCH($S19&U$2,Calculator!$A$6:$A$36,0),MATCH(U$1&$T19,Calculator!$D$2:$CM$2,0)) -> 0.9318276423 | V19: =INDEX(Calculator!$D$6:$CM$36,MATCH($S19&V$2,Calculator!$A$6:$A$36,0),MATCH(V$1&$T19,Calculator!$D$2:$CM$2,0)) -> 0.9274523034 | AB19: 16 | AC19: Natural Gas | AD19: =INDEX(P19:V19,0, MATCH($AB$1,$P$1:$V$1,0)) -> 0.8531797507 | AF19: Natural Gas | AG19: 16 | AH19: 0.8531797507
B20: Step 4 | C20: For v8.9 : Copy modified fuel prices and paste in Fuel Cost library of WA | N20: 17 | O20: Natural Gas | P20: =INDEX(Calculator!$D$6:$CM$36,MATCH($N20&P$2,Calculator!$A$6:$A$36,0),MATCH(P$1&$O20,Calculator!$D$2:$CM$2,0)) -> 0.7650098362 | Q20: =INDEX(Calculator!$D$6:$CM$36,MATCH($N20&Q$2,Calculator!$A$6:$A$36,0),MATCH(Q$1&$O20,Calculator!$D$2:$CM$2,0)) -> 0.8594312844 | S20: 17 | T20: Electricity | U20: =INDEX(Calculator!$D$6:$CM$36,MATCH($S20&U$2,Calculator!$A$6:$A$36,0),MATCH(U$1&$T20,Calculator!$D$2:$CM$2,0)) -> 0.9398949639 | V20: =INDEX(Calculator!$D$6:$CM$36,MATCH($S20&V$2,Calculator!$A$6:$A$36,0),MATCH(V$1&$T20,Calculator!$D$2:$CM$2,0)) -> 0.935751881 | AB20: 17 | AC20: Natural Gas | AD20: =INDEX(P20:V20,0, MATCH($AB$1,$P$1:$V$1,0)) -> 0.8594312844 | AF20: Natural Gas | AG20: 17 | AH20: 0.8594312844
C21: For v10 : Type in the modified fuel prices in the Update Fuel Cost Library located in the tab "Admin Tools" | N21: 18 | O21: Natural Gas | P21: =INDEX(Calculator!$D$6:$CM$36,MATCH($N21&P$2,Calculator!$A$6:$A$36,0),MATCH(P$1&$O21,Calculator!$D$2:$CM$2,0)) -> 0.7707709074 | Q21: =INDEX(Calculator!$D$6:$CM$36,MATCH($N21&Q$2,Calculator!$A$6:$A$36,0),MATCH(Q$1&$O21,Calculator!$D$2:$CM$2,0)) -> 0.8672776265 | S21: 18 | T21: Electricity | U21: =INDEX(Calculator!$D$6:$CM$36,MATCH($S21&U$2,Calculator!$A$6:$A$36,0),MATCH(U$1&$T21,Calculator!$D$2:$CM$2,0)) -> 0.9490738073 | V21: =INDEX(Calculator!$D$6:$CM$36,MATCH($S21&V$2,Calculator!$A$6:$A$36,0),MATCH(V$1&$T21,Calculator!$D$2:$CM$2,0)) -> 0.9438556274 | AB21: 18 | AC21: Natural Gas | AD21: =INDEX(P21:V21,0, MATCH($AB$1,$P$1:$V$1,0)) -> 0.8672776265 | AF21: Natural Gas | AG21: 18 | AH21: 0.8672776265
N22: 19 | O22: Natural Gas | P22: =INDEX(Calculator!$D$6:$CM$36,MATCH($N22&P$2,Calculator!$A$6:$A$36,0),MATCH(P$1&$O22,Calculator!$D$2:$CM$2,0)) -> 0.7736558516 | Q22: =INDEX(Calculator!$D$6:$CM$36,MATCH($N22&Q$2,Calculator!$A$6:$A$36,0),MATCH(Q$1&$O22,Calculator!$D$2:$CM$2,0)) -> 0.8727054268 | S22: 19 | T22: Electricity | U22: =INDEX(Calculator!$D$6:$CM$36,MATCH($S22&U$2,Calculator!$A$6:$A$36,0),MATCH(U$1&$T22,Calculator!$D$2:$CM$2,0)) -> 0.9569904547 | V22: =INDEX(Calculator!$D$6:$CM$36,MATCH($S22&V$2,Calculator!$A$6:$A$36,0),MATCH(V$1&$T22,Calculator!$D$2:$CM$2,0)) -> 0.9520221789 | AB22: 19 | AC22: Natural Gas | AD22: =INDEX(P22:V22,0, MATCH($AB$1,$P$1:$V$1,0)) -> 0.8727054268 | AF22: Natural Gas | AG22: 19 | AH22: 0.8727054268
N23: 20 | O23: Natural Gas | P23: =INDEX(Calculator!$D$6:$CM$36,MATCH($N23&P$2,Calculator!$A$6:$A$36,0),MATCH(P$1&$O23,Calculator!$D$2:$CM$2,0)) -> 0.7733799482 | Q23: =INDEX(Calculator!$D$6:$CM$36,MATCH($N23&Q$2,Calculator!$A$6:$A$36,0),MATCH(Q$1&$O23,Calculator!$D$2:$CM$2,0)) -> 0.8754752634 | S23: 20 | T23: Electricity | U23: =INDEX(Calculator!$D$6:$CM$36,MATCH($S23&U$2,Calculator!$A$6:$A$36,0),MATCH(U$1&$T23,Calculator!$D$2:$CM$2,0)) -> 0.9645589342 | V23: =INDEX(Calculator!$D$6:$CM$36,MATCH($S23&V$2,Calculator!$A$6:$A$36,0),MATCH(V$1&$T23,Calculator!$D$2:$CM$2,0)) -> 0.9592927612 | AB23: 20 | AC23: Natural Gas | AD23: =INDEX(P23:V23,0, MATCH($AB$1,$P$1:$V$1,0)) -> 0.8754752634 | AF23: Natural Gas | AG23: 20 | AH23: 0.8754752634
B24: Step 5 | C24: For v8.9 : Copy modified FPIs | N24: 21 | O24: Natural Gas | P24: =INDEX(Calculator!$D$6:$CM$36,MATCH($N24&P$2,Calculator!$A$6:$A$36,0),MATCH(P$1&$O24,Calculator!$D$2:$CM$2,0)) -> 0.7704535909 | Q24: =INDEX(Calculator!$D$6:$CM$36,MATCH($N24&Q$2,Calculator!$A$6:$A$36,0),MATCH(Q$1&$O24,Calculator!$D$2:$CM$2,0)) -> 0.8790181716 | S24: 21 | T24: Electricity | U24: =INDEX(Calculator!$D$6:$CM$36,MATCH($S24&U$2,Calculator!$A$6:$A$36,0),MATCH(U$1&$T24,Calculator!$D$2:$CM$2,0)) -> 0.9734056904 | V24: =INDEX(Calculator!$D$6:$CM$36,MATCH($S24&V$2,Calculator!$A$6:$A$36,0),MATCH(V$1&$T24,Calculator!$D$2:$CM$2,0)) -> 0.9688690616 | AB24: 21 | AC24: Natural Gas | AD24: =INDEX(P24:V24,0, MATCH($AB$1,$P$1:$V$1,0)) -> 0.8790181716 | AF24: Natural Gas | AG24: 21 | AH24: 0.8790181716
C25: And paste in the Economic Parameters Library in v8.9 | N25: 22 | O25: Natural Gas | P25: =INDEX(Calculator!$D$6:$CM$36,MATCH($N25&P$2,Calculator!$A$6:$A$36,0),MATCH(P$1&$O25,Calculator!$D$2:$CM$2,0)) -> 0.7740631387 | Q25: =INDEX(Calculator!$D$6:$CM$36,MATCH($N25&Q$2,Calculator!$A$6:$A$36,0),MATCH(Q$1&$O25,Calculator!$D$2:$CM$2,0)) -> 0.8850552928 | S25: 22 | T25: Electricity | U25: =INDEX(Calculator!$D$6:$CM$36,MATCH($S25&U$2,Calculator!$A$6:$A$36,0),MATCH(U$1&$T25,Calculator!$D$2:$CM$2,0)) -> 0.982599609 | V25: =INDEX(Calculator!$D$6:$CM$36,MATCH($S25&V$2,Calculator!$A$6:$A$36,0),MATCH(V$1&$T25,Calculator!$D$2:$CM$2,0)) -> 0.9769861174 | AB25: 22 | AC25: Natural Gas | AD25: =INDEX(P25:V25,0, MATCH($AB$1,$P$1:$V$1,0)) -> 0.8850552928 | AF25: Natural Gas | AG25: 22 | AH25: 0.8850552928
N26: 23 | O26: Natural Gas | P26: =INDEX(Calculator!$D$6:$CM$36,MATCH($N26&P$2,Calculator!$A$6:$A$36,0),MATCH(P$1&$O26,Calculator!$D$2:$CM$2,0)) -> 0.8413191943 | Q26: =INDEX(Calculator!$D$6:$CM$36,MATCH($N26&Q$2,Calculator!$A$6:$A$36,0),MATCH(Q$1&$O26,Calculator!$D$2:$CM$2,0)) -> 0.9446129056 | S26: 23 | T26: Electricity | U26: =INDEX(Calculator!$D$6:$CM$36,MATCH($S26&U$2,Calculator!$A$6:$A$36,0),MATCH(U$1&$T26,Calculator!$D$2:$CM$2,0)) -> 0.9908364038 | V26: =INDEX(Calculator!$D$6:$CM$36,MATCH($S26&V$2,Calculator!$A$6:$A$36,0),MATCH(V$1&$T26,Calculator!$D$2:$CM$2,0)) -> 0.9842581552 | AB26: 23 | AC26: Natural Gas | AD26: =INDEX(P26:V26,0, MATCH($AB$1,$P$1:$V$1,0)) -> 0.9446129056 | AF26: Natural Gas | AG26: 23 | AH26: 0.9446129056
C27: For v10 : click the "Generate JSON" button to generate, save in the computer | N27: 24 | O27: Natural Gas | P27: =INDEX(Calculator!$D$6:$CM$36,MATCH($N27&P$2,Calculator!$A$6:$A$36,0),MATCH(P$1&$O27,Calculator!$D$2:$CM$2,0)) -> 5.644881808 | Q27: =INDEX(Calculator!$D$6:$CM$36,MATCH($N27&Q$2,Calculator!$A$6:$A$36,0),MATCH(Q$1&$O27,Calculator!$D$2:$CM$2,0)) -> 6.346281082 | S27: 24 | T27: Electricity | U27: =INDEX(Calculator!$D$6:$CM$36,MATCH($S27&U$2,Calculator!$A$6:$A$36,0),MATCH(U$1&$T27,Calculator!$D$2:$CM$2,0)) -> 0.9954742477 | V27: =INDEX(Calculator!$D$6:$CM$36,MATCH($S27&V$2,Calculator!$A$6:$A$36,0),MATCH(V$1&$T27,Calculator!$D$2:$CM$2,0)) -> 0.988352779 | AB27: 24 | AC27: Natural Gas | AD27: =INDEX(P27:V27,0, MATCH($AB$1,$P$1:$V$1,0)) -> 6.346281082 | AF27: Natural Gas | AG27: 24 | AH27: 6.346281082
C28: And upload this file in the "Upload Economic Parameter Data" under "Help" tab in v10 | N28: 25 | O28: Natural Gas | P28: =INDEX(Calculator!$D$6:$CM$36,MATCH($N28&P$2,Calculator!$A$6:$A$36,0),MATCH(P$1&$O28,Calculator!$D$2:$CM$2,0)) -> -4.057070993 | Q28: =INDEX(Calculator!$D$6:$CM$36,MATCH($N28&Q$2,Calculator!$A$6:$A$36,0),MATCH(Q$1&$O28,Calculator!$D$2:$CM$2,0)) -> -4.56857065 | S28: 25 | T28: Electricity | U28: =INDEX(Calculator!$D$6:$CM$36,MATCH($S28&U$2,Calculator!$A$6:$A$36,0),MATCH(U$1&$T28,Calculator!$D$2:$CM$2,0)) -> 1.000108828 | V28: =INDEX(Calculator!$D$6:$CM$36,MATCH($S28&V$2,Calculator!$A$6:$A$36,0),MATCH(V$1&$T28,Calculator!$D$2:$CM$2,0)) -> 0.9924445219 | AB28: 25 | AC28: Natural Gas | AD28: =INDEX(P28:V28,0, MATCH($AB$1,$P$1:$V$1,0)) -> -4.56857065 | AF28: Natural Gas | AG28: 25 | AH28: -4.56857065
N29: 0 | O29: Oil | P29: =INDEX(Calculator!$D$6:$CM$36,MATCH($N29&P$2,Calculator!$A$6:$A$36,0),MATCH(P$1&$O29,Calculator!$D$2:$CM$2,0)) -> 1 | Q29: =INDEX(Calculator!$D$6:$CM$36,MATCH($N29&Q$2,Calculator!$A$6:$A$36,0),MATCH(Q$1&$O29,Calculator!$D$2:$CM$2,0)) -> 1 | S29: 26 | T29: Electricity | U29: =INDEX(Calculator!$D$6:$CM$36,MATCH($S29&U$2,Calculator!$A$6:$A$36,0),MATCH(U$1&$T29,Calculator!$D$2:$CM$2,0)) -> 1.003056852 | V29: =INDEX(Calculator!$D$6:$CM$36,MATCH($S29&V$2,Calculator!$A$6:$A$36,0),MATCH(V$1&$T29,Calculator!$D$2:$CM$2,0)) -> 0.9950472505 | AB29: 0 | AC29: Oil | AD29: =INDEX(P29:V29,0, MATCH($AB$1,$P$1:$V$1,0)) -> 1 | AF29: Oil | AG29: 0 | AH29: 1
B30: SCC: Social Cost of Carbon | N30: 1 | O30: Oil | P30: =INDEX(Calculator!$D$6:$CM$36,MATCH($N30&P$2,Calculator!$A$6:$A$36,0),MATCH(P$1&$O30,Calculator!$D$2:$CM$2,0)) -> 0.959682826 | Q30: =INDEX(Calculator!$D$6:$CM$36,MATCH($N30&Q$2,Calculator!$A$6:$A$36,0),MATCH(Q$1&$O30,Calculator!$D$2:$CM$2,0)) -> 0.9674409699 | S30: 27 | T30: Electricity | U30: =INDEX(Calculator!$D$6:$CM$36,MATCH($S30&U$2,Calculator!$A$6:$A$36,0),MATCH(U$1&$T30,Calculator!$D$2:$CM$2,0)) -> 1.005108414 | V30: =INDEX(Calculator!$D$6:$CM$36,MATCH($S30&V$2,Calculator!$A$6:$A$36,0),MATCH(V$1&$T30,Calculator!$D$2:$CM$2,0)) -> 0.9968585173 | AB30: 1 | AC30: Oil | AD30: =INDEX(P30:V30,0, MATCH($AB$1,$P$1:$V$1,0)) -> 0.9674409699 | AF30: Oil | AG30: 1 | AH30: 0.9674409699
B31: WA: Weatherization Assistant application | E31: Having Trouble? Contact us at Weatherization Helpdesk <wahelpdesk@ornl.gov> | N31: 2 | O31: Oil | P31: =INDEX(Calculator!$D$6:$CM$36,MATCH($N31&P$2,Calculator!$A$6:$A$36,0),MATCH(P$1&$O31,Calculator!$D$2:$CM$2,0)) -> 0.9133089517 | Q31: =INDEX(Calculator!$D$6:$CM$36,MATCH($N31&Q$2,Calculator!$A$6:$A$36,0),MATCH(Q$1&$O31,Calculator!$D$2:$CM$2,0)) -> 0.9296191684 | S31: 28 | T31: Electricity | U31: =INDEX(Calculator!$D$6:$CM$36,MATCH($S31&U$2,Calculator!$A$6:$A$36,0),MATCH(U$1&$T31,Calculator!$D$2:$CM$2,0)) -> 1.008748748 | V31: =INDEX(Calculator!$D$6:$CM$36,MATCH($S31&V$2,Calculator!$A$6:$A$36,0),MATCH(V$1&$T31,Calculator!$D$2:$CM$2,0)) -> 1.000072467 | AB31: 2 | AC31: Oil | AD31: =INDEX(P31:V31,0, MATCH($AB$1,$P$1:$V$1,0)) -> 0.9296191684 | AF31: Oil | AG31: 2 | AH31: 0.9296191684
N32: 3 | O32: Oil | P32: =INDEX(Calculator!$D$6:$CM$36,MATCH($N32&P$2,Calculator!$A$6:$A$36,0),MATCH(P$1&$O32,Calculator!$D$2:$CM$2,0)) -> 0.8896472382 | Q32: =INDEX(Calculator!$D$6:$CM$36,MATCH($N32&Q$2,Calculator!$A$6:$A$36,0),MATCH(Q$1&$O32,Calculator!$D$2:$CM$2,0)) -> 0.9115323557 | S32: 29 | T32: Electricity | U32: =INDEX(Calculator!$D$6:$CM$36,MATCH($S32&U$2,Calculator!$A$6:$A$36,0),MATCH(U$1&$T32,Calculator!$D$2:$CM$2,0)) -> 1.012956792 | V32: =INDEX(Calculator!$D$6:$CM$36,MATCH($S32&V$2,Calculator!$A$6:$A$36,0),MATCH(V$1&$T32,Calculator!$D$2:$CM$2,0)) -> 1.003787633 | AB32: 3 | AC32: Oil | AD32: =INDEX(P32:V32,0, MATCH($AB$1,$P$1:$V$1,0)) -> 0.9115323557 | AF32: Oil | AG32: 3 | AH32: 0.9115323557
N33: 4 | O33: Oil | P33: =INDEX(Calculator!$D$6:$CM$36,MATCH($N33&P$2,Calculator!$A$6:$A$36,0),MATCH(P$1&$O33,Calculator!$D$2:$CM$2,0)) -> 0.8752658539 | Q33: =INDEX(Calculator!$D$6:$CM$36,MATCH($N33&Q$2,Calculator!$A$6:$A$36,0),MATCH(Q$1&$O33,Calculator!$D$2:$CM$2,0)) -> 0.9015093814 | S33: 30 | T33: Electricity | U33: =INDEX(Calculator!$D$6:$CM$36,MATCH($S33&U$2,Calculator!$A$6:$A$36,0),MATCH(U$1&$T33,Calculator!$D$2:$CM$2,0)) -> 1.01718239 | V33: =INDEX(Calculator!$D$6:$CM$36,MATCH($S33&V$2,Calculator!$A$6:$A$36,0),MATCH(V$1&$T33,Calculator!$D$2:$CM$2,0)) -> 1.007518296 | AB33: 4 | AC33: Oil | AD33: =INDEX(P33:V33,0, MATCH($AB$1,$P$1:$V$1,0)) -> 0.9015093814 | AF33: Oil | AG33: 4 | AH33: 0.9015093814
N34: 5 | O34: Oil | P34: =INDEX(Calculator!$D$6:$CM$36,MATCH($N34&P$2,Calculator!$A$6:$A$36,0),MATCH(P$1&$O34,Calculator!$D$2:$CM$2,0)) -> 0.8623267979 | Q34: =INDEX(Calculator!$D$6:$CM$36,MATCH($N34&Q$2,Calculator!$A$6:$A$36,0),MATCH(Q$1&$O34,Calculator!$D$2:$CM$2,0)) -> 0.89521293 | S34: 0 | T34: Natural Gas | U34: =INDEX(Calculator!$D$6:$CM$36,MATCH($S34&U$2,Calculator!$A$6:$A$36,0),MATCH(U$1&$T34,Calculator!$D$2:$CM$2,0)) -> 1 | V34: =INDEX(Calculator!$D$6:$CM$36,MATCH($S34&V$2,Calculator!$A$6:$A$36,0),MATCH(V$1&$T34,Calculator!$D$2:$CM$2,0)) -> 1 | AB34: 5 | AC34: Oil | AD34: =INDEX(P34:V34,0, MATCH($AB$1,$P$1:$V$1,0)) -> 0.89521293 | AF34: Oil | AG34: 5 | AH34: 0.89521293
C35: =$E$3 -> FPI_SCC for v8.9 (adjusted for 30 year UPV) | N35: 6 | O35: Oil | P35: =INDEX(Calculator!$D$6:$CM$36,MATCH($N35&P$2,Calculator!$A$6:$A$36,0),MATCH(P$1&$O35,Calculator!$D$2:$CM$2,0)) -> 0.8609786136 | Q35: =INDEX(Calculator!$D$6:$CM$36,MATCH($N35&Q$2,Calculator!$A$6:$A$36,0),MATCH(Q$1&$O35,Calculator!$D$2:$CM$2,0)) -> 0.8965147283 | S35: 1 | T35: Natural Gas | U35: =INDEX(Calculator!$D$6:$CM$36,MATCH($S35&U$2,Calculator!$A$6:$A$36,0),MATCH(U$1&$T35,Calculator!$D$2:$CM$2,0)) -> 0.9803129063 | V35: =INDEX(Calculator!$D$6:$CM$36,MATCH($S35&V$2,Calculator!$A$6:$A$36,0),MATCH(V$1&$T35,Calculator!$D$2:$CM$2,0)) -> 0.9864469229 | AB35: 6 | AC35: Oil | AD35: =INDEX(P35:V35,0, MATCH($AB$1,$P$1:$V$1,0)) -> 0.8965147283 | AF35: Oil | AG35: 6 | AH35: 0.8965147283
C36: =IF( OR( E3 = "FPI for v8.9 (adjusted for 30 yr UPV)", E3 = "FPI for v10"), 0, 1) -> 1 | F36: FPI for v8.9 (adjusted for 30 yr UPV) | N36: 7 | O36: Oil | P36: =INDEX(Calculator!$D$6:$CM$36,MATCH($N36&P$2,Calculator!$A$6:$A$36,0),MATCH(P$1&$O36,Calculator!$D$2:$CM$2,0)) -> 0.8620555986 | Q36: =INDEX(Calculator!$D$6:$CM$36,MATCH($N36&Q$2,Calculator!$A$6:$A$36,0),MATCH(Q$1&$O36,Calculator!$D$2:$CM$2,0)) -> 0.8999237981 | S36: 2 | T36: Natural Gas | U36: =INDEX(Calculator!$D$6:$CM$36,MATCH($S36&U$2,Calculator!$A$6:$A$36,0),MATCH(U$1&$T36,Calculator!$D$2:$CM$2,0)) -> 0.9112727449 | V36: =INDEX(Calculator!$D$6:$CM$36,MATCH($S36&V$2,Calculator!$A$6:$A$36,0),MATCH(V$1&$T36,Calculator!$D$2:$CM$2,0)) -> 0.9313927401 | AB36: 7 | AC36: Oil | AD36: =INDEX(P36:V36,0, MATCH($AB$1,$P$1:$V$1,0)) -> 0.8999237981 | AF36: Oil | AG36: 7 | AH36: 0.8999237981
C37: =C36 -> 1 | F37: FPI_SCC for v8.9 (adjusted for 30 year UPV) | N37: 8 | O37: Oil | P37: =INDEX(Calculator!$D$6:$CM$36,MATCH($N37&P$2,Calculator!$A$6:$A$36,0),MATCH(P$1&$O37,Calculator!$D$2:$CM$2,0)) -> 0.8654772643 | Q37: =INDEX(Calculator!$D$6:$CM$36,MATCH($N37&Q$2,Calculator!$A$6:$A$36,0),MATCH(Q$1&$O37,Calculator!$D$2:$CM$2,0)) -> 0.9053702015 | S37: 3 | T37: Natural Gas | U37: =INDEX(Calculator!$D$6:$CM$36,MATCH($S37&U$2,Calculator!$A$6:$A$36,0),MATCH(U$1&$T37,Calculator!$D$2:$CM$2,0)) -> 0.834841404 | V37: =INDEX(Calculator!$D$6:$CM$36,MATCH($S37&V$2,Calculator!$A$6:$A$36,0),MATCH(V$1&$T37,Calculator!$D$2:$CM$2,0)) -> 0.8701232978 | AB37: 8 | AC37: Oil | AD37: =INDEX(P37:V37,0, MATCH($AB$1,$P$1:$V$1,0)) -> 0.9053702015 | AF37: Oil | AG37: 8 | AH37: 0.9053702015
F38: FPI for v10 | N38: 9 | O38: Oil | P38: =INDEX(Calculator!$D$6:$CM$36,MATCH($N38&P$2,Calculator!$A$6:$A$36,0),MATCH(P$1&$O38,Calculator!$D$2:$CM$2,0)) -> 0.8693300232 | Q38: =INDEX(Calculator!$D$6:$CM$36,MATCH($N38&Q$2,Calculator!$A$6:$A$36,0),MATCH(Q$1&$O38,Calculator!$D$2:$CM$2,0)) -> 0.9111911893 | S38: 4 | T38: Natural Gas | U38: =INDEX(Calculator!$D$6:$CM$36,MATCH($S38&U$2,Calculator!$A$6:$A$36,0),MATCH(U$1&$T38,Calculator!$D$2:$CM$2,0)) -> 0.7710907938 | V38: =INDEX(Calculator!$D$6:$CM$36,MATCH($S38&V$2,Calculator!$A$6:$A$36,0),MATCH(V$1&$T38,Calculator!$D$2:$CM$2,0)) -> 0.8195171105 | AB38: 9 | AC38: Oil | AD38: =INDEX(P38:V38,0, MATCH($AB$1,$P$1:$V$1,0)) -> 0.9111911893 | AF38: Oil | AG38: 9 | AH38: 0.9111911893
F39: FPI_SCC for v10 | N39: 10 | O39: Oil | P39: =INDEX(Calculator!$D$6:$CM$36,MATCH($N39&P$2,Calculator!$A$6:$A$36,0),MATCH(P$1&$O39,Calculator!$D$2:$CM$2,0)) -> 0.8713583474 | Q39: =INDEX(Calculator!$D$6:$CM$36,MATCH($N39&Q$2,Calculator!$A$6:$A$36,0),MATCH(Q$1&$O39,Calculator!$D$2:$CM$2,0)) -> 0.9154268941 | S39: 5 | T39: Natural Gas | U39: =INDEX(Calculator!$D$6:$CM$36,MATCH($S39&U$2,Calculator!$A$6:$A$36,0),MATCH(U$1&$T39,Calculator!$D$2:$CM$2,0)) -> 0.7179328976 | V39: =INDEX(Calculator!$D$6:$CM$36,MATCH($S39&V$2,Calculator!$A$6:$A$36,0),MATCH(V$1&$T39,Calculator!$D$2:$CM$2,0)) -> 0.7808202046 | AB39: 10 | AC39: Oil | AD39: =INDEX(P39:V39,0, MATCH($AB$1,$P$1:$V$1,0)) -> 0.9154268941 | AF39: Oil | AG39: 10 | AH39: 0.9154268941
N40: 11 | O40: Oil | P40: =INDEX(Calculator!$D$6:$CM$36,MATCH($N40&P$2,Calculator!$A$6:$A$36,0),MATCH(P$1&$O40,Calculator!$D$2:$CM$2,0)) -> 0.8739676312 | Q40: =INDEX(Calculator!$D$6:$CM$36,MATCH($N40&Q$2,Calculator!$A$6:$A$36,0),MATCH(Q$1&$O40,Calculator!$D$2:$CM$2,0)) -> 0.9201674049 | S40: 6 | T40: Natural Gas | U40: =INDEX(Calculator!$D$6:$CM$36,MATCH($S40&U$2,Calculator!$A$6:$A$36,0),MATCH(U$1&$T40,Calculator!$D$2:$CM$2,0)) -> 0.704641452 | V40: =INDEX(Calculator!$D$6:$CM$36,MATCH($S40&V$2,Calculator!$A$6:$A$36,0),MATCH(V$1&$T40,Calculator!$D$2:$CM$2,0)) -> 0.7726452424 | AB40: 11 | AC40: Oil | AD40: =INDEX(P40:V40,0, MATCH($AB$1,$P$1:$V$1,0)) -> 0.9201674049 | AF40: Oil | AG40: 11 | AH40: 0.9201674049
N41: 12 | O41: Oil | P41: =INDEX(Calculator!$D$6:$CM$36,MATCH($N41&P$2,Calculator!$A$6:$A$36,0),MATCH(P$1&$O41,Calculator!$D$2:$CM$2,0)) -> 0.8769384108 | Q41: =INDEX(Calculator!$D$6:$CM$36,MATCH($N41&Q$2,Calculator!$A$6:$A$36,0),MATCH(Q$1&$O41,Calculator!$D$2:$CM$2,0)) -> 0.9252220255 | S41: 7 | T41: Natural Gas | U41: =INDEX(Calculator!$D$6:$CM$36,MATCH($S41&U$2,Calculator!$A$6:$A$36,0),MATCH(U$1&$T41,Calculator!$D$2:$CM$2,0)) -> 0.7059171396 | V41: =INDEX(Calculator!$D$6:$CM$36,MATCH($S41&V$2,Calculator!$A$6:$A$36,0),MATCH(V$1&$T41,Calculator!$D$2:$CM$2,0)) -> 0.7767198153 | AB41: 12 | AC41: Oil | AD41: =INDEX(P41:V41,0, MATCH($AB$1,$P$1:$V$1,0)) -> 0.9252220255 | AF41: Oil | AG41: 12 | AH41: 0.9252220255
N42: 13 | O42: Oil | P42: =INDEX(Calculator!$D$6:$CM$36,MATCH($N42&P$2,Calculator!$A$6:$A$36,0),MATCH(P$1&$O42,Calculator!$D$2:$CM$2,0)) -> 0.8794293298 | Q42: =INDEX(Calculator!$D$6:$CM$36,MATCH($N42&Q$2,Calculator!$A$6:$A$36,0),MATCH(Q$1&$O42,Calculator!$D$2:$CM$2,0)) -> 0.929859687 | S42: 8 | T42: Natural Gas | U42: =INDEX(Calculator!$D$6:$CM$36,MATCH($S42&U$2,Calculator!$A$6:$A$36,0),MATCH(U$1&$T42,Calculator!$D$2:$CM$2,0)) -> 0.7111930308 | V42: =INDEX(Calculator!$D$6:$CM$36,MATCH($S42&V$2,Calculator!$A$6:$A$36,0),MATCH(V$1&$T42,Calculator!$D$2:$CM$2,0)) -> 0.7841581684 | AB42: 13 | AC42: Oil | AD42: =INDEX(P42:V42,0, MATCH($AB$1,$P$1:$V$1,0)) -> 0.929859687 | AF42: Oil | AG42: 13 | AH42: 0.929859687
N43: 14 | O43: Oil | P43: =INDEX(Calculator!$D$6:$CM$36,MATCH($N43&P$2,Calculator!$A$6:$A$36,0),MATCH(P$1&$O43,Calculator!$D$2:$CM$2,0)) -> 0.8818304268 | Q43: =INDEX(Calculator!$D$6:$CM$36,MATCH($N43&Q$2,Calculator!$A$6:$A$36,0),MATCH(Q$1&$O43,Calculator!$D$2:$CM$2,0)) -> 0.9368925595 | S43: 9 | T43: Natural Gas | U43: =INDEX(Calculator!$D$6:$CM$36,MATCH($S43&U$2,Calculator!$A$6:$A$36,0),MATCH(U$1&$T43,Calculator!$D$2:$CM$2,0)) -> 0.7169683715 | V43: =INDEX(Calculator!$D$6:$CM$36,MATCH($S43&V$2,Calculator!$A$6:$A$36,0),MATCH(V$1&$T43,Calculator!$D$2:$CM$2,0)) -> 0.7920165097 | AB43: 14 | AC43: =IF(OR($AB$1="FPI for v10", $AB$1="FPI_SCC for v10"), $T43, $O43) -> Oil | AD43: =INDEX(P43:V43,0, MATCH($AB$1,$P$1:$V$1,0)) -> 0.9368925595 | AF43: Oil | AG43: 14 | AH43: 0.9368925595
N44: 15 | O44: Oil | P44: =INDEX(Calculator!$D$6:$CM$36,MATCH($N44&P$2,Calculator!$A$6:$A$36,0),MATCH(P$1&$O44,Calculator!$D$2:$CM$2,0)) -> 0.8845873963 | Q44: =INDEX(Calculator!$D$6:$CM$36,MATCH($N43&Q$2,Calculator!$A$6:$A$36,0),MATCH(Q$1&$O43,Calculator!$D$2:$CM$2,0)) -> 0.9368925595 | S44: 10 | T44: Natural Gas | U44: =INDEX(Calculator!$D$6:$CM$36,MATCH($S44&U$2,Calculator!$A$6:$A$36,0),MATCH(U$1&$T44,Calculator!$D$2:$CM$2,0)) -> 0.7257628184 | V44: =INDEX(Calculator!$D$6:$CM$36,MATCH($S44&V$2,Calculator!$A$6:$A$36,0),MATCH(V$1&$T44,Calculator!$D$2:$CM$2,0)) -> 0.8024136242 | AB44: =IF(OR($AB$1="FPI for v10", $AB$1="FPI_SCC for v10"), $S44, $N44) -> 15 | AC44: Oil | AD44: =INDEX(P44:V44,0, MATCH($AB$1,$P$1:$V$1,0)) -> 0.9368925595 | AF44: Oil | AG44: 15 | AH44: 0.9368925595
N45: 16 | O45: Oil | P45: =INDEX(Calculator!$D$6:$CM$36,MATCH($N45&P$2,Calculator!$A$6:$A$36,0),MATCH(P$1&$O45,Calculator!$D$2:$CM$2,0)) -> 0.8866746989 | Q45: =INDEX(Calculator!$D$6:$CM$36,MATCH($N45&Q$2,Calculator!$A$6:$A$36,0),MATCH(Q$1&$O45,Calculator!$D$2:$CM$2,0)) -> 0.9460483492 | S45: 11 | T45: Natural Gas | U45: =INDEX(Calculator!$D$6:$CM$36,MATCH($S45&U$2,Calculator!$A$6:$A$36,0),MATCH(U$1&$T45,Calculator!$D$2:$CM$2,0)) -> 0.7354838262 | V45: =INDEX(Calculator!$D$6:$CM$36,MATCH($S45&V$2,Calculator!$A$6:$A$36,0),MATCH(V$1&$T45,Calculator!$D$2:$CM$2,0)) -> 0.8135898859 | AB45: 16 | AC45: Oil | AD45: =INDEX(P45:V45,0, MATCH($AB$1,$P$1:$V$1,0)) -> 0.9460483492 | AF45: Oil | AG45: 16 | AH45: 0.9460483492
N46: 17 | O46: Oil | P46: =INDEX(Calculator!$D$6:$CM$36,MATCH($N46&P$2,Calculator!$A$6:$A$36,0),MATCH(P$1&$O46,Calculator!$D$2:$CM$2,0)) -> 0.8889455339 | Q46: =INDEX(Calculator!$D$6:$CM$36,MATCH($N46&Q$2,Calculator!$A$6:$A$36,0),MATCH(Q$1&$O46,Calculator!$D$2:$CM$2,0)) -> 0.9504947759 | S46: 12 | T46: Natural Gas | U46: =INDEX(Calculator!$D$6:$CM$36,MATCH($S46&U$2,Calculator!$A$6:$A$36,0),MATCH(U$1&$T46,Calculator!$D$2:$CM$2,0)) -> 0.7443205349 | V46: =INDEX(Calculator!$D$6:$CM$36,MATCH($S46&V$2,Calculator!$A$6:$A$36,0),MATCH(V$1&$T46,Calculator!$D$2:$CM$2,0)) -> 0.8240225384 | AB46: 17 | AC46: Oil | AD46: =INDEX(P46:V46,0, MATCH($AB$1,$P$1:$V$1,0)) -> 0.9504947759 | AF46: Oil | AG46: 17 | AH46: 0.9504947759
N47: 18 | O47: Oil | P47: =INDEX(Calculator!$D$6:$CM$36,MATCH($N47&P$2,Calculator!$A$6:$A$36,0),MATCH(P$1&$O47,Calculator!$D$2:$CM$2,0)) -> 0.8932955339 | Q47: =INDEX(Calculator!$D$6:$CM$36,MATCH($N47&Q$2,Calculator!$A$6:$A$36,0),MATCH(Q$1&$O47,Calculator!$D$2:$CM$2,0)) -> 0.956747825 | S47: 13 | T47: Natural Gas | U47: =INDEX(Calculator!$D$6:$CM$36,MATCH($S47&U$2,Calculator!$A$6:$A$36,0),MATCH(U$1&$T47,Calculator!$D$2:$CM$2,0)) -> 0.7485146444 | V47: =INDEX(Calculator!$D$6:$CM$36,MATCH($S47&V$2,Calculator!$A$6:$A$36,0),MATCH(V$1&$T47,Calculator!$D$2:$CM$2,0)) -> 0.8305512189 | AB47: 18 | AC47: Oil | AD47: =INDEX(P47:V47,0, MATCH($AB$1,$P$1:$V$1,0)) -> 0.956747825 | AF47: Oil | AG47: 18 | AH47: 0.956747825
N48: 19 | O48: Oil | P48: =INDEX(Calculator!$D$6:$CM$36,MATCH($N48&P$2,Calculator!$A$6:$A$36,0),MATCH(P$1&$O48,Calculator!$D$2:$CM$2,0)) -> 0.8948652169 | Q48: =INDEX(Calculator!$D$6:$CM$36,MATCH($N48&Q$2,Calculator!$A$6:$A$36,0),MATCH(Q$1&$O48,Calculator!$D$2:$CM$2,0)) -> 0.9605850086 | S48: 14 | T48: Natural Gas | U48: =INDEX(Calculator!$D$6:$CM$36,MATCH($S48&U$2,Calculator!$A$6:$A$36,0),MATCH(U$1&$T48,Calculator!$D$2:$CM$2,0)) -> 0.7525858338 | V48: =INDEX(Calculator!$D$6:$CM$36,MATCH($S48&V$2,Calculator!$A$6:$A$36,0),MATCH(V$1&$T48,Calculator!$D$2:$CM$2,0)) -> 0.8399783798 | AB48: 19 | AC48: Oil | AD48: =INDEX(P48:V48,0, MATCH($AB$1,$P$1:$V$1,0)) -> 0.9605850086 | AF48: Oil | AG48: 19 | AH48: 0.9605850086
N49: 20 | O49: Oil | P49: =INDEX(Calculator!$D$6:$CM$36,MATCH($N49&P$2,Calculator!$A$6:$A$36,0),MATCH(P$1&$O49,Calculator!$D$2:$CM$2,0)) -> 0.8977533564 | Q49: =INDEX(Calculator!$D$6:$CM$36,MATCH($N49&Q$2,Calculator!$A$6:$A$36,0),MATCH(Q$1&$O49,Calculator!$D$2:$CM$2,0)) -> 0.9655678219 | S49: 15 | T49: Natural Gas | U49: =INDEX(Calculator!$D$6:$CM$36,MATCH($S49&U$2,Calculator!$A$6:$A$36,0),MATCH(U$1&$T49,Calculator!$D$2:$CM$2,0)) -> 0.7605068231 | V49: =INDEX(Calculator!$D$6:$CM$36,MATCH($S49&V$2,Calculator!$A$6:$A$36,0),MATCH(V$1&$T49,Calculator!$D$2:$CM$2,0)) -> 0.8496410019 | AB49: 20 | AC49: Oil | AD49: =INDEX(P49:V49,0, MATCH($AB$1,$P$1:$V$1,0)) -> 0.9655678219 | AF49: Oil | AG49: 20 | AH49: 0.9655678219
N50: 21 | O50: Oil | P50: =INDEX(Calculator!$D$6:$CM$36,MATCH($N50&P$2,Calculator!$A$6:$A$36,0),MATCH(P$1&$O50,Calculator!$D$2:$CM$2,0)) -> 0.8971009776 | Q50: =INDEX(Calculator!$D$6:$CM$36,MATCH($N50&Q$2,Calculator!$A$6:$A$36,0),MATCH(Q$1&$O50,Calculator!$D$2:$CM$2,0)) -> 0.9699474766 | S50: 16 | T50: Natural Gas | U50: =INDEX(Calculator!$D$6:$CM$36,MATCH($S50&U$2,Calculator!$A$6:$A$36,0),MATCH(U$1&$T50,Calculator!$D$2:$CM$2,0)) -> 0.7611453093 | V50: =INDEX(Calculator!$D$6:$CM$36,MATCH($S50&V$2,Calculator!$A$6:$A$36,0),MATCH(V$1&$T50,Calculator!$D$2:$CM$2,0)) -> 0.8531797507 | AB50: 21 | AC50: Oil | AD50: =INDEX(P50:V50,0, MATCH($AB$1,$P$1:$V$1,0)) -> 0.9699474766 | AF50: Oil | AG50: 21 | AH50: 0.9699474766
N51: 22 | O51: Oil | P51: =INDEX(Calculator!$D$6:$CM$36,MATCH($N51&P$2,Calculator!$A$6:$A$36,0),MATCH(P$1&$O51,Calculator!$D$2:$CM$2,0)) -> 0.8988804625 | Q51: =INDEX(Calculator!$D$6:$CM$36,MATCH($N51&Q$2,Calculator!$A$6:$A$36,0),MATCH(Q$1&$O51,Calculator!$D$2:$CM$2,0)) -> 0.9739669607 | S51: 17 | T51: Natural Gas | U51: =INDEX(Calculator!$D$6:$CM$36,MATCH($S51&U$2,Calculator!$A$6:$A$36,0),MATCH(U$1&$T51,Calculator!$D$2:$CM$2,0)) -> 0.7650098362 | V51: =INDEX(Calculator!$D$6:$CM$36,MATCH($S51&V$2,Calculator!$A$6:$A$36,0),MATCH(V$1&$T51,Calculator!$D$2:$CM$2,0)) -> 0.8594312844 | AB51: 22 | AC51: Oil | AD51: =INDEX(P51:V51,0, MATCH($AB$1,$P$1:$V$1,0)) -> 0.9739669607 | AF51: Oil | AG51: 22 | AH51: 0.9739669607
N52: 23 | O52: Oil | P52: =INDEX(Calculator!$D$6:$CM$36,MATCH($N52&P$2,Calculator!$A$6:$A$36,0),MATCH(P$1&$O52,Calculator!$D$2:$CM$2,0)) -> 0.9076485462 | Q52: =INDEX(Calculator!$D$6:$CM$36,MATCH($N52&Q$2,Calculator!$A$6:$A$36,0),MATCH(Q$1&$O52,Calculator!$D$2:$CM$2,0)) -> 0.984058959 | S52: 18 | T52: Natural Gas | U52: =INDEX(Calculator!$D$6:$CM$36,MATCH($S52&U$2,Calculator!$A$6:$A$36,0),MATCH(U$1&$T52,Calculator!$D$2:$CM$2,0)) -> 0.7707709074 | V52: =INDEX(Calculator!$D$6:$CM$36,MATCH($S52&V$2,Calculator!$A$6:$A$36,0),MATCH(V$1&$T52,Calculator!$D$2:$CM$2,0)) -> 0.8672776265 | AB52: 23 | AC52: Oil | AD52: =INDEX(P52:V52,0, MATCH($AB$1,$P$1:$V$1,0)) -> 0.984058959 | AF52: Oil | AG52: 23 | AH52: 0.984058959
N53: 24 | O53: Oil | P53: =INDEX(Calculator!$D$6:$CM$36,MATCH($N53&P$2,Calculator!$A$6:$A$36,0),MATCH(P$1&$O53,Calculator!$D$2:$CM$2,0)) -> 5.874327529 | Q53: =INDEX(Calculator!$D$6:$CM$36,MATCH($N53&Q$2,Calculator!$A$6:$A$36,0),MATCH(Q$1&$O53,Calculator!$D$2:$CM$2,0)) -> 6.422143229 | S53: 19 | T53: Natural Gas | U53: =INDEX(Calculator!$D$6:$CM$36,MATCH($S53&U$2,Calculator!$A$6:$A$36,0),MATCH(U$1&$T53,Calculator!$D$2:$CM$2,0)) -> 0.7736558516 | V53: =INDEX(Calculator!$D$6:$CM$36,MATCH($S53&V$2,Calculator!$A$6:$A$36,0),MATCH(V$1&$T53,Calculator!$D$2:$CM$2,0)) -> 0.8727054268 | AB53: 24 | AC53: Oil | AD53: =INDEX(P53:V53,0, MATCH($AB$1,$P$1:$V$1,0)) -> 6.422143229 | AF53: Oil | AG53: 24 | AH53: 6.422143229
N54: 25 | O54: Oil | P54: =INDEX(Calculator!$D$6:$CM$36,MATCH($N54&P$2,Calculator!$A$6:$A$36,0),MATCH(P$1&$O54,Calculator!$D$2:$CM$2,0)) -> -4.200455737 | Q54: =INDEX(Calculator!$D$6:$CM$36,MATCH($N54&Q$2,Calculator!$A$6:$A$36,0),MATCH(Q$1&$O54,Calculator!$D$2:$CM$2,0)) -> -4.603091757 | S54: 20 | T54: Natural Gas | U54: =INDEX(Calculator!$D$6:$CM$36,MATCH($S54&U$2,Calculator!$A$6:$A$36,0),MATCH(U$1&$T54,Calculator!$D$2:$CM$2,0)) -> 0.7733799482 | V54: =INDEX(Calculator!$D$6:$CM$36,MATCH($S54&V$2,Calculator!$A$6:$A$36,0),MATCH(V$1&$T54,Calculator!$D$2:$CM$2,0)) -> 0.8754752634 | AB54: 25 | AC54: Oil | AD54: =INDEX(P54:V54,0, MATCH($AB$1,$P$1:$V$1,0)) -> -4.603091757 | AF54: Oil | AG54: 25 | AH54: -4.603091757
N55: 0 | O55: Electricity | P55: =INDEX(Calculator!$D$6:$CM$36,MATCH($N55&P$2,Calculator!$A$6:$A$36,0),MATCH(P$1&$O55,Calculator!$D$2:$CM$2,0)) -> 1 | Q55: =INDEX(Calculator!$D$6:$CM$36,MATCH($N55&Q$2,Calculator!$A$6:$A$36,0),MATCH(Q$1&$O55,Calculator!$D$2:$CM$2,0)) -> 1 | S55: 21 | T55: Natural Gas | U55: =INDEX(Calculator!$D$6:$CM$36,MATCH($S55&U$2,Calculator!$A$6:$A$36,0),MATCH(U$1&$T55,Calculator!$D$2:$CM$2,0)) -> 0.7704535909 | V55: =INDEX(Calculator!$D$6:$CM$36,MATCH($S55&V$2,Calculator!$A$6:$A$36,0),MATCH(V$1&$T55,Calculator!$D$2:$CM$2,0)) -> 0.8790181716 | AB55: 0 | AC55: Electricity | AD55: =INDEX(P55:V55,0, MATCH($AB$1,$P$1:$V$1,0)) -> 1 | AF55: Electricity | AG55: 0 | AH55: 1
N56: 1 | O56: Electricity | P56: =INDEX(Calculator!$D$6:$CM$36,MATCH($N56&P$2,Calculator!$A$6:$A$36,0),MATCH(P$1&$O56,Calculator!$D$2:$CM$2,0)) -> 0.934859723 | Q56: =INDEX(Calculator!$D$6:$CM$36,MATCH($N56&Q$2,Calculator!$A$6:$A$36,0),MATCH(Q$1&$O56,Calculator!$D$2:$CM$2,0)) -> 0.9401351292 | S56: 22 | T56: Natural Gas | U56: =INDEX(Calculator!$D$6:$CM$36,MATCH($S56&U$2,Calculator!$A$6:$A$36,0),MATCH(U$1&$T56,Calculator!$D$2:$CM$2,0)) -> 0.7740631387 | V56: =INDEX(Calculator!$D$6:$CM$36,MATCH($S56&V$2,Calculator!$A$6:$A$36,0),MATCH(V$1&$T56,Calculator!$D$2:$CM$2,0)) -> 0.8850552928 | AB56: 1 | AC56: Electricity | AD56: =INDEX(P56:V56,0, MATCH($AB$1,$P$1:$V$1,0)) -> 0.9401351292 | AF56: Electricity | AG56: 1 | AH56: 0.9401351292
N57: 2 | O57: Electricity | P57: =INDEX(Calculator!$D$6:$CM$36,MATCH($N57&P$2,Calculator!$A$6:$A$36,0),MATCH(P$1&$O57,Calculator!$D$2:$CM$2,0)) -> 0.8672203062 | Q57: =INDEX(Calculator!$D$6:$CM$36,MATCH($N57&Q$2,Calculator!$A$6:$A$36,0),MATCH(Q$1&$O57,Calculator!$D$2:$CM$2,0)) -> 0.8715894404 | S57: 23 | T57: Natural Gas | U57: =INDEX(Calculator!$D$6:$CM$36,MATCH($S57&U$2,Calculator!$A$6:$A$36,0),MATCH(U$1&$T57,Calculator!$D$2:$CM$2,0)) -> 0.8413191943 | V57: =INDEX(Calculator!$D$6:$CM$36,MATCH($S57&V$2,Calculator!$A$6:$A$36,0),MATCH(V$1&$T57,Calculator!$D$2:$CM$2,0)) -> 0.9446129056 | AB57: 2 | AC57: Electricity | AD57: =INDEX(P57:V57,0, MATCH($AB$1,$P$1:$V$1,0)) -> 0.8715894404 | AF57: Electricity | AG57: 2 | AH57: 0.8715894404
N58: 3 | O58: Electricity | P58: =INDEX(Calculator!$D$6:$CM$36,MATCH($N58&P$2,Calculator!$A$6:$A$36,0),MATCH(P$1&$O58,Calculator!$D$2:$CM$2,0)) -> 0.8448304852 | Q58: =INDEX(Calculator!$D$6:$CM$36,MATCH($N58&Q$2,Calculator!$A$6:$A$36,0),MATCH(Q$1&$O58,Calculator!$D$2:$CM$2,0)) -> 0.8494677621 | S58: 24 | T58: Natural Gas | U58: =INDEX(Calculator!$D$6:$CM$36,MATCH($S58&U$2,Calculator!$A$6:$A$36,0),MATCH(U$1&$T58,Calculator!$D$2:$CM$2,0)) -> 0.8660605619 | V58: =INDEX(Calculator!$D$6:$CM$36,MATCH($S58&V$2,Calculator!$A$6:$A$36,0),MATCH(V$1&$T58,Calculator!$D$2:$CM$2,0)) -> 0.9684198217 | AB58: 3 | AC58: Electricity | AD58: =INDEX(P58:V58,0, MATCH($AB$1,$P$1:$V$1,0)) -> 0.8494677621 | AF58: Electricity | AG58: 3 | AH58: 0.8494677621
N59: 4 | O59: Electricity | P59: =INDEX(Calculator!$D$6:$CM$36,MATCH($N59&P$2,Calculator!$A$6:$A$36,0),MATCH(P$1&$O59,Calculator!$D$2:$CM$2,0)) -> 0.8399119326 | Q59: =INDEX(Calculator!$D$6:$CM$36,MATCH($N59&Q$2,Calculator!$A$6:$A$36,0),MATCH(Q$1&$O59,Calculator!$D$2:$CM$2,0)) -> 0.8451253084 | S59: 25 | T59: Natural Gas | U59: =INDEX(Calculator!$D$6:$CM$36,MATCH($S59&U$2,Calculator!$A$6:$A$36,0),MATCH(U$1&$T59,Calculator!$D$2:$CM$2,0)) -> 0.8651148899 | V59: =INDEX(Calculator!$D$6:$CM$36,MATCH($S59&V$2,Calculator!$A$6:$A$36,0),MATCH(V$1&$T59,Calculator!$D$2:$CM$2,0)) -> 0.9706264483 | AB59: 4 | AC59: Electricity | AD59: =INDEX(P59:V59,0, MATCH($AB$1,$P$1:$V$1,0)) -> 0.8451253084 | AF59: Electricity | AG59: 4 | AH59: 0.8451253084
N60: 5 | O60: Electricity | P60: =INDEX(Calculator!$D$6:$CM$36,MATCH($N60&P$2,Calculator!$A$6:$A$36,0),MATCH(P$1&$O60,Calculator!$D$2:$CM$2,0)) -> 0.8378340953 | Q60: =INDEX(Calculator!$D$6:$CM$36,MATCH($N60&Q$2,Calculator!$A$6:$A$36,0),MATCH(Q$1&$O60,Calculator!$D$2:$CM$2,0)) -> 0.8456451695 | S60: 26 | T60: Natural Gas | U60: =INDEX(Calculator!$D$6:$CM$36,MATCH($S60&U$2,Calculator!$A$6:$A$36,0),MATCH(U$1&$T60,Calculator!$D$2:$CM$2,0)) -> 0.8648219644 | V60: =INDEX(Calculator!$D$6:$CM$36,MATCH($S60&V$2,Calculator!$A$6:$A$36,0),MATCH(V$1&$T60,Calculator!$D$2:$CM$2,0)) -> 0.9733819709 | AB60: 5 | AC60: Electricity | AD60: =INDEX(P60:V60,0, MATCH($AB$1,$P$1:$V$1,0)) -> 0.8456451695 | AF60: Electricity | AG60: 5 | AH60: 0.8456451695
N61: 6 | O61: Electricity | P61: =INDEX(Calculator!$D$6:$CM$36,MATCH($N61&P$2,Calculator!$A$6:$A$36,0),MATCH(P$1&$O61,Calculator!$D$2:$CM$2,0)) -> 0.8383374359 | Q61: =INDEX(Calculator!$D$6:$CM$36,MATCH($N61&Q$2,Calculator!$A$6:$A$36,0),MATCH(Q$1&$O61,Calculator!$D$2:$CM$2,0)) -> 0.847266718 | S61: 27 | T61: Natural Gas | U61: =INDEX(Calculator!$D$6:$CM$36,MATCH($S61&U$2,Calculator!$A$6:$A$36,0),MATCH(U$1&$T61,Calculator!$D$2:$CM$2,0)) -> 0.865422304 | V61: =INDEX(Calculator!$D$6:$CM$36,MATCH($S61&V$2,Calculator!$A$6:$A$36,0),MATCH(V$1&$T61,Calculator!$D$2:$CM$2,0)) -> 0.9798904865 | AB61: 6 | AC61: Electricity | AD61: =INDEX(P61:V61,0, MATCH($AB$1,$P$1:$V$1,0)) -> 0.847266718 | AF61: Electricity | AG61: 6 | AH61: 0.847266718
N62: 7 | O62: Electricity | P62: =INDEX(Calculator!$D$6:$CM$36,MATCH($N62&P$2,Calculator!$A$6:$A$36,0),MATCH(P$1&$O62,Calculator!$D$2:$CM$2,0)) -> 0.8436218384 | Q62: =INDEX(Calculator!$D$6:$CM$36,MATCH($N62&Q$2,Calculator!$A$6:$A$36,0),MATCH(Q$1&$O62,Calculator!$D$2:$CM$2,0)) -> 0.8507550074 | S62: 28 | T62: Natural Gas | U62: =INDEX(Calculator!$D$6:$CM$36,MATCH($S62&U$2,Calculator!$A$6:$A$36,0),MATCH(U$1&$T62,Calculator!$D$2:$CM$2,0)) -> 0.880610342 | V62: =INDEX(Calculator!$D$6:$CM$36,MATCH($S62&V$2,Calculator!$A$6:$A$36,0),MATCH(V$1&$T62,Calculator!$D$2:$CM$2,0)) -> 0.9956639861 | AB62: 7 | AC62: Electricity | AD62: =INDEX(P62:V62,0, MATCH($AB$1,$P$1:$V$1,0)) -> 0.8507550074 | AF62: Electricity | AG62: 7 | AH62: 0.8507550074
N63: 8 | O63: Electricity | P63: =INDEX(Calculator!$D$6:$CM$36,MATCH($N63&P$2,Calculator!$A$6:$A$36,0),MATCH(P$1&$O63,Calculator!$D$2:$CM$2,0)) -> 0.8523773014 | Q63: =INDEX(Calculator!$D$6:$CM$36,MATCH($N63&Q$2,Calculator!$A$6:$A$36,0),MATCH(Q$1&$O63,Calculator!$D$2:$CM$2,0)) -> 0.8578963815 | S63: 29 | T63: Natural Gas | U63: =INDEX(Calculator!$D$6:$CM$36,MATCH($S63&U$2,Calculator!$A$6:$A$36,0),MATCH(U$1&$T63,Calculator!$D$2:$CM$2,0)) -> 0.9010295449 | V63: =INDEX(Calculator!$D$6:$CM$36,MATCH($S63&V$2,Calculator!$A$6:$A$36,0),MATCH(V$1&$T63,Calculator!$D$2:$CM$2,0)) -> 1.01283454 | AB63: 8 | AC63: Electricity | AD63: =INDEX(P63:V63,0, MATCH($AB$1,$P$1:$V$1,0)) -> 0.8578963815 | AF63: Electricity | AG63: 8 | AH63: 0.8578963815
N64: 9 | O64: Electricity | P64: =INDEX(Calculator!$D$6:$CM$36,MATCH($N64&P$2,Calculator!$A$6:$A$36,0),MATCH(P$1&$O64,Calculator!$D$2:$CM$2,0)) -> 0.8630705929 | Q64: =INDEX(Calculator!$D$6:$CM$36,MATCH($N64&Q$2,Calculator!$A$6:$A$36,0),MATCH(Q$1&$O64,Calculator!$D$2:$CM$2,0)) -> 0.8673371921 | S64: 30 | T64: Natural Gas | U64: =INDEX(Calculator!$D$6:$CM$36,MATCH($S64&U$2,Calculator!$A$6:$A$36,0),MATCH(U$1&$T64,Calculator!$D$2:$CM$2,0)) -> 0.9219222191 | V64: =INDEX(Calculator!$D$6:$CM$36,MATCH($S64&V$2,Calculator!$A$6:$A$36,0),MATCH(V$1&$T64,Calculator!$D$2:$CM$2,0)) -> 1.030403237 | AB64: 9 | AC64: Electricity | AD64: =INDEX(P64:V64,0, MATCH($AB$1,$P$1:$V$1,0)) -> 0.8673371921 | AF64: Electricity | AG64: 9 | AH64: 0.8673371921
N65: 10 | O65: Electricity | P65: =INDEX(Calculator!$D$6:$CM$36,MATCH($N65&P$2,Calculator!$A$6:$A$36,0),MATCH(P$1&$O65,Calculator!$D$2:$CM$2,0)) -> 0.8743015768 | Q65: =INDEX(Calculator!$D$6:$CM$36,MATCH($N65&Q$2,Calculator!$A$6:$A$36,0),MATCH(Q$1&$O65,Calculator!$D$2:$CM$2,0)) -> 0.8772527164 | S65: 0 | T65: Propane | U65: =INDEX(Calculator!$D$6:$CM$36,MATCH($S65&U$2,Calculator!$A$6:$A$36,0),MATCH(U$1&$T65,Calculator!$D$2:$CM$2,0)) -> 1 | V65: =INDEX(Calculator!$D$6:$CM$36,MATCH($S65&V$2,Calculator!$A$6:$A$36,0),MATCH(V$1&$T65,Calculator!$D$2:$CM$2,0)) -> 1 | AB65: 10 | AC65: Electricity | AD65: =INDEX(P65:V65,0, MATCH($AB$1,$P$1:$V$1,0)) -> 0.8772527164 | AF65: Electricity | AG65: 10 | AH65: 0.8772527164
N66: 11 | O66: Electricity | P66: =INDEX(Calculator!$D$6:$CM$36,MATCH($N66&P$2,Calculator!$A$6:$A$36,0),MATCH(P$1&$O66,Calculator!$D$2:$CM$2,0)) -> 0.88463585 | Q66: =INDEX(Calculator!$D$6:$CM$36,MATCH($N66&Q$2,Calculator!$A$6:$A$36,0),MATCH(Q$1&$O66,Calculator!$D$2:$CM$2,0)) -> 0.8881423043 | S66: 1 | T66: Propane | U66: =INDEX(Calculator!$D$6:$CM$36,MATCH($S66&U$2,Calculator!$A$6:$A$36,0),MATCH(U$1&$T66,Calculator!$D$2:$CM$2,0)) -> 1.023024409 | V66: =INDEX(Calculator!$D$6:$CM$36,MATCH($S66&V$2,Calculator!$A$6:$A$36,0),MATCH(V$1&$T66,Calculator!$D$2:$CM$2,0)) -> 1.022554351 | AB66: 11 | AC66: Electricity | AD66: =INDEX(P66:V66,0, MATCH($AB$1,$P$1:$V$1,0)) -> 0.8881423043 | AF66: Electricity | AG66: 11 | AH66: 0.8881423043
N67: 12 | O67: Electricity | P67: =INDEX(Calculator!$D$6:$CM$36,MATCH($N67&P$2,Calculator!$A$6:$A$36,0),MATCH(P$1&$O67,Calculator!$D$2:$CM$2,0)) -> 0.8939065993 | Q67: =INDEX(Calculator!$D$6:$CM$36,MATCH($N67&Q$2,Calculator!$A$6:$A$36,0),MATCH(Q$1&$O67,Calculator!$D$2:$CM$2,0)) -> 0.8939728657 | S67: 2 | T67: Propane | U67: =INDEX(Calculator!$D$6:$CM$36,MATCH($S67&U$2,Calculator!$A$6:$A$36,0),MATCH(U$1&$T67,Calculator!$D$2:$CM$2,0)) -> 0.9984701686 | V67: =INDEX(Calculator!$D$6:$CM$36,MATCH($S67&V$2,Calculator!$A$6:$A$36,0),MATCH(V$1&$T67,Calculator!$D$2:$CM$2,0)) -> 1.002910735 | AB67: 12 | AC67: Electricity | AD67: =INDEX(P67:V67,0, MATCH($AB$1,$P$1:$V$1,0)) -> 0.8939728657 | AF67: Electricity | AG67: 12 | AH67: 0.8939728657
N68: 13 | O68: Electricity | P68: =INDEX(Calculator!$D$6:$CM$36,MATCH($N68&P$2,Calculator!$A$6:$A$36,0),MATCH(P$1&$O68,Calculator!$D$2:$CM$2,0)) -> 0.9014841386 | Q68: =INDEX(Calculator!$D$6:$CM$36,MATCH($N68&Q$2,Calculator!$A$6:$A$36,0),MATCH(Q$1&$O68,Calculator!$D$2:$CM$2,0)) -> 0.8994857021 | S68: 3 | T68: Propane | U68: =INDEX(Calculator!$D$6:$CM$36,MATCH($S68&U$2,Calculator!$A$6:$A$36,0),MATCH(U$1&$T68,Calculator!$D$2:$CM$2,0)) -> 0.9630483558 | V68: =INDEX(Calculator!$D$6:$CM$36,MATCH($S68&V$2,Calculator!$A$6:$A$36,0),MATCH(V$1&$T68,Calculator!$D$2:$CM$2,0)) -> 0.9736285631 | AB68: 13 | AC68: Electricity | AD68: =INDEX(P68:V68,0, MATCH($AB$1,$P$1:$V$1,0)) -> 0.8994857021 | AF68: =AC68 -> Electricity | AG68: =AB68 -> 13 | AH68: 0.8994857021
N69: 14 | O69: Electricity | P69: =INDEX(Calculator!$D$6:$CM$36,MATCH($N69&P$2,Calculator!$A$6:$A$36,0),MATCH(P$1&$O69,Calculator!$D$2:$CM$2,0)) -> 0.9108216565 | Q69: =INDEX(Calculator!$D$6:$CM$36,MATCH($N69&Q$2,Calculator!$A$6:$A$36,0),MATCH(Q$1&$O69,Calculator!$D$2:$CM$2,0)) -> 0.9077295378 | S69: 4 | T69: Propane | U69: =INDEX(Calculator!$D$6:$CM$36,MATCH($S69&U$2,Calculator!$A$6:$A$36,0),MATCH(U$1&$T69,Calculator!$D$2:$CM$2,0)) -> 0.9326200316 | V69: =INDEX(Calculator!$D$6:$CM$36,MATCH($S69&V$2,Calculator!$A$6:$A$36,0),MATCH(V$1&$T69,Calculator!$D$2:$CM$2,0)) -> 0.9487751649 | AB69: 14 | AC69: Electricity | AD69: =INDEX(P69:V69,0, MATCH($AB$1,$P$1:$V$1,0)) -> 0.9077295378 | AF69: Electricity | AG69: 14 | AH69: 0.9077295378
N70: 15 | O70: Electricity | P70: =INDEX(Calculator!$D$6:$CM$36,MATCH($N70&P$2,Calculator!$A$6:$A$36,0),MATCH(P$1&$O70,Calculator!$D$2:$CM$2,0)) -> 0.9220333192 | Q70: =INDEX(Calculator!$D$6:$CM$36,MATCH($N70&Q$2,Calculator!$A$6:$A$36,0),MATCH(Q$1&$O70,Calculator!$D$2:$CM$2,0)) -> 0.9182165855 | S70: 5 | T70: Propane | U70: =INDEX(Calculator!$D$6:$CM$36,MATCH($S70&U$2,Calculator!$A$6:$A$36,0),MATCH(U$1&$T70,Calculator!$D$2:$CM$2,0)) -> 0.9131031704 | V70: =INDEX(Calculator!$D$6:$CM$36,MATCH($S70&V$2,Calculator!$A$6:$A$36,0),MATCH(V$1&$T70,Calculator!$D$2:$CM$2,0)) -> 0.935733028 | AB70: 15 | AC70: Electricity | AD70: =INDEX(P70:V70,0, MATCH($AB$1,$P$1:$V$1,0)) -> 0.9182165855 | AF70: Electricity | AG70: 15 | AH70: 0.9182165855
N71: 16 | O71: Electricity | P71: =INDEX(Calculator!$D$6:$CM$36,MATCH($N71&P$2,Calculator!$A$6:$A$36,0),MATCH(P$1&$O71,Calculator!$D$2:$CM$2,0)) -> 0.9318276423 | Q71: =INDEX(Calculator!$D$6:$CM$36,MATCH($N71&Q$2,Calculator!$A$6:$A$36,0),MATCH(Q$1&$O71,Calculator!$D$2:$CM$2,0)) -> 0.9274523034 | S71: 6 | T71: Propane | U71: =INDEX(Calculator!$D$6:$CM$36,MATCH($S71&U$2,Calculator!$A$6:$A$36,0),MATCH(U$1&$T71,Calculator!$D$2:$CM$2,0)) -> 0.9042516755 | V71: =INDEX(Calculator!$D$6:$CM$36,MATCH($S71&V$2,Calculator!$A$6:$A$36,0),MATCH(V$1&$T71,Calculator!$D$2:$CM$2,0)) -> 0.9300163297 | AB71: 16 | AC71: Electricity | AD71: =INDEX(P71:V71,0, MATCH($AB$1,$P$1:$V$1,0)) -> 0.9274523034 | AF71: Electricity | AG71: 16 | AH71: 0.9274523034
N72: 17 | O72: Electricity | P72: =INDEX(Calculator!$D$6:$CM$36,MATCH($N72&P$2,Calculator!$A$6:$A$36,0),MATCH(P$1&$O72,Calculator!$D$2:$CM$2,0)) -> 0.9398949639 | Q72: =INDEX(Calculator!$D$6:$CM$36,MATCH($N72&Q$2,Calculator!$A$6:$A$36,0),MATCH(Q$1&$O72,Calculator!$D$2:$CM$2,0)) -> 0.935751881 | S72: 7 | T72: Propane | U72: =INDEX(Calculator!$D$6:$CM$36,MATCH($S72&U$2,Calculator!$A$6:$A$36,0),MATCH(U$1&$T72,Calculator!$D$2:$CM$2,0)) -> 0.9047246716 | V72: =INDEX(Calculator!$D$6:$CM$36,MATCH($S72&V$2,Calculator!$A$6:$A$36,0),MATCH(V$1&$T72,Calculator!$D$2:$CM$2,0)) -> 0.9325696132 | AB72: 17 | AC72: Electricity | AD72: =INDEX(P72:V72,0, MATCH($AB$1,$P$1:$V$1,0)) -> 0.935751881 | AF72: Electricity | AG72: 17 | AH72: 0.935751881
N73: 18 | O73: Electricity | P73: =INDEX(Calculator!$D$6:$CM$36,MATCH($N73&P$2,Calculator!$A$6:$A$36,0),MATCH(P$1&$O73,Calculator!$D$2:$CM$2,0)) -> 0.9490738073 | Q73: =INDEX(Calculator!$D$6:$CM$36,MATCH($N73&Q$2,Calculator!$A$6:$A$36,0),MATCH(Q$1&$O73,Calculator!$D$2:$CM$2,0)) -> 0.9438556274 | S73: 8 | T73: Propane | U73: =INDEX(Calculator!$D$6:$CM$36,MATCH($S73&U$2,Calculator!$A$6:$A$36,0),MATCH(U$1&$T73,Calculator!$D$2:$CM$2,0)) -> 0.9122609254 | V73: =INDEX(Calculator!$D$6:$CM$36,MATCH($S73&V$2,Calculator!$A$6:$A$36,0),MATCH(V$1&$T73,Calculator!$D$2:$CM$2,0)) -> 0.9413873687 | AB73: 18 | AC73: Electricity | AD73: =INDEX(P73:V73,0, MATCH($AB$1,$P$1:$V$1,0)) -> 0.9438556274 | AF73: Electricity | AG73: 18 | AH73: 0.9438556274
N74: 19 | O74: Electricity | P74: =INDEX(Calculator!$D$6:$CM$36,MATCH($N74&P$2,Calculator!$A$6:$A$36,0),MATCH(P$1&$O74,Calculator!$D$2:$CM$2,0)) -> 0.9569904547 | Q74: =INDEX(Calculator!$D$6:$CM$36,MATCH($N74&Q$2,Calculator!$A$6:$A$36,0),MATCH(Q$1&$O74,Calculator!$D$2:$CM$2,0)) -> 0.9520221789 | S74: 9 | T74: Propane | U74: =INDEX(Calculator!$D$6:$CM$36,MATCH($S74&U$2,Calculator!$A$6:$A$36,0),MATCH(U$1&$T74,Calculator!$D$2:$CM$2,0)) -> 0.925620419 | V74: =INDEX(Calculator!$D$6:$CM$36,MATCH($S74&V$2,Calculator!$A$6:$A$36,0),MATCH(V$1&$T74,Calculator!$D$2:$CM$2,0)) -> 0.9553698122 | AB74: 19 | AC74: Electricity | AD74: =INDEX(P74:V74,0, MATCH($AB$1,$P$1:$V$1,0)) -> 0.9520221789 | AF74: Electricity | AG74: 19 | AH74: 0.9520221789
N75: 20 | O75: Electricity | P75: =INDEX(Calculator!$D$6:$CM$36,MATCH($N75&P$2,Calculator!$A$6:$A$36,0),MATCH(P$1&$O75,Calculator!$D$2:$CM$2,0)) -> 0.9645589342 | Q75: =INDEX(Calculator!$D$6:$CM$36,MATCH($N75&Q$2,Calculator!$A$6:$A$36,0),MATCH(Q$1&$O75,Calculator!$D$2:$CM$2,0)) -> 0.9592927612 | S75: 10 | T75: Propane | U75: =INDEX(Calculator!$D$6:$CM$36,MATCH($S75&U$2,Calculator!$A$6:$A$36,0),MATCH(U$1&$T75,Calculator!$D$2:$CM$2,0)) -> 0.9434256121 | V75: =INDEX(Calculator!$D$6:$CM$36,MATCH($S75&V$2,Calculator!$A$6:$A$36,0),MATCH(V$1&$T75,Calculator!$D$2:$CM$2,0)) -> 0.9732951899 | AB75: 20 | AC75: Electricity | AD75: =INDEX(P75:V75,0, MATCH($AB$1,$P$1:$V$1,0)) -> 0.9592927612 | AF75: Electricity | AG75: 20 | AH75: =AD75 -> 0.9592927612
N76: 21 | O76: Electricity | P76: =INDEX(Calculator!$D$6:$CM$36,MATCH($N76&P$2,Calculator!$A$6:$A$36,0),MATCH(P$1&$O76,Calculator!$D$2:$CM$2,0)) -> 0.9734056904 | Q76: =INDEX(Calculator!$D$6:$CM$36,MATCH($N76&Q$2,Calculator!$A$6:$A$36,0),MATCH(Q$1&$O76,Calculator!$D$2:$CM$2,0)) -> 0.9688690616 | S76: 11 | T76: Propane | U76: =INDEX(Calculator!$D$6:$CM$36,MATCH($S76&U$2,Calculator!$A$6:$A$36,0),MATCH(U$1&$T76,Calculator!$D$2:$CM$2,0)) -> 0.9622612611 | V76: =INDEX(Calculator!$D$6:$CM$36,MATCH($S76&V$2,Calculator!$A$6:$A$36,0),MATCH(V$1&$T76,Calculator!$D$2:$CM$2,0)) -> 0.9921344889 | AB76: 21 | AC76: Electricity | AD76: =INDEX(P76:V76,0, MATCH($AB$1,$P$1:$V$1,0)) -> 0.9688690616 | AF76: Electricity | AG76: 21 | AH76: 0.9688690616
N77: 22 | O77: Electricity | P77: =INDEX(Calculator!$D$6:$CM$36,MATCH($N77&P$2,Calculator!$A$6:$A$36,0),MATCH(P$1&$O77,Calculator!$D$2:$CM$2,0)) -> 0.982599609 | Q77: =INDEX(Calculator!$D$6:$CM$36,MATCH($N77&Q$2,Calculator!$A$6:$A$36,0),MATCH(Q$1&$O77,Calculator!$D$2:$CM$2,0)) -> 0.9769861174 | S77: 12 | T77: Propane | U77: =INDEX(Calculator!$D$6:$CM$36,MATCH($S77&U$2,Calculator!$A$6:$A$36,0),MATCH(U$1&$T77,Calculator!$D$2:$CM$2,0)) -> 0.9782850635 | V77: =INDEX(Calculator!$D$6:$CM$36,MATCH($S77&V$2,Calculator!$A$6:$A$36,0),MATCH(V$1&$T77,Calculator!$D$2:$CM$2,0)) -> 1.008479934 | AB77: 22 | AC77: Electricity | AD77: =INDEX(P77:V77,0, MATCH($AB$1,$P$1:$V$1,0)) -> 0.9769861174 | AF77: Electricity | AG77: 22 | AH77: 0.9769861174
N78: 23 | O78: Electricity | P78: =INDEX(Calculator!$D$6:$CM$36,MATCH($N78&P$2,Calculator!$A$6:$A$36,0),MATCH(P$1&$O78,Calculator!$D$2:$CM$2,0)) -> 0.9908364038 | Q78: =INDEX(Calculator!$D$6:$CM$36,MATCH($N78&Q$2,Calculator!$A$6:$A$36,0),MATCH(Q$1&$O78,Calculator!$D$2:$CM$2,0)) -> 0.9842581552 | S78: 13 | T78: Propane | U78: =INDEX(Calculator!$D$6:$CM$36,MATCH($S78&U$2,Calculator!$A$6:$A$36,0),MATCH(U$1&$T78,Calculator!$D$2:$CM$2,0)) -> 0.9905125804 | V78: =INDEX(Calculator!$D$6:$CM$36,MATCH($S78&V$2,Calculator!$A$6:$A$36,0),MATCH(V$1&$T78,Calculator!$D$2:$CM$2,0)) -> 1.021458416 | AB78: 23 | AC78: Electricity | AD78: =INDEX(P78:V78,0, MATCH($AB$1,$P$1:$V$1,0)) -> 0.9842581552 | AF78: Electricity | AG78: 23 | AH78: 0.9842581552
N79: 24 | O79: Electricity | P79: =INDEX(Calculator!$D$6:$CM$36,MATCH($N79&P$2,Calculator!$A$6:$A$36,0),MATCH(P$1&$O79,Calculator!$D$2:$CM$2,0)) -> 6.453667422 | Q79: =INDEX(Calculator!$D$6:$CM$36,MATCH($N79&Q$2,Calculator!$A$6:$A$36,0),MATCH(Q$1&$O79,Calculator!$D$2:$CM$2,0)) -> 6.40029355 | S79: 14 | T79: Propane | U79: =INDEX(Calculator!$D$6:$CM$36,MATCH($S79&U$2,Calculator!$A$6:$A$36,0),MATCH(U$1&$T79,Calculator!$D$2:$CM$2,0)) -> 1.000871244 | V79: =INDEX(Calculator!$D$6:$CM$36,MATCH($S79&V$2,Calculator!$A$6:$A$36,0),MATCH(V$1&$T79,Calculator!$D$2:$CM$2,0)) -> 1.034913173 | AB79: 24 | AC79: Electricity | AD79: =INDEX(P79:V79,0, MATCH($AB$1,$P$1:$V$1,0)) -> 6.40029355 | AF79: Electricity | AG79: 24 | AH79: 6.40029355
N80: 25 | O80: Electricity | P80: =INDEX(Calculator!$D$6:$CM$36,MATCH($N80&P$2,Calculator!$A$6:$A$36,0),MATCH(P$1&$O80,Calculator!$D$2:$CM$2,0)) -> -4.621830142 | Q80: =INDEX(Calculator!$D$6:$CM$36,MATCH($N80&Q$2,Calculator!$A$6:$A$36,0),MATCH(Q$1&$O80,Calculator!$D$2:$CM$2,0)) -> -4.581854473 | S80: 15 | T80: Propane | U80: =INDEX(Calculator!$D$6:$CM$36,MATCH($S80&U$2,Calculator!$A$6:$A$36,0),MATCH(U$1&$T80,Calculator!$D$2:$CM$2,0)) -> 1.013117476 | V80: =INDEX(Calculator!$D$6:$CM$36,MATCH($S80&V$2,Calculator!$A$6:$A$36,0),MATCH(V$1&$T80,Calculator!$D$2:$CM$2,0)) -> 1.047908254 | AB80: 25 | AC80: Electricity | AD80: =INDEX(P80:V80,0, MATCH($AB$1,$P$1:$V$1,0)) -> -4.581854473 | AF80: Electricity | AG80: 25 | AH80: -4.581854473
N81: 0 | O81: Propane | P81: =INDEX(Calculator!$D$6:$CM$36,MATCH($N81&P$2,Calculator!$A$6:$A$36,0),MATCH(P$1&$O81,Calculator!$D$2:$CM$2,0)) -> 1 | Q81: =INDEX(Calculator!$D$6:$CM$36,MATCH($N81&Q$2,Calculator!$A$6:$A$36,0),MATCH(Q$1&$O81,Calculator!$D$2:$CM$2,0)) -> 1 | S81: 16 | T81: Propane | U81: =INDEX(Calculator!$D$6:$CM$36,MATCH($S81&U$2,Calculator!$A$6:$A$36,0),MATCH(U$1&$T81,Calculator!$D$2:$CM$2,0)) -> 1.021084378 | V81: =INDEX(Calculator!$D$6:$CM$36,MATCH($S81&V$2,Calculator!$A$6:$A$36,0),MATCH(V$1&$T81,Calculator!$D$2:$CM$2,0)) -> 1.057107956 | AB81: 0 | AC81: Propane | AD81: =INDEX(P81:V81,0, MATCH($AB$1,$P$1:$V$1,0)) -> 1 | AF81: Propane | AG81: 0 | AH81: 1
N82: 1 | O82: Propane | P82: =INDEX(Calculator!$D$6:$CM$36,MATCH($N82&P$2,Calculator!$A$6:$A$36,0),MATCH(P$1&$O82,Calculator!$D$2:$CM$2,0)) -> 1.023024409 | Q82: =INDEX(Calculator!$D$6:$CM$36,MATCH($N82&Q$2,Calculator!$A$6:$A$36,0),MATCH(Q$1&$O82,Calculator!$D$2:$CM$2,0)) -> 1.022554351 | S82: 17 | T82: Propane | U82: =INDEX(Calculator!$D$6:$CM$36,MATCH($S82&U$2,Calculator!$A$6:$A$36,0),MATCH(U$1&$T82,Calculator!$D$2:$CM$2,0)) -> 1.030353738 | V82: =INDEX(Calculator!$D$6:$CM$36,MATCH($S82&V$2,Calculator!$A$6:$A$36,0),MATCH(V$1&$T82,Calculator!$D$2:$CM$2,0)) -> 1.06746282 | AB82: 1 | AC82: Propane | AD82: =INDEX(P82:V82,0, MATCH($AB$1,$P$1:$V$1,0)) -> 1.022554351 | AF82: Propane | AG82: 1 | AH82: 1.022554351
N83: 2 | O83: Propane | P83: =INDEX(Calculator!$D$6:$CM$36,MATCH($N83&P$2,Calculator!$A$6:$A$36,0),MATCH(P$1&$O83,Calculator!$D$2:$CM$2,0)) -> 0.9984701686 | Q83: =INDEX(Calculator!$D$6:$CM$36,MATCH($N83&Q$2,Calculator!$A$6:$A$36,0),MATCH(Q$1&$O83,Calculator!$D$2:$CM$2,0)) -> 1.002910735 | S83: 18 | T83: Propane | U83: =INDEX(Calculator!$D$6:$CM$36,MATCH($S83&U$2,Calculator!$A$6:$A$36,0),MATCH(U$1&$T83,Calculator!$D$2:$CM$2,0)) -> 1.040474277 | V83: =INDEX(Calculator!$D$6:$CM$36,MATCH($S83&V$2,Calculator!$A$6:$A$36,0),MATCH(V$1&$T83,Calculator!$D$2:$CM$2,0)) -> 1.078572603 | AB83: 2 | AC83: Propane | AD83: =INDEX(P83:V83,0, MATCH($AB$1,$P$1:$V$1,0)) -> 1.002910735 | AF83: Propane | AG83: 2 | AH83: 1.002910735
N84: 3 | O84: Propane | P84: =INDEX(Calculator!$D$6:$CM$36,MATCH($N84&P$2,Calculator!$A$6:$A$36,0),MATCH(P$1&$O84,Calculator!$D$2:$CM$2,0)) -> 0.9630483558 | Q84: =INDEX(Calculator!$D$6:$CM$36,MATCH($N84&Q$2,Calculator!$A$6:$A$36,0),MATCH(Q$1&$O84,Calculator!$D$2:$CM$2,0)) -> 0.9736285631 | S84: 19 | T84: Propane | U84: =INDEX(Calculator!$D$6:$CM$36,MATCH($S84&U$2,Calculator!$A$6:$A$36,0),MATCH(U$1&$T84,Calculator!$D$2:$CM$2,0)) -> 1.048351647 | V84: =INDEX(Calculator!$D$6:$CM$36,MATCH($S84&V$2,Calculator!$A$6:$A$36,0),MATCH(V$1&$T84,Calculator!$D$2:$CM$2,0)) -> 1.087692898 | AB84: 3 | AC84: Propane | AD84: =INDEX(P84:V84,0, MATCH($AB$1,$P$1:$V$1,0)) -> 0.9736285631 | AF84: Propane | AG84: 3 | AH84: 0.9736285631
N85: 4 | O85: Propane | P85: =INDEX(Calculator!$D$6:$CM$36,MATCH($N85&P$2,Calculator!$A$6:$A$36,0),MATCH(P$1&$O85,Calculator!$D$2:$CM$2,0)) -> 0.9326200316 | Q85: =INDEX(Calculator!$D$6:$CM$36,MATCH($N85&Q$2,Calculator!$A$6:$A$36,0),MATCH(Q$1&$O85,Calculator!$D$2:$CM$2,0)) -> 0.9487751649 | S85: 20 | T85: Propane | U85: =INDEX(Calculator!$D$6:$CM$36,MATCH($S85&U$2,Calculator!$A$6:$A$36,0),MATCH(U$1&$T85,Calculator!$D$2:$CM$2,0)) -> 1.052849134 | V85: =INDEX(Calculator!$D$6:$CM$36,MATCH($S85&V$2,Calculator!$A$6:$A$36,0),MATCH(V$1&$T85,Calculator!$D$2:$CM$2,0)) -> 1.093815541 | AB85: 4 | AC85: Propane | AD85: =INDEX(P85:V85,0, MATCH($AB$1,$P$1:$V$1,0)) -> 0.9487751649 | AF85: Propane | AG85: 4 | AH85: 0.9487751649
N86: 5 | O86: Propane | P86: =INDEX(Calculator!$D$6:$CM$36,MATCH($N86&P$2,Calculator!$A$6:$A$36,0),MATCH(P$1&$O86,Calculator!$D$2:$CM$2,0)) -> 0.9131031704 | Q86: =INDEX(Calculator!$D$6:$CM$36,MATCH($N86&Q$2,Calculator!$A$6:$A$36,0),MATCH(Q$1&$O86,Calculator!$D$2:$CM$2,0)) -> 0.935733028 | S86: 21 | T86: Propane | U86: =INDEX(Calculator!$D$6:$CM$36,MATCH($S86&U$2,Calculator!$A$6:$A$36,0),MATCH(U$1&$T86,Calculator!$D$2:$CM$2,0)) -> 1.054370683 | V86: =INDEX(Calculator!$D$6:$CM$36,MATCH($S86&V$2,Calculator!$A$6:$A$36,0),MATCH(V$1&$T86,Calculator!$D$2:$CM$2,0)) -> 1.099432576 | AB86: 5 | AC86: Propane | AD86: =INDEX(P86:V86,0, MATCH($AB$1,$P$1:$V$1,0)) -> 0.935733028 | AF86: Propane | AG86: 5 | AH86: 0.935733028
N87: 6 | O87: Propane | P87: =INDEX(Calculator!$D$6:$CM$36,MATCH($N87&P$2,Calculator!$A$6:$A$36,0),MATCH(P$1&$O87,Calculator!$D$2:$CM$2,0)) -> 0.9042516755 | Q87: =INDEX(Calculator!$D$6:$CM$36,MATCH($N87&Q$2,Calculator!$A$6:$A$36,0),MATCH(Q$1&$O87,Calculator!$D$2:$CM$2,0)) -> 0.9300163297 | S87: 22 | T87: Propane | U87: =INDEX(Calculator!$D$6:$CM$36,MATCH($S87&U$2,Calculator!$A$6:$A$36,0),MATCH(U$1&$T87,Calculator!$D$2:$CM$2,0)) -> 1.057336185 | V87: =INDEX(Calculator!$D$6:$CM$36,MATCH($S87&V$2,Calculator!$A$6:$A$36,0),MATCH(V$1&$T87,Calculator!$D$2:$CM$2,0)) -> 1.104196487 | AB87: 6 | AC87: Propane | AD87: =INDEX(P87:V87,0, MATCH($AB$1,$P$1:$V$1,0)) -> 0.9300163297 | AF87: Propane | AG87: 6 | AH87: 0.9300163297
N88: 7 | O88: Propane | P88: =INDEX(Calculator!$D$6:$CM$36,MATCH($N88&P$2,Calculator!$A$6:$A$36,0),MATCH(P$1&$O88,Calculator!$D$2:$CM$2,0)) -> 0.9047246716 | Q88: =INDEX(Calculator!$D$6:$CM$36,MATCH($N88&Q$2,Calculator!$A$6:$A$36,0),MATCH(Q$1&$O88,Calculator!$D$2:$CM$2,0)) -> 0.9325696132 | S88: 23 | T88: Propane | U88: =INDEX(Calculator!$D$6:$CM$36,MATCH($S88&U$2,Calculator!$A$6:$A$36,0),MATCH(U$1&$T88,Calculator!$D$2:$CM$2,0)) -> 1.084908419 | V88: =INDEX(Calculator!$D$6:$CM$36,MATCH($S88&V$2,Calculator!$A$6:$A$36,0),MATCH(V$1&$T88,Calculator!$D$2:$CM$2,0)) -> 1.130784348 | AB88: 7 | AC88: Propane | AD88: =INDEX(P88:V88,0, MATCH($AB$1,$P$1:$V$1,0)) -> 0.9325696132 | AF88: Propane | AG88: 7 | AH88: 0.9325696132
N89: 8 | O89: Propane | P89: =INDEX(Calculator!$D$6:$CM$36,MATCH($N89&P$2,Calculator!$A$6:$A$36,0),MATCH(P$1&$O89,Calculator!$D$2:$CM$2,0)) -> 0.9122609254 | Q89: =INDEX(Calculator!$D$6:$CM$36,MATCH($N89&Q$2,Calculator!$A$6:$A$36,0),MATCH(Q$1&$O89,Calculator!$D$2:$CM$2,0)) -> 0.9413873687 | S89: 24 | T89: Propane | U89: =INDEX(Calculator!$D$6:$CM$36,MATCH($S89&U$2,Calculator!$A$6:$A$36,0),MATCH(U$1&$T89,Calculator!$D$2:$CM$2,0)) -> 1.094593514 | V89: =INDEX(Calculator!$D$6:$CM$36,MATCH($S89&V$2,Calculator!$A$6:$A$36,0),MATCH(V$1&$T89,Calculator!$D$2:$CM$2,0)) -> 1.141507931 | AB89: 8 | AC89: Propane | AD89: =INDEX(P89:V89,0, MATCH($AB$1,$P$1:$V$1,0)) -> 0.9413873687 | AF89: Propane | AG89: 8 | AH89: 0.9413873687
N90: 9 | O90: Propane | P90: =INDEX(Calculator!$D$6:$CM$36,MATCH($N90&P$2,Calculator!$A$6:$A$36,0),MATCH(P$1&$O90,Calculator!$D$2:$CM$2,0)) -> 0.925620419 | Q90: =INDEX(Calculator!$D$6:$CM$36,MATCH($N90&Q$2,Calculator!$A$6:$A$36,0),MATCH(Q$1&$O90,Calculator!$D$2:$CM$2,0)) -> 0.9553698122 | S90: 25 | T90: Propane | U90: =INDEX(Calculator!$D$6:$CM$36,MATCH($S90&U$2,Calculator!$A$6:$A$36,0),MATCH(U$1&$T90,Calculator!$D$2:$CM$2,0)) -> 1.09663891 | V90: =INDEX(Calculator!$D$6:$CM$36,MATCH($S90&V$2,Calculator!$A$6:$A$36,0),MATCH(V$1&$T90,Calculator!$D$2:$CM$2,0)) -> 1.145455791 | AB90: 9 | AC90: Propane | AD90: =INDEX(P90:V90,0, MATCH($AB$1,$P$1:$V$1,0)) -> 0.9553698122 | AF90: Propane | AG90: 9 | AH90: 0.9553698122
N91: 10 | O91: Propane | P91: =INDEX(Calculator!$D$6:$CM$36,MATCH($N91&P$2,Calculator!$A$6:$A$36,0),MATCH(P$1&$O91,Calculator!$D$2:$CM$2,0)) -> 0.9434256121 | Q91: =INDEX(Calculator!$D$6:$CM$36,MATCH($N91&Q$2,Calculator!$A$6:$A$36,0),MATCH(Q$1&$O91,Calculator!$D$2:$CM$2,0)) -> 0.9732951899 | S91: 26 | T91: Propane | U91: =INDEX(Calculator!$D$6:$CM$36,MATCH($S91&U$2,Calculator!$A$6:$A$36,0),MATCH(U$1&$T91,Calculator!$D$2:$CM$2,0)) -> 1.097800732 | V91: =INDEX(Calculator!$D$6:$CM$36,MATCH($S91&V$2,Calculator!$A$6:$A$36,0),MATCH(V$1&$T91,Calculator!$D$2:$CM$2,0)) -> 1.148620002 | AB91: 10 | AC91: Propane | AD91: =INDEX(P91:V91,0, MATCH($AB$1,$P$1:$V$1,0)) -> 0.9732951899 | AF91: Propane | AG91: 10 | AH91: 0.9732951899
N92: 11 | O92: Propane | P92: =INDEX(Calculator!$D$6:$CM$36,MATCH($N92&P$2,Calculator!$A$6:$A$36,0),MATCH(P$1&$O92,Calculator!$D$2:$CM$2,0)) -> 0.9622612611 | Q92: =INDEX(Calculator!$D$6:$CM$36,MATCH($N92&Q$2,Calculator!$A$6:$A$36,0),MATCH(Q$1&$O92,Calculator!$D$2:$CM$2,0)) -> 0.9921344889 | S92: 27 | T92: Propane | U92: =INDEX(Calculator!$D$6:$CM$36,MATCH($S92&U$2,Calculator!$A$6:$A$36,0),MATCH(U$1&$T92,Calculator!$D$2:$CM$2,0)) -> 1.097543792 | V92: =INDEX(Calculator!$D$6:$CM$36,MATCH($S92&V$2,Calculator!$A$6:$A$36,0),MATCH(V$1&$T92,Calculator!$D$2:$CM$2,0)) -> 1.152659677 | AB92: 11 | AC92: Propane | AD92: =INDEX(P92:V92,0, MATCH($AB$1,$P$1:$V$1,0)) -> 0.9921344889 | AF92: Propane | AG92: 11 | AH92: 0.9921344889
N93: 12 | O93: Propane | P93: =INDEX(Calculator!$D$6:$CM$36,MATCH($N93&P$2,Calculator!$A$6:$A$36,0),MATCH(P$1&$O93,Calculator!$D$2:$CM$2,0)) -> 0.9782850635 | Q93: =INDEX(Calculator!$D$6:$CM$36,MATCH($N93&Q$2,Calculator!$A$6:$A$36,0),MATCH(Q$1&$O93,Calculator!$D$2:$CM$2,0)) -> 1.008479934 | S93: 28 | T93: Propane | U93: =INDEX(Calculator!$D$6:$CM$36,MATCH($S93&U$2,Calculator!$A$6:$A$36,0),MATCH(U$1&$T93,Calculator!$D$2:$CM$2,0)) -> 1.103461429 | V93: =INDEX(Calculator!$D$6:$CM$36,MATCH($S93&V$2,Calculator!$A$6:$A$36,0),MATCH(V$1&$T93,Calculator!$D$2:$CM$2,0)) -> 1.160041864 | AB93: 12 | AC93: Propane | AD93: =INDEX(P93:V93,0, MATCH($AB$1,$P$1:$V$1,0)) -> 1.008479934 | AF93: Propane | AG93: 12 | AH93: 1.008479934
N94: 13 | O94: Propane | P94: =INDEX(Calculator!$D$6:$CM$36,MATCH($N94&P$2,Calculator!$A$6:$A$36,0),MATCH(P$1&$O94,Calculator!$D$2:$CM$2,0)) -> 0.9905125804 | Q94: =INDEX(Calculator!$D$6:$CM$36,MATCH($N94&Q$2,Calculator!$A$6:$A$36,0),MATCH(Q$1&$O94,Calculator!$D$2:$CM$2,0)) -> 1.021458416 | S94: 29 | T94: Propane | U94: =INDEX(Calculator!$D$6:$CM$36,MATCH($S94&U$2,Calculator!$A$6:$A$36,0),MATCH(U$1&$T94,Calculator!$D$2:$CM$2,0)) -> 1.111599718 | V94: =INDEX(Calculator!$D$6:$CM$36,MATCH($S94&V$2,Calculator!$A$6:$A$36,0),MATCH(V$1&$T94,Calculator!$D$2:$CM$2,0)) -> 1.167259792 | AB94: 13 | AC94: Propane | AD94: =INDEX(P94:V94,0, MATCH($AB$1,$P$1:$V$1,0)) -> 1.021458416 | AF94: Propane | AG94: 13 | AH94: 1.021458416
N95: 14 | O95: Propane | P95: =INDEX(Calculator!$D$6:$CM$36,MATCH($N95&P$2,Calculator!$A$6:$A$36,0),MATCH(P$1&$O95,Calculator!$D$2:$CM$2,0)) -> 1.000871244 | Q95: =INDEX(Calculator!$D$6:$CM$36,MATCH($N95&Q$2,Calculator!$A$6:$A$36,0),MATCH(Q$1&$O95,Calculator!$D$2:$CM$2,0)) -> 1.034913173 | S95: 30 | T95: Propane | U95: =INDEX(Calculator!$D$6:$CM$36,MATCH($S95&U$2,Calculator!$A$6:$A$36,0),MATCH(U$1&$T95,Calculator!$D$2:$CM$2,0)) -> 1.119798029 | V95: =INDEX(Calculator!$D$6:$CM$36,MATCH($S95&V$2,Calculator!$A$6:$A$36,0),MATCH(V$1&$T95,Calculator!$D$2:$CM$2,0)) -> 1.174530954 | AB95: 14 | AC95: Propane | AD95: =INDEX(P95:V95,0, MATCH($AB$1,$P$1:$V$1,0)) -> 1.034913173 | AF95: Propane | AG95: 14 | AH95: 1.034913173
N96: 15 | O96: Propane | P96: =INDEX(Calculator!$D$6:$CM$36,MATCH($N96&P$2,Calculator!$A$6:$A$36,0),MATCH(P$1&$O96,Calculator!$D$2:$CM$2,0)) -> 1.013117476 | Q96: =INDEX(Calculator!$D$6:$CM$36,MATCH($N96&Q$2,Calculator!$A$6:$A$36,0),MATCH(Q$1&$O96,Calculator!$D$2:$CM$2,0)) -> 1.047908254 | S96: 0 | T96: Oil | U96: =INDEX(Calculator!$D$6:$CM$36,MATCH($S96&U$2,Calculator!$A$6:$A$36,0),MATCH(U$1&$T96,Calculator!$D$2:$CM$2,0)) -> 1 | V96: =INDEX(Calculator!$D$6:$CM$36,MATCH($S96&V$2,Calculator!$A$6:$A$36,0),MATCH(V$1&$T96,Calculator!$D$2:$CM$2,0)) -> 1 | AB96: 15 | AC96: Propane | AD96: =INDEX(P96:V96,0, MATCH($AB$1,$P$1:$V$1,0)) -> 1.047908254 | AF96: Propane | AG96: 15 | AH96: 1.047908254
N97: 16 | O97: Propane | P97: =INDEX(Calculator!$D$6:$CM$36,MATCH($N97&P$2,Calculator!$A$6:$A$36,0),MATCH(P$1&$O97,Calculator!$D$2:$CM$2,0)) -> 1.021084378 | Q97: =INDEX(Calculator!$D$6:$CM$36,MATCH($N97&Q$2,Calculator!$A$6:$A$36,0),MATCH(Q$1&$O97,Calculator!$D$2:$CM$2,0)) -> 1.057107956 | S97: 1 | T97: Oil | U97: =INDEX(Calculator!$D$6:$CM$36,MATCH($S97&U$2,Calculator!$A$6:$A$36,0),MATCH(U$1&$T97,Calculator!$D$2:$CM$2,0)) -> 0.959682826 | V97: =INDEX(Calculator!$D$6:$CM$36,MATCH($S97&V$2,Calculator!$A$6:$A$36,0),MATCH(V$1&$T97,Calculator!$D$2:$CM$2,0)) -> 0.9674409699 | AB97: 16 | AC97: Propane | AD97: =INDEX(P97:V97,0, MATCH($AB$1,$P$1:$V$1,0)) -> 1.057107956 | AF97: Propane | AG97: 16 | AH97: 1.057107956
N98: 17 | O98: Propane | P98: =INDEX(Calculator!$D$6:$CM$36,MATCH($N98&P$2,Calculator!$A$6:$A$36,0),MATCH(P$1&$O98,Calculator!$D$2:$CM$2,0)) -> 1.030353738 | Q98: =INDEX(Calculator!$D$6:$CM$36,MATCH($N98&Q$2,Calculator!$A$6:$A$36,0),MATCH(Q$1&$O98,Calculator!$D$2:$CM$2,0)) -> 1.06746282 | S98: 2 | T98: Oil | U98: =INDEX(Calculator!$D$6:$CM$36,MATCH($S98&U$2,Calculator!$A$6:$A$36,0),MATCH(U$1&$T98,Calculator!$D$2:$CM$2,0)) -> 0.9133089517 | V98: =INDEX(Calculator!$D$6:$CM$36,MATCH($S98&V$2,Calculator!$A$6:$A$36,0),MATCH(V$1&$T98,Calculator!$D$2:$CM$2,0)) -> 0.9296191684 | AB98: 17 | AC98: Propane | AD98: =INDEX(P98:V98,0, MATCH($AB$1,$P$1:$V$1,0)) -> 1.06746282 | AF98: Propane | AG98: 17 | AH98: 1.06746282
N99: 18 | O99: Propane | P99: =INDEX(Calculator!$D$6:$CM$36,MATCH($N99&P$2,Calculator!$A$6:$A$36,0),MATCH(P$1&$O99,Calculator!$D$2:$CM$2,0)) -> 1.040474277 | Q99: =INDEX(Calculator!$D$6:$CM$36,MATCH($N99&Q$2,Calculator!$A$6:$A$36,0),MATCH(Q$1&$O99,Calculator!$D$2:$CM$2,0)) -> 1.078572603 | S99: 3 | T99: Oil | U99: =INDEX(Calculator!$D$6:$CM$36,MATCH($S99&U$2,Calculator!$A$6:$A$36,0),MATCH(U$1&$T99,Calculator!$D$2:$CM$2,0)) -> 0.8896472382 | V99: =INDEX(Calculator!$D$6:$CM$36,MATCH($S99&V$2,Calculator!$A$6:$A$36,0),MATCH(V$1&$T99,Calculator!$D$2:$CM$2,0)) -> 0.9115323557 | AB99: 18 | AC99: Propane | AD99: =INDEX(P99:V99,0, MATCH($AB$1,$P$1:$V$1,0)) -> 1.078572603 | AF99: Propane | AG99: 18 | AH99: 1.078572603
N100: 19 | O100: Propane | P100: =INDEX(Calculator!$D$6:$CM$36,MATCH($N100&P$2,Calculator!$A$6:$A$36,0),MATCH(P$1&$O100,Calculator!$D$2:$CM$2,0)) -> 1.048351647 | Q100: =INDEX(Calculator!$D$6:$CM$36,MATCH($N100&Q$2,Calculator!$A$6:$A$36,0),MATCH(Q$1&$O100,Calculator!$D$2:$CM$2,0)) -> 1.087692898 | S100: 4 | T100: Oil | U100: =INDEX(Calculator!$D$6:$CM$36,MATCH($S100&U$2,Calculator!$A$6:$A$36,0),MATCH(U$1&$T100,Calculator!$D$2:$CM$2,0)) -> 0.8752658539 | V100: =INDEX(Calculator!$D$6:$CM$36,MATCH($S100&V$2,Calculator!$A$6:$A$36,0),MATCH(V$1&$T100,Calculator!$D$2:$CM$2,0)) -> 0.9015093814 | AB100: 19 | AC100: Propane | AD100: =INDEX(P100:V100,0, MATCH($AB$1,$P$1:$V$1,0)) -> 1.087692898 | AF100: Propane | AG100: 19 | AH100: 1.087692898
N101: 20 | O101: Propane | P101: =INDEX(Calculator!$D$6:$CM$36,MATCH($N101&P$2,Calculator!$A$6:$A$36,0),MATCH(P$1&$O101,Calculator!$D$2:$CM$2,0)) -> 1.052849134 | Q101: =INDEX(Calculator!$D$6:$CM$36,MATCH($N101&Q$2,Calculator!$A$6:$A$36,0),MATCH(Q$1&$O101,Calculator!$D$2:$CM$2,0)) -> 1.093815541 | S101: 5 | T101: Oil | U101: =INDEX(Calculator!$D$6:$CM$36,MATCH($S101&U$2,Calculator!$A$6:$A$36,0),MATCH(U$1&$T101,Calculator!$D$2:$CM$2,0)) -> 0.8623267979 | V101: =INDEX(Calculator!$D$6:$CM$36,MATCH($S101&V$2,Calculator!$A$6:$A$36,0),MATCH(V$1&$T101,Calculator!$D$2:$CM$2,0)) -> 0.89521293 | AB101: 20 | AC101: Propane | AD101: =INDEX(P101:V101,0, MATCH($AB$1,$P$1:$V$1,0)) -> 1.093815541 | AF101: Propane | AG101: 20 | AH101: 1.093815541
N102: 21 | O102: Propane | P102: =INDEX(Calculator!$D$6:$CM$36,MATCH($N102&P$2,Calculator!$A$6:$A$36,0),MATCH(P$1&$O102,Calculator!$D$2:$CM$2,0)) -> 1.054370683 | Q102: =INDEX(Calculator!$D$6:$CM$36,MATCH($N102&Q$2,Calculator!$A$6:$A$36,0),MATCH(Q$1&$O102,Calculator!$D$2:$CM$2,0)) -> 1.099432576 | S102: 6 | T102: Oil | U102: =INDEX(Calculator!$D$6:$CM$36,MATCH($S102&U$2,Calculator!$A$6:$A$36,0),MATCH(U$1&$T102,Calculator!$D$2:$CM$2,0)) -> 0.8609786136 | V102: =INDEX(Calculator!$D$6:$CM$36,MATCH($S102&V$2,Calculator!$A$6:$A$36,0),MATCH(V$1&$T102,Calculator!$D$2:$CM$2,0)) -> 0.8965147283 | AB102: 21 | AC102: Propane | AD102: =INDEX(P102:V102,0, MATCH($AB$1,$P$1:$V$1,0)) -> 1.099432576 | AF102: Propane | AG102: 21 | AH102: 1.099432576
N103: 22 | O103: Propane | P103: =INDEX(Calculator!$D$6:$CM$36,MATCH($N103&P$2,Calculator!$A$6:$A$36,0),MATCH(P$1&$O103,Calculator!$D$2:$CM$2,0)) -> 1.057336185 | Q103: =INDEX(Calculator!$D$6:$CM$36,MATCH($N103&Q$2,Calculator!$A$6:$A$36,0),MATCH(Q$1&$O103,Calculator!$D$2:$CM$2,0)) -> 1.104196487 | S103: 7 | T103: Oil | U103: =INDEX(Calculator!$D$6:$CM$36,MATCH($S103&U$2,Calculator!$A$6:$A$36,0),MATCH(U$1&$T103,Calculator!$D$2:$CM$2,0)) -> 0.8620555986 | V103: =INDEX(Calculator!$D$6:$CM$36,MATCH($S103&V$2,Calculator!$A$6:$A$36,0),MATCH(V$1&$T103,Calculator!$D$2:$CM$2,0)) -> 0.8999237981 | AB103: 22 | AC103: Propane | AD103: =INDEX(P103:V103,0, MATCH($AB$1,$P$1:$V$1,0)) -> 1.104196487 | AF103: Propane | AG103: 22 | AH103: 1.104196487
N104: 23 | O104: Propane | P104: =INDEX(Calculator!$D$6:$CM$36,MATCH($N104&P$2,Calculator!$A$6:$A$36,0),MATCH(P$1&$O104,Calculator!$D$2:$CM$2,0)) -> 1.084908419 | Q104: =INDEX(Calculator!$D$6:$CM$36,MATCH($N104&Q$2,Calculator!$A$6:$A$36,0),MATCH(Q$1&$O104,Calculator!$D$2:$CM$2,0)) -> 1.130784348 | S104: 8 | T104: Oil | U104: =INDEX(Calculator!$D$6:$CM$36,MATCH($S104&U$2,Calculator!$A$6:$A$36,0),MATCH(U$1&$T104,Calculator!$D$2:$CM$2,0)) -> 0.8654772643 | V104: =INDEX(Calculator!$D$6:$CM$36,MATCH($S104&V$2,Calculator!$A$6:$A$36,0),MATCH(V$1&$T104,Calculator!$D$2:$CM$2,0)) -> 0.9053702015 | AB104: 23 | AC104: Propane | AD104: =INDEX(P104:V104,0, MATCH($AB$1,$P$1:$V$1,0)) -> 1.130784348 | AF104: Propane | AG104: 23 | AH104: 1.130784348
N105: 24 | O105: Propane | P105: =INDEX(Calculator!$D$6:$CM$36,MATCH($N105&P$2,Calculator!$A$6:$A$36,0),MATCH(P$1&$O105,Calculator!$D$2:$CM$2,0)) -> 7.075582098 | Q105: =INDEX(Calculator!$D$6:$CM$36,MATCH($N105&Q$2,Calculator!$A$6:$A$36,0),MATCH(Q$1&$O105,Calculator!$D$2:$CM$2,0)) -> 7.412354241 | S105: 9 | T105: Oil | U105: =INDEX(Calculator!$D$6:$CM$36,MATCH($S105&U$2,Calculator!$A$6:$A$36,0),MATCH(U$1&$T105,Calculator!$D$2:$CM$2,0)) -> 0.8693300232 | V105: =INDEX(Calculator!$D$6:$CM$36,MATCH($S105&V$2,Calculator!$A$6:$A$36,0),MATCH(V$1&$T105,Calculator!$D$2:$CM$2,0)) -> 0.9111911893 | AB105: 24 | AC105: Propane | AD105: =INDEX(P105:V105,0, MATCH($AB$1,$P$1:$V$1,0)) -> 7.412354241 | AF105: Propane | AG105: 24 | AH105: 7.412354241
N106: 25 | O106: Propane | P106: =INDEX(Calculator!$D$6:$CM$36,MATCH($N106&P$2,Calculator!$A$6:$A$36,0),MATCH(P$1&$O106,Calculator!$D$2:$CM$2,0)) -> -5.063779333 | Q106: =INDEX(Calculator!$D$6:$CM$36,MATCH($N106&Q$2,Calculator!$A$6:$A$36,0),MATCH(Q$1&$O106,Calculator!$D$2:$CM$2,0)) -> -5.313515908 | S106: 10 | T106: Oil | U106: =INDEX(Calculator!$D$6:$CM$36,MATCH($S106&U$2,Calculator!$A$6:$A$36,0),MATCH(U$1&$T106,Calculator!$D$2:$CM$2,0)) -> 0.8713583474 | V106: =INDEX(Calculator!$D$6:$CM$36,MATCH($S106&V$2,Calculator!$A$6:$A$36,0),MATCH(V$1&$T106,Calculator!$D$2:$CM$2,0)) -> 0.9154268941 | AB106: 25 | AC106: Propane | AD106: =INDEX(P106:V106,0, MATCH($AB$1,$P$1:$V$1,0)) -> -5.313515908 | AF106: Propane | AG106: 25 | AH106: -5.313515908
N107: 0 | O107: Wood | P107: =INDEX(Calculator!$D$6:$CM$36,MATCH($N107&P$2,Calculator!$A$6:$A$36,0),MATCH(P$1&$O107,Calculator!$D$2:$CM$2,0)) -> 1 | Q107: =INDEX(Calculator!$D$6:$CM$36,MATCH($N107&Q$2,Calculator!$A$6:$A$36,0),MATCH(Q$1&$O107,Calculator!$D$2:$CM$2,0)) -> 1 | S107: 11 | T107: Oil | U107: =INDEX(Calculator!$D$6:$CM$36,MATCH($S107&U$2,Calculator!$A$6:$A$36,0),MATCH(U$1&$T107,Calculator!$D$2:$CM$2,0)) -> 0.8739676312 | V107: =INDEX(Calculator!$D$6:$CM$36,MATCH($S107&V$2,Calculator!$A$6:$A$36,0),MATCH(V$1&$T107,Calculator!$D$2:$CM$2,0)) -> 0.9201674049 | AB107: 0 | AC107: =IF(OR($AB$1="FPI for v10", $AB$1="FPI_SCC for v10"), $T107, $O107) -> Wood | AD107: =INDEX(P107:V107,0, MATCH($AB$1,$P$1:$V$1,0)) -> 1 | AF107: Wood | AG107: 0 | AH107: 1
N108: 1 | O108: Wood | P108: =INDEX(Calculator!$D$6:$CM$36,MATCH($N108&P$2,Calculator!$A$6:$A$36,0),MATCH(P$1&$O108,Calculator!$D$2:$CM$2,0)) -> 1 | Q108: =INDEX(Calculator!$D$6:$CM$36,MATCH($N108&Q$2,Calculator!$A$6:$A$36,0),MATCH(Q$1&$O108,Calculator!$D$2:$CM$2,0)) -> 1.004980676 | S108: 12 | T108: Oil | U108: =INDEX(Calculator!$D$6:$CM$36,MATCH($S108&U$2,Calculator!$A$6:$A$36,0),MATCH(U$1&$T108,Calculator!$D$2:$CM$2,0)) -> 0.8769384108 | V108: =INDEX(Calculator!$D$6:$CM$36,MATCH($S108&V$2,Calculator!$A$6:$A$36,0),MATCH(V$1&$T108,Calculator!$D$2:$CM$2,0)) -> 0.9252220255 | AB108: =IF(OR($AB$1="FPI for v10", $AB$1="FPI_SCC for v10"), $S108, $N108) -> 1 | AC108: Wood | AD108: =INDEX(P108:V108,0, MATCH($AB$1,$P$1:$V$1,0)) -> 1.004980676 | AF108: Wood | AG108: 1 | AH108: 1.004980676
N109: 2 | O109: Wood | P109: =INDEX(Calculator!$D$6:$CM$36,MATCH($N109&P$2,Calculator!$A$6:$A$36,0),MATCH(P$1&$O109,Calculator!$D$2:$CM$2,0)) -> 1 | Q109: =INDEX(Calculator!$D$6:$CM$36,MATCH($N109&Q$2,Calculator!$A$6:$A$36,0),MATCH(Q$1&$O109,Calculator!$D$2:$CM$2,0)) -> 1.009961351 | S109: 13 | T109: Oil | U109: =INDEX(Calculator!$D$6:$CM$36,MATCH($S109&U$2,Calculator!$A$6:$A$36,0),MATCH(U$1&$T109,Calculator!$D$2:$CM$2,0)) -> 0.8794293298 | V109: =INDEX(Calculator!$D$6:$CM$36,MATCH($S109&V$2,Calculator!$A$6:$A$36,0),MATCH(V$1&$T109,Calculator!$D$2:$CM$2,0)) -> 0.929859687 | AB109: 2 | AC109: Wood | AD109: =INDEX(P109:V109,0, MATCH($AB$1,$P$1:$V$1,0)) -> 1.009961351 | AF109: Wood | AG109: 2 | AH109: 1.009961351
N110: 3 | O110: Wood | P110: =INDEX(Calculator!$D$6:$CM$36,MATCH($N110&P$2,Calculator!$A$6:$A$36,0),MATCH(P$1&$O110,Calculator!$D$2:$CM$2,0)) -> 1 | Q110: =INDEX(Calculator!$D$6:$CM$36,MATCH($N110&Q$2,Calculator!$A$6:$A$36,0),MATCH(Q$1&$O110,Calculator!$D$2:$CM$2,0)) -> 1.014942027 | S110: 14 | T110: Oil | U110: =INDEX(Calculator!$D$6:$CM$36,MATCH($S110&U$2,Calculator!$A$6:$A$36,0),MATCH(U$1&$T110,Calculator!$D$2:$CM$2,0)) -> 0.8818304268 | V110: =INDEX(Calculator!$D$6:$CM$36,MATCH($S110&V$2,Calculator!$A$6:$A$36,0),MATCH(V$1&$T110,Calculator!$D$2:$CM$2,0)) -> 0.9368925595 | AB110: 3 | AC110: Wood | AD110: =INDEX(P110:V110,0, MATCH($AB$1,$P$1:$V$1,0)) -> 1.014942027 | AF110: Wood | AG110: 3 | AH110: 1.014942027
N111: 4 | O111: Wood | P111: =INDEX(Calculator!$D$6:$CM$36,MATCH($N111&P$2,Calculator!$A$6:$A$36,0),MATCH(P$1&$O111,Calculator!$D$2:$CM$2,0)) -> 1 | Q111: =INDEX(Calculator!$D$6:$CM$36,MATCH($N111&Q$2,Calculator!$A$6:$A$36,0),MATCH(Q$1&$O111,Calculator!$D$2:$CM$2,0)) -> 1.019922703 | S111: 15 | T111: Oil | U111: =INDEX(Calculator!$D$6:$CM$36,MATCH($S111&U$2,Calculator!$A$6:$A$36,0),MATCH(U$1&$T111,Calculator!$D$2:$CM$2,0)) -> 0.8845873963 | V111: =INDEX(Calculator!$D$6:$CM$36,MATCH($S111&V$2,Calculator!$A$6:$A$36,0),MATCH(V$1&$T111,Calculator!$D$2:$CM$2,0)) -> 0.9417613969 | AB111: 4 | AC111: Wood | AD111: =INDEX(P111:V111,0, MATCH($AB$1,$P$1:$V$1,0)) -> 1.019922703 | AF111: Wood | AG111: 4 | AH111: 1.019922703
N112: 5 | O112: Wood | P112: =INDEX(Calculator!$D$6:$CM$36,MATCH($N112&P$2,Calculator!$A$6:$A$36,0),MATCH(P$1&$O112,Calculator!$D$2:$CM$2,0)) -> 1 | Q112: =INDEX(Calculator!$D$6:$CM$36,MATCH($N112&Q$2,Calculator!$A$6:$A$36,0),MATCH(Q$1&$O112,Calculator!$D$2:$CM$2,0)) -> 1.029884054 | S112: 16 | T112: Oil | U112: =INDEX(Calculator!$D$6:$CM$36,MATCH($S112&U$2,Calculator!$A$6:$A$36,0),MATCH(U$1&$T112,Calculator!$D$2:$CM$2,0)) -> 0.8866746989 | V112: =INDEX(Calculator!$D$6:$CM$36,MATCH($S112&V$2,Calculator!$A$6:$A$36,0),MATCH(V$1&$T112,Calculator!$D$2:$CM$2,0)) -> 0.9460483492 | AB112: 5 | AC112: Wood | AD112: =INDEX(P112:V112,0, MATCH($AB$1,$P$1:$V$1,0)) -> 1.029884054 | AF112: Wood | AG112: 5 | AH112: 1.029884054
N113: 6 | O113: Wood | P113: =INDEX(Calculator!$D$6:$CM$36,MATCH($N113&P$2,Calculator!$A$6:$A$36,0),MATCH(P$1&$O113,Calculator!$D$2:$CM$2,0)) -> 1 | Q113: =INDEX(Calculator!$D$6:$CM$36,MATCH($N113&Q$2,Calculator!$A$6:$A$36,0),MATCH(Q$1&$O113,Calculator!$D$2:$CM$2,0)) -> 1.03486473 | S113: 17 | T113: Oil | U113: =INDEX(Calculator!$D$6:$CM$36,MATCH($S113&U$2,Calculator!$A$6:$A$36,0),MATCH(U$1&$T113,Calculator!$D$2:$CM$2,0)) -> 0.8889455339 | V113: =INDEX(Calculator!$D$6:$CM$36,MATCH($S113&V$2,Calculator!$A$6:$A$36,0),MATCH(V$1&$T113,Calculator!$D$2:$CM$2,0)) -> 0.9504947759 | AB113: 6 | AC113: Wood | AD113: =INDEX(P113:V113,0, MATCH($AB$1,$P$1:$V$1,0)) -> 1.03486473 | AF113: Wood | AG113: 6 | AH113: 1.03486473
N114: 7 | O114: Wood | P114: =INDEX(Calculator!$D$6:$CM$36,MATCH($N114&P$2,Calculator!$A$6:$A$36,0),MATCH(P$1&$O114,Calculator!$D$2:$CM$2,0)) -> 1 | Q114: =INDEX(Calculator!$D$6:$CM$36,MATCH($N114&Q$2,Calculator!$A$6:$A$36,0),MATCH(Q$1&$O114,Calculator!$D$2:$CM$2,0)) -> 1.039845405 | S114: 18 | T114: Oil | U114: =INDEX(Calculator!$D$6:$CM$36,MATCH($S114&U$2,Calculator!$A$6:$A$36,0),MATCH(U$1&$T114,Calculator!$D$2:$CM$2,0)) -> 0.8932955339 | V114: =INDEX(Calculator!$D$6:$CM$36,MATCH($S114&V$2,Calculator!$A$6:$A$36,0),MATCH(V$1&$T114,Calculator!$D$2:$CM$2,0)) -> 0.956747825 | AB114: 7 | AC114: Wood | AD114: =INDEX(P114:V114,0, MATCH($AB$1,$P$1:$V$1,0)) -> 1.039845405 | AF114: Wood | AG114: 7 | AH114: 1.039845405
N115: 8 | O115: Wood | P115: =INDEX(Calculator!$D$6:$CM$36,MATCH($N115&P$2,Calculator!$A$6:$A$36,0),MATCH(P$1&$O115,Calculator!$D$2:$CM$2,0)) -> 1 | Q115: =INDEX(Calculator!$D$6:$CM$36,MATCH($N115&Q$2,Calculator!$A$6:$A$36,0),MATCH(Q$1&$O115,Calculator!$D$2:$CM$2,0)) -> 1.044826081 | S115: 19 | T115: Oil | U115: =INDEX(Calculator!$D$6:$CM$36,MATCH($S115&U$2,Calculator!$A$6:$A$36,0),MATCH(U$1&$T115,Calculator!$D$2:$CM$2,0)) -> 0.8948652169 | V115: =INDEX(Calculator!$D$6:$CM$36,MATCH($S115&V$2,Calculator!$A$6:$A$36,0),MATCH(V$1&$T115,Calculator!$D$2:$CM$2,0)) -> 0.9605850086 | AB115: 8 | AC115: Wood | AD115: =INDEX(P115:V115,0, MATCH($AB$1,$P$1:$V$1,0)) -> 1.044826081 | AF115: Wood | AG115: 8 | AH115: 1.044826081
N116: 9 | O116: Wood | P116: =INDEX(Calculator!$D$6:$CM$36,MATCH($N116&P$2,Calculator!$A$6:$A$36,0),MATCH(P$1&$O116,Calculator!$D$2:$CM$2,0)) -> 1 | Q116: =INDEX(Calculator!$D$6:$CM$36,MATCH($N116&Q$2,Calculator!$A$6:$A$36,0),MATCH(Q$1&$O116,Calculator!$D$2:$CM$2,0)) -> 1.049806757 | S116: 20 | T116: Oil | U116: =INDEX(Calculator!$D$6:$CM$36,MATCH($S116&U$2,Calculator!$A$6:$A$36,0),MATCH(U$1&$T116,Calculator!$D$2:$CM$2,0)) -> 0.8977533564 | V116: =INDEX(Calculator!$D$6:$CM$36,MATCH($S116&V$2,Calculator!$A$6:$A$36,0),MATCH(V$1&$T116,Calculator!$D$2:$CM$2,0)) -> 0.9655678219 | AB116: 9 | AC116: Wood | AD116: =INDEX(P116:V116,0, MATCH($AB$1,$P$1:$V$1,0)) -> 1.049806757 | AF116: Wood | AG116: 9 | AH116: 1.049806757
N117: 10 | O117: Wood | P117: =INDEX(Calculator!$D$6:$CM$36,MATCH($N117&P$2,Calculator!$A$6:$A$36,0),MATCH(P$1&$O117,Calculator!$D$2:$CM$2,0)) -> 1 | Q117: =INDEX(Calculator!$D$6:$CM$36,MATCH($N117&Q$2,Calculator!$A$6:$A$36,0),MATCH(Q$1&$O117,Calculator!$D$2:$CM$2,0)) -> 1.054787433 | S117: 21 | T117: Oil | U117: =INDEX(Calculator!$D$6:$CM$36,MATCH($S117&U$2,Calculator!$A$6:$A$36,0),MATCH(U$1&$T117,Calculator!$D$2:$CM$2,0)) -> 0.8971009776 | V117: =INDEX(Calculator!$D$6:$CM$36,MATCH($S117&V$2,Calculator!$A$6:$A$36,0),MATCH(V$1&$T117,Calculator!$D$2:$CM$2,0)) -> 0.9699474766 | AB117: 10 | AC117: Wood | AD117: =INDEX(P117:V117,0, MATCH($AB$1,$P$1:$V$1,0)) -> 1.054787433 | AF117: Wood | AG117: 10 | AH117: 1.054787433
N118: 11 | O118: Wood | P118: =INDEX(Calculator!$D$6:$CM$36,MATCH($N118&P$2,Calculator!$A$6:$A$36,0),MATCH(P$1&$O118,Calculator!$D$2:$CM$2,0)) -> 1 | Q118: =INDEX(Calculator!$D$6:$CM$36,MATCH($N118&Q$2,Calculator!$A$6:$A$36,0),MATCH(Q$1&$O118,Calculator!$D$2:$CM$2,0)) -> 1.059768108 | S118: 22 | T118: Oil | U118: =INDEX(Calculator!$D$6:$CM$36,MATCH($S118&U$2,Calculator!$A$6:$A$36,0),MATCH(U$1&$T118,Calculator!$D$2:$CM$2,0)) -> 0.8988804625 | V118: =INDEX(Calculator!$D$6:$CM$36,MATCH($S118&V$2,Calculator!$A$6:$A$36,0),MATCH(V$1&$T118,Calculator!$D$2:$CM$2,0)) -> 0.9739669607 | AB118: 11 | AC118: Wood | AD118: =INDEX(P118:V118,0, MATCH($AB$1,$P$1:$V$1,0)) -> 1.059768108 | AF118: Wood | AG118: 11 | AH118: 1.059768108
N119: 12 | O119: Wood | P119: =INDEX(Calculator!$D$6:$CM$36,MATCH($N119&P$2,Calculator!$A$6:$A$36,0),MATCH(P$1&$O119,Calculator!$D$2:$CM$2,0)) -> 1 | Q119: =INDEX(Calculator!$D$6:$CM$36,MATCH($N119&Q$2,Calculator!$A$6:$A$36,0),MATCH(Q$1&$O119,Calculator!$D$2:$CM$2,0)) -> 1.064748784 | S119: 23 | T119: Oil | U119: =INDEX(Calculator!$D$6:$CM$36,MATCH($S119&U$2,Calculator!$A$6:$A$36,0),MATCH(U$1&$T119,Calculator!$D$2:$CM$2,0)) -> 0.9076485462 | V119: =INDEX(Calculator!$D$6:$CM$36,MATCH($S119&V$2,Calculator!$A$6:$A$36,0),MATCH(V$1&$T119,Calculator!$D$2:$CM$2,0)) -> 0.984058959 | AB119: 12 | AC119: Wood | AD119: =INDEX(P119:V119,0, MATCH($AB$1,$P$1:$V$1,0)) -> 1.064748784 | AF119: Wood | AG119: 12 | AH119: 1.064748784
N120: 13 | O120: Wood | P120: =INDEX(Calculator!$D$6:$CM$36,MATCH($N120&P$2,Calculator!$A$6:$A$36,0),MATCH(P$1&$O120,Calculator!$D$2:$CM$2,0)) -> 1 | Q120: =INDEX(Calculator!$D$6:$CM$36,MATCH($N120&Q$2,Calculator!$A$6:$A$36,0),MATCH(Q$1&$O120,Calculator!$D$2:$CM$2,0)) -> 1.06972946 | S120: 24 | T120: Oil | U120: =INDEX(Calculator!$D$6:$CM$36,MATCH($S120&U$2,Calculator!$A$6:$A$36,0),MATCH(U$1&$T120,Calculator!$D$2:$CM$2,0)) -> 0.9108789428 | V120: =INDEX(Calculator!$D$6:$CM$36,MATCH($S120&V$2,Calculator!$A$6:$A$36,0),MATCH(V$1&$T120,Calculator!$D$2:$CM$2,0)) -> 0.9893391654 | AB120: 13 | AC120: Wood | AD120: =INDEX(P120:V120,0, MATCH($AB$1,$P$1:$V$1,0)) -> 1.06972946 | AF120: Wood | AG120: 13 | AH120: 1.06972946
N121: 14 | O121: Wood | P121: =INDEX(Calculator!$D$6:$CM$36,MATCH($N121&P$2,Calculator!$A$6:$A$36,0),MATCH(P$1&$O121,Calculator!$D$2:$CM$2,0)) -> 1 | Q121: =INDEX(Calculator!$D$6:$CM$36,MATCH($N121&Q$2,Calculator!$A$6:$A$36,0),MATCH(Q$1&$O121,Calculator!$D$2:$CM$2,0)) -> 1.079690811 | S121: 25 | T121: Oil | U121: =INDEX(Calculator!$D$6:$CM$36,MATCH($S121&U$2,Calculator!$A$6:$A$36,0),MATCH(U$1&$T121,Calculator!$D$2:$CM$2,0)) -> 0.9118963061 | V121: =INDEX(Calculator!$D$6:$CM$36,MATCH($S121&V$2,Calculator!$A$6:$A$36,0),MATCH(V$1&$T121,Calculator!$D$2:$CM$2,0)) -> 0.9926964289 | AB121: 14 | AC121: Wood | AD121: =INDEX(P121:V121,0, MATCH($AB$1,$P$1:$V$1,0)) -> 1.079690811 | AF121: Wood | AG121: 14 | AH121: 1.079690811
N122: 15 | O122: Wood | P122: =INDEX(Calculator!$D$6:$CM$36,MATCH($N122&P$2,Calculator!$A$6:$A$36,0),MATCH(P$1&$O122,Calculator!$D$2:$CM$2,0)) -> 1 | Q122: =INDEX(Calculator!$D$6:$CM$36,MATCH($N122&Q$2,Calculator!$A$6:$A$36,0),MATCH(Q$1&$O122,Calculator!$D$2:$CM$2,0)) -> 1.084671487 | S122: 26 | T122: Oil | U122: =INDEX(Calculator!$D$6:$CM$36,MATCH($S122&U$2,Calculator!$A$6:$A$36,0),MATCH(U$1&$T122,Calculator!$D$2:$CM$2,0)) -> 0.9137187986 | V122: =INDEX(Calculator!$D$6:$CM$36,MATCH($S122&V$2,Calculator!$A$6:$A$36,0),MATCH(V$1&$T122,Calculator!$D$2:$CM$2,0)) -> 0.9967532831 | AB122: 15 | AC122: Wood | AD122: =INDEX(P122:V122,0, MATCH($AB$1,$P$1:$V$1,0)) -> 1.084671487 | AF122: Wood | AG122: 15 | AH122: 1.084671487
N123: 16 | O123: Wood | P123: =INDEX(Calculator!$D$6:$CM$36,MATCH($N123&P$2,Calculator!$A$6:$A$36,0),MATCH(P$1&$O123,Calculator!$D$2:$CM$2,0)) -> 1 | Q123: =INDEX(Calculator!$D$6:$CM$36,MATCH($N123&Q$2,Calculator!$A$6:$A$36,0),MATCH(Q$1&$O123,Calculator!$D$2:$CM$2,0)) -> 1.089652162 | S123: 27 | T123: Oil | U123: =INDEX(Calculator!$D$6:$CM$36,MATCH($S123&U$2,Calculator!$A$6:$A$36,0),MATCH(U$1&$T123,Calculator!$D$2:$CM$2,0)) -> 0.9143002515 | V123: =INDEX(Calculator!$D$6:$CM$36,MATCH($S123&V$2,Calculator!$A$6:$A$36,0),MATCH(V$1&$T123,Calculator!$D$2:$CM$2,0)) -> 1.002205035 | AB123: 16 | AC123: Wood | AD123: =INDEX(P123:V123,0, MATCH($AB$1,$P$1:$V$1,0)) -> 1.089652162 | AF123: Wood | AG123: 16 | AH123: 1.089652162
N124: 17 | O124: Wood | P124: =INDEX(Calculator!$D$6:$CM$36,MATCH($N124&P$2,Calculator!$A$6:$A$36,0),MATCH(P$1&$O124,Calculator!$D$2:$CM$2,0)) -> 1 | Q124: =INDEX(Calculator!$D$6:$CM$36,MATCH($N124&Q$2,Calculator!$A$6:$A$36,0),MATCH(Q$1&$O124,Calculator!$D$2:$CM$2,0)) -> 1.094632838 | S124: 28 | T124: Oil | U124: =INDEX(Calculator!$D$6:$CM$36,MATCH($S124&U$2,Calculator!$A$6:$A$36,0),MATCH(U$1&$T124,Calculator!$D$2:$CM$2,0)) -> 0.9165501031 | V124: =INDEX(Calculator!$D$6:$CM$36,MATCH($S124&V$2,Calculator!$A$6:$A$36,0),MATCH(V$1&$T124,Calculator!$D$2:$CM$2,0)) -> 1.006633229 | AB124: 17 | AC124: Wood | AD124: =INDEX(P124:V124,0, MATCH($AB$1,$P$1:$V$1,0)) -> 1.094632838 | AF124: Wood | AG124: 17 | AH124: 1.094632838
N125: 18 | O125: Wood | P125: =INDEX(Calculator!$D$6:$CM$36,MATCH($N125&P$2,Calculator!$A$6:$A$36,0),MATCH(P$1&$O125,Calculator!$D$2:$CM$2,0)) -> 1 | Q125: =INDEX(Calculator!$D$6:$CM$36,MATCH($N125&Q$2,Calculator!$A$6:$A$36,0),MATCH(Q$1&$O125,Calculator!$D$2:$CM$2,0)) -> 1.099613514 | S125: 29 | T125: Oil | U125: =INDEX(Calculator!$D$6:$CM$36,MATCH($S125&U$2,Calculator!$A$6:$A$36,0),MATCH(U$1&$T125,Calculator!$D$2:$CM$2,0)) -> 0.9195289522 | V125: =INDEX(Calculator!$D$6:$CM$36,MATCH($S125&V$2,Calculator!$A$6:$A$36,0),MATCH(V$1&$T125,Calculator!$D$2:$CM$2,0)) -> 1.009221603 | AB125: 18 | AC125: Wood | AD125: =INDEX(P125:V125,0, MATCH($AB$1,$P$1:$V$1,0)) -> 1.099613514 | AF125: Wood | AG125: 18 | AH125: 1.099613514
N126: 19 | O126: Wood | P126: =INDEX(Calculator!$D$6:$CM$36,MATCH($N126&P$2,Calculator!$A$6:$A$36,0),MATCH(P$1&$O126,Calculator!$D$2:$CM$2,0)) -> 1 | Q126: =INDEX(Calculator!$D$6:$CM$36,MATCH($N126&Q$2,Calculator!$A$6:$A$36,0),MATCH(Q$1&$O126,Calculator!$D$2:$CM$2,0)) -> 1.104594189 | S126: 30 | T126: Oil | U126: =INDEX(Calculator!$D$6:$CM$36,MATCH($S126&U$2,Calculator!$A$6:$A$36,0),MATCH(U$1&$T126,Calculator!$D$2:$CM$2,0)) -> 0.9225174828 | V126: =INDEX(Calculator!$D$6:$CM$36,MATCH($S126&V$2,Calculator!$A$6:$A$36,0),MATCH(V$1&$T126,Calculator!$D$2:$CM$2,0)) -> 1.011818389 | AB126: 19 | AC126: Wood | AD126: =INDEX(P126:V126,0, MATCH($AB$1,$P$1:$V$1,0)) -> 1.104594189 | AF126: Wood | AG126: 19 | AH126: 1.104594189
N127: 20 | O127: Wood | P127: =INDEX(Calculator!$D$6:$CM$36,MATCH($N127&P$2,Calculator!$A$6:$A$36,0),MATCH(P$1&$O127,Calculator!$D$2:$CM$2,0)) -> 1 | Q127: =INDEX(Calculator!$D$6:$CM$36,MATCH($N127&Q$2,Calculator!$A$6:$A$36,0),MATCH(Q$1&$O127,Calculator!$D$2:$CM$2,0)) -> 1.109574865 | S127: 0 | T127: Kerosene | U127: =INDEX(Calculator!$D$6:$CM$36,MATCH($S127&U$2,Calculator!$A$6:$A$36,0),MATCH(U$1&$T127,Calculator!$D$2:$CM$2,0)) -> 1 | V127: =INDEX(Calculator!$D$6:$CM$36,MATCH($S127&V$2,Calculator!$A$6:$A$36,0),MATCH(V$1&$T127,Calculator!$D$2:$CM$2,0)) -> 1 | AB127: 20 | AC127: Wood | AD127: =INDEX(P127:V127,0, MATCH($AB$1,$P$1:$V$1,0)) -> 1.109574865 | AF127: Wood | AG127: 20 | AH127: 1.109574865
N128: 21 | O128: Wood | P128: =INDEX(Calculator!$D$6:$CM$36,MATCH($N128&P$2,Calculator!$A$6:$A$36,0),MATCH(P$1&$O128,Calculator!$D$2:$CM$2,0)) -> 1 | Q128: =INDEX(Calculator!$D$6:$CM$36,MATCH($N128&Q$2,Calculator!$A$6:$A$36,0),MATCH(Q$1&$O128,Calculator!$D$2:$CM$2,0)) -> 1.119536216 | S128: 1 | T128: Kerosene | U128: =INDEX(Calculator!$D$6:$CM$36,MATCH($S128&U$2,Calculator!$A$6:$A$36,0),MATCH(U$1&$T128,Calculator!$D$2:$CM$2,0)) -> 0.959682826 | V128: =INDEX(Calculator!$D$6:$CM$36,MATCH($S128&V$2,Calculator!$A$6:$A$36,0),MATCH(V$1&$T128,Calculator!$D$2:$CM$2,0)) -> 0.9677138647 | AB128: 21 | AC128: Wood | AD128: =INDEX(P128:V128,0, MATCH($AB$1,$P$1:$V$1,0)) -> 1.119536216 | AF128: Wood | AG128: 21 | AH128: 1.119536216
N129: 22 | O129: Wood | P129: =INDEX(Calculator!$D$6:$CM$36,MATCH($N129&P$2,Calculator!$A$6:$A$36,0),MATCH(P$1&$O129,Calculator!$D$2:$CM$2,0)) -> 1 | Q129: =INDEX(Calculator!$D$6:$CM$36,MATCH($N129&Q$2,Calculator!$A$6:$A$36,0),MATCH(Q$1&$O129,Calculator!$D$2:$CM$2,0)) -> 1.124516892 | S129: 2 | T129: Kerosene | U129: =INDEX(Calculator!$D$6:$CM$36,MATCH($S129&U$2,Calculator!$A$6:$A$36,0),MATCH(U$1&$T129,Calculator!$D$2:$CM$2,0)) -> 0.9133089517 | V129: =INDEX(Calculator!$D$6:$CM$36,MATCH($S129&V$2,Calculator!$A$6:$A$36,0),MATCH(V$1&$T129,Calculator!$D$2:$CM$2,0)) -> 0.9301928845 | AB129: 22 | AC129: Wood | AD129: =INDEX(P129:V129,0, MATCH($AB$1,$P$1:$V$1,0)) -> 1.124516892 | AF129: Wood | AG129: 22 | AH129: 1.124516892
N130: 23 | O130: Wood | P130: =INDEX(Calculator!$D$6:$CM$36,MATCH($N130&P$2,Calculator!$A$6:$A$36,0),MATCH(P$1&$O130,Calculator!$D$2:$CM$2,0)) -> 1 | Q130: =INDEX(Calculator!$D$6:$CM$36,MATCH($N130&Q$2,Calculator!$A$6:$A$36,0),MATCH(Q$1&$O130,Calculator!$D$2:$CM$2,0)) -> 1.129497568 | S130: 3 | T130: Kerosene | U130: =INDEX(Calculator!$D$6:$CM$36,MATCH($S130&U$2,Calculator!$A$6:$A$36,0),MATCH(U$1&$T130,Calculator!$D$2:$CM$2,0)) -> 0.8896472382 | V130: =INDEX(Calculator!$D$6:$CM$36,MATCH($S130&V$2,Calculator!$A$6:$A$36,0),MATCH(V$1&$T130,Calculator!$D$2:$CM$2,0)) -> 0.9123021704 | AB130: 23 | AC130: Wood | AD130: =INDEX(P130:V130,0, MATCH($AB$1,$P$1:$V$1,0)) -> 1.129497568 | AF130: Wood | AG130: 23 | AH130: 1.129497568
N131: 24 | O131: Wood | P131: =INDEX(Calculator!$D$6:$CM$36,MATCH($N131&P$2,Calculator!$A$6:$A$36,0),MATCH(P$1&$O131,Calculator!$D$2:$CM$2,0)) -> 6.417191444 | Q131: =INDEX(Calculator!$D$6:$CM$36,MATCH($N131&Q$2,Calculator!$A$6:$A$36,0),MATCH(Q$1&$O131,Calculator!$D$2:$CM$2,0)) -> 7.377085699 | S131: 4 | T131: Kerosene | U131: =INDEX(Calculator!$D$6:$CM$36,MATCH($S131&U$2,Calculator!$A$6:$A$36,0),MATCH(U$1&$T131,Calculator!$D$2:$CM$2,0)) -> 0.8752658539 | V131: =INDEX(Calculator!$D$6:$CM$36,MATCH($S131&V$2,Calculator!$A$6:$A$36,0),MATCH(V$1&$T131,Calculator!$D$2:$CM$2,0)) -> 0.9024325043 | AB131: 24 | AC131: Wood | AD131: =INDEX(P131:V131,0, MATCH($AB$1,$P$1:$V$1,0)) -> 7.377085699 | AF131: Wood | AG131: 24 | AH131: 7.377085699
N132: 25 | O132: Wood | P132: =INDEX(Calculator!$D$6:$CM$36,MATCH($N132&P$2,Calculator!$A$6:$A$36,0),MATCH(P$1&$O132,Calculator!$D$2:$CM$2,0)) -> -4.579707187 | Q132: =INDEX(Calculator!$D$6:$CM$36,MATCH($N132&Q$2,Calculator!$A$6:$A$36,0),MATCH(Q$1&$O132,Calculator!$D$2:$CM$2,0)) -> -5.29042676 | S132: 5 | T132: Kerosene | U132: =INDEX(Calculator!$D$6:$CM$36,MATCH($S132&U$2,Calculator!$A$6:$A$36,0),MATCH(U$1&$T132,Calculator!$D$2:$CM$2,0)) -> 0.8623267979 | V132: =INDEX(Calculator!$D$6:$CM$36,MATCH($S132&V$2,Calculator!$A$6:$A$36,0),MATCH(V$1&$T132,Calculator!$D$2:$CM$2,0)) -> 0.8963697082 | AB132: 25 | AC132: Wood | AD132: =INDEX(P132:V132,0, MATCH($AB$1,$P$1:$V$1,0)) -> -5.29042676 | AF132: =AC132 -> Wood | AG132: =AB132 -> 25 | AH132: -5.29042676
N133: 0 | O133: Coal | P133: =INDEX(Calculator!$D$6:$CM$36,MATCH($N133&P$2,Calculator!$A$6:$A$36,0),MATCH(P$1&$O133,Calculator!$D$2:$CM$2,0)) -> 1 | Q133: =INDEX(Calculator!$D$6:$CM$36,MATCH($N133&Q$2,Calculator!$A$6:$A$36,0),MATCH(Q$1&$O133,Calculator!$D$2:$CM$2,0)) -> 1 | S133: 6 | T133: Kerosene | U133: =INDEX(Calculator!$D$6:$CM$36,MATCH($S133&U$2,Calculator!$A$6:$A$36,0),MATCH(U$1&$T133,Calculator!$D$2:$CM$2,0)) -> 0.8609786136 | V133: =INDEX(Calculator!$D$6:$CM$36,MATCH($S133&V$2,Calculator!$A$6:$A$36,0),MATCH(V$1&$T133,Calculator!$D$2:$CM$2,0)) -> 0.8977647204 | AB133: 0 | AC133: Coal | AD133: =INDEX(P133:V133,0, MATCH($AB$1,$P$1:$V$1,0)) -> 1 | AF133: Coal | AG133: 0 | AH133: 1
N134: 1 | O134: Coal | P134: =INDEX(Calculator!$D$6:$CM$36,MATCH($N134&P$2,Calculator!$A$6:$A$36,0),MATCH(P$1&$O134,Calculator!$D$2:$CM$2,0)) -> 0.9995803754 | Q134: =INDEX(Calculator!$D$6:$CM$36,MATCH($N134&Q$2,Calculator!$A$6:$A$36,0),MATCH(Q$1&$O134,Calculator!$D$2:$CM$2,0)) -> 0.9995803754 | S134: 7 | T134: Kerosene | U134: =INDEX(Calculator!$D$6:$CM$36,MATCH($S134&U$2,Calculator!$A$6:$A$36,0),MATCH(U$1&$T134,Calculator!$D$2:$CM$2,0)) -> 0.8620555986 | V134: =INDEX(Calculator!$D$6:$CM$36,MATCH($S134&V$2,Calculator!$A$6:$A$36,0),MATCH(V$1&$T134,Calculator!$D$2:$CM$2,0)) -> 0.9012558219 | AB134: 1 | AC134: Coal | AD134: =INDEX(P134:V134,0, MATCH($AB$1,$P$1:$V$1,0)) -> 0.9995803754 | AF134: Coal | AG134: 1 | AH134: 0.9995803754
N135: 2 | O135: Coal | P135: =INDEX(Calculator!$D$6:$CM$36,MATCH($N135&P$2,Calculator!$A$6:$A$36,0),MATCH(P$1&$O135,Calculator!$D$2:$CM$2,0)) -> 1.01543246 | Q135: =INDEX(Calculator!$D$6:$CM$36,MATCH($N135&Q$2,Calculator!$A$6:$A$36,0),MATCH(Q$1&$O135,Calculator!$D$2:$CM$2,0)) -> 1.01543246 | S135: 8 | T135: Kerosene | U135: =INDEX(Calculator!$D$6:$CM$36,MATCH($S135&U$2,Calculator!$A$6:$A$36,0),MATCH(U$1&$T135,Calculator!$D$2:$CM$2,0)) -> 0.8654772643 | V135: =INDEX(Calculator!$D$6:$CM$36,MATCH($S135&V$2,Calculator!$A$6:$A$36,0),MATCH(V$1&$T135,Calculator!$D$2:$CM$2,0)) -> 0.906773446 | AB135: 2 | AC135: Coal | AD135: =INDEX(P135:V135,0, MATCH($AB$1,$P$1:$V$1,0)) -> 1.01543246 | AF135: Coal | AG135: 2 | AH135: 1.01543246
N136: 3 | O136: Coal | P136: =INDEX(Calculator!$D$6:$CM$36,MATCH($N136&P$2,Calculator!$A$6:$A$36,0),MATCH(P$1&$O136,Calculator!$D$2:$CM$2,0)) -> 1.02309176 | Q136: =INDEX(Calculator!$D$6:$CM$36,MATCH($N136&Q$2,Calculator!$A$6:$A$36,0),MATCH(Q$1&$O136,Calculator!$D$2:$CM$2,0)) -> 1.02309176 | S136: 9 | T136: Kerosene | U136: =INDEX(Calculator!$D$6:$CM$36,MATCH($S136&U$2,Calculator!$A$6:$A$36,0),MATCH(U$1&$T136,Calculator!$D$2:$CM$2,0)) -> 0.8693300232 | V136: =INDEX(Calculator!$D$6:$CM$36,MATCH($S136&V$2,Calculator!$A$6:$A$36,0),MATCH(V$1&$T136,Calculator!$D$2:$CM$2,0)) -> 0.9126636667 | AB136: 3 | AC136: Coal | AD136: =INDEX(P136:V136,0, MATCH($AB$1,$P$1:$V$1,0)) -> 1.02309176 | AF136: Coal | AG136: 3 | AH136: 1.02309176
N137: 4 | O137: Coal | P137: =INDEX(Calculator!$D$6:$CM$36,MATCH($N137&P$2,Calculator!$A$6:$A$36,0),MATCH(P$1&$O137,Calculator!$D$2:$CM$2,0)) -> 1.019969329 | Q137: =INDEX(Calculator!$D$6:$CM$36,MATCH($N137&Q$2,Calculator!$A$6:$A$36,0),MATCH(Q$1&$O137,Calculator!$D$2:$CM$2,0)) -> 1.019969329 | S137: 10 | T137: Kerosene | U137: =INDEX(Calculator!$D$6:$CM$36,MATCH($S137&U$2,Calculator!$A$6:$A$36,0),MATCH(U$1&$T137,Calculator!$D$2:$CM$2,0)) -> 0.8713583474 | V137: =INDEX(Calculator!$D$6:$CM$36,MATCH($S137&V$2,Calculator!$A$6:$A$36,0),MATCH(V$1&$T137,Calculator!$D$2:$CM$2,0)) -> 0.9169770168 | AB137: 4 | AC137: Coal | AD137: =INDEX(P137:V137,0, MATCH($AB$1,$P$1:$V$1,0)) -> 1.019969329 | AF137: Coal | AG137: 4 | AH137: 1.019969329
N138: 5 | O138: Coal | P138: =INDEX(Calculator!$D$6:$CM$36,MATCH($N138&P$2,Calculator!$A$6:$A$36,0),MATCH(P$1&$O138,Calculator!$D$2:$CM$2,0)) -> 1.012576658 | Q138: =INDEX(Calculator!$D$6:$CM$36,MATCH($N138&Q$2,Calculator!$A$6:$A$36,0),MATCH(Q$1&$O138,Calculator!$D$2:$CM$2,0)) -> 1.012576658 | S138: 11 | T138: Kerosene | U138: =INDEX(Calculator!$D$6:$CM$36,MATCH($S138&U$2,Calculator!$A$6:$A$36,0),MATCH(U$1&$T138,Calculator!$D$2:$CM$2,0)) -> 0.8739676312 | V138: =INDEX(Calculator!$D$6:$CM$36,MATCH($S138&V$2,Calculator!$A$6:$A$36,0),MATCH(V$1&$T138,Calculator!$D$2:$CM$2,0)) -> 0.921792494 | AB138: 5 | AC138: Coal | AD138: =INDEX(P138:V138,0, MATCH($AB$1,$P$1:$V$1,0)) -> 1.012576658 | AF138: Coal | AG138: 5 | AH138: 1.012576658
N139: 6 | O139: Coal | P139: =INDEX(Calculator!$D$6:$CM$36,MATCH($N139&P$2,Calculator!$A$6:$A$36,0),MATCH(P$1&$O139,Calculator!$D$2:$CM$2,0)) -> 1.007275633 | Q139: =INDEX(Calculator!$D$6:$CM$36,MATCH($N139&Q$2,Calculator!$A$6:$A$36,0),MATCH(Q$1&$O139,Calculator!$D$2:$CM$2,0)) -> 1.007275633 | S139: 12 | T139: Kerosene | U139: =INDEX(Calculator!$D$6:$CM$36,MATCH($S139&U$2,Calculator!$A$6:$A$36,0),MATCH(U$1&$T139,Calculator!$D$2:$CM$2,0)) -> 0.8769384108 | V139: =INDEX(Calculator!$D$6:$CM$36,MATCH($S139&V$2,Calculator!$A$6:$A$36,0),MATCH(V$1&$T139,Calculator!$D$2:$CM$2,0)) -> 0.9269204142 | AB139: 6 | AC139: Coal | AD139: =INDEX(P139:V139,0, MATCH($AB$1,$P$1:$V$1,0)) -> 1.007275633 | AF139: Coal | AG139: 6 | AH139: =AD139 -> 1.007275633
N140: 7 | O140: Coal | P140: =INDEX(Calculator!$D$6:$CM$36,MATCH($N140&P$2,Calculator!$A$6:$A$36,0),MATCH(P$1&$O140,Calculator!$D$2:$CM$2,0)) -> 1.003150888 | Q140: =INDEX(Calculator!$D$6:$CM$36,MATCH($N140&Q$2,Calculator!$A$6:$A$36,0),MATCH(Q$1&$O140,Calculator!$D$2:$CM$2,0)) -> 1.003150888 | S140: 13 | T140: Kerosene | U140: =INDEX(Calculator!$D$6:$CM$36,MATCH($S140&U$2,Calculator!$A$6:$A$36,0),MATCH(U$1&$T140,Calculator!$D$2:$CM$2,0)) -> 0.8794293298 | V140: =INDEX(Calculator!$D$6:$CM$36,MATCH($S140&V$2,Calculator!$A$6:$A$36,0),MATCH(V$1&$T140,Calculator!$D$2:$CM$2,0)) -> 0.931633588 | AB140: 7 | AC140: Coal | AD140: =INDEX(P140:V140,0, MATCH($AB$1,$P$1:$V$1,0)) -> 1.003150888 | AF140: Coal | AG140: 7 | AH140: 1.003150888
N141: 8 | O141: Coal | P141: =INDEX(Calculator!$D$6:$CM$36,MATCH($N141&P$2,Calculator!$A$6:$A$36,0),MATCH(P$1&$O141,Calculator!$D$2:$CM$2,0)) -> 0.9988647226 | Q141: =INDEX(Calculator!$D$6:$CM$36,MATCH($N141&Q$2,Calculator!$A$6:$A$36,0),MATCH(Q$1&$O141,Calculator!$D$2:$CM$2,0)) -> 0.9988647226 | S141: 14 | T141: Kerosene | U141: =INDEX(Calculator!$D$6:$CM$36,MATCH($S141&U$2,Calculator!$A$6:$A$36,0),MATCH(U$1&$T141,Calculator!$D$2:$CM$2,0)) -> 0.8818304268 | V141: =INDEX(Calculator!$D$6:$CM$36,MATCH($S141&V$2,Calculator!$A$6:$A$36,0),MATCH(V$1&$T141,Calculator!$D$2:$CM$2,0)) -> 0.9388293844 | AB141: 8 | AC141: Coal | AD141: =INDEX(P141:V141,0, MATCH($AB$1,$P$1:$V$1,0)) -> 0.9988647226 | AF141: Coal | AG141: 8 | AH141: 0.9988647226
N142: 9 | O142: Coal | P142: =INDEX(Calculator!$D$6:$CM$36,MATCH($N142&P$2,Calculator!$A$6:$A$36,0),MATCH(P$1&$O142,Calculator!$D$2:$CM$2,0)) -> 0.9939538207 | Q142: =INDEX(Calculator!$D$6:$CM$36,MATCH($N142&Q$2,Calculator!$A$6:$A$36,0),MATCH(Q$1&$O142,Calculator!$D$2:$CM$2,0)) -> 0.9939538207 | S142: 15 | T142: Kerosene | U142: =INDEX(Calculator!$D$6:$CM$36,MATCH($S142&U$2,Calculator!$A$6:$A$36,0),MATCH(U$1&$T142,Calculator!$D$2:$CM$2,0)) -> 0.8845873963 | V142: =INDEX(Calculator!$D$6:$CM$36,MATCH($S142&V$2,Calculator!$A$6:$A$36,0),MATCH(V$1&$T142,Calculator!$D$2:$CM$2,0)) -> 0.9437725073 | AB142: 9 | AC142: Coal | AD142: =INDEX(P142:V142,0, MATCH($AB$1,$P$1:$V$1,0)) -> 0.9939538207 | AF142: Coal | AG142: 9 | AH142: 0.9939538207
N143: 10 | O143: Coal | P143: =INDEX(Calculator!$D$6:$CM$36,MATCH($N143&P$2,Calculator!$A$6:$A$36,0),MATCH(P$1&$O143,Calculator!$D$2:$CM$2,0)) -> 0.9899925963 | Q143: =INDEX(Calculator!$D$6:$CM$36,MATCH($N143&Q$2,Calculator!$A$6:$A$36,0),MATCH(Q$1&$O143,Calculator!$D$2:$CM$2,0)) -> 0.9899925963 | S143: 16 | T143: Kerosene | U143: =INDEX(Calculator!$D$6:$CM$36,MATCH($S143&U$2,Calculator!$A$6:$A$36,0),MATCH(U$1&$T143,Calculator!$D$2:$CM$2,0)) -> 0.8866746989 | V143: =INDEX(Calculator!$D$6:$CM$36,MATCH($S143&V$2,Calculator!$A$6:$A$36,0),MATCH(V$1&$T143,Calculator!$D$2:$CM$2,0)) -> 0.9481368328 | AB143: 10 | AC143: Coal | AD143: =INDEX(P143:V143,0, MATCH($AB$1,$P$1:$V$1,0)) -> 0.9899925963 | AF143: Coal | AG143: 10 | AH143: 0.9899925963
N144: 11 | O144: Coal | P144: =INDEX(Calculator!$D$6:$CM$36,MATCH($N144&P$2,Calculator!$A$6:$A$36,0),MATCH(P$1&$O144,Calculator!$D$2:$CM$2,0)) -> 0.9875437749 | Q144: =INDEX(Calculator!$D$6:$CM$36,MATCH($N144&Q$2,Calculator!$A$6:$A$36,0),MATCH(Q$1&$O144,Calculator!$D$2:$CM$2,0)) -> 0.9875437749 | S144: 17 | T144: Kerosene | U144: =INDEX(Calculator!$D$6:$CM$36,MATCH($S144&U$2,Calculator!$A$6:$A$36,0),MATCH(U$1&$T144,Calculator!$D$2:$CM$2,0)) -> 0.8889455339 | V144: =INDEX(Calculator!$D$6:$CM$36,MATCH($S144&V$2,Calculator!$A$6:$A$36,0),MATCH(V$1&$T144,Calculator!$D$2:$CM$2,0)) -> 0.9526597866 | AB144: 11 | AC144: Coal | AD144: =INDEX(P144:V144,0, MATCH($AB$1,$P$1:$V$1,0)) -> 0.9875437749 | AF144: Coal | AG144: 11 | AH144: 0.9875437749
N145: 12 | O145: Coal | P145: =INDEX(Calculator!$D$6:$CM$36,MATCH($N145&P$2,Calculator!$A$6:$A$36,0),MATCH(P$1&$O145,Calculator!$D$2:$CM$2,0)) -> 0.9855026357 | Q145: =INDEX(Calculator!$D$6:$CM$36,MATCH($N145&Q$2,Calculator!$A$6:$A$36,0),MATCH(Q$1&$O145,Calculator!$D$2:$CM$2,0)) -> 0.9855026357 | S145: 18 | T145: Kerosene | U145: =INDEX(Calculator!$D$6:$CM$36,MATCH($S145&U$2,Calculator!$A$6:$A$36,0),MATCH(U$1&$T145,Calculator!$D$2:$CM$2,0)) -> 0.8932955339 | V145: =INDEX(Calculator!$D$6:$CM$36,MATCH($S145&V$2,Calculator!$A$6:$A$36,0),MATCH(V$1&$T145,Calculator!$D$2:$CM$2,0)) -> 0.9589797759 | AB145: 12 | AC145: Coal | AD145: =INDEX(P145:V145,0, MATCH($AB$1,$P$1:$V$1,0)) -> 0.9855026357 | AF145: Coal | AG145: 12 | AH145: 0.9855026357
N146: 13 | O146: Coal | P146: =INDEX(Calculator!$D$6:$CM$36,MATCH($N146&P$2,Calculator!$A$6:$A$36,0),MATCH(P$1&$O146,Calculator!$D$2:$CM$2,0)) -> 0.9838263551 | Q146: =INDEX(Calculator!$D$6:$CM$36,MATCH($N146&Q$2,Calculator!$A$6:$A$36,0),MATCH(Q$1&$O146,Calculator!$D$2:$CM$2,0)) -> 0.9838263551 | S146: 19 | T146: Kerosene | U146: =INDEX(Calculator!$D$6:$CM$36,MATCH($S146&U$2,Calculator!$A$6:$A$36,0),MATCH(U$1&$T146,Calculator!$D$2:$CM$2,0)) -> 0.8948652169 | V146: =INDEX(Calculator!$D$6:$CM$36,MATCH($S146&V$2,Calculator!$A$6:$A$36,0),MATCH(V$1&$T146,Calculator!$D$2:$CM$2,0)) -> 0.9628967194 | AB146: 13 | AC146: Coal | AD146: =INDEX(P146:V146,0, MATCH($AB$1,$P$1:$V$1,0)) -> 0.9838263551 | AF146: Coal | AG146: 13 | AH146: 0.9838263551
N147: 14 | O147: Coal | P147: =INDEX(Calculator!$D$6:$CM$36,MATCH($N147&P$2,Calculator!$A$6:$A$36,0),MATCH(P$1&$O147,Calculator!$D$2:$CM$2,0)) -> 0.9829397656 | Q147: =INDEX(Calculator!$D$6:$CM$36,MATCH($N147&Q$2,Calculator!$A$6:$A$36,0),MATCH(Q$1&$O147,Calculator!$D$2:$CM$2,0)) -> 0.9829397656 | S147: 20 | T147: Kerosene | U147: =INDEX(Calculator!$D$6:$CM$36,MATCH($S147&U$2,Calculator!$A$6:$A$36,0),MATCH(U$1&$T147,Calculator!$D$2:$CM$2,0)) -> 0.8977533564 | V147: =INDEX(Calculator!$D$6:$CM$36,MATCH($S147&V$2,Calculator!$A$6:$A$36,0),MATCH(V$1&$T147,Calculator!$D$2:$CM$2,0)) -> 0.9679532134 | AB147: 14 | AC147: Coal | AD147: =INDEX(P147:V147,0, MATCH($AB$1,$P$1:$V$1,0)) -> 0.9829397656 | AF147: Coal | AG147: 14 | AH147: 0.9829397656
N148: 15 | O148: Coal | P148: =INDEX(Calculator!$D$6:$CM$36,MATCH($N148&P$2,Calculator!$A$6:$A$36,0),MATCH(P$1&$O148,Calculator!$D$2:$CM$2,0)) -> 0.9828057392 | Q148: =INDEX(Calculator!$D$6:$CM$36,MATCH($N148&Q$2,Calculator!$A$6:$A$36,0),MATCH(Q$1&$O148,Calculator!$D$2:$CM$2,0)) -> 0.9828057392 | S148: 21 | T148: Kerosene | U148: =INDEX(Calculator!$D$6:$CM$36,MATCH($S148&U$2,Calculator!$A$6:$A$36,0),MATCH(U$1&$T148,Calculator!$D$2:$CM$2,0)) -> 0.8971009776 | V148: =INDEX(Calculator!$D$6:$CM$36,MATCH($S148&V$2,Calculator!$A$6:$A$36,0),MATCH(V$1&$T148,Calculator!$D$2:$CM$2,0)) -> 0.9725098712 | AB148: 15 | AC148: Coal | AD148: =INDEX(P148:V148,0, MATCH($AB$1,$P$1:$V$1,0)) -> 0.9828057392 | AF148: Coal | AG148: 15 | AH148: 0.9828057392
N149: 16 | O149: Coal | P149: =INDEX(Calculator!$D$6:$CM$36,MATCH($N149&P$2,Calculator!$A$6:$A$36,0),MATCH(P$1&$O149,Calculator!$D$2:$CM$2,0)) -> 0.9824234529 | Q149: =INDEX(Calculator!$D$6:$CM$36,MATCH($N149&Q$2,Calculator!$A$6:$A$36,0),MATCH(Q$1&$O149,Calculator!$D$2:$CM$2,0)) -> 0.9824234529 | S149: 22 | T149: Kerosene | U149: =INDEX(Calculator!$D$6:$CM$36,MATCH($S149&U$2,Calculator!$A$6:$A$36,0),MATCH(U$1&$T149,Calculator!$D$2:$CM$2,0)) -> 0.8988804625 | V149: =INDEX(Calculator!$D$6:$CM$36,MATCH($S149&V$2,Calculator!$A$6:$A$36,0),MATCH(V$1&$T149,Calculator!$D$2:$CM$2,0)) -> 0.9766081479 | AB149: 16 | AC149: Coal | AD149: =INDEX(P149:V149,0, MATCH($AB$1,$P$1:$V$1,0)) -> 0.9824234529 | AF149: Coal | AG149: 16 | AH149: 0.9824234529
N150: 17 | O150: Coal | P150: =INDEX(Calculator!$D$6:$CM$36,MATCH($N150&P$2,Calculator!$A$6:$A$36,0),MATCH(P$1&$O150,Calculator!$D$2:$CM$2,0)) -> 0.9806983037 | Q150: =INDEX(Calculator!$D$6:$CM$36,MATCH($N150&Q$2,Calculator!$A$6:$A$36,0),MATCH(Q$1&$O150,Calculator!$D$2:$CM$2,0)) -> 0.9806983037 | S150: 23 | T150: Kerosene | U150: =INDEX(Calculator!$D$6:$CM$36,MATCH($S150&U$2,Calculator!$A$6:$A$36,0),MATCH(U$1&$T150,Calculator!$D$2:$CM$2,0)) -> 0.9076485462 | V150: =INDEX(Calculator!$D$6:$CM$36,MATCH($S150&V$2,Calculator!$A$6:$A$36,0),MATCH(V$1&$T150,Calculator!$D$2:$CM$2,0)) -> 0.9867467152 | AB150: 17 | AC150: Coal | AD150: =INDEX(P150:V150,0, MATCH($AB$1,$P$1:$V$1,0)) -> 0.9806983037 | AF150: Coal | AG150: 17 | AH150: 0.9806983037
N151: 18 | O151: Coal | P151: =INDEX(Calculator!$D$6:$CM$36,MATCH($N151&P$2,Calculator!$A$6:$A$36,0),MATCH(P$1&$O151,Calculator!$D$2:$CM$2,0)) -> 0.9789899013 | Q151: =INDEX(Calculator!$D$6:$CM$36,MATCH($N151&Q$2,Calculator!$A$6:$A$36,0),MATCH(Q$1&$O151,Calculator!$D$2:$CM$2,0)) -> 0.9789899013 | S151: 24 | T151: Kerosene | U151: =INDEX(Calculator!$D$6:$CM$36,MATCH($S151&U$2,Calculator!$A$6:$A$36,0),MATCH(U$1&$T151,Calculator!$D$2:$CM$2,0)) -> 0.9108789428 | V151: =INDEX(Calculator!$D$6:$CM$36,MATCH($S151&V$2,Calculator!$A$6:$A$36,0),MATCH(V$1&$T151,Calculator!$D$2:$CM$2,0)) -> 0.9920990242 | AB151: 18 | AC151: Coal | AD151: =INDEX(P151:V151,0, MATCH($AB$1,$P$1:$V$1,0)) -> 0.9789899013 | AF151: Coal | AG151: 18 | AH151: 0.9789899013
N152: 19 | O152: Coal | P152: =INDEX(Calculator!$D$6:$CM$36,MATCH($N152&P$2,Calculator!$A$6:$A$36,0),MATCH(P$1&$O152,Calculator!$D$2:$CM$2,0)) -> 0.9773424782 | Q152: =INDEX(Calculator!$D$6:$CM$36,MATCH($N152&Q$2,Calculator!$A$6:$A$36,0),MATCH(Q$1&$O152,Calculator!$D$2:$CM$2,0)) -> 0.9773424782 | S152: 25 | T152: Kerosene | U152: =INDEX(Calculator!$D$6:$CM$36,MATCH($S152&U$2,Calculator!$A$6:$A$36,0),MATCH(U$1&$T152,Calculator!$D$2:$CM$2,0)) -> 0.9118963061 | V152: =INDEX(Calculator!$D$6:$CM$36,MATCH($S152&V$2,Calculator!$A$6:$A$36,0),MATCH(V$1&$T152,Calculator!$D$2:$CM$2,0)) -> 0.9955385943 | AB152: 19 | AC152: Coal | AD152: =INDEX(P152:V152,0, MATCH($AB$1,$P$1:$V$1,0)) -> 0.9773424782 | AF152: Coal | AG152: 19 | AH152: 0.9773424782
N153: 20 | O153: Coal | P153: =INDEX(Calculator!$D$6:$CM$36,MATCH($N153&P$2,Calculator!$A$6:$A$36,0),MATCH(P$1&$O153,Calculator!$D$2:$CM$2,0)) -> 0.9772597966 | Q153: =INDEX(Calculator!$D$6:$CM$36,MATCH($N153&Q$2,Calculator!$A$6:$A$36,0),MATCH(Q$1&$O153,Calculator!$D$2:$CM$2,0)) -> 0.9772597966 | S153: 26 | T153: Kerosene | U153: =INDEX(Calculator!$D$6:$CM$36,MATCH($S153&U$2,Calculator!$A$6:$A$36,0),MATCH(U$1&$T153,Calculator!$D$2:$CM$2,0)) -> 0.9137187986 | V153: =INDEX(Calculator!$D$6:$CM$36,MATCH($S153&V$2,Calculator!$A$6:$A$36,0),MATCH(V$1&$T153,Calculator!$D$2:$CM$2,0)) -> 0.9996740427 | AB153: 20 | AC153: Coal | AD153: =INDEX(P153:V153,0, MATCH($AB$1,$P$1:$V$1,0)) -> 0.9772597966 | AF153: Coal | AG153: 20 | AH153: 0.9772597966
N154: 21 | O154: Coal | P154: =INDEX(Calculator!$D$6:$CM$36,MATCH($N154&P$2,Calculator!$A$6:$A$36,0),MATCH(P$1&$O154,Calculator!$D$2:$CM$2,0)) -> 0.9779675359 | Q154: =INDEX(Calculator!$D$6:$CM$36,MATCH($N154&Q$2,Calculator!$A$6:$A$36,0),MATCH(Q$1&$O154,Calculator!$D$2:$CM$2,0)) -> 0.9779675359 | S154: 27 | T154: Kerosene | U154: =INDEX(Calculator!$D$6:$CM$36,MATCH($S154&U$2,Calculator!$A$6:$A$36,0),MATCH(U$1&$T154,Calculator!$D$2:$CM$2,0)) -> 0.9143002515 | V154: =INDEX(Calculator!$D$6:$CM$36,MATCH($S154&V$2,Calculator!$A$6:$A$36,0),MATCH(V$1&$T154,Calculator!$D$2:$CM$2,0)) -> 1.005297109 | AB154: 21 | AC154: Coal | AD154: =INDEX(P154:V154,0, MATCH($AB$1,$P$1:$V$1,0)) -> 0.9779675359 | AF154: Coal | AG154: 21 | AH154: 0.9779675359
N155: 22 | O155: Coal | P155: =INDEX(Calculator!$D$6:$CM$36,MATCH($N155&P$2,Calculator!$A$6:$A$36,0),MATCH(P$1&$O155,Calculator!$D$2:$CM$2,0)) -> 0.9798598803 | Q155: =INDEX(Calculator!$D$6:$CM$36,MATCH($N155&Q$2,Calculator!$A$6:$A$36,0),MATCH(Q$1&$O155,Calculator!$D$2:$CM$2,0)) -> 0.9798598803 | S155: 28 | T155: Kerosene | U155: =INDEX(Calculator!$D$6:$CM$36,MATCH($S155&U$2,Calculator!$A$6:$A$36,0),MATCH(U$1&$T155,Calculator!$D$2:$CM$2,0)) -> 0.9165501031 | V155: =INDEX(Calculator!$D$6:$CM$36,MATCH($S155&V$2,Calculator!$A$6:$A$36,0),MATCH(V$1&$T155,Calculator!$D$2:$CM$2,0)) -> 1.009801927 | AB155: 22 | AC155: Coal | AD155: =INDEX(P155:V155,0, MATCH($AB$1,$P$1:$V$1,0)) -> 0.9798598803 | AF155: Coal | AG155: 22 | AH155: 0.9798598803
N156: 23 | O156: Coal | P156: =INDEX(Calculator!$D$6:$CM$36,MATCH($N156&P$2,Calculator!$A$6:$A$36,0),MATCH(P$1&$O156,Calculator!$D$2:$CM$2,0)) -> 0.9801098274 | Q156: =INDEX(Calculator!$D$6:$CM$36,MATCH($N156&Q$2,Calculator!$A$6:$A$36,0),MATCH(Q$1&$O156,Calculator!$D$2:$CM$2,0)) -> 0.9801098274 | S156: 29 | T156: Kerosene | U156: =INDEX(Calculator!$D$6:$CM$36,MATCH($S156&U$2,Calculator!$A$6:$A$36,0),MATCH(U$1&$T156,Calculator!$D$2:$CM$2,0)) -> 0.9195289522 | V156: =INDEX(Calculator!$D$6:$CM$36,MATCH($S156&V$2,Calculator!$A$6:$A$36,0),MATCH(V$1&$T156,Calculator!$D$2:$CM$2,0)) -> 1.012376565 | AB156: 23 | AC156: Coal | AD156: =INDEX(P156:V156,0, MATCH($AB$1,$P$1:$V$1,0)) -> 0.9801098274 | AF156: Coal | AG156: 23 | AH156: 0.9801098274
N157: 24 | O157: Coal | P157: =INDEX(Calculator!$D$6:$CM$36,MATCH($N157&P$2,Calculator!$A$6:$A$36,0),MATCH(P$1&$O157,Calculator!$D$2:$CM$2,0)) -> 6.298604853 | Q157: =INDEX(Calculator!$D$6:$CM$36,MATCH($N157&Q$2,Calculator!$A$6:$A$36,0),MATCH(Q$1&$O157,Calculator!$D$2:$CM$2,0)) -> 6.298604853 | S157: 30 | T157: Kerosene | U157: =INDEX(Calculator!$D$6:$CM$36,MATCH($S157&U$2,Calculator!$A$6:$A$36,0),MATCH(U$1&$T157,Calculator!$D$2:$CM$2,0)) -> 0.9225174828 | V157: =INDEX(Calculator!$D$6:$CM$36,MATCH($S157&V$2,Calculator!$A$6:$A$36,0),MATCH(V$1&$T157,Calculator!$D$2:$CM$2,0)) -> 1.014959571 | AB157: 24 | AC157: Coal | AD157: =INDEX(P157:V157,0, MATCH($AB$1,$P$1:$V$1,0)) -> 6.298604853 | AF157: Coal | AG157: 24 | AH157: 6.298604853
N158: 25 | O158: Coal | P158: =INDEX(Calculator!$D$6:$CM$36,MATCH($N158&P$2,Calculator!$A$6:$A$36,0),MATCH(P$1&$O158,Calculator!$D$2:$CM$2,0)) -> -4.496100383 | Q158: =INDEX(Calculator!$D$6:$CM$36,MATCH($N158&Q$2,Calculator!$A$6:$A$36,0),MATCH(Q$1&$O158,Calculator!$D$2:$CM$2,0)) -> -4.496100383 | S158: 0 | T158: Wood | U158: =INDEX(Calculator!$D$6:$CM$36,MATCH($S158&U$2,Calculator!$A$6:$A$36,0),MATCH(U$1&$T158,Calculator!$D$2:$CM$2,0)) -> 1 | V158: =INDEX(Calculator!$D$6:$CM$36,MATCH($S158&V$2,Calculator!$A$6:$A$36,0),MATCH(V$1&$T158,Calculator!$D$2:$CM$2,0)) -> 1 | AB158: 25 | AC158: Coal | AD158: =INDEX(P158:V158,0, MATCH($AB$1,$P$1:$V$1,0)) -> -4.496100383 | AF158: Coal | AG158: 25 | AH158: -4.496100383
N159: 0 | O159: Kerosene | P159: =INDEX(Calculator!$D$6:$CM$36,MATCH($N159&P$2,Calculator!$A$6:$A$36,0),MATCH(P$1&$O159,Calculator!$D$2:$CM$2,0)) -> 1 | Q159: =INDEX(Calculator!$D$6:$CM$36,MATCH($N159&Q$2,Calculator!$A$6:$A$36,0),MATCH(Q$1&$O159,Calculator!$D$2:$CM$2,0)) -> 1 | S159: 1 | T159: Wood | U159: =INDEX(Calculator!$D$6:$CM$36,MATCH($S159&U$2,Calculator!$A$6:$A$36,0),MATCH(U$1&$T159,Calculator!$D$2:$CM$2,0)) -> 1 | V159: =INDEX(Calculator!$D$6:$CM$36,MATCH($S159&V$2,Calculator!$A$6:$A$36,0),MATCH(V$1&$T159,Calculator!$D$2:$CM$2,0)) -> 1.004980676 | AB159: 0 | AC159: Kerosene | AD159: =INDEX(P159:V159,0, MATCH($AB$1,$P$1:$V$1,0)) -> 1 | AF159: Kerosene | AG159: 0 | AH159: 1
N160: 1 | O160: Kerosene | P160: =INDEX(Calculator!$D$6:$CM$36,MATCH($N160&P$2,Calculator!$A$6:$A$36,0),MATCH(P$1&$O160,Calculator!$D$2:$CM$2,0)) -> 0.959682826 | Q160: =INDEX(Calculator!$D$6:$CM$36,MATCH($N160&Q$2,Calculator!$A$6:$A$36,0),MATCH(Q$1&$O160,Calculator!$D$2:$CM$2,0)) -> 0.9677138647 | S160: 2 | T160: Wood | U160: =INDEX(Calculator!$D$6:$CM$36,MATCH($S160&U$2,Calculator!$A$6:$A$36,0),MATCH(U$1&$T160,Calculator!$D$2:$CM$2,0)) -> 1 | V160: =INDEX(Calculator!$D$6:$CM$36,MATCH($S160&V$2,Calculator!$A$6:$A$36,0),MATCH(V$1&$T160,Calculator!$D$2:$CM$2,0)) -> 1.009961351 | AB160: 1 | AC160: Kerosene | AD160: =INDEX(P160:V160,0, MATCH($AB$1,$P$1:$V$1,0)) -> 0.9677138647 | AF160: Kerosene | AG160: 1 | AH160: 0.9677138647
N161: 2 | O161: Kerosene | P161: =INDEX(Calculator!$D$6:$CM$36,MATCH($N161&P$2,Calculator!$A$6:$A$36,0),MATCH(P$1&$O161,Calculator!$D$2:$CM$2,0)) -> 0.9133089517 | Q161: =INDEX(Calculator!$D$6:$CM$36,MATCH($N161&Q$2,Calculator!$A$6:$A$36,0),MATCH(Q$1&$O161,Calculator!$D$2:$CM$2,0)) -> 0.9301928845 | S161: 3 | T161: Wood | U161: =INDEX(Calculator!$D$6:$CM$36,MATCH($S161&U$2,Calculator!$A$6:$A$36,0),MATCH(U$1&$T161,Calculator!$D$2:$CM$2,0)) -> 1 | V161: =INDEX(Calculator!$D$6:$CM$36,MATCH($S161&V$2,Calculator!$A$6:$A$36,0),MATCH(V$1&$T161,Calculator!$D$2:$CM$2,0)) -> 1.014942027 | AB161: 2 | AC161: Kerosene | AD161: =INDEX(P161:V161,0, MATCH($AB$1,$P$1:$V$1,0)) -> 0.9301928845 | AF161: Kerosene | AG161: 2 | AH161: 0.9301928845
N162: 3 | O162: Kerosene | P162: =INDEX(Calculator!$D$6:$CM$36,MATCH($N162&P$2,Calculator!$A$6:$A$36,0),MATCH(P$1&$O162,Calculator!$D$2:$CM$2,0)) -> 0.8896472382 | Q162: =INDEX(Calculator!$D$6:$CM$36,MATCH($N162&Q$2,Calculator!$A$6:$A$36,0),MATCH(Q$1&$O162,Calculator!$D$2:$CM$2,0)) -> 0.9123021704 | S162: 4 | T162: Wood | U162: =INDEX(Calculator!$D$6:$CM$36,MATCH($S162&U$2,Calculator!$A$6:$A$36,0),MATCH(U$1&$T162,Calculator!$D$2:$CM$2,0)) -> 1 | V162: =INDEX(Calculator!$D$6:$CM$36,MATCH($S162&V$2,Calculator!$A$6:$A$36,0),MATCH(V$1&$T162,Calculator!$D$2:$CM$2,0)) -> 1.019922703 | AB162: 3 | AC162: Kerosene | AD162: =INDEX(P162:V162,0, MATCH($AB$1,$P$1:$V$1,0)) -> 0.9123021704 | AF162: Kerosene | AG162: 3 | AH162: 0.9123021704
N163: 4 | O163: Kerosene | P163: =INDEX(Calculator!$D$6:$CM$36,MATCH($N163&P$2,Calculator!$A$6:$A$36,0),MATCH(P$1&$O163,Calculator!$D$2:$CM$2,0)) -> 0.8752658539 | Q163: =INDEX(Calculator!$D$6:$CM$36,MATCH($N163&Q$2,Calculator!$A$6:$A$36,0),MATCH(Q$1&$O163,Calculator!$D$2:$CM$2,0)) -> 0.9024325043 | S163: 5 | T163: Wood | U163: =INDEX(Calculator!$D$6:$CM$36,MATCH($S163&U$2,Calculator!$A$6:$A$36,0),MATCH(U$1&$T163,Calculator!$D$2:$CM$2,0)) -> 1 | V163: =INDEX(Calculator!$D$6:$CM$36,MATCH($S163&V$2,Calculator!$A$6:$A$36,0),MATCH(V$1&$T163,Calculator!$D$2:$CM$2,0)) -> 1.029884054 | AB163: 4 | AC163: Kerosene | AD163: =INDEX(P163:V163,0, MATCH($AB$1,$P$1:$V$1,0)) -> 0.9024325043 | AF163: Kerosene | AG163: 4 | AH163: 0.9024325043
N164: 5 | O164: Kerosene | P164: =INDEX(Calculator!$D$6:$CM$36,MATCH($N164&P$2,Calculator!$A$6:$A$36,0),MATCH(P$1&$O164,Calculator!$D$2:$CM$2,0)) -> 0.8623267979 | Q164: =INDEX(Calculator!$D$6:$CM$36,MATCH($N164&Q$2,Calculator!$A$6:$A$36,0),MATCH(Q$1&$O164,Calculator!$D$2:$CM$2,0)) -> 0.8963697082 | S164: 6 | T164: Wood | U164: =INDEX(Calculator!$D$6:$CM$36,MATCH($S164&U$2,Calculator!$A$6:$A$36,0),MATCH(U$1&$T164,Calculator!$D$2:$CM$2,0)) -> 1 | V164: =INDEX(Calculator!$D$6:$CM$36,MATCH($S164&V$2,Calculator!$A$6:$A$36,0),MATCH(V$1&$T164,Calculator!$D$2:$CM$2,0)) -> 1.03486473 | AB164: 5 | AC164: Kerosene | AD164: =INDEX(P164:V164,0, MATCH($AB$1,$P$1:$V$1,0)) -> 0.8963697082 | AF164: Kerosene | AG164: 5 | AH164: 0.8963697082
N165: 6 | O165: Kerosene | P165: =INDEX(Calculator!$D$6:$CM$36,MATCH($N165&P$2,Calculator!$A$6:$A$36,0),MATCH(P$1&$O165,Calculator!$D$2:$CM$2,0)) -> 0.8609786136 | Q165: =INDEX(Calculator!$D$6:$CM$36,MATCH($N165&Q$2,Calculator!$A$6:$A$36,0),MATCH(Q$1&$O165,Calculator!$D$2:$CM$2,0)) -> 0.8977647204 | S165: 7 | T165: Wood | U165: =INDEX(Calculator!$D$6:$CM$36,MATCH($S165&U$2,Calculator!$A$6:$A$36,0),MATCH(U$1&$T165,Calculator!$D$2:$CM$2,0)) -> 1 | V165: =INDEX(Calculator!$D$6:$CM$36,MATCH($S165&V$2,Calculator!$A$6:$A$36,0),MATCH(V$1&$T165,Calculator!$D$2:$CM$2,0)) -> 1.039845405 | AB165: 6 | AC165: Kerosene | AD165: =INDEX(P165:V165,0, MATCH($AB$1,$P$1:$V$1,0)) -> 0.8977647204 | AF165: Kerosene | AG165: 6 | AH165: 0.8977647204
N166: 7 | O166: Kerosene | P166: =INDEX(Calculator!$D$6:$CM$36,MATCH($N166&P$2,Calculator!$A$6:$A$36,0),MATCH(P$1&$O166,Calculator!$D$2:$CM$2,0)) -> 0.8620555986 | Q166: =INDEX(Calculator!$D$6:$CM$36,MATCH($N166&Q$2,Calculator!$A$6:$A$36,0),MATCH(Q$1&$O166,Calculator!$D$2:$CM$2,0)) -> 0.9012558219 | S166: 8 | T166: Wood | U166: =INDEX(Calculator!$D$6:$CM$36,MATCH($S166&U$2,Calculator!$A$6:$A$36,0),MATCH(U$1&$T166,Calculator!$D$2:$CM$2,0)) -> 1 | V166: =INDEX(Calculator!$D$6:$CM$36,MATCH($S166&V$2,Calculator!$A$6:$A$36,0),MATCH(V$1&$T166,Calculator!$D$2:$CM$2,0)) -> 1.044826081 | AB166: 7 | AC166: Kerosene | AD166: =INDEX(P166:V166,0, MATCH($AB$1,$P$1:$V$1,0)) -> 0.9012558219 | AF166: Kerosene | AG166: 7 | AH166: 0.9012558219
N167: 8 | O167: Kerosene | P167: =INDEX(Calculator!$D$6:$CM$36,MATCH($N167&P$2,Calculator!$A$6:$A$36,0),MATCH(P$1&$O167,Calculator!$D$2:$CM$2,0)) -> 0.8654772643 | Q167: =INDEX(Calculator!$D$6:$CM$36,MATCH($N167&Q$2,Calculator!$A$6:$A$36,0),MATCH(Q$1&$O167,Calculator!$D$2:$CM$2,0)) -> 0.906773446 | S167: 9 | T167: Wood | U167: =INDEX(Calculator!$D$6:$CM$36,MATCH($S167&U$2,Calculator!$A$6:$A$36,0),MATCH(U$1&$T167,Calculator!$D$2:$CM$2,0)) -> 1 | V167: =INDEX(Calculator!$D$6:$CM$36,MATCH($S167&V$2,Calculator!$A$6:$A$36,0),MATCH(V$1&$T167,Calculator!$D$2:$CM$2,0)) -> 1.049806757 | AB167: 8 | AC167: Kerosene | AD167: =INDEX(P167:V167,0, MATCH($AB$1,$P$1:$V$1,0)) -> 0.906773446 | AF167: Kerosene | AG167: 8 | AH167: 0.906773446
N168: 9 | O168: Kerosene | P168: =INDEX(Calculator!$D$6:$CM$36,MATCH($N168&P$2,Calculator!$A$6:$A$36,0),MATCH(P$1&$O168,Calculator!$D$2:$CM$2,0)) -> 0.8693300232 | Q168: =INDEX(Calculator!$D$6:$CM$36,MATCH($N168&Q$2,Calculator!$A$6:$A$36,0),MATCH(Q$1&$O168,Calculator!$D$2:$CM$2,0)) -> 0.9126636667 | S168: 10 | T168: Wood | U168: =INDEX(Calculator!$D$6:$CM$36,MATCH($S168&U$2,Calculator!$A$6:$A$36,0),MATCH(U$1&$T168,Calculator!$D$2:$CM$2,0)) -> 1 | V168: =INDEX(Calculator!$D$6:$CM$36,MATCH($S168&V$2,Calculator!$A$6:$A$36,0),MATCH(V$1&$T168,Calculator!$D$2:$CM$2,0)) -> 1.054787433 | AB168: 9 | AC168: Kerosene | AD168: =INDEX(P168:V168,0, MATCH($AB$1,$P$1:$V$1,0)) -> 0.9126636667 | AF168: Kerosene | AG168: 9 | AH168: 0.9126636667
N169: 10 | O169: Kerosene | P169: =INDEX(Calculator!$D$6:$CM$36,MATCH($N169&P$2,Calculator!$A$6:$A$36,0),MATCH(P$1&$O169,Calculator!$D$2:$CM$2,0)) -> 0.8713583474 | Q169: =INDEX(Calculator!$D$6:$CM$36,MATCH($N169&Q$2,Calculator!$A$6:$A$36,0),MATCH(Q$1&$O169,Calculator!$D$2:$CM$2,0)) -> 0.9169770168 | S169: 11 | T169: Wood | U169: =INDEX(Calculator!$D$6:$CM$36,MATCH($S169&U$2,Calculator!$A$6:$A$36,0),MATCH(U$1&$T169,Calculator!$D$2:$CM$2,0)) -> 1 | V169: =INDEX(Calculator!$D$6:$CM$36,MATCH($S169&V$2,Calculator!$A$6:$A$36,0),MATCH(V$1&$T169,Calculator!$D$2:$CM$2,0)) -> 1.059768108 | AB169: 10 | AC169: Kerosene | AD169: =INDEX(P169:V169,0, MATCH($AB$1,$P$1:$V$1,0)) -> 0.9169770168 | AF169: Kerosene | AG169: 10 | AH169: 0.9169770168
N170: 11 | O170: Kerosene | P170: =INDEX(Calculator!$D$6:$CM$36,MATCH($N170&P$2,Calculator!$A$6:$A$36,0),MATCH(P$1&$O170,Calculator!$D$2:$CM$2,0)) -> 0.8739676312 | Q170: =INDEX(Calculator!$D$6:$CM$36,MATCH($N170&Q$2,Calculator!$A$6:$A$36,0),MATCH(Q$1&$O170,Calculator!$D$2:$CM$2,0)) -> 0.921792494 | S170: 12 | T170: Wood | U170: =INDEX(Calculator!$D$6:$CM$36,MATCH($S170&U$2,Calculator!$A$6:$A$36,0),MATCH(U$1&$T170,Calculator!$D$2:$CM$2,0)) -> 1 | V170: =INDEX(Calculator!$D$6:$CM$36,MATCH($S170&V$2,Calculator!$A$6:$A$36,0),MATCH(V$1&$T170,Calculator!$D$2:$CM$2,0)) -> 1.064748784 | AB170: 11 | AC170: Kerosene | AD170: =INDEX(P170:V170,0, MATCH($AB$1,$P$1:$V$1,0)) -> 0.921792494 | AF170: Kerosene | AG170: 11 | AH170: 0.921792494
N171: 12 | O171: Kerosene | P171: =INDEX(Calculator!$D$6:$CM$36,MATCH($N171&P$2,Calculator!$A$6:$A$36,0),MATCH(P$1&$O171,Calculator!$D$2:$CM$2,0)) -> 0.8769384108 | Q171: =INDEX(Calculator!$D$6:$CM$36,MATCH($N171&Q$2,Calculator!$A$6:$A$36,0),MATCH(Q$1&$O171,Calculator!$D$2:$CM$2,0)) -> 0.9269204142 | S171: 13 | T171: Wood | U171: =INDEX(Calculator!$D$6:$CM$36,MATCH($S171&U$2,Calculator!$A$6:$A$36,0),MATCH(U$1&$T171,Calculator!$D$2:$CM$2,0)) -> 1 | V171: =INDEX(Calculator!$D$6:$CM$36,MATCH($S171&V$2,Calculator!$A$6:$A$36,0),MATCH(V$1&$T171,Calculator!$D$2:$CM$2,0)) -> 1.06972946 | AB171: 12 | AC171: =IF(OR($AB$1="FPI for v10", $AB$1="FPI_SCC for v10"), $T171, $O171) -> Kerosene | AD171: =INDEX(P171:V171,0, MATCH($AB$1,$P$1:$V$1,0)) -> 0.9269204142 | AF171: Kerosene | AG171: 12 | AH171: 0.9269204142
N172: 13 | O172: Kerosene | P172: =INDEX(Calculator!$D$6:$CM$36,MATCH($N172&P$2,Calculator!$A$6:$A$36,0),MATCH(P$1&$O172,Calculator!$D$2:$CM$2,0)) -> 0.8794293298 | Q172: =INDEX(Calculator!$D$6:$CM$36,MATCH($N172&Q$2,Calculator!$A$6:$A$36,0),MATCH(Q$1&$O172,Calculator!$D$2:$CM$2,0)) -> 0.931633588 | S172: 14 | T172: Wood | U172: =INDEX(Calculator!$D$6:$CM$36,MATCH($S172&U$2,Calculator!$A$6:$A$36,0),MATCH(U$1&$T172,Calculator!$D$2:$CM$2,0)) -> 1 | V172: =INDEX(Calculator!$D$6:$CM$36,MATCH($S172&V$2,Calculator!$A$6:$A$36,0),MATCH(V$1&$T172,Calculator!$D$2:$CM$2,0)) -> 1.079690811 | AB172: =IF(OR($AB$1="FPI for v10", $AB$1="FPI_SCC for v10"), $S172, $N172) -> 13 | AC172: Kerosene | AD172: =INDEX(P172:V172,0, MATCH($AB$1,$P$1:$V$1,0)) -> 0.931633588 | AF172: Kerosene | AG172: 13 | AH172: 0.931633588
N173: 14 | O173: Kerosene | P173: =INDEX(Calculator!$D$6:$CM$36,MATCH($N173&P$2,Calculator!$A$6:$A$36,0),MATCH(P$1&$O173,Calculator!$D$2:$CM$2,0)) -> 0.8818304268 | Q173: =INDEX(Calculator!$D$6:$CM$36,MATCH($N173&Q$2,Calculator!$A$6:$A$36,0),MATCH(Q$1&$O173,Calculator!$D$2:$CM$2,0)) -> 0.9388293844 | S173: 15 | T173: Wood | U173: =INDEX(Calculator!$D$6:$CM$36,MATCH($S173&U$2,Calculator!$A$6:$A$36,0),MATCH(U$1&$T173,Calculator!$D$2:$CM$2,0)) -> 1 | V173: =INDEX(Calculator!$D$6:$CM$36,MATCH($S173&V$2,Calculator!$A$6:$A$36,0),MATCH(V$1&$T173,Calculator!$D$2:$CM$2,0)) -> 1.084671487 | AB173: 14 | AC173: Kerosene | AD173: =INDEX(P173:V173,0, MATCH($AB$1,$P$1:$V$1,0)) -> 0.9388293844 | AF173: Kerosene | AG173: 14 | AH173: 0.9388293844
N174: 15 | O174: Kerosene | P174: =INDEX(Calculator!$D$6:$CM$36,MATCH($N174&P$2,Calculator!$A$6:$A$36,0),MATCH(P$1&$O174,Calculator!$D$2:$CM$2,0)) -> 0.8845873963 | Q174: =INDEX(Calculator!$D$6:$CM$36,MATCH($N174&Q$2,Calculator!$A$6:$A$36,0),MATCH(Q$1&$O174,Calculator!$D$2:$CM$2,0)) -> 0.9437725073 | S174: 16 | T174: Wood | U174: =INDEX(Calculator!$D$6:$CM$36,MATCH($S174&U$2,Calculator!$A$6:$A$36,0),MATCH(U$1&$T174,Calculator!$D$2:$CM$2,0)) -> 1 | V174: =INDEX(Calculator!$D$6:$CM$36,MATCH($S174&V$2,Calculator!$A$6:$A$36,0),MATCH(V$1&$T174,Calculator!$D$2:$CM$2,0)) -> 1.089652162 | AB174: 15 | AC174: Kerosene | AD174: =INDEX(P174:V174,0, MATCH($AB$1,$P$1:$V$1,0)) -> 0.9437725073 | AF174: Kerosene | AG174: 15 | AH174: 0.9437725073
N175: 16 | O175: Kerosene | P175: =INDEX(Calculator!$D$6:$CM$36,MATCH($N175&P$2,Calculator!$A$6:$A$36,0),MATCH(P$1&$O175,Calculator!$D$2:$CM$2,0)) -> 0.8866746989 | Q175: =INDEX(Calculator!$D$6:$CM$36,MATCH($N175&Q$2,Calculator!$A$6:$A$36,0),MATCH(Q$1&$O175,Calculator!$D$2:$CM$2,0)) -> 0.9481368328 | S175: 17 | T175: Wood | U175: =INDEX(Calculator!$D$6:$CM$36,MATCH($S175&U$2,Calculator!$A$6:$A$36,0),MATCH(U$1&$T175,Calculator!$D$2:$CM$2,0)) -> 1 | V175: =INDEX(Calculator!$D$6:$CM$36,MATCH($S175&V$2,Calculator!$A$6:$A$36,0),MATCH(V$1&$T175,Calculator!$D$2:$CM$2,0)) -> 1.094632838 | AB175: 16 | AC175: Kerosene | AD175: =INDEX(P175:V175,0, MATCH($AB$1,$P$1:$V$1,0)) -> 0.9481368328 | AF175: Kerosene | AG175: 16 | AH175: 0.9481368328
N176: 17 | O176: Kerosene | P176: =INDEX(Calculator!$D$6:$CM$36,MATCH($N176&P$2,Calculator!$A$6:$A$36,0),MATCH(P$1&$O176,Calculator!$D$2:$CM$2,0)) -> 0.8889455339 | Q176: =INDEX(Calculator!$D$6:$CM$36,MATCH($N176&Q$2,Calculator!$A$6:$A$36,0),MATCH(Q$1&$O176,Calculator!$D$2:$CM$2,0)) -> 0.9526597866 | S176: 18 | T176: Wood | U176: =INDEX(Calculator!$D$6:$CM$36,MATCH($S176&U$2,Calculator!$A$6:$A$36,0),MATCH(U$1&$T176,Calculator!$D$2:$CM$2,0)) -> 1 | V176: =INDEX(Calculator!$D$6:$CM$36,MATCH($S176&V$2,Calculator!$A$6:$A$36,0),MATCH(V$1&$T176,Calculator!$D$2:$CM$2,0)) -> 1.099613514 | AB176: 17 | AC176: Kerosene | AD176: =INDEX(P176:V176,0, MATCH($AB$1,$P$1:$V$1,0)) -> 0.9526597866 | AF176: Kerosene | AG176: 17 | AH176: 0.9526597866
N177: 18 | O177: Kerosene | P177: =INDEX(Calculator!$D$6:$CM$36,MATCH($N177&P$2,Calculator!$A$6:$A$36,0),MATCH(P$1&$O177,Calculator!$D$2:$CM$2,0)) -> 0.8932955339 | Q177: =INDEX(Calculator!$D$6:$CM$36,MATCH($N177&Q$2,Calculator!$A$6:$A$36,0),MATCH(Q$1&$O177,Calculator!$D$2:$CM$2,0)) -> 0.9589797759 | S177: 19 | T177: Wood | U177: =INDEX(Calculator!$D$6:$CM$36,MATCH($S177&U$2,Calculator!$A$6:$A$36,0),MATCH(U$1&$T177,Calculator!$D$2:$CM$2,0)) -> 1 | V177: =INDEX(Calculator!$D$6:$CM$36,MATCH($S177&V$2,Calculator!$A$6:$A$36,0),MATCH(V$1&$T177,Calculator!$D$2:$CM$2,0)) -> 1.104594189 | AB177: 18 | AC177: Kerosene | AD177: =INDEX(P177:V177,0, MATCH($AB$1,$P$1:$V$1,0)) -> 0.9589797759 | AF177: Kerosene | AG177: 18 | AH177: 0.9589797759
N178: 19 | O178: Kerosene | P178: =INDEX(Calculator!$D$6:$CM$36,MATCH($N178&P$2,Calculator!$A$6:$A$36,0),MATCH(P$1&$O178,Calculator!$D$2:$CM$2,0)) -> 0.8948652169 | Q178: =INDEX(Calculator!$D$6:$CM$36,MATCH($N178&Q$2,Calculator!$A$6:$A$36,0),MATCH(Q$1&$O178,Calculator!$D$2:$CM$2,0)) -> 0.9628967194 | S178: 20 | T178: Wood | U178: =INDEX(Calculator!$D$6:$CM$36,MATCH($S178&U$2,Calculator!$A$6:$A$36,0),MATCH(U$1&$T178,Calculator!$D$2:$CM$2,0)) -> 1 | V178: =INDEX(Calculator!$D$6:$CM$36,MATCH($S178&V$2,Calculator!$A$6:$A$36,0),MATCH(V$1&$T178,Calculator!$D$2:$CM$2,0)) -> 1.109574865 | AB178: 19 | AC178: Kerosene | AD178: =INDEX(P178:V178,0, MATCH($AB$1,$P$1:$V$1,0)) -> 0.9628967194 | AF178: Kerosene | AG178: 19 | AH178: 0.9628967194
N179: 20 | O179: Kerosene | P179: =INDEX(Calculator!$D$6:$CM$36,MATCH($N179&P$2,Calculator!$A$6:$A$36,0),MATCH(P$1&$O179,Calculator!$D$2:$CM$2,0)) -> 0.8977533564 | Q179: =INDEX(Calculator!$D$6:$CM$36,MATCH($N179&Q$2,Calculator!$A$6:$A$36,0),MATCH(Q$1&$O179,Calculator!$D$2:$CM$2,0)) -> 0.9679532134 | S179: 21 | T179: Wood | U179: =INDEX(Calculator!$D$6:$CM$36,MATCH($S179&U$2,Calculator!$A$6:$A$36,0),MATCH(U$1&$T179,Calculator!$D$2:$CM$2,0)) -> 1 | V179: =INDEX(Calculator!$D$6:$CM$36,MATCH($S179&V$2,Calculator!$A$6:$A$36,0),MATCH(V$1&$T179,Calculator!$D$2:$CM$2,0)) -> 1.119536216 | AB179: 20 | AC179: Kerosene | AD179: =INDEX(P179:V179,0, MATCH($AB$1,$P$1:$V$1,0)) -> 0.9679532134 | AF179: Kerosene | AG179: 20 | AH179: 0.9679532134
N180: 21 | O180: Kerosene | P180: =INDEX(Calculator!$D$6:$CM$36,MATCH($N180&P$2,Calculator!$A$6:$A$36,0),MATCH(P$1&$O180,Calculator!$D$2:$CM$2,0)) -> 0.8971009776 | Q180: =INDEX(Calculator!$D$6:$CM$36,MATCH($N180&Q$2,Calculator!$A$6:$A$36,0),MATCH(Q$1&$O180,Calculator!$D$2:$CM$2,0)) -> 0.9725098712 | S180: 22 | T180: Wood | U180: =INDEX(Calculator!$D$6:$CM$36,MATCH($S180&U$2,Calculator!$A$6:$A$36,0),MATCH(U$1&$T180,Calculator!$D$2:$CM$2,0)) -> 1 | V180: =INDEX(Calculator!$D$6:$CM$36,MATCH($S180&V$2,Calculator!$A$6:$A$36,0),MATCH(V$1&$T180,Calculator!$D$2:$CM$2,0)) -> 1.124516892 | AB180: 21 | AC180: Kerosene | AD180: =INDEX(P180:V180,0, MATCH($AB$1,$P$1:$V$1,0)) -> 0.9725098712 | AF180: Kerosene | AG180: 21 | AH180: 0.9725098712
N181: 22 | O181: Kerosene | P181: =INDEX(Calculator!$D$6:$CM$36,MATCH($N181&P$2,Calculator!$A$6:$A$36,0),MATCH(P$1&$O181,Calculator!$D$2:$CM$2,0)) -> 0.8988804625 | Q181: =INDEX(Calculator!$D$6:$CM$36,MATCH($N181&Q$2,Calculator!$A$6:$A$36,0),MATCH(Q$1&$O181,Calculator!$D$2:$CM$2,0)) -> 0.9766081479 | S181: 23 | T181: Wood | U181: =INDEX(Calculator!$D$6:$CM$36,MATCH($S181&U$2,Calculator!$A$6:$A$36,0),MATCH(U$1&$T181,Calculator!$D$2:$CM$2,0)) -> 1 | V181: =INDEX(Calculator!$D$6:$CM$36,MATCH($S181&V$2,Calculator!$A$6:$A$36,0),MATCH(V$1&$T181,Calculator!$D$2:$CM$2,0)) -> 1.129497568 | AB181: 22 | AC181: Kerosene | AD181: =INDEX(P181:V181,0, MATCH($AB$1,$P$1:$V$1,0)) -> 0.9766081479 | AF181: Kerosene | AG181: 22 | AH181: 0.9766081479
N182: 23 | O182: Kerosene | P182: =INDEX(Calculator!$D$6:$CM$36,MATCH($N182&P$2,Calculator!$A$6:$A$36,0),MATCH(P$1&$O182,Calculator!$D$2:$CM$2,0)) -> 0.9076485462 | Q182: =INDEX(Calculator!$D$6:$CM$36,MATCH($N182&Q$2,Calculator!$A$6:$A$36,0),MATCH(Q$1&$O182,Calculator!$D$2:$CM$2,0)) -> 0.9867467152 | S182: 24 | T182: Wood | U182: =INDEX(Calculator!$D$6:$CM$36,MATCH($S182&U$2,Calculator!$A$6:$A$36,0),MATCH(U$1&$T182,Calculator!$D$2:$CM$2,0)) -> 1 | V182: =INDEX(Calculator!$D$6:$CM$36,MATCH($S182&V$2,Calculator!$A$6:$A$36,0),MATCH(V$1&$T182,Calculator!$D$2:$CM$2,0)) -> 1.134478243 | AB182: 23 | AC182: Kerosene | AD182: =INDEX(P182:V182,0, MATCH($AB$1,$P$1:$V$1,0)) -> 0.9867467152 | AF182: Kerosene | AG182: 23 | AH182: 0.9867467152
N183: 24 | O183: Kerosene | P183: =INDEX(Calculator!$D$6:$CM$36,MATCH($N183&P$2,Calculator!$A$6:$A$36,0),MATCH(P$1&$O183,Calculator!$D$2:$CM$2,0)) -> 5.874327529 | Q183: =INDEX(Calculator!$D$6:$CM$36,MATCH($N183&Q$2,Calculator!$A$6:$A$36,0),MATCH(Q$1&$O183,Calculator!$D$2:$CM$2,0)) -> 6.44141279 | S183: 25 | T183: Wood | U183: =INDEX(Calculator!$D$6:$CM$36,MATCH($S183&U$2,Calculator!$A$6:$A$36,0),MATCH(U$1&$T183,Calculator!$D$2:$CM$2,0)) -> 1 | V183: =INDEX(Calculator!$D$6:$CM$36,MATCH($S183&V$2,Calculator!$A$6:$A$36,0),MATCH(V$1&$T183,Calculator!$D$2:$CM$2,0)) -> 1.139458919 | AB183: 24 | AC183: Kerosene | AD183: =INDEX(P183:V183,0, MATCH($AB$1,$P$1:$V$1,0)) -> 6.44141279 | AF183: Kerosene | AG183: 24 | AH183: 6.44141279
N184: 25 | O184: Kerosene | P184: =INDEX(Calculator!$D$6:$CM$36,MATCH($N184&P$2,Calculator!$A$6:$A$36,0),MATCH(P$1&$O184,Calculator!$D$2:$CM$2,0)) -> -4.200455737 | Q184: =INDEX(Calculator!$D$6:$CM$36,MATCH($N184&Q$2,Calculator!$A$6:$A$36,0),MATCH(Q$1&$O184,Calculator!$D$2:$CM$2,0)) -> -4.617254584 | S184: 26 | T184: Wood | U184: =INDEX(Calculator!$D$6:$CM$36,MATCH($S184&U$2,Calculator!$A$6:$A$36,0),MATCH(U$1&$T184,Calculator!$D$2:$CM$2,0)) -> 1 | V184: =INDEX(Calculator!$D$6:$CM$36,MATCH($S184&V$2,Calculator!$A$6:$A$36,0),MATCH(V$1&$T184,Calculator!$D$2:$CM$2,0)) -> 1.144439595 | AB184: 25 | AC184: Kerosene | AD184: =INDEX(P184:V184,0, MATCH($AB$1,$P$1:$V$1,0)) -> -4.617254584 | AF184: Kerosene | AG184: 25 | AH184: -4.617254584
N185: 0 | O185: Other | P185: =INDEX(Calculator!$D$6:$CM$36,MATCH($N185&P$2,Calculator!$A$6:$A$36,0),MATCH(P$1&$O185,Calculator!$D$2:$CM$2,0)) -> 1 | Q185: =INDEX(Calculator!$D$6:$CM$36,MATCH($N185&Q$2,Calculator!$A$6:$A$36,0),MATCH(Q$1&$O185,Calculator!$D$2:$CM$2,0)) -> 1 | S185: 27 | T185: Wood | U185: =INDEX(Calculator!$D$6:$CM$36,MATCH($S185&U$2,Calculator!$A$6:$A$36,0),MATCH(U$1&$T185,Calculator!$D$2:$CM$2,0)) -> 1 | V185: =INDEX(Calculator!$D$6:$CM$36,MATCH($S185&V$2,Calculator!$A$6:$A$36,0),MATCH(V$1&$T185,Calculator!$D$2:$CM$2,0)) -> 1.154400946 | AB185: 0 | AC185: Other | AD185: =INDEX(P185:V185,0, MATCH($AB$1,$P$1:$V$1,0)) -> 1 | AF185: Other | AG185: 0 | AH185: 1
N186: 1 | O186: Other | P186: =INDEX(Calculator!$D$6:$CM$36,MATCH($N186&P$2,Calculator!$A$6:$A$36,0),MATCH(P$1&$O186,Calculator!$D$2:$CM$2,0)) -> 1 | Q186: =INDEX(Calculator!$D$6:$CM$36,MATCH($N186&Q$2,Calculator!$A$6:$A$36,0),MATCH(Q$1&$O186,Calculator!$D$2:$CM$2,0)) -> 1 | S186: 28 | T186: Wood | U186: =INDEX(Calculator!$D$6:$CM$36,MATCH($S186&U$2,Calculator!$A$6:$A$36,0),MATCH(U$1&$T186,Calculator!$D$2:$CM$2,0)) -> 1 | V186: =INDEX(Calculator!$D$6:$CM$36,MATCH($S186&V$2,Calculator!$A$6:$A$36,0),MATCH(V$1&$T186,Calculator!$D$2:$CM$2,0)) -> 1.159381622 | AB186: 1 | AC186: Other | AD186: =INDEX(P186:V186,0, MATCH($AB$1,$P$1:$V$1,0)) -> 1 | AF186: Other | AG186: 1 | AH186: 1
N187: 2 | O187: Other | P187: =INDEX(Calculator!$D$6:$CM$36,MATCH($N187&P$2,Calculator!$A$6:$A$36,0),MATCH(P$1&$O187,Calculator!$D$2:$CM$2,0)) -> 1 | Q187: =INDEX(Calculator!$D$6:$CM$36,MATCH($N187&Q$2,Calculator!$A$6:$A$36,0),MATCH(Q$1&$O187,Calculator!$D$2:$CM$2,0)) -> 1 | S187: 29 | T187: Wood | U187: =INDEX(Calculator!$D$6:$CM$36,MATCH($S187&U$2,Calculator!$A$6:$A$36,0),MATCH(U$1&$T187,Calculator!$D$2:$CM$2,0)) -> 1 | V187: =INDEX(Calculator!$D$6:$CM$36,MATCH($S187&V$2,Calculator!$A$6:$A$36,0),MATCH(V$1&$T187,Calculator!$D$2:$CM$2,0)) -> 1.159381622 | AB187: 2 | AC187: Other | AD187: =INDEX(P187:V187,0, MATCH($AB$1,$P$1:$V$1,0)) -> 1 | AF187: Other | AG187: 2 | AH187: 1
N188: 3 | O188: Other | P188: =INDEX(Calculator!$D$6:$CM$36,MATCH($N188&P$2,Calculator!$A$6:$A$36,0),MATCH(P$1&$O188,Calculator!$D$2:$CM$2,0)) -> 1 | Q188: =INDEX(Calculator!$D$6:$CM$36,MATCH($N188&Q$2,Calculator!$A$6:$A$36,0),MATCH(Q$1&$O188,Calculator!$D$2:$CM$2,0)) -> 1 | S188: 30 | T188: Wood | U188: =INDEX(Calculator!$D$6:$CM$36,MATCH($S188&U$2,Calculator!$A$6:$A$36,0),MATCH(U$1&$T188,Calculator!$D$2:$CM$2,0)) -> 1 | V188: =INDEX(Calculator!$D$6:$CM$36,MATCH($S188&V$2,Calculator!$A$6:$A$36,0),MATCH(V$1&$T188,Calculator!$D$2:$CM$2,0)) -> 1.159381622 | AB188: 3 | AC188: Other | AD188: =INDEX(P188:V188,0, MATCH($AB$1,$P$1:$V$1,0)) -> 1 | AF188: Other | AG188: 3 | AH188: 1
N189: 4 | O189: Other | P189: =INDEX(Calculator!$D$6:$CM$36,MATCH($N189&P$2,Calculator!$A$6:$A$36,0),MATCH(P$1&$O189,Calculator!$D$2:$CM$2,0)) -> 1 | Q189: =INDEX(Calculator!$D$6:$CM$36,MATCH($N189&Q$2,Calculator!$A$6:$A$36,0),MATCH(Q$1&$O189,Calculator!$D$2:$CM$2,0)) -> 1 | S189: 0 | T189: Coal | U189: =INDEX(Calculator!$D$6:$CM$36,MATCH($S189&U$2,Calculator!$A$6:$A$36,0),MATCH(U$1&$T189,Calculator!$D$2:$CM$2,0)) -> 1 | V189: =INDEX(Calculator!$D$6:$CM$36,MATCH($S189&V$2,Calculator!$A$6:$A$36,0),MATCH(V$1&$T189,Calculator!$D$2:$CM$2,0)) -> 1 | AB189: 4 | AC189: Other | AD189: =INDEX(P189:V189,0, MATCH($AB$1,$P$1:$V$1,0)) -> 1 | AF189: Other | AG189: 4 | AH189: 1
N190: 5 | O190: Other | P190: =INDEX(Calculator!$D$6:$CM$36,MATCH($N190&P$2,Calculator!$A$6:$A$36,0),MATCH(P$1&$O190,Calculator!$D$2:$CM$2,0)) -> 1 | Q190: =INDEX(Calculator!$D$6:$CM$36,MATCH($N190&Q$2,Calculator!$A$6:$A$36,0),MATCH(Q$1&$O190,Calculator!$D$2:$CM$2,0)) -> 1 | S190: 1 | T190: Coal | U190: =INDEX(Calculator!$D$6:$CM$36,MATCH($S190&U$2,Calculator!$A$6:$A$36,0),MATCH(U$1&$T190,Calculator!$D$2:$CM$2,0)) -> 0.9995803754 | V190: =INDEX(Calculator!$D$6:$CM$36,MATCH($S190&V$2,Calculator!$A$6:$A$36,0),MATCH(V$1&$T190,Calculator!$D$2:$CM$2,0)) -> 0.9995803754 | AB190: 5 | AC190: Other | AD190: =INDEX(P190:V190,0, MATCH($AB$1,$P$1:$V$1,0)) -> 1 | AF190: Other | AG190: 5 | AH190: 1
N191: 6 | O191: Other | P191: =INDEX(Calculator!$D$6:$CM$36,MATCH($N191&P$2,Calculator!$A$6:$A$36,0),MATCH(P$1&$O191,Calculator!$D$2:$CM$2,0)) -> 1 | Q191: =INDEX(Calculator!$D$6:$CM$36,MATCH($N191&Q$2,Calculator!$A$6:$A$36,0),MATCH(Q$1&$O191,Calculator!$D$2:$CM$2,0)) -> 1 | S191: 2 | T191: Coal | U191: =INDEX(Calculator!$D$6:$CM$36,MATCH($S191&U$2,Calculator!$A$6:$A$36,0),MATCH(U$1&$T191,Calculator!$D$2:$CM$2,0)) -> 1.01543246 | V191: =INDEX(Calculator!$D$6:$CM$36,MATCH($S191&V$2,Calculator!$A$6:$A$36,0),MATCH(V$1&$T191,Calculator!$D$2:$CM$2,0)) -> 1.01543246 | AB191: 6 | AC191: Other | AD191: =INDEX(P191:V191,0, MATCH($AB$1,$P$1:$V$1,0)) -> 1 | AF191: Other | AG191: 6 | AH191: 1
N192: 7 | O192: Other | P192: =INDEX(Calculator!$D$6:$CM$36,MATCH($N192&P$2,Calculator!$A$6:$A$36,0),MATCH(P$1&$O192,Calculator!$D$2:$CM$2,0)) -> 1 | Q192: =INDEX(Calculator!$D$6:$CM$36,MATCH($N192&Q$2,Calculator!$A$6:$A$36,0),MATCH(Q$1&$O192,Calculator!$D$2:$CM$2,0)) -> 1 | S192: 3 | T192: Coal | U192: =INDEX(Calculator!$D$6:$CM$36,MATCH($S192&U$2,Calculator!$A$6:$A$36,0),MATCH(U$1&$T192,Calculator!$D$2:$CM$2,0)) -> 1.02309176 | V192: =INDEX(Calculator!$D$6:$CM$36,MATCH($S192&V$2,Calculator!$A$6:$A$36,0),MATCH(V$1&$T192,Calculator!$D$2:$CM$2,0)) -> 1.02309176 | AB192: 7 | AC192: Other | AD192: =INDEX(P192:V192,0, MATCH($AB$1,$P$1:$V$1,0)) -> 1 | AF192: Other | AG192: 7 | AH192: 1
N193: 8 | O193: Other | P193: =INDEX(Calculator!$D$6:$CM$36,MATCH($N193&P$2,Calculator!$A$6:$A$36,0),MATCH(P$1&$O193,Calculator!$D$2:$CM$2,0)) -> 1 | Q193: =INDEX(Calculator!$D$6:$CM$36,MATCH($N193&Q$2,Calculator!$A$6:$A$36,0),MATCH(Q$1&$O193,Calculator!$D$2:$CM$2,0)) -> 1 | S193: 4 | T193: Coal | U193: =INDEX(Calculator!$D$6:$CM$36,MATCH($S193&U$2,Calculator!$A$6:$A$36,0),MATCH(U$1&$T193,Calculator!$D$2:$CM$2,0)) -> 1.019969329 | V193: =INDEX(Calculator!$D$6:$CM$36,MATCH($S193&V$2,Calculator!$A$6:$A$36,0),MATCH(V$1&$T193,Calculator!$D$2:$CM$2,0)) -> 1.019969329 | AB193: 8 | AC193: Other | AD193: =INDEX(P193:V193,0, MATCH($AB$1,$P$1:$V$1,0)) -> 1 | AF193: Other | AG193: 8 | AH193: 1
N194: 9 | O194: Other | P194: =INDEX(Calculator!$D$6:$CM$36,MATCH($N194&P$2,Calculator!$A$6:$A$36,0),MATCH(P$1&$O194,Calculator!$D$2:$CM$2,0)) -> 1 | Q194: =INDEX(Calculator!$D$6:$CM$36,MATCH($N194&Q$2,Calculator!$A$6:$A$36,0),MATCH(Q$1&$O194,Calculator!$D$2:$CM$2,0)) -> 1 | S194: 5 | T194: Coal | U194: =INDEX(Calculator!$D$6:$CM$36,MATCH($S194&U$2,Calculator!$A$6:$A$36,0),MATCH(U$1&$T194,Calculator!$D$2:$CM$2,0)) -> 1.012576658 | V194: =INDEX(Calculator!$D$6:$CM$36,MATCH($S194&V$2,Calculator!$A$6:$A$36,0),MATCH(V$1&$T194,Calculator!$D$2:$CM$2,0)) -> 1.012576658 | AB194: 9 | AC194: Other | AD194: =INDEX(P194:V194,0, MATCH($AB$1,$P$1:$V$1,0)) -> 1 | AF194: Other | AG194: 9 | AH194: 1
N195: 10 | O195: Other | P195: =INDEX(Calculator!$D$6:$CM$36,MATCH($N195&P$2,Calculator!$A$6:$A$36,0),MATCH(P$1&$O195,Calculator!$D$2:$CM$2,0)) -> 1 | Q195: =INDEX(Calculator!$D$6:$CM$36,MATCH($N195&Q$2,Calculator!$A$6:$A$36,0),MATCH(Q$1&$O195,Calculator!$D$2:$CM$2,0)) -> 1 | S195: 6 | T195: Coal | U195: =INDEX(Calculator!$D$6:$CM$36,MATCH($S195&U$2,Calculator!$A$6:$A$36,0),MATCH(U$1&$T195,Calculator!$D$2:$CM$2,0)) -> 1.007275633 | V195: =INDEX(Calculator!$D$6:$CM$36,MATCH($S195&V$2,Calculator!$A$6:$A$36,0),MATCH(V$1&$T195,Calculator!$D$2:$CM$2,0)) -> 1.007275633 | AB195: 10 | AC195: Other | AD195: =INDEX(P195:V195,0, MATCH($AB$1,$P$1:$V$1,0)) -> 1 | AF195: Other | AG195: 10 | AH195: 1
N196: 11 | O196: Other | P196: =INDEX(Calculator!$D$6:$CM$36,MATCH($N196&P$2,Calculator!$A$6:$A$36,0),MATCH(P$1&$O196,Calculator!$D$2:$CM$2,0)) -> 1 | Q196: =INDEX(Calculator!$D$6:$CM$36,MATCH($N196&Q$2,Calculator!$A$6:$A$36,0),MATCH(Q$1&$O196,Calculator!$D$2:$CM$2,0)) -> 1 | S196: 7 | T196: Coal | U196: =INDEX(Calculator!$D$6:$CM$36,MATCH($S196&U$2,Calculator!$A$6:$A$36,0),MATCH(U$1&$T196,Calculator!$D$2:$CM$2,0)) -> 1.003150888 | V196: =INDEX(Calculator!$D$6:$CM$36,MATCH($S196&V$2,Calculator!$A$6:$A$36,0),MATCH(V$1&$T196,Calculator!$D$2:$CM$2,0)) -> 1.003150888 | AB196: 11 | AC196: Other | AD196: =INDEX(P196:V196,0, MATCH($AB$1,$P$1:$V$1,0)) -> 1 | AF196: =AC196 -> Other | AG196: =AB196 -> 11 | AH196: 1
N197: 12 | O197: Other | P197: =INDEX(Calculator!$D$6:$CM$36,MATCH($N197&P$2,Calculator!$A$6:$A$36,0),MATCH(P$1&$O197,Calculator!$D$2:$CM$2,0)) -> 1 | Q197: =INDEX(Calculator!$D$6:$CM$36,MATCH($N197&Q$2,Calculator!$A$6:$A$36,0),MATCH(Q$1&$O197,Calculator!$D$2:$CM$2,0)) -> 1 | S197: 8 | T197: Coal | U197: =INDEX(Calculator!$D$6:$CM$36,MATCH($S197&U$2,Calculator!$A$6:$A$36,0),MATCH(U$1&$T197,Calculator!$D$2:$CM$2,0)) -> 0.9988647226 | V197: =INDEX(Calculator!$D$6:$CM$36,MATCH($S197&V$2,Calculator!$A$6:$A$36,0),MATCH(V$1&$T197,Calculator!$D$2:$CM$2,0)) -> 0.9988647226 | AB197: 12 | AC197: Other | AD197: =INDEX(P197:V197,0, MATCH($AB$1,$P$1:$V$1,0)) -> 1 | AF197: Other | AG197: 12 | AH197: 1
N198: 13 | O198: Other | P198: =INDEX(Calculator!$D$6:$CM$36,MATCH($N198&P$2,Calculator!$A$6:$A$36,0),MATCH(P$1&$O198,Calculator!$D$2:$CM$2,0)) -> 1 | Q198: =INDEX(Calculator!$D$6:$CM$36,MATCH($N198&Q$2,Calculator!$A$6:$A$36,0),MATCH(Q$1&$O198,Calculator!$D$2:$CM$2,0)) -> 1 | S198: 9 | T198: Coal | U198: =INDEX(Calculator!$D$6:$CM$36,MATCH($S198&U$2,Calculator!$A$6:$A$36,0),MATCH(U$1&$T198,Calculator!$D$2:$CM$2,0)) -> 0.9939538207 | V198: =INDEX(Calculator!$D$6:$CM$36,MATCH($S198&V$2,Calculator!$A$6:$A$36,0),MATCH(V$1&$T198,Calculator!$D$2:$CM$2,0)) -> 0.9939538207 | AB198: 13 | AC198: Other | AD198: =INDEX(P198:V198,0, MATCH($AB$1,$P$1:$V$1,0)) -> 1 | AF198: Other | AG198: 13 | AH198: 1
N199: 14 | O199: Other | P199: =INDEX(Calculator!$D$6:$CM$36,MATCH($N199&P$2,Calculator!$A$6:$A$36,0),MATCH(P$1&$O199,Calculator!$D$2:$CM$2,0)) -> 1 | Q199: =INDEX(Calculator!$D$6:$CM$36,MATCH($N199&Q$2,Calculator!$A$6:$A$36,0),MATCH(Q$1&$O199,Calculator!$D$2:$CM$2,0)) -> 1 | S199: 10 | T199: Coal | U199: =INDEX(Calculator!$D$6:$CM$36,MATCH($S199&U$2,Calculator!$A$6:$A$36,0),MATCH(U$1&$T199,Calculator!$D$2:$CM$2,0)) -> 0.9899925963 | V199: =INDEX(Calculator!$D$6:$CM$36,MATCH($S199&V$2,Calculator!$A$6:$A$36,0),MATCH(V$1&$T199,Calculator!$D$2:$CM$2,0)) -> 0.9899925963 | AB199: 14 | AC199: Other | AD199: =INDEX(P199:V199,0, MATCH($AB$1,$P$1:$V$1,0)) -> 1 | AF199: Other | AG199: 14 | AH199: 1
N200: 15 | O200: Other | P200: =INDEX(Calculator!$D$6:$CM$36,MATCH($N200&P$2,Calculator!$A$6:$A$36,0),MATCH(P$1&$O200,Calculator!$D$2:$CM$2,0)) -> 1 | Q200: =INDEX(Calculator!$D$6:$CM$36,MATCH($N200&Q$2,Calculator!$A$6:$A$36,0),MATCH(Q$1&$O200,Calculator!$D$2:$CM$2,0)) -> 1 | S200: 11 | T200: Coal | U200: =INDEX(Calculator!$D$6:$CM$36,MATCH($S200&U$2,Calculator!$A$6:$A$36,0),MATCH(U$1&$T200,Calculator!$D$2:$CM$2,0)) -> 0.9875437749 | V200: =INDEX(Calculator!$D$6:$CM$36,MATCH($S200&V$2,Calculator!$A$6:$A$36,0),MATCH(V$1&$T200,Calculator!$D$2:$CM$2,0)) -> 0.9875437749 | AB200: 15 | AC200: Other | AD200: =INDEX(P200:V200,0, MATCH($AB$1,$P$1:$V$1,0)) -> 1 | AF200: Other | AG200: 15 | AH200: 1
... 50 more rows

Sheet Help enabling macros

Sheet More information
B20: Extrapolated modified fuel prices = Fuel Price entered + (Fuel cost modifier * Heat content * 10)
B21: Projected real FPIs from the Annula Supplement to National Institute of Standards and Technology (NIST) Handbook 135.
B24: The video demonstration of using the FPI calculator can be seen by clicking here ->

Sheet Calculator (hidden)
D1: FPI for v10 | E1: =D1 -> FPI for v10 | F1: =E1 -> FPI for v10 | G1: FPI for v10 | H1: FPI for v10 | I1: FPI for v10 | J1: FPI for v10 | K1: FPI for v10 | L1: UPV_v10 | M1: UPV_v10 | N1: UPV_v10 | O1: UPV_v10 | P1: UPV_v10 | Q1: UPV_v10 | R1: UPV_v10 | S1: UPV_v10 | T1: FPI for v8.9 (adjusted for 30 yr UPV) | U1: FPI for v8.9 (adjusted for 30 yr UPV) | V1: FPI for v8.9 (adjusted for 30 yr UPV) | W1: FPI for v8.9 (adjusted for 30 yr UPV) | X1: FPI for v8.9 (adjusted for 30 yr UPV) | Y1: FPI for v8.9 (adjusted for 30 yr UPV) | Z1: FPI for v8.9 (adjusted for 30 yr UPV) | AA1: FPI for v8.9 (adjusted for 30 yr UPV) | AB1: UPV_v8 | AC1: UPV_v8 | AD1: UPV_v8 | AE1: UPV_v8 | AF1: UPV_v8 | AG1: UPV_v8 | AH1: UPV_v8 | AI1: UPV_v8 | AJ1: =INDEX('User Inputs_FPI_Calculator'!$F$11:$F$18,MATCH(Calculator!AJ$4,'User Inputs_FPI_Calculator'!$C$11:$C$18,0),1) -> 0.003413 | AK1: =INDEX('User Inputs_FPI_Calculator'!$F$11:$F$18,MATCH(Calculator!AK$4,'User Inputs_FPI_Calculator'!$C$11:$C$18,0),1) -> 1.037 | AL1: =INDEX('User Inputs_FPI_Calculator'!$F$11:$F$18,MATCH(Calculator!AL$4,'User Inputs_FPI_Calculator'!$C$11:$C$18,0),1) -> 0.0915 | AM1: =INDEX('User Inputs_FPI_Calculator'!$F$11:$F$18,MATCH(Calculator!AM$4,'User Inputs_FPI_Calculator'!$C$11:$C$18,0),1) -> 0.1385 | AN1: =INDEX('User Inputs_FPI_Calculator'!$F$11:$F$18,MATCH(Calculator!AN$4,'User Inputs_FPI_Calculator'!$C$11:$C$18,0),1) -> 0.1319 | AO1: =INDEX('User Inputs_FPI_Calculator'!$F$11:$F$18,MATCH(Calculator!AO$4,'User Inputs_FPI_Calculator'!$C$11:$C$18,0),1) -> 20.2 | AP1: =INDEX('User Inputs_FPI_Calculator'!$F$11:$F$18,MATCH(Calculator!AP$4,'User Inputs_FPI_Calculator'!$C$11:$C$18,0),1) -> 21 | AQ1: =INDEX('User Inputs_FPI_Calculator'!$F$11:$F$18,MATCH(Calculator!AQ$4,'User Inputs_FPI_Calculator'!$C$11:$C$18,0),1) -> 1 | AR1: <-- Heat Content (MMBtu/fuel unit); from WAv10 | BH1: FPI_SCC for v10 | BI1: FPI_SCC for v10 | BJ1: FPI_SCC for v10 | BK1: FPI_SCC for v10 | BL1: FPI_SCC for v10 | BM1: FPI_SCC for v10 | BN1: FPI_SCC for v10 | BO1: FPI_SCC for v10 | BP1: UPV_SCC_v10 | BQ1: UPV_SCC_v10 | BR1: =BQ1 -> UPV_SCC_v10 | BS1: UPV_SCC_v10 | BT1: UPV_SCC_v10 | BU1: UPV_SCC_v10 | BV1: UPV_SCC_v10 | BW1: UPV_SCC_v10 | BX1: FPI_SCC for v8.9 (adjusted for 30 year UPV) | BY1: FPI_SCC for v8.9 (adjusted for 30 year UPV) | BZ1: FPI_SCC for v8.9 (adjusted for 30 year UPV) | CA1: FPI_SCC for v8.9 (adjusted for 30 year UPV) | CB1: FPI_SCC for v8.9 (adjusted for 30 year UPV) | CC1: FPI_SCC for v8.9 (adjusted for 30 year UPV) | CD1: FPI_SCC for v8.9 (adjusted for 30 year UPV) | CE1: FPI_SCC for v8.9 (adjusted for 30 year UPV) | CF1: UPV_SCC_v8 | CG1: UPV_SCC_v8 | CH1: UPV_SCC_v8 | CI1: UPV_SCC_v8 | CJ1: UPV_SCC_v8 | CK1: UPV_SCC_v8 | CL1: UPV_SCC_v8 | CM1: UPV_SCC_v8
D2: =D1&D4 -> FPI for v10Electricity | E2: FPI for v10Natural Gas | F2: FPI for v10Propane | G2: FPI for v10Oil | H2: FPI for v10Kerosene | I2: FPI for v10Wood | J2: FPI for v10Coal | K2: FPI for v10Other | L2: UPV_v10Electricity | M2: UPV_v10Natural Gas | N2: UPV_v10Propane | O2: UPV_v10Oil | P2: UPV_v10Kerosene | Q2: UPV_v10Wood | R2: UPV_v10Coal | S2: UPV_v10Other | T2: FPI for v8.9 (adjusted for 30 yr UPV)Electricity | U2: FPI for v8.9 (adjusted for 30 yr UPV)Natural Gas | V2: FPI for v8.9 (adjusted for 30 yr UPV)Propane | W2: FPI for v8.9 (adjusted for 30 yr UPV)Oil | X2: FPI for v8.9 (adjusted for 30 yr UPV)Kerosene | Y2: FPI for v8.9 (adjusted for 30 yr UPV)Wood | Z2: FPI for v8.9 (adjusted for 30 yr UPV)Coal | AA2: FPI for v8.9 (adjusted for 30 yr UPV)Other | AB2: UPV_v8Electricity | AC2: UPV_v8Natural Gas | AD2: UPV_v8Propane | AE2: UPV_v8Oil | AF2: UPV_v8Kerosene | AG2: UPV_v8Wood | AH2: UPV_v8Coal | AI2: UPV_v8Other | AJ2: kWh | AK2: Mcf | AL2: Gallon | AM2: Gallon | AN2: Gallon | AO2: Cord | AP2: Short Ton | AQ2: MMBtu | AR2: kWh | AS2: therm | AT2: Gallon | AU2: Gallon | AV2: Gallon | AW2: Cord | AX2: Short Ton | AY2: MMBtu | AZ2: =AJ2 -> kWh | BA2: Mcf | BB2: Gallon | BC2: Gallon | BD2: Gallon | BE2: Cord | BF2: Short Ton | BG2: MMBtu | BH2: =BH1&BH4 -> FPI_SCC for v10Electricity | BI2: FPI_SCC for v10Natural Gas | BJ2: FPI_SCC for v10Propane | BK2: FPI_SCC for v10Oil | BL2: FPI_SCC for v10Kerosene | BM2: FPI_SCC for v10Wood | BN2: FPI_SCC for v10Coal | BO2: FPI_SCC for v10Other | BP2: UPV_SCC_v10Electricity | BQ2: UPV_SCC_v10Natural Gas | BR2: UPV_SCC_v10Propane | BS2: UPV_SCC_v10Oil | BT2: UPV_SCC_v10Kerosene | BU2: UPV_SCC_v10Wood | BV2: UPV_SCC_v10Coal | BW2: UPV_SCC_v10Other | BX2: FPI_SCC for v8.9 (adjusted for 30 year UPV)Electricity | BY2: FPI_SCC for v8.9 (adjusted for 30 year UPV)Natural Gas | BZ2: FPI_SCC for v8.9 (adjusted for 30 year UPV)Propane | CA2: FPI_SCC for v8.9 (adjusted for 30 year UPV)Oil | CB2: FPI_SCC for v8.9 (adjusted for 30 year UPV)Kerosene | CC2: FPI_SCC for v8.9 (adjusted for 30 year UPV)Wood | CD2: FPI_SCC for v8.9 (adjusted for 30 year UPV)Coal | CE2: FPI_SCC for v8.9 (adjusted for 30 year UPV)Other | CF2: UPV_SCC_v8Electricity | CG2: UPV_SCC_v8Natural Gas | CH2: UPV_SCC_v8Propane | CI2: UPV_SCC_v8Oil | CJ2: UPV_SCC_v8Kerosene | CK2: UPV_SCC_v8Wood | CL2: UPV_SCC_v8Coal | CM2: UPV_SCC_v8Other
D3: FPI (v10); from 2023 NIST | L3: UPV (v10) | T3: FPI (v8.9_30yEqv) | AB3: UPV (v8.9_30yEqv) | AJ3: Projected Fuel Price = FPI * Base Year Fuel Price | AR3: Fuel Price Modifier (2020$/fuel unit); from WPN 22-10 | AZ3: Modified Fuel Price ($/fuel unit) = Projected + Modifier | BH3: FPI_SCC (v10) | BP3: UPV_SCC (v10) | BX3: FPI_SCC (v8.9_30yEqv) | CF3: UPV_SCC (v8.9_30yEqv)
A4: Discount Rate = | C4: 0.03 | D4: Electricity | E4: Natural Gas | F4: Propane | G4: Oil | H4: Kerosene | I4: Wood | J4: Coal | K4: Other | L4: =D4 -> Electricity | M4: =E4 -> Natural Gas | N4: Propane | O4: Oil | P4: Kerosene | Q4: Wood | R4: Coal | S4: Other | T4: Electricity | U4: Natural Gas | V4: Propane | W4: Oil | X4: Kerosene | Y4: Wood | Z4: Coal | AA4: Other | AB4: =T4 -> Electricity | AC4: Natural Gas | AD4: Propane | AE4: Oil | AF4: Kerosene | AG4: Wood | AH4: Coal | AI4: Other | AJ4: Electricity | AK4: Natural Gas | AL4: Propane | AM4: Oil | AN4: Kerosene | AO4: Wood | AP4: Coal | AQ4: Other | AR4: =AJ4 -> Electricity | AS4: Natural Gas | AT4: Propane | AU4: Oil | AV4: Kerosene | AW4: Wood | AX4: Coal | AY4: Other | AZ4: Electricity | BA4: Natural Gas | BB4: Propane | BC4: Oil | BD4: Kerosene | BE4: Wood | BF4: Coal | BG4: Other | BH4: Electricity | BI4: Natural Gas | BJ4: Propane | BK4: Oil | BL4: Kerosene | BM4: Wood | BN4: Coal | BO4: Other | BP4: Electricity | BQ4: Natural Gas | BR4: Propane | BS4: Oil | BT4: Kerosene | BU4: Wood | BV4: Coal | BW4: Other | BX4: Electricity | BY4: =BQ4 -> Natural Gas | BZ4: Propane | CA4: Oil | CB4: Kerosene | CC4: Wood | CD4: Coal | CE4: Other | CF4: Electricity | CG4: Natural Gas | CH4: Propane | CI4: Oil | CJ4: Kerosene | CK4: Wood | CL4: Coal | CM4: Other
A5: ='User Inputs_FPI_Calculator'!$I$5 -> Region 4 - West | AI5: 2022 NIST Fuel Price ($/fuel unit) = | AJ5: =INDEX('User Inputs_FPI_Calculator'!$E$11:$E$18,MATCH(Calculator!AJ$4,'User Inputs_FPI_Calculator'!$C$11:$C$18,0),1) -> 0.15 | AK5: =INDEX('User Inputs_FPI_Calculator'!$E$11:$E$18,MATCH(Calculator!AK$4,'User Inputs_FPI_Calculator'!$C$11:$C$18,0),1) -> 15.37 | AL5: =INDEX('User Inputs_FPI_Calculator'!$E$11:$E$18,MATCH(Calculator!AL$4,'User Inputs_FPI_Calculator'!$C$11:$C$18,0),1) -> 2.39 | AM5: =INDEX('User Inputs_FPI_Calculator'!$E$11:$E$18,MATCH(Calculator!AM$4,'User Inputs_FPI_Calculator'!$C$11:$C$18,0),1) -> 3.58 | AN5: =INDEX('User Inputs_FPI_Calculator'!$E$11:$E$18,MATCH(Calculator!AN$4,'User Inputs_FPI_Calculator'!$C$11:$C$18,0),1) -> 3.44 | AO5: =INDEX('User Inputs_FPI_Calculator'!$E$11:$E$18,MATCH(Calculator!AO$4,'User Inputs_FPI_Calculator'!$C$11:$C$18,0),1) -> 280 | AP5: =INDEX('User Inputs_FPI_Calculator'!$E$11:$E$18,MATCH(Calculator!AP$4,'User Inputs_FPI_Calculator'!$C$11:$C$18,0),1) -> 56.32 | AQ5: =INDEX('User Inputs_FPI_Calculator'!$E$11:$E$18,MATCH(Calculator!AQ$4,'User Inputs_FPI_Calculator'!$C$11:$C$18,0),1) -> 0 | AY5: Modified Fuel Price ($/fuel unit) = | AZ5: =AZ6 -> 0.1699 | BA5: =BA6 -> 18.27798651 | BB5: 2.69475 | BC5: 4.12007 | BD5: 3.98007 | BE5: 380.42228 | BF5: 56.32 | BG5: 0
A6: =C6&B6 -> 0Region 4 - West | B6: =A5 -> Region 4 - West | C6: 0 | D6: =INDEX('2023 NIST (for reference)'!$J$3:$N$250,MATCH(Calculator!$C6&D$4,'2023 NIST (for reference)'!$A$3:$A$250,0),MATCH(Calculator!$B6,'2023 NIST (for reference)'!$J$2:$N$2,0)) -> 1 | E6: =INDEX('2023 NIST (for reference)'!$J$3:$N$250,MATCH(Calculator!$C6&E$4,'2023 NIST (for reference)'!$A$3:$A$250,0),MATCH(Calculator!$B6,'2023 NIST (for reference)'!$J$2:$N$2,0)) -> 1 | F6: =INDEX('2023 NIST (for reference)'!$J$3:$N$250,MATCH(Calculator!$C6&F$4,'2023 NIST (for reference)'!$A$3:$A$250,0),MATCH(Calculator!$B6,'2023 NIST (for reference)'!$J$2:$N$2,0)) -> 1 | G6: =INDEX('2023 NIST (for reference)'!$J$3:$N$250,MATCH(Calculator!$C6&G$4,'2023 NIST (for reference)'!$A$3:$A$250,0),MATCH(Calculator!$B6,'2023 NIST (for reference)'!$J$2:$N$2,0)) -> 1 | H6: =INDEX('2023 NIST (for reference)'!$J$3:$N$250,MATCH(Calculator!$C6&H$4,'2023 NIST (for reference)'!$A$3:$A$250,0),MATCH(Calculator!$B6,'2023 NIST (for reference)'!$J$2:$N$2,0)) -> 1 | I6: =INDEX('2023 NIST (for reference)'!$J$3:$N$250,MATCH(Calculator!$C6&I$4,'2023 NIST (for reference)'!$A$3:$A$250,0),MATCH(Calculator!$B6,'2023 NIST (for reference)'!$J$2:$N$2,0)) -> 1 | J6: =INDEX('2023 NIST (for reference)'!$J$3:$N$250,MATCH(Calculator!$C6&J$4,'2023 NIST (for reference)'!$A$3:$A$250,0),MATCH(Calculator!$B6,'2023 NIST (for reference)'!$J$2:$N$2,0)) -> 1 | K6: =INDEX('2023 NIST (for reference)'!$J$3:$N$250,MATCH(Calculator!$C6&K$4,'2023 NIST (for reference)'!$A$3:$A$250,0),MATCH(Calculator!$B6,'2023 NIST (for reference)'!$J$2:$N$2,0)) -> 1 | L6: =D6/((1+$C$4)^$C6) -> 1 | M6: 1 | N6: 1 | O6: 1 | P6: 1 | Q6: 1 | R6: 1 | S6: 1 | T6: =D6 -> 1 | U6: =E6 -> 1 | V6: =F6 -> 1 | W6: =G6 -> 1 | X6: =H6 -> 1 | Y6: =I6 -> 1 | Z6: =J6 -> 1 | AA6: =K6 -> 1 | AB6: =T6/((1+$C$4)^$C6) -> 1 | AC6: 1 | AD6: 1 | AE6: 1 | AF6: 1 | AG6: 1 | AH6: 1 | AI6: 1 | AJ6: =AJ$5*D6 -> 0.15 | AK6: =AK$5*E6 -> 15.37 | AL6: =AL$5*F6 -> 2.39 | AM6: =AM$5*G6 -> 3.58 | AN6: =AN$5*H6 -> 3.44 | AO6: =AO$5*I6 -> 280 | AP6: =AP$5*J6 -> 56.32 | AQ6: =AQ$5*K6 -> 0 | AR6: 0.0199 | AS6: 0.280423 | AT6: 0.30475 | AU6: 0.54007 | AV6: 0.54007 | AW6: 100.42228 | AX6: 0 | AY6: 0 | AZ6: =AJ6+AR6 -> 0.1699 | BA6: =AK6+AS6*($AK$1*10) -> 18.27798651 | BB6: =AL6+AT6 -> 2.69475 | BC6: =AM6+AU6 -> 4.12007 | BD6: =AN6+AV6 -> 3.98007 | BE6: =AO6+AW6 -> 380.42228 | BF6: =AP6+AX6 -> 56.32 | BG6: =AQ6+AY6 -> 0 | BH6: =IFERROR(AZ6/AZ$6,D6) -> 1 | BI6: =IFERROR(BA6/BA$6,E6) -> 1 | BJ6: =IFERROR(BB6/BB$6,F6) -> 1 | BK6: =IFERROR(BC6/BC$6,G6) -> 1 | BL6: =IFERROR(BD6/BD$6,H6) -> 1 | BM6: =IFERROR(BE6/BE$6,I6) -> 1 | BN6: =IFERROR(BF6/BF$6,J6) -> 1 | BO6: =IFERROR(BG6/BG$6,K6) -> 1 | BP6: =BH6/((1+$C$4)^$C6) -> 1 | BQ6: 1 | BR6: 1 | BS6: 1 | BT6: 1 | BU6: 1 | BV6: 1 | BW6: 1 | BX6: =BH6 -> 1 | BY6: =BI6 -> 1 | BZ6: =BJ6 -> 1 | CA6: =BK6 -> 1 | CB6: =BL6 -> 1 | CC6: =BM6 -> 1 | CD6: =BN6 -> 1 | CE6: =BO6 -> 1 | CF6: =BX6/((1+$C$4)^$C6) -> 1 | CG6: 1 | CH6: 1 | CI6: 1 | CJ6: 1 | CK6: 1 | CL6: 1 | CM6: 1
A7: 1Region 4 - West | B7: =B6 -> Region 4 - West | C7: 1 | D7: =INDEX('2023 NIST (for reference)'!$J$3:$N$250,MATCH(Calculator!$C7&D$4,'2023 NIST (for reference)'!$A$3:$A$250,0),MATCH(Calculator!$B7,'2023 NIST (for reference)'!$J$2:$N$2,0)) -> 0.934859723 | E7: =INDEX('2023 NIST (for reference)'!$J$3:$N$250,MATCH(Calculator!$C7&E$4,'2023 NIST (for reference)'!$A$3:$A$250,0),MATCH(Calculator!$B7,'2023 NIST (for reference)'!$J$2:$N$2,0)) -> 0.9803129063 | F7: =INDEX('2023 NIST (for reference)'!$J$3:$N$250,MATCH(Calculator!$C7&F$4,'2023 NIST (for reference)'!$A$3:$A$250,0),MATCH(Calculator!$B7,'2023 NIST (for reference)'!$J$2:$N$2,0)) -> 1.023024409 | G7: =INDEX('2023 NIST (for reference)'!$J$3:$N$250,MATCH(Calculator!$C7&G$4,'2023 NIST (for reference)'!$A$3:$A$250,0),MATCH(Calculator!$B7,'2023 NIST (for reference)'!$J$2:$N$2,0)) -> 0.959682826 | H7: =INDEX('2023 NIST (for reference)'!$J$3:$N$250,MATCH(Calculator!$C7&H$4,'2023 NIST (for reference)'!$A$3:$A$250,0),MATCH(Calculator!$B7,'2023 NIST (for reference)'!$J$2:$N$2,0)) -> 0.959682826 | I7: =INDEX('2023 NIST (for reference)'!$J$3:$N$250,MATCH(Calculator!$C7&I$4,'2023 NIST (for reference)'!$A$3:$A$250,0),MATCH(Calculator!$B7,'2023 NIST (for reference)'!$J$2:$N$2,0)) -> 1 | J7: =INDEX('2023 NIST (for reference)'!$J$3:$N$250,MATCH(Calculator!$C7&J$4,'2023 NIST (for reference)'!$A$3:$A$250,0),MATCH(Calculator!$B7,'2023 NIST (for reference)'!$J$2:$N$2,0)) -> 0.9995803754 | K7: =INDEX('2023 NIST (for reference)'!$J$3:$N$250,MATCH(Calculator!$C7&K$4,'2023 NIST (for reference)'!$A$3:$A$250,0),MATCH(Calculator!$B7,'2023 NIST (for reference)'!$J$2:$N$2,0)) -> 1 | L7: 0.907630799 | M7: 0.9517601032 | N7: 0.9932275814 | O7: 0.931730899 | P7: 0.931730899 | Q7: 0.9708737864 | R7: 0.9704663839 | S7: 0.9708737864 | T7: =D7 -> 0.934859723 | U7: 0.9803129063 | V7: 1.023024409 | W7: 0.959682826 | X7: 0.959682826 | Y7: 1 | Z7: 0.9995803754 | AA7: 1 | AB7: 0.907630799 | AC7: 0.9517601032 | AD7: 0.9932275814 | AE7: 0.931730899 | AF7: 0.931730899 | AG7: 0.9708737864 | AH7: 0.9704663839 | AI7: 0.9708737864 | AJ7: 0.1402289584 | AK7: 15.06740937 | AL7: 2.445028337 | AM7: 3.435664517 | AN7: 3.301308921 | AO7: 280 | AP7: 56.29636674 | AQ7: 0 | AR7: 0.0195 | AS7: 0.285714 | AT7: 0.3105 | AU7: 0.55026 | AV7: 0.55026 | AW7: 102.31704 | AX7: 0 | AY7: 0 | AZ7: 0.1597289584 | BA7: =AK7+AS7*($AK$1*10) -> 18.03026355 | BB7: 2.755528337 | BC7: 3.985924517 | BD7: 3.851568921 | BE7: 382.31704 | BF7: 56.29636674 | BG7: 0 | BH7: =IFERROR(AZ7/AZ$6,D7) -> 0.9401351292 | BI7: 0.9864469229 | BJ7: 1.022554351 | BK7: 0.9674409699 | BL7: 0.9677138647 | BM7: 1.004980676 | BN7: 0.9995803754 | BO7: 1 | BP7: 0.9127525526 | BQ7: 0.9577154591 | BR7: 0.9927712145 | BS7: 0.9392630776 | BT7: 0.939528024 | BU7: 0.9757093939 | BV7: 0.9704663839 | BW7: 0.9708737864 | BX7: =BH7 -> 0.9401351292 | BY7: 0.9864469229 | BZ7: 1.022554351 | CA7: 0.9674409699 | CB7: 0.9677138647 | CC7: 1.004980676 | CD7: 0.9995803754 | CE7: 1 | CF7: 0.9127525526 | CG7: 0.9577154591 | CH7: 0.9927712145 | CI7: 0.9392630776 | CJ7: 0.939528024 | CK7: 0.9757093939 | CL7: 0.9704663839 | CM7: 0.9708737864
A8: 2Region 4 - West | B8: Region 4 - West | C8: 2 | D8: =INDEX('2023 NIST (for reference)'!$J$3:$N$250,MATCH(Calculator!$C8&D$4,'2023 NIST (for reference)'!$A$3:$A$250,0),MATCH(Calculator!$B8,'2023 NIST (for reference)'!$J$2:$N$2,0)) -> 0.8672203062 | E8: =INDEX('2023 NIST (for reference)'!$J$3:$N$250,MATCH(Calculator!$C8&E$4,'2023 NIST (for reference)'!$A$3:$A$250,0),MATCH(Calculator!$B8,'2023 NIST (for reference)'!$J$2:$N$2,0)) -> 0.9112727449 | F8: =INDEX('2023 NIST (for reference)'!$J$3:$N$250,MATCH(Calculator!$C8&F$4,'2023 NIST (for reference)'!$A$3:$A$250,0),MATCH(Calculator!$B8,'2023 NIST (for reference)'!$J$2:$N$2,0)) -> 0.9984701686 | G8: =INDEX('2023 NIST (for reference)'!$J$3:$N$250,MATCH(Calculator!$C8&G$4,'2023 NIST (for reference)'!$A$3:$A$250,0),MATCH(Calculator!$B8,'2023 NIST (for reference)'!$J$2:$N$2,0)) -> 0.9133089517 | H8: =INDEX('2023 NIST (for reference)'!$J$3:$N$250,MATCH(Calculator!$C8&H$4,'2023 NIST (for reference)'!$A$3:$A$250,0),MATCH(Calculator!$B8,'2023 NIST (for reference)'!$J$2:$N$2,0)) -> 0.9133089517 | I8: =INDEX('2023 NIST (for reference)'!$J$3:$N$250,MATCH(Calculator!$C8&I$4,'2023 NIST (for reference)'!$A$3:$A$250,0),MATCH(Calculator!$B8,'2023 NIST (for reference)'!$J$2:$N$2,0)) -> 1 | J8: =INDEX('2023 NIST (for reference)'!$J$3:$N$250,MATCH(Calculator!$C8&J$4,'2023 NIST (for reference)'!$A$3:$A$250,0),MATCH(Calculator!$B8,'2023 NIST (for reference)'!$J$2:$N$2,0)) -> 1.01543246 | K8: =INDEX('2023 NIST (for reference)'!$J$3:$N$250,MATCH(Calculator!$C8&K$4,'2023 NIST (for reference)'!$A$3:$A$250,0),MATCH(Calculator!$B8,'2023 NIST (for reference)'!$J$2:$N$2,0)) -> 1 | L8: =L7+D8/((1+$C$4)^$C8) -> 1.725069112 | M8: =M7+E8/((1+$C$4)^$C8) -> 1.810722065 | N8: =N7+F8/((1+$C$4)^$C8) -> 1.934381478 | O8: =O7+G8/((1+$C$4)^$C8) -> 1.792612181 | P8: =P7+H8/((1+$C$4)^$C8) -> 1.792612181 | Q8: =Q7+I8/((1+$C$4)^$C8) -> 1.913469696 | R8: =R7+J8/((1+$C$4)^$C8) -> 1.927608867 | S8: =S7+K8/((1+$C$4)^$C8) -> 1.913469696 | T8: 0.8672203062 | U8: 0.9112727449 | V8: 0.9984701686 | W8: 0.9133089517 | X8: 0.9133089517 | Y8: 1 | Z8: 1.01543246 | AA8: 1 | AB8: =AB7+T8/((1+$C$4)^$C8) -> 1.725069112 | AC8: =AC7+U8/((1+$C$4)^$C8) -> 1.810722065 | AD8: =AD7+V8/((1+$C$4)^$C8) -> 1.934381478 | AE8: =AE7+W8/((1+$C$4)^$C8) -> 1.792612181 | AF8: =AF7+X8/((1+$C$4)^$C8) -> 1.792612181 | AG8: =AG7+Y8/((1+$C$4)^$C8) -> 1.913469696 | AH8: =AH7+Z8/((1+$C$4)^$C8) -> 1.927608867 | AI8: =AI7+AA8/((1+$C$4)^$C8) -> 1.913469696 | AJ8: 0.1300830459 | AK8: 14.00626209 | AL8: 2.386343703 | AM8: 3.269646047 | AN8: 3.141782794 | AO8: 280 | AP8: 57.18915617 | AQ8: 0 | AR8: 0.018 | AS8: 0.291005 | AT8: 0.31625 | AU8: 0.56045 | AV8: 0.56045 | AW8: 104.2118 | AX8: 0 | AY8: 0 | AZ8: 0.1480830459 | BA8: 17.02398394 | BB8: 2.702593703 | BC8: 3.830096047 | BD8: 3.702232794 | BE8: 384.2118 | BF8: 57.18915617 | BG8: 0 | BH8: 0.8715894404 | BI8: 0.9313927401 | BJ8: 1.002910735 | BK8: 0.9296191684 | BL8: 0.9301928845 | BM8: 1.009961351 | BN8: 1.01543246 | BO8: 1 | BP8: =BP7+BH8/((1+$C$4)^$C8) -> 1.734309194 | BQ8: =BQ7+BI8/((1+$C$4)^$C8) -> 1.835642446 | BR8: =BR7+BJ8/((1+$C$4)^$C8) -> 1.93811077 | BS8: =BS7+BK8/((1+$C$4)^$C8) -> 1.815518303 | BT8: =BT7+BL8/((1+$C$4)^$C8) -> 1.816324032 | BU8: =BU7+BM8/((1+$C$4)^$C8) -> 1.927694832 | BV8: =BV7+BN8/((1+$C$4)^$C8) -> 1.927608867 | BW8: =BW7+BO8/((1+$C$4)^$C8) -> 1.913469696 | BX8: 0.8715894404 | BY8: 0.9313927401 | BZ8: 1.002910735 | CA8: 0.9296191684 | CB8: 0.9301928845 | CC8: 1.009961351 | CD8: 1.01543246 | CE8: 1 | CF8: =CF7+BX8/((1+$C$4)^$C8) -> 1.734309194 | CG8: =CG7+BY8/((1+$C$4)^$C8) -> 1.835642446 | CH8: =CH7+BZ8/((1+$C$4)^$C8) -> 1.93811077 | CI8: =CI7+CA8/((1+$C$4)^$C8) -> 1.815518303 | CJ8: =CJ7+CB8/((1+$C$4)^$C8) -> 1.816324032 | CK8: =CK7+CC8/((1+$C$4)^$C8) -> 1.927694832 | CL8: =CL7+CD8/((1+$C$4)^$C8) -> 1.927608867 | CM8: =CM7+CE8/((1+$C$4)^$C8) -> 1.913469696
A9: 3Region 4 - West | B9: Region 4 - West | C9: 3 | D9: =INDEX('2023 NIST (for reference)'!$J$3:$N$250,MATCH(Calculator!$C9&D$4,'2023 NIST (for reference)'!$A$3:$A$250,0),MATCH(Calculator!$B9,'2023 NIST (for reference)'!$J$2:$N$2,0)) -> 0.8448304852 | E9: =INDEX('2023 NIST (for reference)'!$J$3:$N$250,MATCH(Calculator!$C9&E$4,'2023 NIST (for reference)'!$A$3:$A$250,0),MATCH(Calculator!$B9,'2023 NIST (for reference)'!$J$2:$N$2,0)) -> 0.834841404 | F9: =INDEX('2023 NIST (for reference)'!$J$3:$N$250,MATCH(Calculator!$C9&F$4,'2023 NIST (for reference)'!$A$3:$A$250,0),MATCH(Calculator!$B9,'2023 NIST (for reference)'!$J$2:$N$2,0)) -> 0.9630483558 | G9: =INDEX('2023 NIST (for reference)'!$J$3:$N$250,MATCH(Calculator!$C9&G$4,'2023 NIST (for reference)'!$A$3:$A$250,0),MATCH(Calculator!$B9,'2023 NIST (for reference)'!$J$2:$N$2,0)) -> 0.8896472382 | H9: =INDEX('2023 NIST (for reference)'!$J$3:$N$250,MATCH(Calculator!$C9&H$4,'2023 NIST (for reference)'!$A$3:$A$250,0),MATCH(Calculator!$B9,'2023 NIST (for reference)'!$J$2:$N$2,0)) -> 0.8896472382 | I9: =INDEX('2023 NIST (for reference)'!$J$3:$N$250,MATCH(Calculator!$C9&I$4,'2023 NIST (for reference)'!$A$3:$A$250,0),MATCH(Calculator!$B9,'2023 NIST (for reference)'!$J$2:$N$2,0)) -> 1 | J9: =INDEX('2023 NIST (for reference)'!$J$3:$N$250,MATCH(Calculator!$C9&J$4,'2023 NIST (for reference)'!$A$3:$A$250,0),MATCH(Calculator!$B9,'2023 NIST (for reference)'!$J$2:$N$2,0)) -> 1.02309176 | K9: =INDEX('2023 NIST (for reference)'!$J$3:$N$250,MATCH(Calculator!$C9&K$4,'2023 NIST (for reference)'!$A$3:$A$250,0),MATCH(Calculator!$B9,'2023 NIST (for reference)'!$J$2:$N$2,0)) -> 1 | L9: 2.498208684 | M9: 2.574720212 | N9: 2.815707148 | O9: 2.60676543 | P9: 2.60676543 | Q9: 2.828611355 | R9: 2.863882758 | S9: 2.828611355 | T9: 0.8448304852 | U9: 0.834841404 | V9: 0.9630483558 | W9: 0.8896472382 | X9: 0.8896472382 | Y9: 1 | Z9: 1.02309176 | AA9: 1 | AB9: 2.498208684 | AC9: 2.574720212 | AD9: 2.815707148 | AE9: 2.60676543 | AF9: 2.60676543 | AG9: 2.828611355 | AH9: 2.863882758 | AI9: 2.828611355 | AJ9: 0.1267245728 | AK9: 12.83151238 | AL9: 2.30168557 | AM9: 3.184937113 | AN9: 3.060386499 | AO9: 280 | AP9: 57.62052791 | AQ9: 0 | AR9: 0.0176 | AS9: 0.296296 | AT9: 0.322 | AU9: 0.57064 | AV9: 0.57064 | AW9: 106.10656 | AX9: 0 | AY9: 0 | AZ9: 0.1443245728 | BA9: 15.9041019 | BB9: 2.62368557 | BC9: 3.755577113 | BD9: 3.631026499 | BE9: 386.10656 | BF9: 57.62052791 | BG9: 0 | BH9: 0.8494677621 | BI9: 0.8701232978 | BJ9: 0.9736285631 | BK9: 0.9115323557 | BL9: 0.9123021704 | BM9: 1.014942027 | BN9: 1.02309176 | BO9: 1 | BP9: 2.511692531 | BQ9: 2.631928524 | BR9: 2.829118829 | BS9: 2.649699535 | BT9: 2.651209754 | BU9: 2.856510563 | BV9: 2.863882758 | BW9: 2.828611355 | BX9: 0.8494677621 | BY9: 0.8701232978 | BZ9: 0.9736285631 | CA9: 0.9115323557 | CB9: 0.9123021704 | CC9: 1.014942027 | CD9: 1.02309176 | CE9: 1 | CF9: 2.511692531 | CG9: 2.631928524 | CH9: 2.829118829 | CI9: 2.649699535 | CJ9: 2.651209754 | CK9: 2.856510563 | CL9: 2.863882758 | CM9: 2.828611355
A10: 4Region 4 - West | B10: Region 4 - West | C10: 4 | D10: =INDEX('2023 NIST (for reference)'!$J$3:$N$250,MATCH(Calculator!$C10&D$4,'2023 NIST (for reference)'!$A$3:$A$250,0),MATCH(Calculator!$B10,'2023 NIST (for reference)'!$J$2:$N$2,0)) -> 0.8399119326 | E10: =INDEX('2023 NIST (for reference)'!$J$3:$N$250,MATCH(Calculator!$C10&E$4,'2023 NIST (for reference)'!$A$3:$A$250,0),MATCH(Calculator!$B10,'2023 NIST (for reference)'!$J$2:$N$2,0)) -> 0.7710907938 | F10: =INDEX('2023 NIST (for reference)'!$J$3:$N$250,MATCH(Calculator!$C10&F$4,'2023 NIST (for reference)'!$A$3:$A$250,0),MATCH(Calculator!$B10,'2023 NIST (for reference)'!$J$2:$N$2,0)) -> 0.9326200316 | G10: =INDEX('2023 NIST (for reference)'!$J$3:$N$250,MATCH(Calculator!$C10&G$4,'2023 NIST (for reference)'!$A$3:$A$250,0),MATCH(Calculator!$B10,'2023 NIST (for reference)'!$J$2:$N$2,0)) -> 0.8752658539 | H10: =INDEX('2023 NIST (for reference)'!$J$3:$N$250,MATCH(Calculator!$C10&H$4,'2023 NIST (for reference)'!$A$3:$A$250,0),MATCH(Calculator!$B10,'2023 NIST (for reference)'!$J$2:$N$2,0)) -> 0.8752658539 | I10: =INDEX('2023 NIST (for reference)'!$J$3:$N$250,MATCH(Calculator!$C10&I$4,'2023 NIST (for reference)'!$A$3:$A$250,0),MATCH(Calculator!$B10,'2023 NIST (for reference)'!$J$2:$N$2,0)) -> 1 | J10: =INDEX('2023 NIST (for reference)'!$J$3:$N$250,MATCH(Calculator!$C10&J$4,'2023 NIST (for reference)'!$A$3:$A$250,0),MATCH(Calculator!$B10,'2023 NIST (for reference)'!$J$2:$N$2,0)) -> 1.019969329 | K10: =INDEX('2023 NIST (for reference)'!$J$3:$N$250,MATCH(Calculator!$C10&K$4,'2023 NIST (for reference)'!$A$3:$A$250,0),MATCH(Calculator!$B10,'2023 NIST (for reference)'!$J$2:$N$2,0)) -> 1 | L10: 3.244459558 | M10: 3.259824395 | N10: 3.644327967 | O10: 3.384427805 | P10: 3.384427805 | Q10: 3.717098403 | R10: 3.770112296 | S10: 3.717098403 | T10: 0.8399119326 | U10: 0.7710907938 | V10: 0.9326200316 | W10: 0.8752658539 | X10: 0.8752658539 | Y10: 1 | Z10: 1.019969329 | AA10: 1 | AB10: 3.244459558 | AC10: 3.259824395 | AD10: 3.644327967 | AE10: 3.384427805 | AF10: 3.384427805 | AG10: 3.717098403 | AH10: 3.770112296 | AI10: 3.717098403 | AJ10: 0.1259867899 | AK10: 11.8516655 | AL10: 2.228961876 | AM10: 3.133451757 | AN10: 3.010914537 | AO10: 280 | AP10: 57.44467263 | AQ10: 0 | AR10: 0.0176 | AS10: 0.301587 | AT10: 0.32775 | AU10: 0.58083 | AV10: 0.58083 | AW10: 108.00132 | AX10: 0 | AY10: 0 | AZ10: 0.1435867899 | BA10: 14.97912269 | BB10: 2.556711876 | BC10: 3.714281757 | BD10: 3.591744537 | BE10: 388.00132 | BF10: 57.44467263 | BG10: 0 | BH10: 0.8451253084 | BI10: 0.8195171105 | BJ10: 0.9487751649 | BK10: 0.9015093814 | BL10: 0.9024325043 | BM10: 1.019922703 | BN10: 1.019969329 | BO10: 1 | BP10: 3.262575421 | BQ10: 3.360058863 | BR10: 3.672093275 | BS10: 3.450678944 | BT10: 3.453009345 | BU10: 3.762698674 | BV10: 3.770112296 | BW10: 3.717098403 | BX10: 0.8451253084 | BY10: 0.8195171105 | BZ10: 0.9487751649 | CA10: 0.9015093814 | CB10: 0.9024325043 | CC10: 1.019922703 | CD10: 1.019969329 | CE10: 1 | CF10: 3.262575421 | CG10: 3.360058863 | CH10: 3.672093275 | CI10: 3.450678944 | CJ10: 3.453009345 | CK10: 3.762698674 | CL10: 3.770112296 | CM10: 3.717098403
A11: 5Region 4 - West | B11: Region 4 - West | C11: 5 | D11: =INDEX('2023 NIST (for reference)'!$J$3:$N$250,MATCH(Calculator!$C11&D$4,'2023 NIST (for reference)'!$A$3:$A$250,0),MATCH(Calculator!$B11,'2023 NIST (for reference)'!$J$2:$N$2,0)) -> 0.8378340953 | E11: =INDEX('2023 NIST (for reference)'!$J$3:$N$250,MATCH(Calculator!$C11&E$4,'2023 NIST (for reference)'!$A$3:$A$250,0),MATCH(Calculator!$B11,'2023 NIST (for reference)'!$J$2:$N$2,0)) -> 0.7179328976 | F11: =INDEX('2023 NIST (for reference)'!$J$3:$N$250,MATCH(Calculator!$C11&F$4,'2023 NIST (for reference)'!$A$3:$A$250,0),MATCH(Calculator!$B11,'2023 NIST (for reference)'!$J$2:$N$2,0)) -> 0.9131031704 | G11: =INDEX('2023 NIST (for reference)'!$J$3:$N$250,MATCH(Calculator!$C11&G$4,'2023 NIST (for reference)'!$A$3:$A$250,0),MATCH(Calculator!$B11,'2023 NIST (for reference)'!$J$2:$N$2,0)) -> 0.8623267979 | H11: =INDEX('2023 NIST (for reference)'!$J$3:$N$250,MATCH(Calculator!$C11&H$4,'2023 NIST (for reference)'!$A$3:$A$250,0),MATCH(Calculator!$B11,'2023 NIST (for reference)'!$J$2:$N$2,0)) -> 0.8623267979 | I11: =INDEX('2023 NIST (for reference)'!$J$3:$N$250,MATCH(Calculator!$C11&I$4,'2023 NIST (for reference)'!$A$3:$A$250,0),MATCH(Calculator!$B11,'2023 NIST (for reference)'!$J$2:$N$2,0)) -> 1 | J11: =INDEX('2023 NIST (for reference)'!$J$3:$N$250,MATCH(Calculator!$C11&J$4,'2023 NIST (for reference)'!$A$3:$A$250,0),MATCH(Calculator!$B11,'2023 NIST (for reference)'!$J$2:$N$2,0)) -> 1.012576658 | K11: =INDEX('2023 NIST (for reference)'!$J$3:$N$250,MATCH(Calculator!$C11&K$4,'2023 NIST (for reference)'!$A$3:$A$250,0),MATCH(Calculator!$B11,'2023 NIST (for reference)'!$J$2:$N$2,0)) -> 1 | L11: 3.967182608 | M11: 3.87911962 | N11: 4.431978783 | O11: 4.128278476 | P11: 4.128278476 | Q11: 4.579707187 | R11: 4.643569816 | S11: 4.579707187 | T11: 0.8378340953 | U11: 0.7179328976 | V11: 0.9131031704 | W11: 0.8623267979 | X11: 0.8623267979 | Y11: 1 | Z11: 1.012576658 | AA11: 1 | AB11: 3.967182608 | AC11: 3.87911962 | AD11: 4.431978783 | AE11: 4.128278476 | AF11: 4.128278476 | AG11: 4.579707187 | AH11: 4.643569816 | AI11: 4.579707187 | AJ11: 0.1256751143 | AK11: 11.03462864 | AL11: 2.182316577 | AM11: 3.087129936 | AN11: 2.966404185 | AO11: 280 | AP11: 57.02831736 | AQ11: 0 | AR11: 0.018 | AS11: 0.312169 | AT11: 0.33925 | AU11: 0.60121 | AV11: 0.60121 | AW11: 111.79084 | AX11: 0 | AY11: 0 | AZ11: 0.1436751143 | BA11: 14.27182117 | BB11: 2.521566577 | BC11: 3.688339936 | BD11: 3.567614185 | BE11: 391.79084 | BF11: 57.02831736 | BG11: 0 | BH11: 0.8456451695 | BI11: 0.7808202046 | BJ11: 0.935733028 | BK11: 0.89521293 | BL11: 0.8963697082 | BM11: 1.029884054 | BN11: 1.012576658 | BO11: 1 | BP11: 3.992036373 | BQ11: 4.03360123 | BR11: 4.479264804 | BS11: 4.222897481 | BT11: 4.22622573 | BU11: 4.651085706 | BV11: 4.643569816 | BW11: 4.579707187 | BX11: 0.8456451695 | BY11: 0.7808202046 | BZ11: 0.935733028 | CA11: 0.89521293 | CB11: 0.8963697082 | CC11: 1.029884054 | CD11: 1.012576658 | CE11: 1 | CF11: 3.992036373 | CG11: 4.03360123 | CH11: 4.479264804 | CI11: 4.222897481 | CJ11: 4.22622573 | CK11: 4.651085706 | CL11: 4.643569816 | CM11: 4.579707187
A12: 6Region 4 - West | B12: Region 4 - West | C12: 6 | D12: =INDEX('2023 NIST (for reference)'!$J$3:$N$250,MATCH(Calculator!$C12&D$4,'2023 NIST (for reference)'!$A$3:$A$250,0),MATCH(Calculator!$B12,'2023 NIST (for reference)'!$J$2:$N$2,0)) -> 0.8383374359 | E12: =INDEX('2023 NIST (for reference)'!$J$3:$N$250,MATCH(Calculator!$C12&E$4,'2023 NIST (for reference)'!$A$3:$A$250,0),MATCH(Calculator!$B12,'2023 NIST (for reference)'!$J$2:$N$2,0)) -> 0.704641452 | F12: =INDEX('2023 NIST (for reference)'!$J$3:$N$250,MATCH(Calculator!$C12&F$4,'2023 NIST (for reference)'!$A$3:$A$250,0),MATCH(Calculator!$B12,'2023 NIST (for reference)'!$J$2:$N$2,0)) -> 0.9042516755 | G12: =INDEX('2023 NIST (for reference)'!$J$3:$N$250,MATCH(Calculator!$C12&G$4,'2023 NIST (for reference)'!$A$3:$A$250,0),MATCH(Calculator!$B12,'2023 NIST (for reference)'!$J$2:$N$2,0)) -> 0.8609786136 | H12: =INDEX('2023 NIST (for reference)'!$J$3:$N$250,MATCH(Calculator!$C12&H$4,'2023 NIST (for reference)'!$A$3:$A$250,0),MATCH(Calculator!$B12,'2023 NIST (for reference)'!$J$2:$N$2,0)) -> 0.8609786136 | I12: =INDEX('2023 NIST (for reference)'!$J$3:$N$250,MATCH(Calculator!$C12&I$4,'2023 NIST (for reference)'!$A$3:$A$250,0),MATCH(Calculator!$B12,'2023 NIST (for reference)'!$J$2:$N$2,0)) -> 1 | J12: =INDEX('2023 NIST (for reference)'!$J$3:$N$250,MATCH(Calculator!$C12&J$4,'2023 NIST (for reference)'!$A$3:$A$250,0),MATCH(Calculator!$B12,'2023 NIST (for reference)'!$J$2:$N$2,0)) -> 1.007275633 | K12: =INDEX('2023 NIST (for reference)'!$J$3:$N$250,MATCH(Calculator!$C12&K$4,'2023 NIST (for reference)'!$A$3:$A$250,0),MATCH(Calculator!$B12,'2023 NIST (for reference)'!$J$2:$N$2,0)) -> 1 | L12: 4.669277012 | M12: 4.469245742 | N12: 5.189275325 | O12: 4.84933451 | P12: 4.84933451 | Q12: 5.417191444 | R12: 5.487147301 | S12: 5.417191444 | T12: 0.8383374359 | U12: 0.704641452 | V12: 0.9042516755 | W12: 0.8609786136 | X12: 0.8609786136 | Y12: 1 | Z12: 1.007275633 | AA12: 1 | AB12: 4.669277012 | AC12: 4.469245742 | AD12: 5.189275325 | AE12: 4.84933451 | AF12: 4.84933451 | AG12: 5.417191444 | AH12: 5.487147301 | AI12: 5.417191444 | AJ12: 0.1257506154 | AK12: 10.83033912 | AL12: 2.161161504 | AM12: 3.082303437 | AN12: 2.961766431 | AO12: 280 | AP12: 56.72976365 | AQ12: 0 | AR12: 0.0182 | AS12: 0.31746 | AT12: 0.345 | AU12: 0.6114 | AV12: 0.6114 | AW12: 113.6856 | AX12: 0 | AY12: 0 | AZ12: 0.1439506154 | BA12: 14.12239932 | BB12: 2.506161504 | BC12: 3.693703437 | BD12: 3.573166431 | BE12: 393.6856 | BF12: 56.72976365 | BG12: 0 | BH12: 0.847266718 | BI12: 0.7726452424 | BJ12: 0.9300163297 | BK12: 0.8965147283 | BL12: 0.8977647204 | BM12: 1.03486473 | BN12: 1.007275633 | BO12: 1 | BP12: 4.701608911 | BQ12: 4.680679457 | BR12: 5.258138839 | BS12: 4.973714452 | BT12: 4.978089549 | BU12: 5.517768625 | BV12: 5.487147301 | BW12: 5.417191444 | BX12: 0.847266718 | BY12: 0.7726452424 | BZ12: 0.9300163297 | CA12: 0.8965147283 | CB12: 0.8977647204 | CC12: 1.03486473 | CD12: 1.007275633 | CE12: 1 | CF12: 4.701608911 | CG12: 4.680679457 | CH12: 5.258138839 | CI12: 4.973714452 | CJ12: 4.978089549 | CK12: 5.517768625 | CL12: 5.487147301 | CM12: 5.417191444
A13: 7Region 4 - West | B13: Region 4 - West | C13: 7 | D13: =INDEX('2023 NIST (for reference)'!$J$3:$N$250,MATCH(Calculator!$C13&D$4,'2023 NIST (for reference)'!$A$3:$A$250,0),MATCH(Calculator!$B13,'2023 NIST (for reference)'!$J$2:$N$2,0)) -> 0.8436218384 | E13: =INDEX('2023 NIST (for reference)'!$J$3:$N$250,MATCH(Calculator!$C13&E$4,'2023 NIST (for reference)'!$A$3:$A$250,0),MATCH(Calculator!$B13,'2023 NIST (for reference)'!$J$2:$N$2,0)) -> 0.7059171396 | F13: =INDEX('2023 NIST (for reference)'!$J$3:$N$250,MATCH(Calculator!$C13&F$4,'2023 NIST (for reference)'!$A$3:$A$250,0),MATCH(Calculator!$B13,'2023 NIST (for reference)'!$J$2:$N$2,0)) -> 0.9047246716 | G13: =INDEX('2023 NIST (for reference)'!$J$3:$N$250,MATCH(Calculator!$C13&G$4,'2023 NIST (for reference)'!$A$3:$A$250,0),MATCH(Calculator!$B13,'2023 NIST (for reference)'!$J$2:$N$2,0)) -> 0.8620555986 | H13: =INDEX('2023 NIST (for reference)'!$J$3:$N$250,MATCH(Calculator!$C13&H$4,'2023 NIST (for reference)'!$A$3:$A$250,0),MATCH(Calculator!$B13,'2023 NIST (for reference)'!$J$2:$N$2,0)) -> 0.8620555986 | I13: =INDEX('2023 NIST (for reference)'!$J$3:$N$250,MATCH(Calculator!$C13&I$4,'2023 NIST (for reference)'!$A$3:$A$250,0),MATCH(Calculator!$B13,'2023 NIST (for reference)'!$J$2:$N$2,0)) -> 1 | J13: =INDEX('2023 NIST (for reference)'!$J$3:$N$250,MATCH(Calculator!$C13&J$4,'2023 NIST (for reference)'!$A$3:$A$250,0),MATCH(Calculator!$B13,'2023 NIST (for reference)'!$J$2:$N$2,0)) -> 1.003150888 | K13: =INDEX('2023 NIST (for reference)'!$J$3:$N$250,MATCH(Calculator!$C13&K$4,'2023 NIST (for reference)'!$A$3:$A$250,0),MATCH(Calculator!$B13,'2023 NIST (for reference)'!$J$2:$N$2,0)) -> 1 | L13: 5.355218768 | M13: 5.043220976 | N13: 5.924899276 | O13: 5.5502646 | P13: 5.5502646 | Q13: 6.230282955 | R13: 6.302800772 | S13: 6.230282955 | T13: 0.8436218384 | U13: 0.7059171396 | V13: 0.9047246716 | W13: 0.8620555986 | X13: 0.8620555986 | Y13: 1 | Z13: 1.003150888 | AA13: 1 | AB13: 5.355218768 | AC13: 5.043220976 | AD13: 5.924899276 | AE13: 5.5502646 | AF13: 5.5502646 | AG13: 6.230282955 | AH13: 6.302800772 | AI13: 6.230282955 | AJ13: 0.1265432758 | AK13: 10.84994644 | AL13: 2.162291965 | AM13: 3.086159043 | AN13: 2.965471259 | AO13: 280 | AP13: 56.497458 | AQ13: 0 | AR13: 0.018 | AS13: 0.322751 | AT13: 0.35075 | AU13: 0.62159 | AV13: 0.62159 | AW13: 115.58036 | AX13: 0 | AY13: 0 | AZ13: 0.1445432758 | BA13: 14.19687431 | BB13: 2.513041965 | BC13: 3.707749043 | BD13: 3.587061259 | BE13: 395.58036 | BF13: 56.497458 | BG13: 0 | BH13: 0.8507550074 | BI13: 0.7767198153 | BJ13: 0.9325696132 | BK13: 0.8999237981 | BL13: 0.9012558219 | BM13: 1.039845405 | BN13: 1.003150888 | BO13: 1 | BP13: 5.393350585 | BQ13: 5.312223745 | BR13: 6.016403275 | BS13: 5.705434853 | BT13: 5.710893008 | BU13: 6.363258097 | BV13: 6.302800772 | BW13: 6.230282955 | BX13: 0.8507550074 | BY13: 0.7767198153 | BZ13: 0.9325696132 | CA13: 0.8999237981 | CB13: 0.9012558219 | CC13: 1.039845405 | CD13: 1.003150888 | CE13: 1 | CF13: 5.393350585 | CG13: 5.312223745 | CH13: 6.016403275 | CI13: 5.705434853 | CJ13: 5.710893008 | CK13: 6.363258097 | CL13: 6.302800772 | CM13: 6.230282955
A14: 8Region 4 - West | B14: Region 4 - West | C14: 8 | D14: =INDEX('2023 NIST (for reference)'!$J$3:$N$250,MATCH(Calculator!$C14&D$4,'2023 NIST (for reference)'!$A$3:$A$250,0),MATCH(Calculator!$B14,'2023 NIST (for reference)'!$J$2:$N$2,0)) -> 0.8523773014 | E14: =INDEX('2023 NIST (for reference)'!$J$3:$N$250,MATCH(Calculator!$C14&E$4,'2023 NIST (for reference)'!$A$3:$A$250,0),MATCH(Calculator!$B14,'2023 NIST (for reference)'!$J$2:$N$2,0)) -> 0.7111930308 | F14: =INDEX('2023 NIST (for reference)'!$J$3:$N$250,MATCH(Calculator!$C14&F$4,'2023 NIST (for reference)'!$A$3:$A$250,0),MATCH(Calculator!$B14,'2023 NIST (for reference)'!$J$2:$N$2,0)) -> 0.9122609254 | G14: =INDEX('2023 NIST (for reference)'!$J$3:$N$250,MATCH(Calculator!$C14&G$4,'2023 NIST (for reference)'!$A$3:$A$250,0),MATCH(Calculator!$B14,'2023 NIST (for reference)'!$J$2:$N$2,0)) -> 0.8654772643 | H14: =INDEX('2023 NIST (for reference)'!$J$3:$N$250,MATCH(Calculator!$C14&H$4,'2023 NIST (for reference)'!$A$3:$A$250,0),MATCH(Calculator!$B14,'2023 NIST (for reference)'!$J$2:$N$2,0)) -> 0.8654772643 | I14: =INDEX('2023 NIST (for reference)'!$J$3:$N$250,MATCH(Calculator!$C14&I$4,'2023 NIST (for reference)'!$A$3:$A$250,0),MATCH(Calculator!$B14,'2023 NIST (for reference)'!$J$2:$N$2,0)) -> 1 | J14: =INDEX('2023 NIST (for reference)'!$J$3:$N$250,MATCH(Calculator!$C14&J$4,'2023 NIST (for reference)'!$A$3:$A$250,0),MATCH(Calculator!$B14,'2023 NIST (for reference)'!$J$2:$N$2,0)) -> 0.9988647226 | K14: =INDEX('2023 NIST (for reference)'!$J$3:$N$250,MATCH(Calculator!$C14&K$4,'2023 NIST (for reference)'!$A$3:$A$250,0),MATCH(Calculator!$B14,'2023 NIST (for reference)'!$J$2:$N$2,0)) -> 1 | L14: 6.028093281 | M14: 5.604643322 | N14: 6.645046474 | O14: 6.233480344 | P14: 6.233480344 | Q14: 7.01969219 | R14: 7.091313808 | S14: 7.01969219 | T14: 0.8523773014 | U14: 0.7111930308 | V14: 0.9122609254 | W14: 0.8654772643 | X14: 0.8654772643 | Y14: 1 | Z14: 0.9988647226 | AA14: 1 | AB14: 6.028093281 | AC14: 5.604643322 | AD14: 6.645046474 | AE14: 6.233480344 | AF14: 6.233480344 | AG14: 7.01969219 | AH14: 7.091313808 | AI14: 7.01969219 | AJ14: 0.1278565952 | AK14: 10.93103688 | AL14: 2.180303612 | AM14: 3.098408606 | AN14: 2.977241789 | AO14: 280 | AP14: 56.25606118 | AQ14: 0 | AR14: 0.0179 | AS14: 0.328042 | AT14: 0.3565 | AU14: 0.63178 | AV14: 0.63178 | AW14: 117.47512 | AX14: 0 | AY14: 0 | AZ14: 0.1457565952 | BA14: 14.33283242 | BB14: 2.536803612 | BC14: 3.730188606 | BD14: 3.609021789 | BE14: 397.47512 | BF14: 56.25606118 | BG14: 0 | BH14: 0.8578963815 | BI14: 0.7841581684 | BJ14: 0.9413873687 | BK14: 0.9053702015 | BL14: 0.906773446 | BM14: 1.044826081 | BN14: 0.9988647226 | BO14: 1 | BP14: 6.070581911 | BQ14: 5.931245444 | BR14: 6.759543157 | BS14: 6.420142451 | BT14: 6.426708339 | BU14: 7.188053454 | BV14: 7.091313808 | BW14: 7.01969219 | BX14: 0.8578963815 | BY14: 0.7841581684 | BZ14: 0.9413873687 | CA14: 0.9053702015 | CB14: 0.906773446 | CC14: 1.044826081 | CD14: 0.9988647226 | CE14: 1 | CF14: 6.070581911 | CG14: 5.931245444 | CH14: 6.759543157 | CI14: 6.420142451 | CJ14: 6.426708339 | CK14: 7.188053454 | CL14: 7.091313808 | CM14: 7.01969219
A15: 9Region 4 - West | B15: Region 4 - West | C15: 9 | D15: =INDEX('2023 NIST (for reference)'!$J$3:$N$250,MATCH(Calculator!$C15&D$4,'2023 NIST (for reference)'!$A$3:$A$250,0),MATCH(Calculator!$B15,'2023 NIST (for reference)'!$J$2:$N$2,0)) -> 0.8630705929 | E15: =INDEX('2023 NIST (for reference)'!$J$3:$N$250,MATCH(Calculator!$C15&E$4,'2023 NIST (for reference)'!$A$3:$A$250,0),MATCH(Calculator!$B15,'2023 NIST (for reference)'!$J$2:$N$2,0)) -> 0.7169683715 | F15: =INDEX('2023 NIST (for reference)'!$J$3:$N$250,MATCH(Calculator!$C15&F$4,'2023 NIST (for reference)'!$A$3:$A$250,0),MATCH(Calculator!$B15,'2023 NIST (for reference)'!$J$2:$N$2,0)) -> 0.925620419 | G15: =INDEX('2023 NIST (for reference)'!$J$3:$N$250,MATCH(Calculator!$C15&G$4,'2023 NIST (for reference)'!$A$3:$A$250,0),MATCH(Calculator!$B15,'2023 NIST (for reference)'!$J$2:$N$2,0)) -> 0.8693300232 | H15: =INDEX('2023 NIST (for reference)'!$J$3:$N$250,MATCH(Calculator!$C15&H$4,'2023 NIST (for reference)'!$A$3:$A$250,0),MATCH(Calculator!$B15,'2023 NIST (for reference)'!$J$2:$N$2,0)) -> 0.8693300232 | I15: =INDEX('2023 NIST (for reference)'!$J$3:$N$250,MATCH(Calculator!$C15&I$4,'2023 NIST (for reference)'!$A$3:$A$250,0),MATCH(Calculator!$B15,'2023 NIST (for reference)'!$J$2:$N$2,0)) -> 1 | J15: =INDEX('2023 NIST (for reference)'!$J$3:$N$250,MATCH(Calculator!$C15&J$4,'2023 NIST (for reference)'!$A$3:$A$250,0),MATCH(Calculator!$B15,'2023 NIST (for reference)'!$J$2:$N$2,0)) -> 0.9939538207 | K15: =INDEX('2023 NIST (for reference)'!$J$3:$N$250,MATCH(Calculator!$C15&K$4,'2023 NIST (for reference)'!$A$3:$A$250,0),MATCH(Calculator!$B15,'2023 NIST (for reference)'!$J$2:$N$2,0)) -> 1 | L15: 6.689565024 | M15: 6.154139879 | N15: 7.354457451 | O15: 6.89974942 | P15: 6.89974942 | Q15: 7.786108922 | R15: 7.853096647 | S15: 7.786108922 | T15: 0.8630705929 | U15: 0.7169683715 | V15: 0.925620419 | W15: 0.8693300232 | X15: 0.8693300232 | Y15: 1 | Z15: 0.9939538207 | AA15: 1 | AB15: 6.689565024 | AC15: 6.154139879 | AD15: 7.354457451 | AE15: 6.89974942 | AF15: 6.89974942 | AG15: 7.786108922 | AH15: 7.853096647 | AI15: 7.786108922 | AJ15: 0.1294605889 | AK15: 11.01980387 | AL15: 2.212232801 | AM15: 3.112201483 | AN15: 2.99049528 | AO15: 280 | AP15: 55.97947918 | AQ15: 0 | AR15: 0.0179 | AS15: 0.333333 | AT15: 0.36225 | AU15: 0.64197 | AV15: 0.64197 | AW15: 119.36988 | AX15: 0 | AY15: 0 | AZ15: 0.1473605889 | BA15: 14.47646708 | BB15: 2.574482801 | BC15: 3.754171483 | BD15: 3.63246528 | BE15: 399.36988 | BF15: 55.97947918 | BG15: 0 | BH15: 0.8673371921 | BI15: 0.7920165097 | BJ15: 0.9553698122 | BK15: 0.9111911893 | BL15: 0.9126636667 | BM15: 1.049806757 | BN15: 0.9939538207 | BO15: 1 | BP15: 6.735323648 | BQ15: 6.53826015 | BR15: 7.491754567 | BS15: 7.118494625 | BT15: 7.126189044 | BU15: 7.992642918 | BV15: 7.853096647 | BW15: 7.786108922 | BX15: 0.8673371921 | BY15: 0.7920165097 | BZ15: 0.9553698122 | CA15: 0.9111911893 | CB15: 0.9126636667 | CC15: 1.049806757 | CD15: 0.9939538207 | CE15: 1 | CF15: 6.735323648 | CG15: 6.53826015 | CH15: 7.491754567 | CI15: 7.118494625 | CJ15: 7.126189044 | CK15: 7.992642918 | CL15: 7.853096647 | CM15: 7.786108922
A16: 10Region 4 - West | B16: Region 4 - West | C16: 10 | D16: =INDEX('2023 NIST (for reference)'!$J$3:$N$250,MATCH(Calculator!$C16&D$4,'2023 NIST (for reference)'!$A$3:$A$250,0),MATCH(Calculator!$B16,'2023 NIST (for reference)'!$J$2:$N$2,0)) -> 0.8743015768 | E16: =INDEX('2023 NIST (for reference)'!$J$3:$N$250,MATCH(Calculator!$C16&E$4,'2023 NIST (for reference)'!$A$3:$A$250,0),MATCH(Calculator!$B16,'2023 NIST (for reference)'!$J$2:$N$2,0)) -> 0.7257628184 | F16: =INDEX('2023 NIST (for reference)'!$J$3:$N$250,MATCH(Calculator!$C16&F$4,'2023 NIST (for reference)'!$A$3:$A$250,0),MATCH(Calculator!$B16,'2023 NIST (for reference)'!$J$2:$N$2,0)) -> 0.9434256121 | G16: =INDEX('2023 NIST (for reference)'!$J$3:$N$250,MATCH(Calculator!$C16&G$4,'2023 NIST (for reference)'!$A$3:$A$250,0),MATCH(Calculator!$B16,'2023 NIST (for reference)'!$J$2:$N$2,0)) -> 0.8713583474 | H16: =INDEX('2023 NIST (for reference)'!$J$3:$N$250,MATCH(Calculator!$C16&H$4,'2023 NIST (for reference)'!$A$3:$A$250,0),MATCH(Calculator!$B16,'2023 NIST (for reference)'!$J$2:$N$2,0)) -> 0.8713583474 | I16: =INDEX('2023 NIST (for reference)'!$J$3:$N$250,MATCH(Calculator!$C16&I$4,'2023 NIST (for reference)'!$A$3:$A$250,0),MATCH(Calculator!$B16,'2023 NIST (for reference)'!$J$2:$N$2,0)) -> 1 | J16: =INDEX('2023 NIST (for reference)'!$J$3:$N$250,MATCH(Calculator!$C16&J$4,'2023 NIST (for reference)'!$A$3:$A$250,0),MATCH(Calculator!$B16,'2023 NIST (for reference)'!$J$2:$N$2,0)) -> 0.9899925963 | K16: =INDEX('2023 NIST (for reference)'!$J$3:$N$250,MATCH(Calculator!$C16&K$4,'2023 NIST (for reference)'!$A$3:$A$250,0),MATCH(Calculator!$B16,'2023 NIST (for reference)'!$J$2:$N$2,0)) -> 1 | L16: 7.340127508 | M16: 6.694175575 | N16: 8.056454708 | O16: 7.548121864 | P16: 7.548121864 | Q16: 8.530202837 | R16: 8.589744114 | S16: 8.530202837 | T16: 0.8743015768 | U16: 0.7257628184 | V16: 0.9434256121 | W16: 0.8713583474 | X16: 0.8713583474 | Y16: 1 | Z16: 0.9899925963 | AA16: 1 | AB16: 7.340127508 | AC16: 6.694175575 | AD16: 8.056454708 | AE16: 7.548121864 | AF16: 7.548121864 | AG16: 8.530202837 | AH16: 8.589744114 | AI16: 8.530202837 | AJ16: 0.1311452365 | AK16: 11.15497452 | AL16: 2.254787213 | AM16: 3.119462884 | AN16: 2.997472715 | AO16: 280 | AP16: 55.75638302 | AQ16: 0 | AR16: 0.0179 | AS16: 0.338624 | AT16: 0.368 | AU16: 0.65216 | AV16: 0.65216 | AW16: 121.26464 | AX16: 0 | AY16: 0 | AZ16: 0.1490452365 | BA16: 14.6665054 | BB16: 2.622787213 | BC16: 3.771622884 | BD16: 3.649632715 | BE16: 401.26464 | BF16: 55.75638302 | BG16: 0 | BH16: 0.8772527164 | BI16: 0.8024136242 | BJ16: 0.9732951899 | BK16: 0.9154268941 | BL16: 0.9169770168 | BM16: 1.054787433 | BN16: 0.9899925963 | BO16: 1 | BP16: 7.388082056 | BQ16: 7.135331245 | BR16: 8.215977595 | BS16: 7.799658206 | BT16: 7.808506063 | BU16: 8.777503828 | BV16: 8.589744114 | BW16: 8.530202837 | BX16: 0.8772527164 | BY16: 0.8024136242 | BZ16: 0.9732951899 | CA16: 0.9154268941 | CB16: 0.9169770168 | CC16: 1.054787433 | CD16: 0.9899925963 | CE16: 1 | CF16: 7.388082056 | CG16: 7.135331245 | CH16: 8.215977595 | CI16: 7.799658206 | CJ16: 7.808506063 | CK16: 8.777503828 | CL16: 8.589744114 | CM16: 8.530202837
A17: 11Region 4 - West | B17: Region 4 - West | C17: 11 | D17: =INDEX('2023 NIST (for reference)'!$J$3:$N$250,MATCH(Calculator!$C17&D$4,'2023 NIST (for reference)'!$A$3:$A$250,0),MATCH(Calculator!$B17,'2023 NIST (for reference)'!$J$2:$N$2,0)) -> 0.88463585 | E17: =INDEX('2023 NIST (for reference)'!$J$3:$N$250,MATCH(Calculator!$C17&E$4,'2023 NIST (for reference)'!$A$3:$A$250,0),MATCH(Calculator!$B17,'2023 NIST (for reference)'!$J$2:$N$2,0)) -> 0.7354838262 | F17: =INDEX('2023 NIST (for reference)'!$J$3:$N$250,MATCH(Calculator!$C17&F$4,'2023 NIST (for reference)'!$A$3:$A$250,0),MATCH(Calculator!$B17,'2023 NIST (for reference)'!$J$2:$N$2,0)) -> 0.9622612611 | G17: =INDEX('2023 NIST (for reference)'!$J$3:$N$250,MATCH(Calculator!$C17&G$4,'2023 NIST (for reference)'!$A$3:$A$250,0),MATCH(Calculator!$B17,'2023 NIST (for reference)'!$J$2:$N$2,0)) -> 0.8739676312 | H17: =INDEX('2023 NIST (for reference)'!$J$3:$N$250,MATCH(Calculator!$C17&H$4,'2023 NIST (for reference)'!$A$3:$A$250,0),MATCH(Calculator!$B17,'2023 NIST (for reference)'!$J$2:$N$2,0)) -> 0.8739676312 | I17: =INDEX('2023 NIST (for reference)'!$J$3:$N$250,MATCH(Calculator!$C17&I$4,'2023 NIST (for reference)'!$A$3:$A$250,0),MATCH(Calculator!$B17,'2023 NIST (for reference)'!$J$2:$N$2,0)) -> 1 | J17: =INDEX('2023 NIST (for reference)'!$J$3:$N$250,MATCH(Calculator!$C17&J$4,'2023 NIST (for reference)'!$A$3:$A$250,0),MATCH(Calculator!$B17,'2023 NIST (for reference)'!$J$2:$N$2,0)) -> 0.9875437749 | K17: =INDEX('2023 NIST (for reference)'!$J$3:$N$250,MATCH(Calculator!$C17&K$4,'2023 NIST (for reference)'!$A$3:$A$250,0),MATCH(Calculator!$B17,'2023 NIST (for reference)'!$J$2:$N$2,0)) -> 1 | L17: 7.979207268 | M17: 7.22550474 | N17: 8.751612717 | O17: 8.179494676 | P17: 8.179494676 | Q17: 9.252624113 | R17: 9.303166749 | S17: 9.252624113 | T17: 0.88463585 | U17: 0.7354838262 | V17: 0.9622612611 | W17: 0.8739676312 | X17: 0.8739676312 | Y17: 1 | Z17: 0.9875437749 | AA17: 1 | AB17: 7.979207268 | AC17: 7.22550474 | AD17: 8.751612717 | AE17: 8.179494676 | AF17: 8.179494676 | AG17: 9.252624113 | AH17: 9.303166749 | AI17: 9.252624113 | AJ17: 0.1326953775 | AK17: 11.30438641 | AL17: 2.299804414 | AM17: 3.12880412 | AN17: 3.006448651 | AO17: 280 | AP17: 55.6184654 | AQ17: 0 | AR17: 0.0182 | AS17: 0.343915 | AT17: 0.37375 | AU17: 0.66235 | AV17: 0.66235 | AW17: 123.1594 | AX17: 0 | AY17: 0 | AZ17: 0.1508953775 | BA17: 14.87078496 | BB17: 2.673554414 | BC17: 3.79115412 | BD17: 3.668798651 | BE17: 403.1594 | BF17: 55.6184654 | BG17: 0 | BH17: 0.8881423043 | BI17: 0.8135898859 | BJ17: 0.9921344889 | BK17: 0.9201674049 | BL17: 0.921792494 | BM17: 1.059768108 | BN17: 0.9875437749 | BO17: 1 | BP17: 8.029694953 | BQ17: 7.723085889 | BR17: 8.932716659 | BS17: 8.464406718 | BT17: 8.474428573 | BU17: 9.543102858 | BV17: 9.303166749 | BW17: 9.252624113 | BX17: 0.8881423043 | BY17: 0.8135898859 | BZ17: 0.9921344889 | CA17: 0.9201674049 | CB17: 0.921792494 | CC17: 1.059768108 | CD17: 0.9875437749 | CE17: 1 | CF17: 8.029694953 | CG17: 7.723085889 | CH17: 8.932716659 | CI17: 8.464406718 | CJ17: 8.474428573 | CK17: 9.543102858 | CL17: 9.303166749 | CM17: 9.252624113
A18: 12Region 4 - West | B18: Region 4 - West | C18: 12 | D18: =INDEX('2023 NIST (for reference)'!$J$3:$N$250,MATCH(Calculator!$C18&D$4,'2023 NIST (for reference)'!$A$3:$A$250,0),MATCH(Calculator!$B18,'2023 NIST (for reference)'!$J$2:$N$2,0)) -> 0.8939065993 | E18: =INDEX('2023 NIST (for reference)'!$J$3:$N$250,MATCH(Calculator!$C18&E$4,'2023 NIST (for reference)'!$A$3:$A$250,0),MATCH(Calculator!$B18,'2023 NIST (for reference)'!$J$2:$N$2,0)) -> 0.7443205349 | F18: =INDEX('2023 NIST (for reference)'!$J$3:$N$250,MATCH(Calculator!$C18&F$4,'2023 NIST (for reference)'!$A$3:$A$250,0),MATCH(Calculator!$B18,'2023 NIST (for reference)'!$J$2:$N$2,0)) -> 0.9782850635 | G18: =INDEX('2023 NIST (for reference)'!$J$3:$N$250,MATCH(Calculator!$C18&G$4,'2023 NIST (for reference)'!$A$3:$A$250,0),MATCH(Calculator!$B18,'2023 NIST (for reference)'!$J$2:$N$2,0)) -> 0.8769384108 | H18: =INDEX('2023 NIST (for reference)'!$J$3:$N$250,MATCH(Calculator!$C18&H$4,'2023 NIST (for reference)'!$A$3:$A$250,0),MATCH(Calculator!$B18,'2023 NIST (for reference)'!$J$2:$N$2,0)) -> 0.8769384108 | I18: =INDEX('2023 NIST (for reference)'!$J$3:$N$250,MATCH(Calculator!$C18&I$4,'2023 NIST (for reference)'!$A$3:$A$250,0),MATCH(Calculator!$B18,'2023 NIST (for reference)'!$J$2:$N$2,0)) -> 1 | J18: =INDEX('2023 NIST (for reference)'!$J$3:$N$250,MATCH(Calculator!$C18&J$4,'2023 NIST (for reference)'!$A$3:$A$250,0),MATCH(Calculator!$B18,'2023 NIST (for reference)'!$J$2:$N$2,0)) -> 0.9855026357 | K18: =INDEX('2023 NIST (for reference)'!$J$3:$N$250,MATCH(Calculator!$C18&K$4,'2023 NIST (for reference)'!$A$3:$A$250,0),MATCH(Calculator!$B18,'2023 NIST (for reference)'!$J$2:$N$2,0)) -> 1 | L18: 8.606175371 | M18: 7.747556188 | N18: 9.437762177 | O18: 8.794561633 | P18: 8.794561633 | Q18: 9.954003994 | R18: 9.994378469 | S18: 9.954003994 | T18: 0.8939065993 | U18: 0.7443205349 | V18: 0.9782850635 | W18: 0.8769384108 | X18: 0.8769384108 | Y18: 1 | Z18: 0.9855026357 | AA18: 1 | AB18: 8.606175371 | AC18: 7.747556188 | AD18: 9.437762177 | AE18: 8.794561633 | AF18: 8.794561633 | AG18: 9.954003994 | AH18: 9.994378469 | AI18: 9.954003994 | AJ18: 0.1340859899 | AK18: 11.44020662 | AL18: 2.338101302 | AM18: 3.139439511 | AN18: 3.016668133 | AO18: 280 | AP18: 55.50350844 | AQ18: 0 | AR18: 0.0178 | AS18: 0.349206 | AT18: 0.3795 | AU18: 0.67254 | AV18: 0.67254 | AW18: 125.05416 | AX18: 0 | AY18: 0 | AZ18: 0.1518859899 | BA18: 15.06147284 | BB18: 2.717601302 | BC18: 3.811979511 | BD18: 3.689208133 | BE18: 405.05416 | BF18: 55.50350844 | BG18: 0 | BH18: 0.8939728657 | BI18: 0.8240225384 | BJ18: 1.008479934 | BK18: 0.9252220255 | BL18: 0.9269204142 | BM18: 1.064748784 | BN18: 0.9855026357 | BO18: 1 | BP18: 8.656709534 | BQ18: 8.301038718 | BR18: 9.640044194 | BS18: 9.113338831 | BT18: 9.124551902 | BU18: 10.28989623 | BV18: 9.994378469 | BW18: 9.954003994 | BX18: 0.8939728657 | BY18: 0.8240225384 | BZ18: 1.008479934 | CA18: 0.9252220255 | CB18: 0.9269204142 | CC18: 1.064748784 | CD18: 0.9855026357 | CE18: 1 | CF18: 8.656709534 | CG18: 8.301038718 | CH18: 9.640044194 | CI18: 9.113338831 | CJ18: 9.124551902 | CK18: 10.28989623 | CL18: 9.994378469 | CM18: 9.954003994
A19: 13Region 4 - West | B19: Region 4 - West | C19: 13 | D19: =INDEX('2023 NIST (for reference)'!$J$3:$N$250,MATCH(Calculator!$C19&D$4,'2023 NIST (for reference)'!$A$3:$A$250,0),MATCH(Calculator!$B19,'2023 NIST (for reference)'!$J$2:$N$2,0)) -> 0.9014841386 | E19: =INDEX('2023 NIST (for reference)'!$J$3:$N$250,MATCH(Calculator!$C19&E$4,'2023 NIST (for reference)'!$A$3:$A$250,0),MATCH(Calculator!$B19,'2023 NIST (for reference)'!$J$2:$N$2,0)) -> 0.7485146444 | F19: =INDEX('2023 NIST (for reference)'!$J$3:$N$250,MATCH(Calculator!$C19&F$4,'2023 NIST (for reference)'!$A$3:$A$250,0),MATCH(Calculator!$B19,'2023 NIST (for reference)'!$J$2:$N$2,0)) -> 0.9905125804 | G19: =INDEX('2023 NIST (for reference)'!$J$3:$N$250,MATCH(Calculator!$C19&G$4,'2023 NIST (for reference)'!$A$3:$A$250,0),MATCH(Calculator!$B19,'2023 NIST (for reference)'!$J$2:$N$2,0)) -> 0.8794293298 | H19: =INDEX('2023 NIST (for reference)'!$J$3:$N$250,MATCH(Calculator!$C19&H$4,'2023 NIST (for reference)'!$A$3:$A$250,0),MATCH(Calculator!$B19,'2023 NIST (for reference)'!$J$2:$N$2,0)) -> 0.8794293298 | I19: =INDEX('2023 NIST (for reference)'!$J$3:$N$250,MATCH(Calculator!$C19&I$4,'2023 NIST (for reference)'!$A$3:$A$250,0),MATCH(Calculator!$B19,'2023 NIST (for reference)'!$J$2:$N$2,0)) -> 1 | J19: =INDEX('2023 NIST (for reference)'!$J$3:$N$250,MATCH(Calculator!$C19&J$4,'2023 NIST (for reference)'!$A$3:$A$250,0),MATCH(Calculator!$B19,'2023 NIST (for reference)'!$J$2:$N$2,0)) -> 0.9838263551 | K19: =INDEX('2023 NIST (for reference)'!$J$3:$N$250,MATCH(Calculator!$C19&K$4,'2023 NIST (for reference)'!$A$3:$A$250,0),MATCH(Calculator!$B19,'2023 NIST (for reference)'!$J$2:$N$2,0)) -> 1 | L19: 9.220042203 | M19: 8.257258238 | N19: 10.11225305 | O19: 9.393410214 | P19: 9.393410214 | Q19: 10.63495533 | R19: 10.66431634 | S19: 10.63495533 | T19: 0.9014841386 | U19: 0.7485146444 | V19: 0.9905125804 | W19: 0.8794293298 | X19: 0.8794293298 | Y19: 1 | Z19: 0.9838263551 | AA19: 1 | AB19: 9.220042203 | AC19: 8.257258238 | AD19: 10.11225305 | AE19: 9.393410214 | AF19: 9.393410214 | AG19: 10.63495533 | AH19: 10.66431634 | AI19: 10.63495533 | AJ19: 0.1352226208 | AK19: 11.50467008 | AL19: 2.367325067 | AM19: 3.148357001 | AN19: 3.025236895 | AO19: 280 | AP19: 55.40910032 | AQ19: 0 | AR19: 0.0176 | AS19: 0.354497 | AT19: 0.38525 | AU19: 0.68273 | AV19: 0.68273 | AW19: 126.94892 | AX19: 0 | AY19: 0 | AZ19: 0.1528226208 | BA19: 15.18080397 | BB19: 2.752575067 | BC19: 3.831087001 | BD19: 3.707966895 | BE19: 406.94892 | BF19: 55.40910032 | BG19: 0 | BH19: 0.8994857021 | BI19: 0.8305512189 | BJ19: 1.021458416 | BK19: 0.929859687 | BL19: 0.931633588 | BM19: 1.06972946 | BN19: 0.9838263551 | BO19: 1 | BP19: 9.269215529 | BQ19: 8.866603684 | BR19: 10.33560767 | BS19: 9.746528031 | BT19: 9.758949042 | BU19: 11.01832994 | BV19: 10.66431634 | BW19: 10.63495533 | BX19: 0.8994857021 | BY19: 0.8305512189 | BZ19: 1.021458416 | CA19: 0.929859687 | CB19: 0.931633588 | CC19: 1.06972946 | CD19: 0.9838263551 | CE19: 1 | CF19: 9.269215529 | CG19: 8.866603684 | CH19: 10.33560767 | CI19: 9.746528031 | CJ19: 9.758949042 | CK19: 11.01832994 | CL19: 10.66431634 | CM19: 10.63495533
A20: 14Region 4 - West | B20: Region 4 - West | C20: 14 | D20: =INDEX('2023 NIST (for reference)'!$J$3:$N$250,MATCH(Calculator!$C20&D$4,'2023 NIST (for reference)'!$A$3:$A$250,0),MATCH(Calculator!$B20,'2023 NIST (for reference)'!$J$2:$N$2,0)) -> 0.9108216565 | E20: =INDEX('2023 NIST (for reference)'!$J$3:$N$250,MATCH(Calculator!$C20&E$4,'2023 NIST (for reference)'!$A$3:$A$250,0),MATCH(Calculator!$B20,'2023 NIST (for reference)'!$J$2:$N$2,0)) -> 0.7525858338 | F20: =INDEX('2023 NIST (for reference)'!$J$3:$N$250,MATCH(Calculator!$C20&F$4,'2023 NIST (for reference)'!$A$3:$A$250,0),MATCH(Calculator!$B20,'2023 NIST (for reference)'!$J$2:$N$2,0)) -> 1.000871244 | G20: =INDEX('2023 NIST (for reference)'!$J$3:$N$250,MATCH(Calculator!$C20&G$4,'2023 NIST (for reference)'!$A$3:$A$250,0),MATCH(Calculator!$B20,'2023 NIST (for reference)'!$J$2:$N$2,0)) -> 0.8818304268 | H20: =INDEX('2023 NIST (for reference)'!$J$3:$N$250,MATCH(Calculator!$C20&H$4,'2023 NIST (for reference)'!$A$3:$A$250,0),MATCH(Calculator!$B20,'2023 NIST (for reference)'!$J$2:$N$2,0)) -> 0.8818304268 | I20: =INDEX('2023 NIST (for reference)'!$J$3:$N$250,MATCH(Calculator!$C20&I$4,'2023 NIST (for reference)'!$A$3:$A$250,0),MATCH(Calculator!$B20,'2023 NIST (for reference)'!$J$2:$N$2,0)) -> 1 | J20: =INDEX('2023 NIST (for reference)'!$J$3:$N$250,MATCH(Calculator!$C20&J$4,'2023 NIST (for reference)'!$A$3:$A$250,0),MATCH(Calculator!$B20,'2023 NIST (for reference)'!$J$2:$N$2,0)) -> 0.9829397656 | K20: =INDEX('2023 NIST (for reference)'!$J$3:$N$250,MATCH(Calculator!$C20&K$4,'2023 NIST (for reference)'!$A$3:$A$250,0),MATCH(Calculator!$B20,'2023 NIST (for reference)'!$J$2:$N$2,0)) -> 1 | L20: 9.822202618 | M20: 8.754806133 | N20: 10.77394685 | O20: 9.976404011 | P20: 9.976404011 | Q20: 11.29607314 | R20: 11.31415532 | S20: 11.29607314 | T20: 0.9108216565 | U20: 0.7525858338 | V20: 1.000871244 | W20: 0.8818304268 | X20: 0.8818304268 | Y20: 1 | Z20: 0.9829397656 | AA20: 1 | AB20: 9.822202618 | AC20: 8.754806133 | AD20: 10.77394685 | AE20: 9.976404011 | AF20: 9.976404011 | AG20: 11.29607314 | AH20: 11.31415532 | AI20: 11.29607314 | AJ20: 0.1366232485 | AK20: 11.56724426 | AL20: 2.392082273 | AM20: 3.156952928 | AN20: 3.033496668 | AO20: 280 | AP20: 55.3591676 | AQ20: 0 | AR20: 0.0176 | AS20: 0.365079 | AT20: 0.39675 | AU20: 0.70311 | AV20: 0.70311 | AW20: 130.73844 | AX20: 0 | AY20: 0 | AZ20: 0.1542232485 | BA20: 15.35311349 | BB20: 2.788832273 | BC20: 3.860062928 | BD20: 3.736606668 | BE20: 410.73844 | BF20: 55.3591676 | BG20: 0 | BH20: 0.9077295378 | BI20: 0.8399783798 | BJ20: 1.034913173 | BK20: 0.9368925595 | BL20: 0.9388293844 | BM20: 1.079690811 | BN20: 0.9829397656 | BO20: 1 | BP20: 9.869331689 | BQ20: 9.421928347 | BR20: 11.0198072 | BS20: 10.36592438 | BT20: 10.37962586 | BU20: 11.73213276 | BV20: 11.31415532 | BW20: 11.29607314 | BX20: 0.9077295378 | BY20: 0.8399783798 | BZ20: 1.034913173 | CA20: 0.9368925595 | CB20: 0.9388293844 | CC20: 1.079690811 | CD20: 0.9829397656 | CE20: 1 | CF20: 9.869331689 | CG20: 9.421928347 | CH20: 11.0198072 | CI20: 10.36592438 | CJ20: 10.37962586 | CK20: 11.73213276 | CL20: 11.31415532 | CM20: 11.29607314
A21: 15Region 4 - West | B21: Region 4 - West | C21: 15 | D21: =INDEX('2023 NIST (for reference)'!$J$3:$N$250,MATCH(Calculator!$C21&D$4,'2023 NIST (for reference)'!$A$3:$A$250,0),MATCH(Calculator!$B21,'2023 NIST (for reference)'!$J$2:$N$2,0)) -> 0.9220333192 | E21: =INDEX('2023 NIST (for reference)'!$J$3:$N$250,MATCH(Calculator!$C21&E$4,'2023 NIST (for reference)'!$A$3:$A$250,0),MATCH(Calculator!$B21,'2023 NIST (for reference)'!$J$2:$N$2,0)) -> 0.7605068231 | F21: =INDEX('2023 NIST (for reference)'!$J$3:$N$250,MATCH(Calculator!$C21&F$4,'2023 NIST (for reference)'!$A$3:$A$250,0),MATCH(Calculator!$B21,'2023 NIST (for reference)'!$J$2:$N$2,0)) -> 1.013117476 | G21: =INDEX('2023 NIST (for reference)'!$J$3:$N$250,MATCH(Calculator!$C21&G$4,'2023 NIST (for reference)'!$A$3:$A$250,0),MATCH(Calculator!$B21,'2023 NIST (for reference)'!$J$2:$N$2,0)) -> 0.8845873963 | H21: =INDEX('2023 NIST (for reference)'!$J$3:$N$250,MATCH(Calculator!$C21&H$4,'2023 NIST (for reference)'!$A$3:$A$250,0),MATCH(Calculator!$B21,'2023 NIST (for reference)'!$J$2:$N$2,0)) -> 0.8845873963 | I21: =INDEX('2023 NIST (for reference)'!$J$3:$N$250,MATCH(Calculator!$C21&I$4,'2023 NIST (for reference)'!$A$3:$A$250,0),MATCH(Calculator!$B21,'2023 NIST (for reference)'!$J$2:$N$2,0)) -> 1 | J21: =INDEX('2023 NIST (for reference)'!$J$3:$N$250,MATCH(Calculator!$C21&J$4,'2023 NIST (for reference)'!$A$3:$A$250,0),MATCH(Calculator!$B21,'2023 NIST (for reference)'!$J$2:$N$2,0)) -> 0.9828057392 | K21: =INDEX('2023 NIST (for reference)'!$J$3:$N$250,MATCH(Calculator!$C21&K$4,'2023 NIST (for reference)'!$A$3:$A$250,0),MATCH(Calculator!$B21,'2023 NIST (for reference)'!$J$2:$N$2,0)) -> 1 | L21: 10.41402072 | M21: 9.242946523 | N21: 11.4242284 | O21: 10.544187 | P21: 10.544187 | Q21: 11.93793509 | R21: 11.94498093 | S21: 11.93793509 | T21: 0.9220333192 | U21: 0.7605068231 | V21: 1.013117476 | W21: 0.8845873963 | X21: 0.8845873963 | Y21: 1 | Z21: 0.9828057392 | AA21: 1 | AB21: 10.41402072 | AC21: 9.242946523 | AD21: 11.4242284 | AE21: 10.544187 | AF21: 10.544187 | AG21: 11.93793509 | AH21: 11.94498093 | AI21: 11.93793509 | AJ21: 0.1383049979 | AK21: 11.68898987 | AL21: 2.421350767 | AM21: 3.166822879 | AN21: 3.042980643 | AO21: 280 | AP21: 55.35161923 | AQ21: 0 | AR21: 0.0177 | AS21: 0.37037 | AT21: 0.4025 | AU21: 0.7133 | AV21: 0.7133 | AW21: 132.6332 | AX21: 0 | AY21: 0 | AZ21: 0.1560049979 | BA21: 15.52972677 | BB21: 2.823850767 | BC21: 3.880122879 | BD21: 3.756280643 | BE21: 412.6332 | BF21: 55.35161923 | BG21: 0 | BH21: 0.9182165855 | BI21: 0.8496410019 | BJ21: 1.047908254 | BK21: 0.9417613969 | BL21: 0.9437725073 | BM21: 1.084671487 | BN21: 0.9828057392 | BO21: 1 | BP21: 10.45869997 | BQ21: 9.967280575 | BR21: 11.69241963 | BS21: 10.97040519 | BT21: 10.98539752 | BU21: 12.42834211 | BV21: 11.94498093 | BW21: 11.93793509 | BX21: 0.9182165855 | BY21: 0.8496410019 | BZ21: 1.047908254 | CA21: 0.9417613969 | CB21: 0.9437725073 | CC21: 1.084671487 | CD21: 0.9828057392 | CE21: 1 | CF21: 10.45869997 | CG21: 9.967280575 | CH21: 11.69241963 | CI21: 10.97040519 | CJ21: 10.98539752 | CK21: 12.42834211 | CL21: 11.94498093 | CM21: 11.93793509
A22: 16Region 4 - West | B22: Region 4 - West | C22: 16 | D22: =INDEX('2023 NIST (for reference)'!$J$3:$N$250,MATCH(Calculator!$C22&D$4,'2023 NIST (for reference)'!$A$3:$A$250,0),MATCH(Calculator!$B22,'2023 NIST (for reference)'!$J$2:$N$2,0)) -> 0.9318276423 | E22: =INDEX('2023 NIST (for reference)'!$J$3:$N$250,MATCH(Calculator!$C22&E$4,'2023 NIST (for reference)'!$A$3:$A$250,0),MATCH(Calculator!$B22,'2023 NIST (for reference)'!$J$2:$N$2,0)) -> 0.7611453093 | F22: =INDEX('2023 NIST (for reference)'!$J$3:$N$250,MATCH(Calculator!$C22&F$4,'2023 NIST (for reference)'!$A$3:$A$250,0),MATCH(Calculator!$B22,'2023 NIST (for reference)'!$J$2:$N$2,0)) -> 1.021084378 | G22: =INDEX('2023 NIST (for reference)'!$J$3:$N$250,MATCH(Calculator!$C22&G$4,'2023 NIST (for reference)'!$A$3:$A$250,0),MATCH(Calculator!$B22,'2023 NIST (for reference)'!$J$2:$N$2,0)) -> 0.8866746989 | H22: =INDEX('2023 NIST (for reference)'!$J$3:$N$250,MATCH(Calculator!$C22&H$4,'2023 NIST (for reference)'!$A$3:$A$250,0),MATCH(Calculator!$B22,'2023 NIST (for reference)'!$J$2:$N$2,0)) -> 0.8866746989 | I22: =INDEX('2023 NIST (for reference)'!$J$3:$N$250,MATCH(Calculator!$C22&I$4,'2023 NIST (for reference)'!$A$3:$A$250,0),MATCH(Calculator!$B22,'2023 NIST (for reference)'!$J$2:$N$2,0)) -> 1 | J22: =INDEX('2023 NIST (for reference)'!$J$3:$N$250,MATCH(Calculator!$C22&J$4,'2023 NIST (for reference)'!$A$3:$A$250,0),MATCH(Calculator!$B22,'2023 NIST (for reference)'!$J$2:$N$2,0)) -> 0.9824234529 | K22: =INDEX('2023 NIST (for reference)'!$J$3:$N$250,MATCH(Calculator!$C22&K$4,'2023 NIST (for reference)'!$A$3:$A$250,0),MATCH(Calculator!$B22,'2023 NIST (for reference)'!$J$2:$N$2,0)) -> 1 | L22: 10.9947049 | M22: 9.717267116 | N22: 12.06053443 | O22: 11.09673336 | P22: 11.09673336 | Q22: 12.56110203 | R22: 12.55719475 | S22: 12.56110203 | T22: 0.9318276423 | U22: 0.7611453093 | V22: 1.021084378 | W22: 0.8866746989 | X22: 0.8866746989 | Y22: 1 | Z22: 0.9824234529 | AA22: 1 | AB22: 10.9947049 | AC22: 9.717267116 | AD22: 12.06053443 | AE22: 11.09673336 | AF22: 11.09673336 | AG22: 12.56110203 | AH22: 12.55719475 | AI22: 12.56110203 | AJ22: 0.1397741463 | AK22: 11.6988034 | AL22: 2.440391664 | AM22: 3.174295422 | AN22: 3.050160964 | AO22: 280 | AP22: 55.33008887 | AQ22: 0 | AR22: 0.0178 | AS22: 0.375661 | AT22: 0.40825 | AU22: 0.72349 | AV22: 0.72349 | AW22: 134.52796 | AX22: 0 | AY22: 0 | AZ22: 0.1575741463 | BA22: 15.59440797 | BB22: 2.848641664 | BC22: 3.897785422 | BD22: 3.773650964 | BE22: 414.52796 | BF22: 55.33008887 | BG22: 0 | BH22: 0.9274523034 | BI22: 0.8531797507 | BJ22: 1.057107956 | BK22: 0.9460483492 | BL22: 0.9481368328 | BM22: 1.089652162 | BN22: 0.9824234529 | BO22: 1 | BP22: 11.03665759 | BQ22: 10.49895399 | BR22: 12.35117436 | BS22: 11.55995124 | BT22: 11.57624505 | BU22: 13.10737732 | BV22: 12.55719475 | BW22: 12.56110203 | BX22: 0.9274523034 | BY22: 0.8531797507 | BZ22: 1.057107956 | CA22: 0.9460483492 | CB22: 0.9481368328 | CC22: 1.089652162 | CD22: 0.9824234529 | CE22: 1 | CF22: 11.03665759 | CG22: 10.49895399 | CH22: 12.35117436 | CI22: 11.55995124 | CJ22: 11.57624505 | CK22: 13.10737732 | CL22: 12.55719475 | CM22: 12.56110203
A23: 17Region 4 - West | B23: Region 4 - West | C23: 17 | D23: =INDEX('2023 NIST (for reference)'!$J$3:$N$250,MATCH(Calculator!$C23&D$4,'2023 NIST (for reference)'!$A$3:$A$250,0),MATCH(Calculator!$B23,'2023 NIST (for reference)'!$J$2:$N$2,0)) -> 0.9398949639 | E23: =INDEX('2023 NIST (for reference)'!$J$3:$N$250,MATCH(Calculator!$C23&E$4,'2023 NIST (for reference)'!$A$3:$A$250,0),MATCH(Calculator!$B23,'2023 NIST (for reference)'!$J$2:$N$2,0)) -> 0.7650098362 | F23: =INDEX('2023 NIST (for reference)'!$J$3:$N$250,MATCH(Calculator!$C23&F$4,'2023 NIST (for reference)'!$A$3:$A$250,0),MATCH(Calculator!$B23,'2023 NIST (for reference)'!$J$2:$N$2,0)) -> 1.030353738 | G23: =INDEX('2023 NIST (for reference)'!$J$3:$N$250,MATCH(Calculator!$C23&G$4,'2023 NIST (for reference)'!$A$3:$A$250,0),MATCH(Calculator!$B23,'2023 NIST (for reference)'!$J$2:$N$2,0)) -> 0.8889455339 | H23: =INDEX('2023 NIST (for reference)'!$J$3:$N$250,MATCH(Calculator!$C23&H$4,'2023 NIST (for reference)'!$A$3:$A$250,0),MATCH(Calculator!$B23,'2023 NIST (for reference)'!$J$2:$N$2,0)) -> 0.8889455339 | I23: =INDEX('2023 NIST (for reference)'!$J$3:$N$250,MATCH(Calculator!$C23&I$4,'2023 NIST (for reference)'!$A$3:$A$250,0),MATCH(Calculator!$B23,'2023 NIST (for reference)'!$J$2:$N$2,0)) -> 1 | J23: =INDEX('2023 NIST (for reference)'!$J$3:$N$250,MATCH(Calculator!$C23&J$4,'2023 NIST (for reference)'!$A$3:$A$250,0),MATCH(Calculator!$B23,'2023 NIST (for reference)'!$J$2:$N$2,0)) -> 0.9806983037 | K23: =INDEX('2023 NIST (for reference)'!$J$3:$N$250,MATCH(Calculator!$C23&K$4,'2023 NIST (for reference)'!$A$3:$A$250,0),MATCH(Calculator!$B23,'2023 NIST (for reference)'!$J$2:$N$2,0)) -> 1 | L23: 11.56335681 | M23: 10.18011065 | N23: 12.68391539 | O23: 11.63456003 | P23: 11.63456003 | Q23: 13.16611847 | R23: 13.15053335 | S23: 13.16611847 | T23: 0.9398949639 | U23: 0.7650098362 | V23: 1.030353738 | W23: 0.8889455339 | X23: 0.8889455339 | Y23: 1 | Z23: 0.9806983037 | AA23: 1 | AB23: 11.56335681 | AC23: 10.18011065 | AD23: 12.68391539 | AE23: 11.63456003 | AF23: 11.63456003 | AG23: 13.16611847 | AH23: 13.15053335 | AI23: 13.16611847 | AJ23: 0.1409842446 | AK23: 11.75820118 | AL23: 2.462545434 | AM23: 3.182425011 | AN23: 3.057972637 | AO23: 280 | AP23: 55.23292846 | AQ23: 0 | AR23: 0.018 | AS23: 0.380952 | AT23: 0.414 | AU23: 0.73368 | AV23: 0.73368 | AW23: 136.42272 | AX23: 0 | AY23: 0 | AZ23: 0.1589842446 | BA23: 15.70867342 | BB23: 2.876545434 | BC23: 3.916105011 | BD23: 3.791652637 | BE23: 416.42272 | BF23: 55.23292846 | BG23: 0 | BH23: 0.935751881 | BI23: 0.8594312844 | BJ23: 1.06746282 | BK23: 0.9504947759 | BL23: 0.9526597866 | BM23: 1.094632838 | BN23: 0.9806983037 | BO23: 1 | BP23: 11.60280287 | BQ23: 11.01892405 | BR23: 12.99700692 | BS23: 12.13501621 | BT23: 12.15261989 | BU23: 13.76964819 | BV23: 13.15053335 | BW23: 13.16611847 | BX23: 0.935751881 | BY23: 0.8594312844 | BZ23: 1.06746282 | CA23: 0.9504947759 | CB23: 0.9526597866 | CC23: 1.094632838 | CD23: 0.9806983037 | CE23: 1 | CF23: 11.60280287 | CG23: 11.01892405 | CH23: 12.99700692 | CI23: 12.13501621 | CJ23: 12.15261989 | CK23: 13.76964819 | CL23: 13.15053335 | CM23: 13.16611847
A24: 18Region 4 - West | B24: Region 4 - West | C24: 18 | D24: =INDEX('2023 NIST (for reference)'!$J$3:$N$250,MATCH(Calculator!$C24&D$4,'2023 NIST (for reference)'!$A$3:$A$250,0),MATCH(Calculator!$B24,'2023 NIST (for reference)'!$J$2:$N$2,0)) -> 0.9490738073 | E24: =INDEX('2023 NIST (for reference)'!$J$3:$N$250,MATCH(Calculator!$C24&E$4,'2023 NIST (for reference)'!$A$3:$A$250,0),MATCH(Calculator!$B24,'2023 NIST (for reference)'!$J$2:$N$2,0)) -> 0.7707709074 | F24: =INDEX('2023 NIST (for reference)'!$J$3:$N$250,MATCH(Calculator!$C24&F$4,'2023 NIST (for reference)'!$A$3:$A$250,0),MATCH(Calculator!$B24,'2023 NIST (for reference)'!$J$2:$N$2,0)) -> 1.040474277 | G24: =INDEX('2023 NIST (for reference)'!$J$3:$N$250,MATCH(Calculator!$C24&G$4,'2023 NIST (for reference)'!$A$3:$A$250,0),MATCH(Calculator!$B24,'2023 NIST (for reference)'!$J$2:$N$2,0)) -> 0.8932955339 | H24: =INDEX('2023 NIST (for reference)'!$J$3:$N$250,MATCH(Calculator!$C24&H$4,'2023 NIST (for reference)'!$A$3:$A$250,0),MATCH(Calculator!$B24,'2023 NIST (for reference)'!$J$2:$N$2,0)) -> 0.8932955339 | I24: =INDEX('2023 NIST (for reference)'!$J$3:$N$250,MATCH(Calculator!$C24&I$4,'2023 NIST (for reference)'!$A$3:$A$250,0),MATCH(Calculator!$B24,'2023 NIST (for reference)'!$J$2:$N$2,0)) -> 1 | J24: =INDEX('2023 NIST (for reference)'!$J$3:$N$250,MATCH(Calculator!$C24&J$4,'2023 NIST (for reference)'!$A$3:$A$250,0),MATCH(Calculator!$B24,'2023 NIST (for reference)'!$J$2:$N$2,0)) -> 0.9789899013 | K24: =INDEX('2023 NIST (for reference)'!$J$3:$N$250,MATCH(Calculator!$C24&K$4,'2023 NIST (for reference)'!$A$3:$A$250,0),MATCH(Calculator!$B24,'2023 NIST (for reference)'!$J$2:$N$2,0)) -> 1 | L24: 12.12083765 | M24: 10.63285732 | N24: 13.29508437 | O24: 12.159277 | P24: 12.159277 | Q24: 13.75351308 | R24: 13.72558674 | S24: 13.75351308 | T24: 0.9490738073 | U24: 0.7707709074 | V24: 1.040474277 | W24: 0.8932955339 | X24: 0.8932955339 | Y24: 1 | Z24: 0.9789899013 | AA24: 1 | AB24: 12.12083765 | AC24: 10.63285732 | AD24: 13.29508437 | AE24: 12.159277 | AF24: 12.159277 | AG24: 13.75351308 | AH24: 13.72558674 | AI24: 13.75351308 | AJ24: 0.1423610711 | AK24: 11.84674885 | AL24: 2.486733523 | AM24: 3.197998011 | AN24: 3.072936637 | AO24: 280 | AP24: 55.13671124 | AQ24: 0 | AR24: 0.018 | AS24: 0.386243 | AT24: 0.41975 | AU24: 0.74387 | AV24: 0.74387 | AW24: 138.31748 | AX24: 0 | AY24: 0 | AZ24: 0.1603610711 | BA24: 15.85208876 | BB24: 2.906483523 | BC24: 3.941868011 | BD24: 3.816806637 | BE24: 418.31748 | BF24: 55.13671124 | BG24: 0 | BH24: 0.9438556274 | BI24: 0.8672776265 | BJ24: 1.078572603 | BK24: 0.956747825 | BL24: 0.9589797759 | BM24: 1.099613514 | BN24: 0.9789899013 | BO24: 1 | BP24: 12.15721857 | BQ24: 11.52835825 | BR24: 13.63055465 | BS24: 12.69700473 | BT24: 12.71591944 | BU24: 14.41555523 | BV24: 13.72558674 | BW24: 13.75351308 | BX24: 0.9438556274 | BY24: 0.8672776265 | BZ24: 1.078572603 | CA24: 0.956747825 | CB24: 0.9589797759 | CC24: 1.099613514 | CD24: 0.9789899013 | CE24: 1 | CF24: 12.15721857 | CG24: 11.52835825 | CH24: 13.63055465 | CI24: 12.69700473 | CJ24: 12.71591944 | CK24: 14.41555523 | CL24: 13.72558674 | CM24: 13.75351308
A25: 19Region 4 - West | B25: Region 4 - West | C25: 19 | D25: =INDEX('2023 NIST (for reference)'!$J$3:$N$250,MATCH(Calculator!$C25&D$4,'2023 NIST (for reference)'!$A$3:$A$250,0),MATCH(Calculator!$B25,'2023 NIST (for reference)'!$J$2:$N$2,0)) -> 0.9569904547 | E25: =INDEX('2023 NIST (for reference)'!$J$3:$N$250,MATCH(Calculator!$C25&E$4,'2023 NIST (for reference)'!$A$3:$A$250,0),MATCH(Calculator!$B25,'2023 NIST (for reference)'!$J$2:$N$2,0)) -> 0.7736558516 | F25: =INDEX('2023 NIST (for reference)'!$J$3:$N$250,MATCH(Calculator!$C25&F$4,'2023 NIST (for reference)'!$A$3:$A$250,0),MATCH(Calculator!$B25,'2023 NIST (for reference)'!$J$2:$N$2,0)) -> 1.048351647 | G25: =INDEX('2023 NIST (for reference)'!$J$3:$N$250,MATCH(Calculator!$C25&G$4,'2023 NIST (for reference)'!$A$3:$A$250,0),MATCH(Calculator!$B25,'2023 NIST (for reference)'!$J$2:$N$2,0)) -> 0.8948652169 | H25: =INDEX('2023 NIST (for reference)'!$J$3:$N$250,MATCH(Calculator!$C25&H$4,'2023 NIST (for reference)'!$A$3:$A$250,0),MATCH(Calculator!$B25,'2023 NIST (for reference)'!$J$2:$N$2,0)) -> 0.8948652169 | I25: =INDEX('2023 NIST (for reference)'!$J$3:$N$250,MATCH(Calculator!$C25&I$4,'2023 NIST (for reference)'!$A$3:$A$250,0),MATCH(Calculator!$B25,'2023 NIST (for reference)'!$J$2:$N$2,0)) -> 1 | J25: =INDEX('2023 NIST (for reference)'!$J$3:$N$250,MATCH(Calculator!$C25&J$4,'2023 NIST (for reference)'!$A$3:$A$250,0),MATCH(Calculator!$B25,'2023 NIST (for reference)'!$J$2:$N$2,0)) -> 0.9773424782 | K25: =INDEX('2023 NIST (for reference)'!$J$3:$N$250,MATCH(Calculator!$C25&K$4,'2023 NIST (for reference)'!$A$3:$A$250,0),MATCH(Calculator!$B25,'2023 NIST (for reference)'!$J$2:$N$2,0)) -> 1 | L25: 12.66659593 | M25: 11.07406244 | N25: 13.89294466 | O25: 12.66960613 | P25: 12.66960613 | Q25: 14.32379911 | R25: 14.2829515 | S25: 14.32379911 | T25: 0.9569904547 | U25: 0.7736558516 | V25: 1.048351647 | W25: 0.8948652169 | X25: 0.8948652169 | Y25: 1 | Z25: 0.9773424782 | AA25: 1 | AB25: 12.66659593 | AC25: 11.07406244 | AD25: 13.89294466 | AE25: 12.66960613 | AF25: 12.66960613 | AG25: 14.32379911 | AH25: 14.2829515 | AI25: 14.32379911 | AJ25: 0.1435485682 | AK25: 11.89109044 | AL25: 2.505560437 | AM25: 3.203617476 | AN25: 3.078336346 | AO25: 280 | AP25: 55.04392837 | AQ25: 0 | AR25: 0.0182 | AS25: 0.391534 | AT25: 0.4255 | AU25: 0.75406 | AV25: 0.75406 | AW25: 140.21224 | AX25: 0 | AY25: 0 | AZ25: 0.1617485682 | BA25: 15.95129802 | BB25: 2.931060437 | BC25: 3.957677476 | BD25: 3.832396346 | BE25: 420.21224 | BF25: 55.04392837 | BG25: 0 | BH25: 0.9520221789 | BI25: 0.8727054268 | BJ25: 1.087692898 | BK25: 0.9605850086 | BL25: 0.9628967194 | BM25: 1.104594189 | BN25: 0.9773424782 | BO25: 1 | BP25: 12.70014352 | BQ25: 12.02604996 | BR25: 14.25085071 | BS25: 13.24481293 | BT25: 13.26504598 | BU25: 15.04548987 | BV25: 14.2829515 | BW25: 14.32379911 | BX25: 0.9520221789 | BY25: 0.8727054268 | BZ25: 1.087692898 | CA25: 0.9605850086 | CB25: 0.9628967194 | CC25: 1.104594189 | CD25: 0.9773424782 | CE25: 1 | CF25: 12.70014352 | CG25: 12.02604996 | CH25: 14.25085071 | CI25: 13.24481293 | CJ25: 13.26504598 | CK25: 15.04548987 | CL25: 14.2829515 | CM25: 14.32379911
A26: 20Region 4 - West | B26: Region 4 - West | C26: 20 | D26: =INDEX('2023 NIST (for reference)'!$J$3:$N$250,MATCH(Calculator!$C26&D$4,'2023 NIST (for reference)'!$A$3:$A$250,0),MATCH(Calculator!$B26,'2023 NIST (for reference)'!$J$2:$N$2,0)) -> 0.9645589342 | E26: =INDEX('2023 NIST (for reference)'!$J$3:$N$250,MATCH(Calculator!$C26&E$4,'2023 NIST (for reference)'!$A$3:$A$250,0),MATCH(Calculator!$B26,'2023 NIST (for reference)'!$J$2:$N$2,0)) -> 0.7733799482 | F26: =INDEX('2023 NIST (for reference)'!$J$3:$N$250,MATCH(Calculator!$C26&F$4,'2023 NIST (for reference)'!$A$3:$A$250,0),MATCH(Calculator!$B26,'2023 NIST (for reference)'!$J$2:$N$2,0)) -> 1.052849134 | G26: =INDEX('2023 NIST (for reference)'!$J$3:$N$250,MATCH(Calculator!$C26&G$4,'2023 NIST (for reference)'!$A$3:$A$250,0),MATCH(Calculator!$B26,'2023 NIST (for reference)'!$J$2:$N$2,0)) -> 0.8977533564 | H26: =INDEX('2023 NIST (for reference)'!$J$3:$N$250,MATCH(Calculator!$C26&H$4,'2023 NIST (for reference)'!$A$3:$A$250,0),MATCH(Calculator!$B26,'2023 NIST (for reference)'!$J$2:$N$2,0)) -> 0.8977533564 | I26: =INDEX('2023 NIST (for reference)'!$J$3:$N$250,MATCH(Calculator!$C26&I$4,'2023 NIST (for reference)'!$A$3:$A$250,0),MATCH(Calculator!$B26,'2023 NIST (for reference)'!$J$2:$N$2,0)) -> 1 | J26: =INDEX('2023 NIST (for reference)'!$J$3:$N$250,MATCH(Calculator!$C26&J$4,'2023 NIST (for reference)'!$A$3:$A$250,0),MATCH(Calculator!$B26,'2023 NIST (for reference)'!$J$2:$N$2,0)) -> 0.9772597966 | K26: =INDEX('2023 NIST (for reference)'!$J$3:$N$250,MATCH(Calculator!$C26&K$4,'2023 NIST (for reference)'!$A$3:$A$250,0),MATCH(Calculator!$B26,'2023 NIST (for reference)'!$J$2:$N$2,0)) -> 1 | L26: 13.20064883 | M26: 11.50226417 | N26: 14.4758817 | O26: 13.1666704 | P26: 13.1666704 | Q26: 14.87747486 | R26: 14.82403655 | S26: 14.87747486 | T26: 0.9645589342 | U26: 0.7733799482 | V26: 1.052849134 | W26: 0.8977533564 | X26: 0.8977533564 | Y26: 1 | Z26: 0.9772597966 | AA26: 1 | AB26: 13.20064883 | AC26: 11.50226417 | AD26: 14.4758817 | AE26: 13.1666704 | AF26: 13.1666704 | AG26: 14.87747486 | AH26: 14.82403655 | AI26: 14.87747486 | AJ26: 0.1446838401 | AK26: 11.8868498 | AL26: 2.516309429 | AM26: 3.213957016 | AN26: 3.088271546 | AO26: 280 | AP26: 55.03927175 | AQ26: 0 | AR26: 0.0183 | AS26: 0.396825 | AT26: 0.43125 | AU26: 0.76425 | AV26: 0.76425 | AW26: 142.107 | AX26: 0 | AY26: 0 | AZ26: 0.1629838401 | BA26: 16.00192505 | BB26: 2.947559429 | BC26: 3.978207016 | BD26: 3.852521546 | BE26: 422.107 | BF26: 55.03927175 | BG26: 0 | BH26: 0.9592927612 | BI26: 0.8754752634 | BJ26: 1.093815541 | BK26: 0.9655678219 | BL26: 0.9679532134 | BM26: 1.109574865 | BN26: 0.9772597966 | BO26: 1 | BP26: 13.23128066 | BQ26: 12.51077939 | BR26: 14.85646986 | BS26: 13.77942443 | BT26: 13.80097821 | BU26: 15.65983457 | BV26: 14.82403655 | BW26: 14.87747486 | BX26: 0.9592927612 | BY26: 0.8754752634 | BZ26: 1.093815541 | CA26: 0.9655678219 | CB26: 0.9679532134 | CC26: 1.109574865 | CD26: 0.9772597966 | CE26: 1 | CF26: 13.23128066 | CG26: 12.51077939 | CH26: 14.85646986 | CI26: 13.77942443 | CJ26: 13.80097821 | CK26: 15.65983457 | CL26: 14.82403655 | CM26: 14.87747486
A27: 21Region 4 - West | B27: Region 4 - West | C27: 21 | D27: =INDEX('2023 NIST (for reference)'!$J$3:$N$250,MATCH(Calculator!$C27&D$4,'2023 NIST (for reference)'!$A$3:$A$250,0),MATCH(Calculator!$B27,'2023 NIST (for reference)'!$J$2:$N$2,0)) -> 0.9734056904 | E27: =INDEX('2023 NIST (for reference)'!$J$3:$N$250,MATCH(Calculator!$C27&E$4,'2023 NIST (for reference)'!$A$3:$A$250,0),MATCH(Calculator!$B27,'2023 NIST (for reference)'!$J$2:$N$2,0)) -> 0.7704535909 | F27: =INDEX('2023 NIST (for reference)'!$J$3:$N$250,MATCH(Calculator!$C27&F$4,'2023 NIST (for reference)'!$A$3:$A$250,0),MATCH(Calculator!$B27,'2023 NIST (for reference)'!$J$2:$N$2,0)) -> 1.054370683 | G27: =INDEX('2023 NIST (for reference)'!$J$3:$N$250,MATCH(Calculator!$C27&G$4,'2023 NIST (for reference)'!$A$3:$A$250,0),MATCH(Calculator!$B27,'2023 NIST (for reference)'!$J$2:$N$2,0)) -> 0.8971009776 | H27: =INDEX('2023 NIST (for reference)'!$J$3:$N$250,MATCH(Calculator!$C27&H$4,'2023 NIST (for reference)'!$A$3:$A$250,0),MATCH(Calculator!$B27,'2023 NIST (for reference)'!$J$2:$N$2,0)) -> 0.8971009776 | I27: =INDEX('2023 NIST (for reference)'!$J$3:$N$250,MATCH(Calculator!$C27&I$4,'2023 NIST (for reference)'!$A$3:$A$250,0),MATCH(Calculator!$B27,'2023 NIST (for reference)'!$J$2:$N$2,0)) -> 1 | J27: =INDEX('2023 NIST (for reference)'!$J$3:$N$250,MATCH(Calculator!$C27&J$4,'2023 NIST (for reference)'!$A$3:$A$250,0),MATCH(Calculator!$B27,'2023 NIST (for reference)'!$J$2:$N$2,0)) -> 0.9779675359 | K27: =INDEX('2023 NIST (for reference)'!$J$3:$N$250,MATCH(Calculator!$C27&K$4,'2023 NIST (for reference)'!$A$3:$A$250,0),MATCH(Calculator!$B27,'2023 NIST (for reference)'!$J$2:$N$2,0)) -> 1 | L27: 13.72390235 | M27: 11.91642094 | N27: 15.0426579 | O27: 13.64890638 | P27: 13.64890638 | Q27: 15.41502414 | R27: 15.34974229 | S27: 15.41502414 | T27: 0.9734056904 | U27: 0.7704535909 | V27: 1.054370683 | W27: 0.8971009776 | X27: 0.8971009776 | Y27: 1 | Z27: 0.9779675359 | AA27: 1 | AB27: 13.72390235 | AC27: 11.91642094 | AD27: 15.0426579 | AE27: 13.64890638 | AF27: 13.64890638 | AG27: 15.41502414 | AH27: 15.34974229 | AI27: 15.41502414 | AJ27: 0.1460108536 | AK27: 11.84187169 | AL27: 2.519945934 | AM27: 3.2116215 | AN27: 3.086027363 | AO27: 280 | AP27: 55.07913162 | AQ27: 0 | AR27: 0.0186 | AS27: 0.407407 | AT27: 0.44275 | AU27: 0.78463 | AV27: 0.78463 | AW27: 145.89652 | AX27: 0 | AY27: 0 | AZ27: 0.1646108536 | BA27: 16.06668228 | BB27: 2.962695934 | BC27: 3.9962515 | BD27: 3.870657363 | BE27: 425.89652 | BF27: 55.07913162 | BG27: 0 | BH27: 0.9688690616 | BI27: 0.8790181716 | BJ27: 1.099432576 | BK27: 0.9699474766 | BL27: 0.9725098712 | BM27: 1.119536216 | BN27: 0.9779675359 | BO27: 1 | BP27: 13.75209552 | BQ27: 12.98329497 | BR27: 15.44746904 | BS27: 14.30081899 | BT27: 14.32375019 | BU27: 16.26164045 | BV27: 15.34974229 | BW27: 15.41502414 | BX27: 0.9688690616 | BY27: 0.8790181716 | BZ27: 1.099432576 | CA27: 0.9699474766 | CB27: 0.9725098712 | CC27: 1.119536216 | CD27: 0.9779675359 | CE27: 1 | CF27: 13.75209552 | CG27: 12.98329497 | CH27: 15.44746904 | CI27: 14.30081899 | CJ27: 14.32375019 | CK27: 16.26164045 | CL27: 15.34974229 | CM27: 15.41502414
A28: 22Region 4 - West | B28: Region 4 - West | C28: 22 | D28: =INDEX('2023 NIST (for reference)'!$J$3:$N$250,MATCH(Calculator!$C28&D$4,'2023 NIST (for reference)'!$A$3:$A$250,0),MATCH(Calculator!$B28,'2023 NIST (for reference)'!$J$2:$N$2,0)) -> 0.982599609 | E28: =INDEX('2023 NIST (for reference)'!$J$3:$N$250,MATCH(Calculator!$C28&E$4,'2023 NIST (for reference)'!$A$3:$A$250,0),MATCH(Calculator!$B28,'2023 NIST (for reference)'!$J$2:$N$2,0)) -> 0.7740631387 | F28: =INDEX('2023 NIST (for reference)'!$J$3:$N$250,MATCH(Calculator!$C28&F$4,'2023 NIST (for reference)'!$A$3:$A$250,0),MATCH(Calculator!$B28,'2023 NIST (for reference)'!$J$2:$N$2,0)) -> 1.057336185 | G28: =INDEX('2023 NIST (for reference)'!$J$3:$N$250,MATCH(Calculator!$C28&G$4,'2023 NIST (for reference)'!$A$3:$A$250,0),MATCH(Calculator!$B28,'2023 NIST (for reference)'!$J$2:$N$2,0)) -> 0.8988804625 | H28: =INDEX('2023 NIST (for reference)'!$J$3:$N$250,MATCH(Calculator!$C28&H$4,'2023 NIST (for reference)'!$A$3:$A$250,0),MATCH(Calculator!$B28,'2023 NIST (for reference)'!$J$2:$N$2,0)) -> 0.8988804625 | I28: =INDEX('2023 NIST (for reference)'!$J$3:$N$250,MATCH(Calculator!$C28&I$4,'2023 NIST (for reference)'!$A$3:$A$250,0),MATCH(Calculator!$B28,'2023 NIST (for reference)'!$J$2:$N$2,0)) -> 1 | J28: =INDEX('2023 NIST (for reference)'!$J$3:$N$250,MATCH(Calculator!$C28&J$4,'2023 NIST (for reference)'!$A$3:$A$250,0),MATCH(Calculator!$B28,'2023 NIST (for reference)'!$J$2:$N$2,0)) -> 0.9798598803 | K28: =INDEX('2023 NIST (for reference)'!$J$3:$N$250,MATCH(Calculator!$C28&K$4,'2023 NIST (for reference)'!$A$3:$A$250,0),MATCH(Calculator!$B28,'2023 NIST (for reference)'!$J$2:$N$2,0)) -> 1 | L28: 14.23671372 | M28: 12.32039869 | N28: 15.59447372 | O28: 14.11802535 | P28: 14.11802535 | Q28: 15.93691664 | R28: 15.86112382 | S28: 15.93691664 | T28: 0.982599609 | U28: 0.7740631387 | V28: 1.057336185 | W28: 0.8988804625 | X28: 0.8988804625 | Y28: 1 | Z28: 0.9798598803 | AA28: 1 | AB28: 14.23671372 | AC28: 12.32039869 | AD28: 15.59447372 | AE28: 14.11802535 | AF28: 14.11802535 | AG28: 15.93691664 | AH28: 15.86112382 | AI28: 15.93691664 | AJ28: 0.1473899413 | AK28: 11.89735044 | AL28: 2.527033482 | AM28: 3.217992056 | AN28: 3.092148791 | AO28: 280 | AP28: 55.18570846 | AQ28: 0 | AR28: 0.0186 | AS28: 0.412698 | AT28: 0.4485 | AU28: 0.79482 | AV28: 0.79482 | AW28: 147.79128 | AX28: 0 | AY28: 0 | AZ28: 0.1659899413 | BA28: 16.1770287 | BB28: 2.975533482 | BC28: 4.012812056 | BD28: 3.886968791 | BE28: 427.79128 | BF28: 55.18570846 | BG28: 0 | BH28: 0.9769861174 | BI28: 0.8850552928 | BJ28: 1.104196487 | BK28: 0.9739669607 | BL28: 0.9766081479 | BM28: 1.124516892 | BN28: 0.9798598803 | BO28: 1 | BP28: 14.26197725 | BQ28: 13.44519869 | BR28: 16.02374091 | BS28: 14.80912504 | BT28: 14.83343466 | BU28: 16.84851738 | BV28: 15.86112382 | BW28: 15.93691664 | BX28: 0.9769861174 | BY28: 0.8850552928 | BZ28: 1.104196487 | CA28: 0.9739669607 | CB28: 0.9766081479 | CC28: 1.124516892 | CD28: 0.9798598803 | CE28: 1 | CF28: 14.26197725 | CG28: 13.44519869 | CH28: 16.02374091 | CI28: 14.80912504 | CJ28: 14.83343466 | CK28: 16.84851738 | CL28: 15.86112382 | CM28: 15.93691664
A29: 23Region 4 - West | B29: Region 4 - West | C29: 23 | D29: =INDEX('2023 NIST (for reference)'!$J$3:$N$250,MATCH(Calculator!$C29&D$4,'2023 NIST (for reference)'!$A$3:$A$250,0),MATCH(Calculator!$B29,'2023 NIST (for reference)'!$J$2:$N$2,0)) -> 0.9908364038 | E29: =INDEX('2023 NIST (for reference)'!$J$3:$N$250,MATCH(Calculator!$C29&E$4,'2023 NIST (for reference)'!$A$3:$A$250,0),MATCH(Calculator!$B29,'2023 NIST (for reference)'!$J$2:$N$2,0)) -> 0.8413191943 | F29: =INDEX('2023 NIST (for reference)'!$J$3:$N$250,MATCH(Calculator!$C29&F$4,'2023 NIST (for reference)'!$A$3:$A$250,0),MATCH(Calculator!$B29,'2023 NIST (for reference)'!$J$2:$N$2,0)) -> 1.084908419 | G29: =INDEX('2023 NIST (for reference)'!$J$3:$N$250,MATCH(Calculator!$C29&G$4,'2023 NIST (for reference)'!$A$3:$A$250,0),MATCH(Calculator!$B29,'2023 NIST (for reference)'!$J$2:$N$2,0)) -> 0.9076485462 | H29: =INDEX('2023 NIST (for reference)'!$J$3:$N$250,MATCH(Calculator!$C29&H$4,'2023 NIST (for reference)'!$A$3:$A$250,0),MATCH(Calculator!$B29,'2023 NIST (for reference)'!$J$2:$N$2,0)) -> 0.9076485462 | I29: =INDEX('2023 NIST (for reference)'!$J$3:$N$250,MATCH(Calculator!$C29&I$4,'2023 NIST (for reference)'!$A$3:$A$250,0),MATCH(Calculator!$B29,'2023 NIST (for reference)'!$J$2:$N$2,0)) -> 1 | J29: =INDEX('2023 NIST (for reference)'!$J$3:$N$250,MATCH(Calculator!$C29&J$4,'2023 NIST (for reference)'!$A$3:$A$250,0),MATCH(Calculator!$B29,'2023 NIST (for reference)'!$J$2:$N$2,0)) -> 0.9801098274 | K29: =INDEX('2023 NIST (for reference)'!$J$3:$N$250,MATCH(Calculator!$C29&K$4,'2023 NIST (for reference)'!$A$3:$A$250,0),MATCH(Calculator!$B29,'2023 NIST (for reference)'!$J$2:$N$2,0)) -> 1 | L29: 14.73876235 | M29: 12.74668818 | N29: 16.14418787 | O29: 14.57792338 | P29: 14.57792338 | Q29: 16.44360839 | R29: 16.35773738 | S29: 16.44360839 | T29: 0.9908364038 | U29: 0.8413191943 | V29: 1.084908419 | W29: 0.9076485462 | X29: 0.9076485462 | Y29: 1 | Z29: 0.9801098274 | AA29: 1 | AB29: 14.73876235 | AC29: 12.74668818 | AD29: 16.14418787 | AE29: 14.57792338 | AF29: 14.57792338 | AG29: 16.44360839 | AH29: 16.35773738 | AI29: 16.44360839 | AJ29: 0.1486254606 | AK29: 12.93107602 | AL29: 2.592931122 | AM29: 3.249381795 | AN29: 3.122310999 | AO29: 280 | AP29: 55.19978548 | AQ29: 0 | AR29: 0.0186 | AS29: 0.417989 | AT29: 0.45425 | AU29: 0.80501 | AV29: 0.80501 | AW29: 149.68604 | AX29: 0 | AY29: 0 | AZ29: 0.1672254606 | BA29: 17.26562195 | BB29: 3.047181122 | BC29: 4.054391795 | BD29: 3.927320999 | BE29: 429.68604 | BF29: 55.19978548 | BG29: 0 | BH29: 0.9842581552 | BI29: 0.9446129056 | BJ29: 1.130784348 | BK29: 0.984058959 | BL29: 0.9867467152 | BM29: 1.129497568 | BN29: 0.9801098274 | BO29: 1 | BP29: 14.76069274 | BQ29: 13.92382625 | BR29: 16.59670001 | BS29: 15.3077396 | BT29: 15.33341107 | BU29: 17.42082448 | BV29: 16.35773738 | BW29: 16.44360839 | BX29: 0.9842581552 | BY29: 0.9446129056 | BZ29: 1.130784348 | CA29: 0.984058959 | CB29: 0.9867467152 | CC29: 1.129497568 | CD29: 0.9801098274 | CE29: 1 | CF29: 14.76069274 | CG29: 13.92382625 | CH29: 16.59670001 | CI29: 15.3077396 | CJ29: 15.33341107 | CK29: 17.42082448 | CL29: 16.35773738 | CM29: 16.44360839
A30: 24Region 4 - West | B30: Region 4 - West | C30: 24 | D30: =INDEX('2023 NIST (for reference)'!$J$3:$N$250,MATCH(Calculator!$C30&D$4,'2023 NIST (for reference)'!$A$3:$A$250,0),MATCH(Calculator!$B30,'2023 NIST (for reference)'!$J$2:$N$2,0)) -> 0.9954742477 | E30: =INDEX('2023 NIST (for reference)'!$J$3:$N$250,MATCH(Calculator!$C30&E$4,'2023 NIST (for reference)'!$A$3:$A$250,0),MATCH(Calculator!$B30,'2023 NIST (for reference)'!$J$2:$N$2,0)) -> 0.8660605619 | F30: =INDEX('2023 NIST (for reference)'!$J$3:$N$250,MATCH(Calculator!$C30&F$4,'2023 NIST (for reference)'!$A$3:$A$250,0),MATCH(Calculator!$B30,'2023 NIST (for reference)'!$J$2:$N$2,0)) -> 1.094593514 | G30: =INDEX('2023 NIST (for reference)'!$J$3:$N$250,MATCH(Calculator!$C30&G$4,'2023 NIST (for reference)'!$A$3:$A$250,0),MATCH(Calculator!$B30,'2023 NIST (for reference)'!$J$2:$N$2,0)) -> 0.9108789428 | H30: =INDEX('2023 NIST (for reference)'!$J$3:$N$250,MATCH(Calculator!$C30&H$4,'2023 NIST (for reference)'!$A$3:$A$250,0),MATCH(Calculator!$B30,'2023 NIST (for reference)'!$J$2:$N$2,0)) -> 0.9108789428 | I30: =INDEX('2023 NIST (for reference)'!$J$3:$N$250,MATCH(Calculator!$C30&I$4,'2023 NIST (for reference)'!$A$3:$A$250,0),MATCH(Calculator!$B30,'2023 NIST (for reference)'!$J$2:$N$2,0)) -> 1 | J30: =INDEX('2023 NIST (for reference)'!$J$3:$N$250,MATCH(Calculator!$C30&J$4,'2023 NIST (for reference)'!$A$3:$A$250,0),MATCH(Calculator!$B30,'2023 NIST (for reference)'!$J$2:$N$2,0)) -> 0.9805649164 | K30: =INDEX('2023 NIST (for reference)'!$J$3:$N$250,MATCH(Calculator!$C30&K$4,'2023 NIST (for reference)'!$A$3:$A$250,0),MATCH(Calculator!$B30,'2023 NIST (for reference)'!$J$2:$N$2,0)) -> 1 | L30: 15.22846971 | M30: 13.17273259 | N30: 16.68265534 | O30: 15.02601546 | P30: 15.02601546 | Q30: 16.93554212 | R30: 16.84011034 | S30: 16.93554212 | T30: =D30+D31/(1+$C$4)+D32/(1+$C$4)^2+D33/(1+$C$4)^3+D34/(1+$C$4)^4+D35/(1+$C$4)^5+D36/(1+$C$4)^6 -> 6.453667422 | U30: 5.644881808 | V30: 7.075582098 | W30: 5.874327529 | X30: 5.874327529 | Y30: 6.417191444 | Z30: 6.298604853 | AA30: 6.417191444 | AB30: 17.91353908 | AC30: 15.52359598 | AD30: 19.62490541 | AE30: 17.46770327 | AF30: 17.46770327 | AG30: 19.60044135 | AH30: 19.4562336 | AI30: 19.60044135 | AJ30: 0.1493211372 | AK30: 13.31135084 | AL30: 2.616078497 | AM30: 3.260946615 | AN30: 3.133423563 | AO30: 280 | AP30: 55.22541609 | AQ30: 0 | AR30: 0.0186 | AS30: 0.42328 | AT30: 0.46 | AU30: 0.8152 | AV30: 0.8152 | AW30: 151.5808 | AX30: 0 | AY30: 0 | AZ30: 0.1679211372 | BA30: 17.70076444 | BB30: 3.076078497 | BC30: 4.076146615 | BD30: 3.948623563 | BE30: 431.5808 | BF30: 55.22541609 | BG30: 0 | BH30: 0.988352779 | BI30: 0.9684198217 | BJ30: 1.141507931 | BK30: 0.9893391654 | BL30: 0.9920990242 | BM30: 1.134478243 | BN30: 0.9805649164 | BO30: 1 | BP30: 15.24689681 | BQ30: 14.40022464 | BR30: 17.15824627 | BS30: 15.79442891 | BT30: 15.82145805 | BU30: 17.9789126 | BV30: 16.84011034 | BW30: 16.93554212 | BX30: =BH30+BH31/(1+$C$4)+BH32/(1+$C$4)^2+BH33/(1+$C$4)^3+BH34/(1+$C$4)^4+BH35/(1+$C$4)^5+BH36/(1+$C$4)^6 -> 6.40029355 | BY30: 6.346281082 | BZ30: 7.412354241 | CA30: 6.422143229 | CB30: 6.44141279 | CC30: 7.377085699 | CD30: 6.298604853 | CE30: 6.417191444 | CF30: 17.90921306 | CG30: 17.04577602 | CH30: 20.24308712 | CI30: 18.46700851 | CJ30: 18.50215933 | CK30: 21.04986181 | CL30: 19.4562336 | CM30: 19.60044135
A31: 25Region 4 - West | B31: Region 4 - West | C31: 25 | D31: =INDEX('2023 NIST (for reference)'!$J$3:$N$250,MATCH(Calculator!$C31&D$4,'2023 NIST (for reference)'!$A$3:$A$250,0),MATCH(Calculator!$B31,'2023 NIST (for reference)'!$J$2:$N$2,0)) -> 1.000108828 | E31: =INDEX('2023 NIST (for reference)'!$J$3:$N$250,MATCH(Calculator!$C31&E$4,'2023 NIST (for reference)'!$A$3:$A$250,0),MATCH(Calculator!$B31,'2023 NIST (for reference)'!$J$2:$N$2,0)) -> 0.8651148899 | F31: =INDEX('2023 NIST (for reference)'!$J$3:$N$250,MATCH(Calculator!$C31&F$4,'2023 NIST (for reference)'!$A$3:$A$250,0),MATCH(Calculator!$B31,'2023 NIST (for reference)'!$J$2:$N$2,0)) -> 1.09663891 | G31: =INDEX('2023 NIST (for reference)'!$J$3:$N$250,MATCH(Calculator!$C31&G$4,'2023 NIST (for reference)'!$A$3:$A$250,0),MATCH(Calculator!$B31,'2023 NIST (for reference)'!$J$2:$N$2,0)) -> 0.9118963061 | H31: =INDEX('2023 NIST (for reference)'!$J$3:$N$250,MATCH(Calculator!$C31&H$4,'2023 NIST (for reference)'!$A$3:$A$250,0),MATCH(Calculator!$B31,'2023 NIST (for reference)'!$J$2:$N$2,0)) -> 0.9118963061 | I31: =INDEX('2023 NIST (for reference)'!$J$3:$N$250,MATCH(Calculator!$C31&I$4,'2023 NIST (for reference)'!$A$3:$A$250,0),MATCH(Calculator!$B31,'2023 NIST (for reference)'!$J$2:$N$2,0)) -> 1 | J31: =INDEX('2023 NIST (for reference)'!$J$3:$N$250,MATCH(Calculator!$C31&J$4,'2023 NIST (for reference)'!$A$3:$A$250,0),MATCH(Calculator!$B31,'2023 NIST (for reference)'!$J$2:$N$2,0)) -> 0.9814807512 | K31: =INDEX('2023 NIST (for reference)'!$J$3:$N$250,MATCH(Calculator!$C31&K$4,'2023 NIST (for reference)'!$A$3:$A$250,0),MATCH(Calculator!$B31,'2023 NIST (for reference)'!$J$2:$N$2,0)) -> 1 | L31: 15.70612726 | M31: 13.58591628 | N31: 17.20641619 | O31: 15.46154222 | P31: 15.46154222 | Q31: 17.41314769 | R31: 17.30887101 | S31: 17.41314769 | T31: =(L31-L36)*(1+$C$4)^25 -> -4.621830142 | U31: -4.057070993 | V31: -5.063779333 | W31: -4.200455737 | X31: -4.200455737 | Y31: -4.579707187 | Z31: -4.496100383 | AA31: -4.579707187 | AB31: 15.70612726 | AC31: 13.58591628 | AD31: 17.20641619 | AE31: 15.46154222 | AF31: 15.46154222 | AG31: 17.41314769 | AH31: 17.30887101 | AI31: 17.41314769 | AJ31: 0.1500163243 | AK31: 13.29681586 | AL31: 2.620966994 | AM31: 3.264588776 | AN31: 3.136923293 | AO31: 280 | AP31: 55.27699591 | AQ31: 0 | AR31: 0.0186 | AS31: 0.428571 | AT31: 0.46575 | AU31: 0.82539 | AV31: 0.82539 | AW31: 153.47556 | AX31: 0 | AY31: 0 | AZ31: 0.1686163243 | BA31: 17.74109713 | BB31: 3.086716994 | BC31: 4.089978776 | BD31: 3.962313293 | BE31: 433.47556 | BF31: 55.27699591 | BG31: 0 | BH31: 0.9924445219 | BI31: 0.9706264483 | BJ31: 1.145455791 | BK31: 0.9926964289 | BL31: 0.9955385943 | BM31: 1.139458919 | BN31: 0.9814807512 | BO31: 1 | BP31: 15.72089384 | BQ31: 14.86380123 | BR31: 17.70532233 | BS31: 16.26854625 | BT31: 16.29693283 | BU31: 18.52312453 | BV31: 17.30887101 | BW31: 17.41314769 | BX31: =(BP31-BP36)*(1+$C$4)^25 -> -4.581854473 | BY31: -4.56857065 | BZ31: -5.313515908 | CA31: -4.603091757 | CB31: -4.617254584 | CC31: -5.29042676 | CD31: -4.496100383 | CE31: -4.579707187 | CF31: 15.72089384 | CG31: 14.86380123 | CH31: 17.70532233 | CI31: 16.26854625 | CJ31: 16.29693283 | CK31: 18.52312453 | CL31: 17.30887101 | CM31: 17.41314769
A32: 26Region 4 - West | B32: Region 4 - West | C32: 26 | D32: =INDEX('2023 NIST (for reference)'!$J$3:$N$250,MATCH(Calculator!$C32&D$4,'2023 NIST (for reference)'!$A$3:$A$250,0),MATCH(Calculator!$B32,'2023 NIST (for reference)'!$J$2:$N$2,0)) -> 1.003056852 | E32: =INDEX('2023 NIST (for reference)'!$J$3:$N$250,MATCH(Calculator!$C32&E$4,'2023 NIST (for reference)'!$A$3:$A$250,0),MATCH(Calculator!$B32,'2023 NIST (for reference)'!$J$2:$N$2,0)) -> 0.8648219644 | F32: =INDEX('2023 NIST (for reference)'!$J$3:$N$250,MATCH(Calculator!$C32&F$4,'2023 NIST (for reference)'!$A$3:$A$250,0),MATCH(Calculator!$B32,'2023 NIST (for reference)'!$J$2:$N$2,0)) -> 1.097800732 | G32: =INDEX('2023 NIST (for reference)'!$J$3:$N$250,MATCH(Calculator!$C32&G$4,'2023 NIST (for reference)'!$A$3:$A$250,0),MATCH(Calculator!$B32,'2023 NIST (for reference)'!$J$2:$N$2,0)) -> 0.9137187986 | H32: =INDEX('2023 NIST (for reference)'!$J$3:$N$250,MATCH(Calculator!$C32&H$4,'2023 NIST (for reference)'!$A$3:$A$250,0),MATCH(Calculator!$B32,'2023 NIST (for reference)'!$J$2:$N$2,0)) -> 0.9137187986 | I32: =INDEX('2023 NIST (for reference)'!$J$3:$N$250,MATCH(Calculator!$C32&I$4,'2023 NIST (for reference)'!$A$3:$A$250,0),MATCH(Calculator!$B32,'2023 NIST (for reference)'!$J$2:$N$2,0)) -> 1 | J32: =INDEX('2023 NIST (for reference)'!$J$3:$N$250,MATCH(Calculator!$C32&J$4,'2023 NIST (for reference)'!$A$3:$A$250,0),MATCH(Calculator!$B32,'2023 NIST (for reference)'!$J$2:$N$2,0)) -> 0.9819934622 | K32: =INDEX('2023 NIST (for reference)'!$J$3:$N$250,MATCH(Calculator!$C32&K$4,'2023 NIST (for reference)'!$A$3:$A$250,0),MATCH(Calculator!$B32,'2023 NIST (for reference)'!$J$2:$N$2,0)) -> 1 | L32: 16.17123943 | M32: 13.98692966 | N32: 17.71546061 | O32: 15.88522881 | P32: 15.88522881 | Q32: 17.87684242 | R32: 17.7642162 | S32: 17.87684242 | T32: Upper cells show FPI to be used in v8.9 for year 24 to mimic "year 30 UPV" | AB32: Upper cells verify that year 24 FPI results in "year 30 UPV" | AJ32: 0.1504585279 | AK32: 13.29231359 | AL32: 2.623743749 | AM32: 3.271113299 | AN32: 3.143192667 | AO32: 280 | AP32: 55.30587179 | AQ32: 0 | AR32: 0.0186 | AS32: 0.433862 | AT32: 0.4715 | AU32: 0.83558 | AV32: 0.83558 | AW32: 155.37032 | AX32: 0 | AY32: 0 | AZ32: 0.1690585279 | BA32: 17.79146253 | BB32: 3.095243749 | BC32: 4.106693299 | BD32: 3.978772667 | BE32: 435.37032 | BF32: 55.30587179 | BG32: 0 | BH32: 0.9950472505 | BI32: 0.9733819709 | BJ32: 1.148620002 | BK32: 0.9967532831 | BL32: 0.9996740427 | BM32: 1.144439595 | BN32: 0.9819934622 | BO32: 1 | BP32: 16.18229201 | BQ32: 15.31515332 | BR32: 18.23793137 | BS32: 16.7307355 | BT32: 16.76047641 | BU32: 19.05379513 | BV32: 17.7642162 | BW32: 17.87684242 | BX32: =T32 -> Upper cells show FPI to be used in v8.9 for year 24 to mimic "year 30 UPV" | CF32: =AB32 -> Upper cells verify that year 24 FPI results in "year 30 UPV"
A33: 27Region 4 - West | B33: Region 4 - West | C33: 27 | D33: =INDEX('2023 NIST (for reference)'!$J$3:$N$250,MATCH(Calculator!$C33&D$4,'2023 NIST (for reference)'!$A$3:$A$250,0),MATCH(Calculator!$B33,'2023 NIST (for reference)'!$J$2:$N$2,0)) -> 1.005108414 | E33: =INDEX('2023 NIST (for reference)'!$J$3:$N$250,MATCH(Calculator!$C33&E$4,'2023 NIST (for reference)'!$A$3:$A$250,0),MATCH(Calculator!$B33,'2023 NIST (for reference)'!$J$2:$N$2,0)) -> 0.865422304 | F33: =INDEX('2023 NIST (for reference)'!$J$3:$N$250,MATCH(Calculator!$C33&F$4,'2023 NIST (for reference)'!$A$3:$A$250,0),MATCH(Calculator!$B33,'2023 NIST (for reference)'!$J$2:$N$2,0)) -> 1.097543792 | G33: =INDEX('2023 NIST (for reference)'!$J$3:$N$250,MATCH(Calculator!$C33&G$4,'2023 NIST (for reference)'!$A$3:$A$250,0),MATCH(Calculator!$B33,'2023 NIST (for reference)'!$J$2:$N$2,0)) -> 0.9143002515 | H33: =INDEX('2023 NIST (for reference)'!$J$3:$N$250,MATCH(Calculator!$C33&H$4,'2023 NIST (for reference)'!$A$3:$A$250,0),MATCH(Calculator!$B33,'2023 NIST (for reference)'!$J$2:$N$2,0)) -> 0.9143002515 | I33: =INDEX('2023 NIST (for reference)'!$J$3:$N$250,MATCH(Calculator!$C33&I$4,'2023 NIST (for reference)'!$A$3:$A$250,0),MATCH(Calculator!$B33,'2023 NIST (for reference)'!$J$2:$N$2,0)) -> 1 | J33: =INDEX('2023 NIST (for reference)'!$J$3:$N$250,MATCH(Calculator!$C33&J$4,'2023 NIST (for reference)'!$A$3:$A$250,0),MATCH(Calculator!$B33,'2023 NIST (for reference)'!$J$2:$N$2,0)) -> 0.9815598648 | K33: =INDEX('2023 NIST (for reference)'!$J$3:$N$250,MATCH(Calculator!$C33&K$4,'2023 NIST (for reference)'!$A$3:$A$250,0),MATCH(Calculator!$B33,'2023 NIST (for reference)'!$J$2:$N$2,0)) -> 1 | L33: 16.62372824 | M33: 14.37653331 | N33: 18.20956281 | O33: 16.29683678 | P33: 16.29683678 | Q33: 18.32703147 | R33: 18.20610371 | S33: 18.32703147 | T33: Lower cells show FPI to be used in v8.9 for year 25 to mimic back "year 25 UPV" | AB33: Lower cells verify that year 25 FPI results in "year 25 UPV" | AJ33: 0.1507662621 | AK33: 13.30154081 | AL33: 2.623129663 | AM33: 3.2731949 | AN33: 3.145192865 | AO33: 280 | AP33: 55.28145158 | AQ33: 0 | AR33: 0.0186 | AS33: 0.444444 | AT33: 0.483 | AU33: 0.85596 | AV33: 0.85596 | AW33: 159.15984 | AX33: 0 | AY33: 0 | AZ33: 0.1693662621 | BA33: 17.91042509 | BB33: 3.106129663 | BC33: 4.1291549 | BD33: 4.001152865 | BE33: 439.15984 | BF33: 55.28145158 | BG33: 0 | BH33: 0.9968585173 | BI33: 0.9798904865 | BJ33: 1.152659677 | BK33: 1.002205035 | BL33: 1.005297109 | BM33: 1.154400946 | BN33: 0.9815598648 | BO33: 1 | BP33: 16.6310668 | BQ33: 15.75628929 | BR33: 18.75684614 | BS33: 17.18191723 | BT33: 17.21305017 | BU33: 19.5734938 | BV33: 18.20610371 | BW33: 18.32703147 | BX33: =T33 -> Lower cells show FPI to be used in v8.9 for year 25 to mimic back "year 25 UPV" | CF33: =AB33 -> Lower cells verify that year 25 FPI results in "year 25 UPV"
A34: 28Region 4 - West | B34: Region 4 - West | C34: 28 | D34: =INDEX('2023 NIST (for reference)'!$J$3:$N$250,MATCH(Calculator!$C34&D$4,'2023 NIST (for reference)'!$A$3:$A$250,0),MATCH(Calculator!$B34,'2023 NIST (for reference)'!$J$2:$N$2,0)) -> 1.008748748 | E34: =INDEX('2023 NIST (for reference)'!$J$3:$N$250,MATCH(Calculator!$C34&E$4,'2023 NIST (for reference)'!$A$3:$A$250,0),MATCH(Calculator!$B34,'2023 NIST (for reference)'!$J$2:$N$2,0)) -> 0.880610342 | F34: =INDEX('2023 NIST (for reference)'!$J$3:$N$250,MATCH(Calculator!$C34&F$4,'2023 NIST (for reference)'!$A$3:$A$250,0),MATCH(Calculator!$B34,'2023 NIST (for reference)'!$J$2:$N$2,0)) -> 1.103461429 | G34: =INDEX('2023 NIST (for reference)'!$J$3:$N$250,MATCH(Calculator!$C34&G$4,'2023 NIST (for reference)'!$A$3:$A$250,0),MATCH(Calculator!$B34,'2023 NIST (for reference)'!$J$2:$N$2,0)) -> 0.9165501031 | H34: =INDEX('2023 NIST (for reference)'!$J$3:$N$250,MATCH(Calculator!$C34&H$4,'2023 NIST (for reference)'!$A$3:$A$250,0),MATCH(Calculator!$B34,'2023 NIST (for reference)'!$J$2:$N$2,0)) -> 0.9165501031 | I34: =INDEX('2023 NIST (for reference)'!$J$3:$N$250,MATCH(Calculator!$C34&I$4,'2023 NIST (for reference)'!$A$3:$A$250,0),MATCH(Calculator!$B34,'2023 NIST (for reference)'!$J$2:$N$2,0)) -> 1 | J34: =INDEX('2023 NIST (for reference)'!$J$3:$N$250,MATCH(Calculator!$C34&J$4,'2023 NIST (for reference)'!$A$3:$A$250,0),MATCH(Calculator!$B34,'2023 NIST (for reference)'!$J$2:$N$2,0)) -> 0.9815297332 | K34: =INDEX('2023 NIST (for reference)'!$J$3:$N$250,MATCH(Calculator!$C34&K$4,'2023 NIST (for reference)'!$A$3:$A$250,0),MATCH(Calculator!$B34,'2023 NIST (for reference)'!$J$2:$N$2,0)) -> 1 | L34: 17.06462887 | M34: 14.76142762 | N34: 18.69186015 | O34: 16.69743952 | P34: 16.69743952 | Q34: 18.76410823 | R34: 18.63510754 | S34: 18.76410823 | AJ34: 0.1513123122 | AK34: 13.53498096 | AL34: 2.637272814 | AM34: 3.281249369 | AN34: 3.152932355 | AO34: 280 | AP34: 55.27975458 | AQ34: 0 | AR34: 0.0186 | AS34: 0.449735 | AT34: 0.48875 | AU34: 0.86615 | AV34: 0.86615 | AW34: 161.0546 | AX34: 0 | AY34: 0 | AZ34: 0.1699123122 | BA34: 18.19873291 | BB34: 3.126022814 | BC34: 4.147399369 | BD34: 4.019082355 | BE34: 441.0546 | BF34: 55.27975458 | BG34: 0 | BH34: 1.000072467 | BI34: 0.9956639861 | BJ34: 1.160041864 | BK34: 1.006633229 | BL34: 1.009801927 | BM34: 1.159381622 | BN34: 0.9815297332 | BO34: 1 | BP34: 17.06817523 | BQ34: 16.19147088 | BR34: 19.26387348 | BS34: 17.62189322 | BT34: 17.65441112 | BU34: 20.08023256 | BV34: 18.63510754 | BW34: 18.76410823
A35: 29Region 4 - West | B35: Region 4 - West | C35: 29 | D35: =INDEX('2023 NIST (for reference)'!$J$3:$N$250,MATCH(Calculator!$C35&D$4,'2023 NIST (for reference)'!$A$3:$A$250,0),MATCH(Calculator!$B35,'2023 NIST (for reference)'!$J$2:$N$2,0)) -> 1.012956792 | E35: =INDEX('2023 NIST (for reference)'!$J$3:$N$250,MATCH(Calculator!$C35&E$4,'2023 NIST (for reference)'!$A$3:$A$250,0),MATCH(Calculator!$B35,'2023 NIST (for reference)'!$J$2:$N$2,0)) -> 0.9010295449 | F35: =INDEX('2023 NIST (for reference)'!$J$3:$N$250,MATCH(Calculator!$C35&F$4,'2023 NIST (for reference)'!$A$3:$A$250,0),MATCH(Calculator!$B35,'2023 NIST (for reference)'!$J$2:$N$2,0)) -> 1.111599718 | G35: =INDEX('2023 NIST (for reference)'!$J$3:$N$250,MATCH(Calculator!$C35&G$4,'2023 NIST (for reference)'!$A$3:$A$250,0),MATCH(Calculator!$B35,'2023 NIST (for reference)'!$J$2:$N$2,0)) -> 0.9195289522 | H35: =INDEX('2023 NIST (for reference)'!$J$3:$N$250,MATCH(Calculator!$C35&H$4,'2023 NIST (for reference)'!$A$3:$A$250,0),MATCH(Calculator!$B35,'2023 NIST (for reference)'!$J$2:$N$2,0)) -> 0.9195289522 | I35: =INDEX('2023 NIST (for reference)'!$J$3:$N$250,MATCH(Calculator!$C35&I$4,'2023 NIST (for reference)'!$A$3:$A$250,0),MATCH(Calculator!$B35,'2023 NIST (for reference)'!$J$2:$N$2,0)) -> 1 | J35: =INDEX('2023 NIST (for reference)'!$J$3:$N$250,MATCH(Calculator!$C35&J$4,'2023 NIST (for reference)'!$A$3:$A$250,0),MATCH(Calculator!$B35,'2023 NIST (for reference)'!$J$2:$N$2,0)) -> 0.9817221624 | K35: =INDEX('2023 NIST (for reference)'!$J$3:$N$250,MATCH(Calculator!$C35&K$4,'2023 NIST (for reference)'!$A$3:$A$250,0),MATCH(Calculator!$B35,'2023 NIST (for reference)'!$J$2:$N$2,0)) -> 1 | L35: 17.4944734 | M35: 15.14377623 | N35: 19.16356344 | O35: 17.08763828 | P35: 17.08763828 | Q35: 19.18845459 | R35: 19.05169777 | S35: 19.18845459 | AJ35: 0.1519435188 | AK35: 13.8488241 | AL35: 2.656723325 | AM35: 3.291913649 | AN35: 3.163179596 | AO35: 280 | AP35: 55.29059219 | AQ35: 0 | AR35: 0.0186 | AS35: =AS34 -> 0.449735 | AT35: =AT34 -> 0.48875 | AU35: =AU34 -> 0.86615 | AV35: =AV34 -> 0.86615 | AW35: =AW34 -> 161.0546 | AX35: 0 | AY35: 0 | AZ35: 0.1705435188 | BA35: 18.51257605 | BB35: 3.145473325 | BC35: 4.158063649 | BD35: 4.029329596 | BE35: 441.0546 | BF35: 55.29059219 | BG35: 0 | BH35: 1.003787633 | BI35: 1.01283454 | BJ35: 1.167259792 | BK35: 1.009221603 | BL35: 1.012376565 | BM35: 1.159381622 | BN35: 0.9817221624 | BO35: 1 | BP35: 17.49412886 | BQ35: 16.62126353 | BR35: 19.75919592 | BS35: 18.05015273 | BT35: 18.08400943 | BU35: 20.57221193 | BV35: 19.05169777 | BW35: 19.18845459
A36: 30Region 4 - West | B36: Region 4 - West | C36: 30 | D36: =INDEX('2023 NIST (for reference)'!$J$3:$N$250,MATCH(Calculator!$C36&D$4,'2023 NIST (for reference)'!$A$3:$A$250,0),MATCH(Calculator!$B36,'2023 NIST (for reference)'!$J$2:$N$2,0)) -> 1.01718239 | E36: =INDEX('2023 NIST (for reference)'!$J$3:$N$250,MATCH(Calculator!$C36&E$4,'2023 NIST (for reference)'!$A$3:$A$250,0),MATCH(Calculator!$B36,'2023 NIST (for reference)'!$J$2:$N$2,0)) -> 0.9219222191 | F36: =INDEX('2023 NIST (for reference)'!$J$3:$N$250,MATCH(Calculator!$C36&F$4,'2023 NIST (for reference)'!$A$3:$A$250,0),MATCH(Calculator!$B36,'2023 NIST (for reference)'!$J$2:$N$2,0)) -> 1.119798029 | G36: =INDEX('2023 NIST (for reference)'!$J$3:$N$250,MATCH(Calculator!$C36&G$4,'2023 NIST (for reference)'!$A$3:$A$250,0),MATCH(Calculator!$B36,'2023 NIST (for reference)'!$J$2:$N$2,0)) -> 0.9225174828 | H36: =INDEX('2023 NIST (for reference)'!$J$3:$N$250,MATCH(Calculator!$C36&H$4,'2023 NIST (for reference)'!$A$3:$A$250,0),MATCH(Calculator!$B36,'2023 NIST (for reference)'!$J$2:$N$2,0)) -> 0.9225174828 | I36: =INDEX('2023 NIST (for reference)'!$J$3:$N$250,MATCH(Calculator!$C36&I$4,'2023 NIST (for reference)'!$A$3:$A$250,0),MATCH(Calculator!$B36,'2023 NIST (for reference)'!$J$2:$N$2,0)) -> 1 | J36: =INDEX('2023 NIST (for reference)'!$J$3:$N$250,MATCH(Calculator!$C36&J$4,'2023 NIST (for reference)'!$A$3:$A$250,0),MATCH(Calculator!$B36,'2023 NIST (for reference)'!$J$2:$N$2,0)) -> 0.9819146293 | K36: =INDEX('2023 NIST (for reference)'!$J$3:$N$250,MATCH(Calculator!$C36&K$4,'2023 NIST (for reference)'!$A$3:$A$250,0),MATCH(Calculator!$B36,'2023 NIST (for reference)'!$J$2:$N$2,0)) -> 1 | L36: 17.91353908 | M36: 15.52359598 | N36: 19.62490541 | O36: 17.46770327 | P36: 17.46770327 | Q36: 19.60044135 | R36: 19.4562336 | S36: 19.60044135 | AJ36: 0.1525773585 | AK36: 14.16994451 | AL36: 2.676317289 | AM36: 3.302612588 | AN36: 3.173460141 | AO36: 280 | AP36: 55.30143192 | AQ36: 0 | AR36: 0.0186 | AS36: 0.449735 | AT36: 0.48875 | AU36: 0.86615 | AV36: 0.86615 | AW36: =AW35 -> 161.0546 | AX36: 0 | AY36: 0 | AZ36: 0.1711773585 | BA36: 18.83369646 | BB36: 3.165067289 | BC36: 4.168762588 | BD36: 4.039610141 | BE36: 441.0546 | BF36: 55.30143192 | BG36: 0 | BH36: 1.007518296 | BI36: 1.030403237 | BJ36: 1.174530954 | BK36: 1.011818389 | BL36: 1.014959571 | BM36: 1.159381622 | BN36: 0.9819146293 | BO36: 1 | BP36: 17.90921306 | BQ36: 17.04577602 | BR36: 20.24308712 | BS36: 18.46700851 | BT36: 18.50215933 | BU36: 21.04986181 | BV36: 19.4562336 | BW36: 19.60044135
AA42: All states names -> | AB42: US | AC42: Alabama | AD42: Alaska | AE42: Arizona | AF42: Arkansas | AG42: California | AH42: Colorado | AI42: Connecticut | AJ42: Delaware | AK42: District of Columbia | AL42: Florida | AM42: Georgia | AN42: Hawaii | AO42: Idaho | AP42: Illinois | AQ42: Indiana | AR42: Iowa | AS42: Kansas | AT42: Kentucky | AU42: Louisiana | AV42: Maine | AW42: Maryland | AX42: Massachusetts | AY42: Michigan | AZ42: Minnesota | BA42: Mississippi | BB42: Missouri | BC42: Montana | BD42: Nebraska | BE42: Nevada | BF42: New Hampshire | BG42: New Jersey | BH42: New Mexico | BI42: New York | BJ42: North Carolina | BK42: North Dakota | BL42: Ohio | BM42: Oklahoma | BN42: Oregon | BO42: Pennsylvania | BP42: Rhode Island | BQ42: South Carolina | BR42: South Dakota | BS42: Tennessee | BT42: Texas | BU42: Utah | BV42: Vermont | BW42: Virginia | BX42: Washington | BY42: West Virginia | BZ42: Wisconsin | CA42: Wyoming
AB43: Region Name
AB44: Region 1 - Northeast | AC44: Connecticut | AD44: Maine | AE44: Massachusetts | AF44: New Hampshire | AG44: New Jersey | AH44: New York | AI44: Pennsylvania | AJ44: Rhode Island | AK44: Vermont
AC45: CT | AD45: ME | AE45: MA | AF45: NH | AG45: NJ | AH45: NY | AI45: PA | AJ45: RI | AK45: VT
AB46: Region 2 - Midwest | AC46: Illinois | AD46: Indiana | AE46: Iowa | AF46: Kansas | AG46: Michigan | AH46: Minnesota | AI46: Missouri | AJ46: Nebraska | AK46: North Dakota | AL46: Ohio | AM46: South Dakota | AN46: Wisconsin
AC47: IL | AD47: IN | AE47: IA | AF47: KS | AG47: MI | AH47: MN | AI47: MO | AJ47: NE | AK47: ND | AL47: OH | AM47: SD | AN47: WI
AB50: Region 3 - South | AC50: Alabama | AD50: Arkansas | AE50: Delaware | AF50: District of Columbia | AG50: Florida | AH50: Georgia | AI50: Kentucky | AJ50: Louisiana | AK50: Maryland | AL50: Mississippi | AM50: North Carolina | AN50: Oklahoma | AO50: South Carolina | AP50: Tennessee | AQ50: Texas | AR50: Virginia | AS50: West Virginia
AC51: AL | AD51: AK | AE51: DE | AG51: FL | AH51: GA | AI51: KY | AJ51: LA | AK51: MD | AL51: MS | AM51: NC | AN51: OK | AO51: SC | AP51: TN | AQ51: TX | AR51: VA | AS51: WV
AB54: Region 4 - West | AC54: Alaska | AD54: Arizona | AE54: California | AF54: Colorado | AG54: Hawaii | AH54: Idaho | AI54: Montana | AJ54: Nevada | AK54: New Mexico | AL54: Oregon | AM54: Utah | AN54: Washington | AO54: Wyoming
AC55: AK | AD55: AZ | AE55: CA | AF55: CO | AG55: HI | AH55: ID | AI55: MT | AJ55: NV | AK55: NM | AL55: OR | AM55: UT | AN55: WA | AO55: WY
AB58: Region 5 - US | AC58: US
AB61: IF(OR(I5='User Inputs'!AC44:AK44,"Region 1 - Northeast"),IF(OR(I5='User Inputs'!AC46:AN46),"Region 2 - Midwest",IF(OR(I5='User Inputs'!AC50:AS50),"Region 3 - South",IF(OR(I5='User Inputs'!AC54:AO54),"Region 4 - West",IF(OR(I5='User Inputs'!AC58),"Region 5 - US")))))
AB63: IF(OR(SUMPRODUCT((I5='User Inputs'!AC44:AK44))),"Region 1 - Northeast", IF(OR(SUMPRODUCT((I5='User Inputs'!AC46:AN46))),"Region 2 - Midwest", IF(OR(SUMPRODUCT((I5='User Inputs'!AC50:AS50))),"Region 3 - South", IF(OR(SUMPRODUCT((I5='User Inputs'!AC54:AO54))),"Region 4 - West", IF(OR(I5='User Inputs'!AC58),"Region 5 - US","")))))
AB65: IF(ISNUMBER(MATCH(I5,'User Inputs'!AC44:AK44,0)),"Region 1 - Northeast", IF(ISNUMBER(MATCH(I5,'User Inputs'!AC46:AN46,0)),"Region 2 - Midwest", IF(ISNUMBER(MATCH(I5,'User Inputs'!AC50:AS50,0)),"Region 3 - South", IF(ISNUMBER(MATCH(I5,'User Inputs'!AC54:AO54,0)),"Region 4 - West", IF(ISNUMBER(MATCH(I5,'User Inputs'!AC58,0)),"Region 5 - US","")))))
AB67: CHOOSE(MATCH(I5, CHOOSE({1,2,3,4,5}, Calculator!AC44:AK44, Calculator!AC46:AN46, Calculator!AC50:AS50, Calculator!AC54:AO54, Calculator!AC58), 0), "Region 1 - Northeast", "Region 2 - Midwest", "Region 3 - South", "Region 4 - West", "Region 5 - US")
AB69: INDEX(Calculator!$AC$44:$AS$58, MATCH(I5, Calculator!$AB$44:$AB$58, 0))
AB71: INDEX(Calculator!$AB$44:$AB$58, MATCH('User Inputs'!I5, Calculator!$AC$44:$AS$58, 0))
AB73: INDIRECT("'Calculator'!AB44:AB58" & MATCH(I5, Calculator!AC44:AS58, 0))

Sheet Diagram (hidden)
C7: WPN 22-10
C19: Annual Supplement to
C20: NIST Handbook 135
D26: Extrapolated modified fuel prices = Fuel Price entered + (Fuel cost modifier * Heat content * 10)
D27: Projected real FPIs from the Annula Supplement to National Institute of Standards and Technology (NIST) Handbook 135.

Sheet WPN 22-10 (hidden)
J9: Wood
J12: 93.08 kg CO2/MMBtu
A17: 53 | J17: =93.08*A17/10000 -> 0.493324
A18: 54 | J18: =93.08*A18/10000 -> 0.502632
A19: 55 | J19: 0.51194
A20: 56 | J20: 0.521248
A21: 57 | J21: 0.530556
A22: 59 | J22: 0.549172
A23: 60 | J23: 0.55848
A24: 61 | J24: 0.567788
A25: 62 | J25: 0.577096
A26: 63 | J26: 0.586404
A27: 64 | J27: 0.595712
A28: 65 | J28: 0.60502
A29: 66 | J29: 0.614328
A30: 67 | J30: 0.623636
A31: 69 | J31: 0.642252
A32: 70 | J32: 0.65156
A33: 71 | J33: 0.660868
A34: 72 | J34: 0.670176
A35: 73 | J35: 0.679484
A36: 74 | J36: 0.688792
A37: 75 | J37: 0.6981
A38: 77 | J38: 0.716716

Sheet Results_convert_json (hidden)
A1: baseyear | B1: censusregion | C1: fuel_escalation_rates | D1: fuel_type_id | E1: fuel_name | F1: rate
A2: 2023 | B2: =IF('User Inputs_FPI_Calculator'!I5="Region 1 - Northeast", 1, IF('User Inputs_FPI_Calculator'!I5="Region 2 - Midwest", 2, IF('User Inputs_FPI_Calculator'!I5="Region 3 - South", 3, IF('User Inputs_FPI_Calculator'!I5="Region 4 - West", 4, IF('User Inputs_FPI_Calculator'!I5="Region 5 - US", 5, ""))))) -> 4 | D2: =IF('User Inputs_FPI_Calculator'!E3 = "FPI for v8.9 (adjusted for 30 yr UPV)", 1, IF('User Inputs_FPI_Calculator'!E3 = "FPI_SCC for v8.9 (adjusted for 30 year UPV)", 1, IF('User Inputs_FPI_Calculator'!E3 = "FPI for v10", 3, IF('User Inputs_FPI_Calculator'!E3 = "FPI_SCC for v10", 3, "")))) -> 1 | E2: ='User Inputs_FPI_Calculator'!AF3 -> Natural Gas | F2: ='User Inputs_FPI_Calculator'!AH3 -> 1
E3: ='User Inputs_FPI_Calculator'!AF4 -> Natural Gas | F3: ='User Inputs_FPI_Calculator'!AH4 -> 0.9864469229
E4: ='User Inputs_FPI_Calculator'!AF5 -> Natural Gas | F4: ='User Inputs_FPI_Calculator'!AH5 -> 0.9313927401
E5: ='User Inputs_FPI_Calculator'!AF6 -> Natural Gas | F5: ='User Inputs_FPI_Calculator'!AH6 -> 0.8701232978
E6: ='User Inputs_FPI_Calculator'!AF7 -> Natural Gas | F6: ='User Inputs_FPI_Calculator'!AH7 -> 0.8195171105
E7: ='User Inputs_FPI_Calculator'!AF8 -> Natural Gas | F7: ='User Inputs_FPI_Calculator'!AH8 -> 0.7808202046
E8: ='User Inputs_FPI_Calculator'!AF9 -> Natural Gas | F8: ='User Inputs_FPI_Calculator'!AH9 -> 0.7726452424
E9: ='User Inputs_FPI_Calculator'!AF10 -> Natural Gas | F9: ='User Inputs_FPI_Calculator'!AH10 -> 0.7767198153
E10: ='User Inputs_FPI_Calculator'!AF11 -> Natural Gas | F10: ='User Inputs_FPI_Calculator'!AH11 -> 0.7841581684
E11: ='User Inputs_FPI_Calculator'!AF12 -> Natural Gas | F11: ='User Inputs_FPI_Calculator'!AH12 -> 0.7920165097
E12: ='User Inputs_FPI_Calculator'!AF13 -> Natural Gas | F12: ='User Inputs_FPI_Calculator'!AH13 -> 0.8024136242
E13: ='User Inputs_FPI_Calculator'!AF14 -> Natural Gas | F13: ='User Inputs_FPI_Calculator'!AH14 -> 0.8135898859
E14: ='User Inputs_FPI_Calculator'!AF15 -> Natural Gas | F14: ='User Inputs_FPI_Calculator'!AH15 -> 0.8240225384
E15: ='User Inputs_FPI_Calculator'!AF16 -> Natural Gas | F15: ='User Inputs_FPI_Calculator'!AH16 -> 0.8305512189
E16: ='User Inputs_FPI_Calculator'!AF17 -> Natural Gas | F16: ='User Inputs_FPI_Calculator'!AH17 -> 0.8399783798
E17: ='User Inputs_FPI_Calculator'!AF18 -> Natural Gas | F17: ='User Inputs_FPI_Calculator'!AH18 -> 0.8496410019
E18: ='User Inputs_FPI_Calculator'!AF19 -> Natural Gas | F18: ='User Inputs_FPI_Calculator'!AH19 -> 0.8531797507
E19: ='User Inputs_FPI_Calculator'!AF20 -> Natural Gas | F19: ='User Inputs_FPI_Calculator'!AH20 -> 0.8594312844
E20: ='User Inputs_FPI_Calculator'!AF21 -> Natural Gas | F20: ='User Inputs_FPI_Calculator'!AH21 -> 0.8672776265
E21: ='User Inputs_FPI_Calculator'!AF22 -> Natural Gas | F21: ='User Inputs_FPI_Calculator'!AH22 -> 0.8727054268
E22: ='User Inputs_FPI_Calculator'!AF23 -> Natural Gas | F22: ='User Inputs_FPI_Calculator'!AH23 -> 0.8754752634
E23: ='User Inputs_FPI_Calculator'!AF24 -> Natural Gas | F23: ='User Inputs_FPI_Calculator'!AH24 -> 0.8790181716
E24: ='User Inputs_FPI_Calculator'!AF25 -> Natural Gas | F24: ='User Inputs_FPI_Calculator'!AH25 -> 0.8850552928
E25: ='User Inputs_FPI_Calculator'!AF26 -> Natural Gas | F25: ='User Inputs_FPI_Calculator'!AH26 -> 0.9446129056
E26: ='User Inputs_FPI_Calculator'!AF27 -> Natural Gas | F26: ='User Inputs_FPI_Calculator'!AH27 -> 6.346281082
E27: ='User Inputs_FPI_Calculator'!AF28 -> Natural Gas | F27: ='User Inputs_FPI_Calculator'!AH28 -> -4.56857065
D28: =IF('User Inputs_FPI_Calculator'!E3= "FPI for v8.9 (adjusted for 30 yr UPV)", 2, IF('User Inputs_FPI_Calculator'!E3= "FPI_SCC for v8.9 (adjusted for 30 year UPV)",2, "")) -> 2 | E28: ='User Inputs_FPI_Calculator'!AF29 -> Oil | F28: ='User Inputs_FPI_Calculator'!AH29 -> 1
E29: ='User Inputs_FPI_Calculator'!AF30 -> Oil | F29: ='User Inputs_FPI_Calculator'!AH30 -> 0.9674409699
E30: ='User Inputs_FPI_Calculator'!AF31 -> Oil | F30: ='User Inputs_FPI_Calculator'!AH31 -> 0.9296191684
E31: ='User Inputs_FPI_Calculator'!AF32 -> Oil | F31: ='User Inputs_FPI_Calculator'!AH32 -> 0.9115323557
E32: ='User Inputs_FPI_Calculator'!AF33 -> Oil | F32: ='User Inputs_FPI_Calculator'!AH33 -> 0.9015093814
D33: =IF('User Inputs_FPI_Calculator'!E3= "FPI for v10", 1, IF('User Inputs_FPI_Calculator'!E3= "FPI_SCC for v10",1, "")) ->  | E33: ='User Inputs_FPI_Calculator'!AF34 -> Oil | F33: ='User Inputs_FPI_Calculator'!AH34 -> 0.89521293
E34: ='User Inputs_FPI_Calculator'!AF35 -> Oil | F34: ='User Inputs_FPI_Calculator'!AH35 -> 0.8965147283
E35: ='User Inputs_FPI_Calculator'!AF36 -> Oil | F35: ='User Inputs_FPI_Calculator'!AH36 -> 0.8999237981
E36: ='User Inputs_FPI_Calculator'!AF37 -> Oil | F36: ='User Inputs_FPI_Calculator'!AH37 -> 0.9053702015
E37: ='User Inputs_FPI_Calculator'!AF38 -> Oil | F37: ='User Inputs_FPI_Calculator'!AH38 -> 0.9111911893
E38: ='User Inputs_FPI_Calculator'!AF39 -> Oil | F38: ='User Inputs_FPI_Calculator'!AH39 -> 0.9154268941
E39: ='User Inputs_FPI_Calculator'!AF40 -> Oil | F39: ='User Inputs_FPI_Calculator'!AH40 -> 0.9201674049
E40: ='User Inputs_FPI_Calculator'!AF41 -> Oil | F40: ='User Inputs_FPI_Calculator'!AH41 -> 0.9252220255
E41: ='User Inputs_FPI_Calculator'!AF42 -> Oil | F41: ='User Inputs_FPI_Calculator'!AH42 -> 0.929859687
E42: ='User Inputs_FPI_Calculator'!AF43 -> Oil | F42: ='User Inputs_FPI_Calculator'!AH43 -> 0.9368925595
E43: ='User Inputs_FPI_Calculator'!AF44 -> Oil | F43: ='User Inputs_FPI_Calculator'!AH44 -> 0.9368925595
E44: ='User Inputs_FPI_Calculator'!AF45 -> Oil | F44: ='User Inputs_FPI_Calculator'!AH45 -> 0.9460483492
E45: ='User Inputs_FPI_Calculator'!AF46 -> Oil | F45: ='User Inputs_FPI_Calculator'!AH46 -> 0.9504947759
E46: ='User Inputs_FPI_Calculator'!AF47 -> Oil | F46: ='User Inputs_FPI_Calculator'!AH47 -> 0.956747825
E47: ='User Inputs_FPI_Calculator'!AF48 -> Oil | F47: ='User Inputs_FPI_Calculator'!AH48 -> 0.9605850086
E48: ='User Inputs_FPI_Calculator'!AF49 -> Oil | F48: ='User Inputs_FPI_Calculator'!AH49 -> 0.9655678219
E49: ='User Inputs_FPI_Calculator'!AF50 -> Oil | F49: ='User Inputs_FPI_Calculator'!AH50 -> 0.9699474766
E50: ='User Inputs_FPI_Calculator'!AF51 -> Oil | F50: ='User Inputs_FPI_Calculator'!AH51 -> 0.9739669607
E51: ='User Inputs_FPI_Calculator'!AF52 -> Oil | F51: ='User Inputs_FPI_Calculator'!AH52 -> 0.984058959
E52: ='User Inputs_FPI_Calculator'!AF53 -> Oil | F52: ='User Inputs_FPI_Calculator'!AH53 -> 6.422143229
E53: ='User Inputs_FPI_Calculator'!AF54 -> Oil | F53: ='User Inputs_FPI_Calculator'!AH54 -> -4.603091757
D54: =IF('User Inputs_FPI_Calculator'!E3= "FPI for v8.9 (adjusted for 30 yr UPV)", 3, IF('User Inputs_FPI_Calculator'!E3= "FPI_SCC for v8.9 (adjusted for 30 year UPV)",3, "")) -> 3 | E54: ='User Inputs_FPI_Calculator'!AF55 -> Electricity | F54: ='User Inputs_FPI_Calculator'!AH55 -> 1
E55: ='User Inputs_FPI_Calculator'!AF56 -> Electricity | F55: ='User Inputs_FPI_Calculator'!AH56 -> 0.9401351292
E56: ='User Inputs_FPI_Calculator'!AF57 -> Electricity | F56: ='User Inputs_FPI_Calculator'!AH57 -> 0.8715894404
E57: ='User Inputs_FPI_Calculator'!AF58 -> Electricity | F57: ='User Inputs_FPI_Calculator'!AH58 -> 0.8494677621
E58: ='User Inputs_FPI_Calculator'!AF59 -> Electricity | F58: ='User Inputs_FPI_Calculator'!AH59 -> 0.8451253084
E59: ='User Inputs_FPI_Calculator'!AF60 -> Electricity | F59: ='User Inputs_FPI_Calculator'!AH60 -> 0.8456451695
E60: ='User Inputs_FPI_Calculator'!AF61 -> Electricity | F60: ='User Inputs_FPI_Calculator'!AH61 -> 0.847266718
E61: ='User Inputs_FPI_Calculator'!AF62 -> Electricity | F61: ='User Inputs_FPI_Calculator'!AH62 -> 0.8507550074
E62: ='User Inputs_FPI_Calculator'!AF63 -> Electricity | F62: ='User Inputs_FPI_Calculator'!AH63 -> 0.8578963815
E63: ='User Inputs_FPI_Calculator'!AF64 -> Electricity | F63: ='User Inputs_FPI_Calculator'!AH64 -> 0.8673371921
D64: =IF('User Inputs_FPI_Calculator'!E3= "FPI for v10", 4, IF('User Inputs_FPI_Calculator'!E3= "FPI_SCC for v10",4, "")) ->  | E64: ='User Inputs_FPI_Calculator'!AF65 -> Electricity | F64: ='User Inputs_FPI_Calculator'!AH65 -> 0.8772527164
E65: ='User Inputs_FPI_Calculator'!AF66 -> Electricity | F65: ='User Inputs_FPI_Calculator'!AH66 -> 0.8881423043
E66: ='User Inputs_FPI_Calculator'!AF67 -> Electricity | F66: ='User Inputs_FPI_Calculator'!AH67 -> 0.8939728657
E67: ='User Inputs_FPI_Calculator'!AF68 -> Electricity | F67: ='User Inputs_FPI_Calculator'!AH68 -> 0.8994857021
E68: ='User Inputs_FPI_Calculator'!AF69 -> Electricity | F68: ='User Inputs_FPI_Calculator'!AH69 -> 0.9077295378
E69: ='User Inputs_FPI_Calculator'!AF70 -> Electricity | F69: ='User Inputs_FPI_Calculator'!AH70 -> 0.9182165855
E70: ='User Inputs_FPI_Calculator'!AF71 -> Electricity | F70: ='User Inputs_FPI_Calculator'!AH71 -> 0.9274523034
E71: ='User Inputs_FPI_Calculator'!AF72 -> Electricity | F71: ='User Inputs_FPI_Calculator'!AH72 -> 0.935751881
E72: ='User Inputs_FPI_Calculator'!AF73 -> Electricity | F72: ='User Inputs_FPI_Calculator'!AH73 -> 0.9438556274
E73: ='User Inputs_FPI_Calculator'!AF74 -> Electricity | F73: ='User Inputs_FPI_Calculator'!AH74 -> 0.9520221789
E74: ='User Inputs_FPI_Calculator'!AF75 -> Electricity | F74: ='User Inputs_FPI_Calculator'!AH75 -> 0.9592927612
E75: ='User Inputs_FPI_Calculator'!AF76 -> Electricity | F75: ='User Inputs_FPI_Calculator'!AH76 -> 0.9688690616
E76: ='User Inputs_FPI_Calculator'!AF77 -> Electricity | F76: ='User Inputs_FPI_Calculator'!AH77 -> 0.9769861174
E77: ='User Inputs_FPI_Calculator'!AF78 -> Electricity | F77: ='User Inputs_FPI_Calculator'!AH78 -> 0.9842581552
E78: ='User Inputs_FPI_Calculator'!AF79 -> Electricity | F78: ='User Inputs_FPI_Calculator'!AH79 -> 6.40029355
E79: ='User Inputs_FPI_Calculator'!AF80 -> Electricity | F79: ='User Inputs_FPI_Calculator'!AH80 -> -4.581854473
D80: =IF('User Inputs_FPI_Calculator'!E3= "FPI for v8.9 (adjusted for 30 yr UPV)", 4, IF('User Inputs_FPI_Calculator'!E3= "FPI_SCC for v8.9 (adjusted for 30 year UPV)",4, "")) -> 4 | E80: ='User Inputs_FPI_Calculator'!AF81 -> Propane | F80: ='User Inputs_FPI_Calculator'!AH81 -> 1
E81: ='User Inputs_FPI_Calculator'!AF82 -> Propane | F81: ='User Inputs_FPI_Calculator'!AH82 -> 1.022554351
E82: ='User Inputs_FPI_Calculator'!AF83 -> Propane | F82: ='User Inputs_FPI_Calculator'!AH83 -> 1.002910735
E83: ='User Inputs_FPI_Calculator'!AF84 -> Propane | F83: ='User Inputs_FPI_Calculator'!AH84 -> 0.9736285631
E84: ='User Inputs_FPI_Calculator'!AF85 -> Propane | F84: ='User Inputs_FPI_Calculator'!AH85 -> 0.9487751649
E85: ='User Inputs_FPI_Calculator'!AF86 -> Propane | F85: ='User Inputs_FPI_Calculator'!AH86 -> 0.935733028
E86: ='User Inputs_FPI_Calculator'!AF87 -> Propane | F86: ='User Inputs_FPI_Calculator'!AH87 -> 0.9300163297
E87: ='User Inputs_FPI_Calculator'!AF88 -> Propane | F87: ='User Inputs_FPI_Calculator'!AH88 -> 0.9325696132
E88: ='User Inputs_FPI_Calculator'!AF89 -> Propane | F88: ='User Inputs_FPI_Calculator'!AH89 -> 0.9413873687
E89: ='User Inputs_FPI_Calculator'!AF90 -> Propane | F89: ='User Inputs_FPI_Calculator'!AH90 -> 0.9553698122
E90: ='User Inputs_FPI_Calculator'!AF91 -> Propane | F90: ='User Inputs_FPI_Calculator'!AH91 -> 0.9732951899
E91: ='User Inputs_FPI_Calculator'!AF92 -> Propane | F91: ='User Inputs_FPI_Calculator'!AH92 -> 0.9921344889
E92: ='User Inputs_FPI_Calculator'!AF93 -> Propane | F92: ='User Inputs_FPI_Calculator'!AH93 -> 1.008479934
E93: ='User Inputs_FPI_Calculator'!AF94 -> Propane | F93: ='User Inputs_FPI_Calculator'!AH94 -> 1.021458416
E94: ='User Inputs_FPI_Calculator'!AF95 -> Propane | F94: ='User Inputs_FPI_Calculator'!AH95 -> 1.034913173
D95: =IF('User Inputs_FPI_Calculator'!E3= "FPI for v10", 2, IF('User Inputs_FPI_Calculator'!E3= "FPI_SCC for v10",2, "")) ->  | E95: ='User Inputs_FPI_Calculator'!AF96 -> Propane | F95: ='User Inputs_FPI_Calculator'!AH96 -> 1.047908254
E96: ='User Inputs_FPI_Calculator'!AF97 -> Propane | F96: ='User Inputs_FPI_Calculator'!AH97 -> 1.057107956
E97: ='User Inputs_FPI_Calculator'!AF98 -> Propane | F97: ='User Inputs_FPI_Calculator'!AH98 -> 1.06746282
E98: ='User Inputs_FPI_Calculator'!AF99 -> Propane | F98: ='User Inputs_FPI_Calculator'!AH99 -> 1.078572603
E99: ='User Inputs_FPI_Calculator'!AF100 -> Propane | F99: ='User Inputs_FPI_Calculator'!AH100 -> 1.087692898
E100: ='User Inputs_FPI_Calculator'!AF101 -> Propane | F100: ='User Inputs_FPI_Calculator'!AH101 -> 1.093815541
E101: ='User Inputs_FPI_Calculator'!AF102 -> Propane | F101: ='User Inputs_FPI_Calculator'!AH102 -> 1.099432576
E102: ='User Inputs_FPI_Calculator'!AF103 -> Propane | F102: ='User Inputs_FPI_Calculator'!AH103 -> 1.104196487
E103: ='User Inputs_FPI_Calculator'!AF104 -> Propane | F103: ='User Inputs_FPI_Calculator'!AH104 -> 1.130784348
E104: ='User Inputs_FPI_Calculator'!AF105 -> Propane | F104: ='User Inputs_FPI_Calculator'!AH105 -> 7.412354241
E105: ='User Inputs_FPI_Calculator'!AF106 -> Propane | F105: ='User Inputs_FPI_Calculator'!AH106 -> -5.313515908
